Workbook

Sheet START
A1: =muni -> LIM353 Molemole

Sheet Instructions
D2: 2020
X4: Yes
X5: No
W7: Type of Entities Range: | X7: Parent Municipality
X8: Consolidated Information
W10: Date linked | X10: 16
W11: Date | X11: =VLOOKUP(X10,W39:X55,2) -> Q4 Fourth Quarter | Y11: 2013-08-01
W19: MTREF Range: | X19: 2008
X20: 2009
X21: 2010
X22: 2011
X23: 2012
X24: 2013
X25: 2014
X26: 2015
X27: 2016
X28: 2017
X29: 2018
X30: 2019
X31: 2020
X32: 2021
X33: 2022
W34: MTREF Linked:
W35: MTREF: | X35: 14
X36: =INDEX(X19:X33,X35,1) -> 2021
W37: Fin Year:
X38: =MTREF&"/"&RIGHT(MTREF,2)+1 -> 2021/22
V39: Date/type of report | W39: 1 | X39: M01 July
W40: 2 | X40: M02 August
W41: 3 | X41: M03 September
W42: 4 | X42: M04 October
W43: 5 | X43: M05 November
W44: 6 | X44: M06 December
W45: 7 | X45: M07 January
W46: 8 | X46: M08 February
W47: 9 | X47: M09 March
W48: 10 | X48: M10 April
W49: 11 | X49: M11 May
W50: 12 | X50: M12 June
W51: 13 | X51: Q1 First Quarter
W52: 14 | X52: Q2 Second Quarter
W53: 15 | X53: Q3 Third Quarter
W54: 16 | X54: Q4 Fourth Quarter
W55: 17 | X55: Mid-Year Assessment

Sheet Template names (hidden)
A1: Common sheet headings
A2: Head1 | B2: =HLOOKUP(MTREF,Headings,2) -> 2020/21 | C2: Prior year -1
A3: Head2 | B3: =HLOOKUP(MTREF,Headings,5) -> Budget Year 2021/22 | C3: Year of approved budget
A4: Head2A | B4: =HLOOKUP(MTREF,Headings,4) -> 2021/22 | C4: Approved budget year
A5: Head3 | B5: =HLOOKUP(MTREF,Headings,3) -> 2021/22 Medium Term Revenue & Expenditure Framework | C5: MTREF header name
A6: Head5 | B6: Audited Outcome
A7: Head5A | B7: Outcome
A8: Head5B | B8: Pre-audit outcome
A9: Head6 | B9: Original Budget
A10: Head7 | B10: Adjusted Budget
A11: Head8 | B11: Full Year Forecast
A12: Head9 | B12: =HLOOKUP(MTREF,Headings,5) -> Budget Year 2021/22 | C12: 1st year of MTREF | D12: Year1
A13: Head10 | B13: =HLOOKUP(MTREF,Headings,6) -> Budget Year +1 2022/23 | C13: 2nd year of MTREF | D13: Year2
A14: Head11 | B14: =HLOOKUP(MTREF,Headings,7) -> Budget Year +2 2023/24 | C14: 3rd year of MTREF | D14: Year3
A15: Head12 | B15: Forecast 2010/11 | D15: Year4
A16: Head13 | B16: Forecast 2011/12 | D16: Year5
A17: Head14 | B17: Forecast 2012/13 | D17: Year6
A18: Head15 | B18: Forecast 2013/14 | D18: Year7
A19: Head16 | B19: Forecast 2014/15 | D19: Year8
A20: Head17 | B20: Forecast 2015/16 | D20: Year9
A21: Head18 | B21: Forecast 2016/17 | D21: Year10
A22: Head19 | B22: Forecast 2017/18 | D22: Year11
A23: Head20 | B23: Forecast 2018/19 | D23: Year12
A24: Head21 | B24: Forecast 2019/20 | D24: Year13
A25: Head22 | B25: Forecast 2020/21 | D25: Year14
A26: Head23 | B26: Forecast 2021/22 | D26: Year15
A27: Head24 | B27: Description | D27: Desc
A28: Head25 | B28: Schedule of funding diligence | D28: fdil
A29: Head26 | B29: Vote Description | D29: VDesc
A30: Head27 | B30: Ref
A31: Head27a | B31: References
A32: Head28 | B32: Surplus/ (Deficit) for the year | D32: Result
A33: Head29 | B33: Annual target 2007/08
A34: Head30 | B34: Revised target 2007/08
A35: Head31 | B35: Quarter ended 30 September
A36: Head32 | B36: Quarter ended 31 December
A37: Head33 | B37: Quarter ended 31 March
A38: Head34 | B38: Quarter ended 30 June
A39: Head35 | B39: Variance explanation
A40: Head36 | B40: YTD Actual 31 Dec
A41: Head37 | B41: YTD Budget 31 Dec
A42: Head38 | B42: Monthly actual
A43: Head39 | B43: YearTD actual
A44: Head40 | B44: YearTD budget
A45: Head41 | B45: YTD variance
A46: Head42 | B46: Surplus/ (Deficit) for the yr/period
A47: Head43 | B47: =Head3&" Summary" -> 2021/22 Medium Term Revenue & Expenditure Framework Summary
A48: Head44 | B48: 1996 Census
A49: Head45 | B49: 2001 Census
A50: Head46 | B50: - Adjustments Budget - Month YYYY
A51: Head47 | B51: Previous target year to complete
A52: Head48 | B52: Present value
A53: Head49 | B53: Virement
A54: Head50 | B54: Other Adjusts.
A55: Head51 | B55: Accum. Funds
A56: Head52 | B56: Multi-year capital
A57: Head53 | B57: Unfore. Unavoid.
A58: Head54 | B58: Prior Adjusted
A59: Head55 | B59: Nat. or Prov. Govt
A60: Head56 | B60: Total Adjusts.
A61: Head57 | B61: =date -> Q4 Fourth Quarter
A62: Head58 | B62: Parent muni.
A63: Head59 | B63: Downward adjusts
A64: Head60 | B64: Month | C64: Report header part name | D64: =date -> Q4 Fourth Quarter
A65: SFPerf1 | B65: Budgeted Financial Performance
A66: SFPerf2 | B66: Forecast Financial Performance
A67: SFPos1 | B67: Budgeted Financial Position
A68: SFPos2 | B68: Forecast Financial Position
A69: Cash1 | B69: Budget Cash Flow
A70: Cash2 | B70: Forecast Cash Flow
A71: RandM | B71: Expenditure includes repairs & maintenance of R'000
A72: Standard nomenclature
A73: Muni | B73: ='Lookup and lists'!B27 -> LIM353 Molemole
A74: Municipal Entities | B74: 2 | C74: Type of report: | D74: 1
A75: =IF((MuniEntities=1)*(MuniType=2),"YES","NO") -> NO | B75: Does this municipality have entities (consolidated budget and entity budgets required)? YES/NO
A76: s71 (Monthly Mayor report) schedules and charts
A77: S71sum | B77: =IF(Consolques="YES",E77,F77) -> Table C1 Monthly Budget Statement Summary | D77: Table C1 | E77: =D77&"Consolidated Monthly Budget Statement Summary" -> Table C1 Consolidated Monthly Budget Statement Summary | F77: =D77&"Monthly Budget Statement Summary" -> Table C1 Monthly Budget Statement Summary
A78: S71C | B78: Table C3 Monthly Budget Statement - Financial Performance (revenue and expenditure by municipal vote) | D78: Table C3 | E78: =D78&"Consolidated Monthly Budget Statement - Financial Performance (revenue and expenditure by municipal vote) " -> Table C3 Consolidated Monthly Budget Statement - Financial Performance (revenue and expenditure by municipal vote) | F78: =D78&"Monthly Budget Statement - Financial Performance (revenue and expenditure by municipal vote)" -> Table C3 Monthly Budget Statement - Financial Performance (revenue and expenditure by municipal vote)
A79: S71A | B79: =IF(Consolques="YES",E79,F79) -> Table C2 Monthly Budget Statement - Financial Performance (functional classification) | D79: Table C2 | E79: =D79&"Consolidated Monthly Budget Statement - Financial Performance (functional classification) " -> Table C2 Consolidated Monthly Budget Statement - Financial Performance (functional classification) | F79: =D79&"Monthly Budget Statement - Financial Performance (functional classification)" -> Table C2 Monthly Budget Statement - Financial Performance (functional classification)
A80: S71B | B80: =IF(Consolques="YES",E80,F80) -> Table C4 Monthly Budget Statement - Financial Performance (revenue and expenditure) | D80: Table C4 | E80: =D80&"Consolidated Monthly Budget Statement - Financial Performance (revenue and expenditure) " -> Table C4 Consolidated Monthly Budget Statement - Financial Performance (revenue and expenditure) | F80: =D80&"Monthly Budget Statement - Financial Performance (revenue and expenditure)" -> Table C4 Monthly Budget Statement - Financial Performance (revenue and expenditure)
A81: S71D | B81: =IF(Consolques="YES",E81,F81) -> Table C5 Monthly Budget Statement - Capital Expenditure (municipal vote, functional classification and funding) | D81: Table C5 | E81: =D81&"Consolidated Monthly Budget Statement - Capital Expenditure (municipal vote, functional classification and funding " -> Table C5 Consolidated Monthly Budget Statement - Capital Expenditure (municipal vote, functional classification and funding | F81: =D81&"Monthly Budget Statement - Capital Expenditure (municipal vote, functional classification and funding)" -> Table C5 Monthly Budget Statement - Capital Expenditure (municipal vote, functional classification and funding)
A82: S71E | B82: Table C6 Monthly Budget Statement - Financial Position | D82: Table C6 | E82: =D82&"Consolidated Monthly Budget Statement - Financial Position " -> Table C6 Consolidated Monthly Budget Statement - Financial Position | F82: =D82&"Monthly Budget Statement - Financial Position" -> Table C6 Monthly Budget Statement - Financial Position
A83: S71F | B83: Table C7 Monthly Budget Statement - Cash Flow | D83: Table C7 | E83: =D83&"Consolidated Monthly Budget Statement - Cash Flow " -> Table C7 Consolidated Monthly Budget Statement - Cash Flow | F83: =D83&"Monthly Budget Statement - Cash Flow " -> Table C7 Monthly Budget Statement - Cash Flow
A84: S71G | B84: =D84&"Material variance explanations " -> Supporting Table SC1 Material variance explanations | D84: Supporting Table SC1
A85: S71H | B85: =D85&"Monthly Budget Statement - performance indicators " -> Supporting Table SC2 Monthly Budget Statement - performance indicators | D85: Supporting Table SC2
A86: S71I | B86: =D86&"Monthly Budget Statement - aged debtors" -> Supporting Table SC3 Monthly Budget Statement - aged debtors | D86: Supporting Table SC3
A87: S71J | B87: =D87&"Monthly Budget Statement - aged creditors " -> Supporting Table SC4 Monthly Budget Statement - aged creditors | D87: Supporting Table SC4
A88: S71K | B88: =D88&"Monthly Budget Statement - investment portfolio " -> Supporting Table SC5 Monthly Budget Statement - investment portfolio | D88: Supporting Table SC5
A89: S71L | B89: =D89&"Monthly Budget Statement - transfers and grant receipts " -> Supporting Table SC6 Monthly Budget Statement - transfers and grant receipts | D89: Supporting Table SC6
A90: S71M | B90: =D90&" Monthly Budget Statement - transfers and grant expenditure " -> Supporting Table SC7(1) Monthly Budget Statement - transfers and grant expenditure | D90: Supporting Table SC7(1)
A91: S71N | B91: =D91&"Monthly Budget Statement - councillor and staff benefits " -> Supporting Table SC8 Monthly Budget Statement - councillor and staff benefits | D91: Supporting Table SC8
A92: S71O | B92: =D92&"Monthly Budget Statement - actuals and revised targets for cash receipts" -> Supporting Table SC9 Monthly Budget Statement - actuals and revised targets for cash receipts | D92: Supporting Table SC9
A93: S71P | B93: =IF(Consolques="YES",E93,F93) -> NOT REQUIRED - municipality does not have entities or this is the parent municipality's budget | D93: Supporting Table SC10 | E93: =D93&"Monthly Budget Statement - Parent Municipality Financial Performance (revenue and expenditure) " -> Supporting Table SC10 Monthly Budget Statement - Parent Municipality Financial Performance (revenue and expenditure) | F93: NOT REQUIRED - municipality does not have entities or this is the parent municipality's budget
A94: S71Q | B94: NOT REQUIRED - municipality does not have entities or this is the parent municipality's budget | D94: Supporting Table SC11 | E94: =D94&"Monthly Budget Statement - summary of municipal entities" -> Supporting Table SC11 Monthly Budget Statement - summary of municipal entities | F94: NOT REQUIRED - municipality does not have entities or this is the parent municipality's budget
A95: S71R | B95: Supporting Table SC12 Monthly Budget Statement - capital expenditure trend | D95: Supporting Table SC12 | E95: =D95&"Consolidated Monthly Budget Statement - capital expenditure trend " -> Supporting Table SC12 Consolidated Monthly Budget Statement - capital expenditure trend | F95: =D95&"Monthly Budget Statement - capital expenditure trend" -> Supporting Table SC12 Monthly Budget Statement - capital expenditure trend
A96: S71Sa | B96: Supporting Table SC13a Monthly Budget Statement - capital expenditure on new assets by asset class | D96: Supporting Table SC13a | E96: =D96&"Consolidated Monthly Budget Statement - capital expenditure on new assets by asset class" -> Supporting Table SC13a Consolidated Monthly Budget Statement - capital expenditure on new assets by asset class | F96: =D96&"Monthly Budget Statement - capital expenditure on new assets by asset class" -> Supporting Table SC13a Monthly Budget Statement - capital expenditure on new assets by asset class
A97: S71Sb | B97: Supporting Table SC13b Monthly Budget Statement - capital expenditure on renewal of existing assets by asset class | D97: Supporting Table SC13b | E97: =D97&"Consolidated Monthly Budget Statement - capital expenditure on renewal of existing assets by asset class" -> Supporting Table SC13b Consolidated Monthly Budget Statement - capital expenditure on renewal of existing assets by asset class | F97: =D97&"Monthly Budget Statement - capital expenditure on renewal of existing assets by asset class" -> Supporting Table SC13b Monthly Budget Statement - capital expenditure on renewal of existing assets by asset class
A98: S71Sc | B98: Supporting Table SC13c Monthly Budget Statement - expenditure on repairs and maintenance by asset class | D98: Supporting Table SC13c | E98: =D98&"Consolidated Monthly Budget Statement - expenditure on repairs and maintenance by asset class" -> Supporting Table SC13c Consolidated Monthly Budget Statement - expenditure on repairs and maintenance by asset class | F98: =D98&"Monthly Budget Statement - expenditure on repairs and maintenance by asset class" -> Supporting Table SC13c Monthly Budget Statement - expenditure on repairs and maintenance by asset class
A99: S71Sd | B99: Supporting Table SC13d Monthly Budget Statement - depreciation by asset class | D99: Supporting Table SC13d | E99: =D99&"Consolidated Monthly Budget Statement - depreciation by asset class" -> Supporting Table SC13d Consolidated Monthly Budget Statement - depreciation by asset class | F99: =D99&"Monthly Budget Statement - depreciation by asset class" -> Supporting Table SC13d Monthly Budget Statement - depreciation by asset class
A100: S71Se | B100: =IF(Consolques="YES",E100,F100) -> Supporting Table SC13e Monthly Budget Statement - capital expenditure on upgrading of existing assets by asset class | D100: Supporting Table SC13e | E100: =D100&"Consolidated Monthly Budget Statement - capital expenditure on upgrading of existing assets by asset class" -> Supporting Table SC13e Consolidated Monthly Budget Statement - capital expenditure on upgrading of existing assets by asset class | F100: =D100&"Monthly Budget Statement - capital expenditure on upgrading of existing assets by asset class" -> Supporting Table SC13e Monthly Budget Statement - capital expenditure on upgrading of existing assets by asset class
B101: s71 charts listing
B102: =D102&Head2A&" Capital Expenditure Monthly Trend: actual v target" -> Chart C1 2021/22 Capital Expenditure Monthly Trend: actual v target | D102: Chart C1
B103: =D103&Head2A&" Capital Expenditure: YTD actual v YTD target" -> Chart C2 2021/22 Capital Expenditure: YTD actual v YTD target | D103: Chart C2
B104: =D104&"Aged Consumer Debtors Analysis" -> Chart C3 Aged Consumer Debtors Analysis | D104: Chart C3
B105: =D105&"Consumer Debtors (total by Debtor Customer Category)" -> Chart C4 Consumer Debtors (total by Debtor Customer Category) | D105: Chart C4
B106: =D106&"Aged Creditors Analysis" -> Chart C5 Aged Creditors Analysis | D106: Chart C5
A107: S71T | B107: =D107&" Monthly Budget Statement - Expenditure against approved rollovers" -> Supporting Table SC7(2) Monthly Budget Statement - Expenditure against approved rollovers | D107: Supporting Table SC7(2)

Sheet Lookup and lists (hidden)
A1: Description | B1: 2013 | C1: 2014 | D1: 2015 | E1: 2016 | F1: 2017 | G1: 2018 | H1: 2019 | I1: 2020 | J1: 2021 | K1: 2022 | L1: 2023 | M1: 2024 | N1: 2025 | O1: 2026 | Q1: Grants: | R1: National - opex | S1: Provincial - opex | T1: National - capex | U1: Provincial - capex | V1: YESNO
A2: ='Template names'!C2 -> Prior year -1 | B2: =B1-1&"/"&RIGHT(B1,2)-0 -> 2012/13 | C2: =C1-1&"/"&RIGHT(C1,2)-0 -> 2013/14 | D2: =D1-1&"/"&RIGHT(D1,2)-0 -> 2014/15 | E2: =E1-1&"/"&RIGHT(E1,2)-0 -> 2015/16 | F2: =F1-1&"/"&RIGHT(F1,2)-0 -> 2016/17 | G2: 2017/18 | H2: 2018/19 | I2: 2019/20 | J2: 2020/21 | K2: 2021/22 | L2: 2022/23 | M2: 2023/24 | N2: 2024/25 | O2: 2025/26 | R2: Local Government Equitable Share | S2: Health subsidy | T2: Municipal Infrastructure Grant (MIG) | U2: Agriculture | V2: Yes
A3: ='Template names'!C5 -> MTREF header name | B3: =B1&"/"&RIGHT(B1,2)+1&" Medium Term Revenue & Expenditure Framework" -> 2013/14 Medium Term Revenue & Expenditure Framework | C3: =C1&"/"&RIGHT(C1,2)+1&" Medium Term Revenue & Expenditure Framework" -> 2014/15 Medium Term Revenue & Expenditure Framework | D3: =D1&"/"&RIGHT(D1,2)+1&" Medium Term Revenue & Expenditure Framework" -> 2015/16 Medium Term Revenue & Expenditure Framework | E3: =E1&"/"&RIGHT(E1,2)+1&" Medium Term Revenue & Expenditure Framework" -> 2016/17 Medium Term Revenue & Expenditure Framework | F3: =F1&"/"&RIGHT(F1,2)+1&" Medium Term Revenue & Expenditure Framework" -> 2017/18 Medium Term Revenue & Expenditure Framework | G3: 2018/19 Medium Term Revenue & Expenditure Framework | H3: 2019/20 Medium Term Revenue & Expenditure Framework | I3: 2020/21 Medium Term Revenue & Expenditure Framework | J3: 2021/22 Medium Term Revenue & Expenditure Framework | K3: 2022/23 Medium Term Revenue & Expenditure Framework | L3: 2023/24 Medium Term Revenue & Expenditure Framework | M3: 2024/25 Medium Term Revenue & Expenditure Framework | N3: 2025/26 Medium Term Revenue & Expenditure Framework | O3: 2026/27 Medium Term Revenue & Expenditure Framework | R3: RSC Levy Replacement | S3: Ambulance subsidy | T3: Public Transport and Systems | U3: Education | V3: No
A4: ='Template names'!C4 -> Approved budget year | B4: =B1&"/"&RIGHT(B1,2)+1 -> 2013/14 | C4: =C1&"/"&RIGHT(C1,2)+1 -> 2014/15 | D4: =D1&"/"&RIGHT(D1,2)+1 -> 2015/16 | E4: =E1&"/"&RIGHT(E1,2)+1 -> 2016/17 | F4: =F1&"/"&RIGHT(F1,2)+1 -> 2017/18 | G4: 2018/19 | H4: 2019/20 | I4: 2020/21 | J4: 2021/22 | K4: 2022/23 | L4: 2023/24 | M4: 2024/25 | N4: 2025/26 | O4: 2026/27 | R4: Finance Management | S4: Housing | T4: Rural Transport Services and Infrastructure | U4: Health
A5: ='Template names'!C12 -> 1st year of MTREF | B5: ="Budget Year "&B1&"/"&RIGHT(B1,2)+1 -> Budget Year 2013/14 | C5: ="Budget Year "&C1&"/"&RIGHT(C1,2)+1 -> Budget Year 2014/15 | D5: ="Budget Year "&D1&"/"&RIGHT(D1,2)+1 -> Budget Year 2015/16 | E5: ="Budget Year "&E1&"/"&RIGHT(E1,2)+1 -> Budget Year 2016/17 | F5: ="Budget Year "&F1&"/"&RIGHT(F1,2)+1 -> Budget Year 2017/18 | G5: Budget Year 2018/19 | H5: Budget Year 2019/20 | I5: Budget Year 2020/21 | J5: Budget Year 2021/22 | K5: Budget Year 2022/23 | L5: Budget Year 2023/24 | M5: Budget Year 2024/25 | N5: Budget Year 2025/26 | O5: Budget Year 2026/27 | R5: Municipal Systems Improvement | S5: Sport and Recreation | T5: Regional Bulk Infrastructure | U5: Housing and Local Government
A6: ='Template names'!C13 -> 2nd year of MTREF | B6: ="Budget Year +1 "&B1+1&"/"&RIGHT(B1,2)+2 -> Budget Year +1 2014/15 | C6: ="Budget Year +1 "&C1+1&"/"&RIGHT(C1,2)+2 -> Budget Year +1 2015/16 | D6: ="Budget Year +1 "&D1+1&"/"&RIGHT(D1,2)+2 -> Budget Year +1 2016/17 | E6: ="Budget Year +1 "&E1+1&"/"&RIGHT(E1,2)+2 -> Budget Year +1 2017/18 | F6: ="Budget Year +1 "&F1+1&"/"&RIGHT(F1,2)+2 -> Budget Year +1 2018/19 | G6: Budget Year +1 2019/20 | H6: Budget Year +1 2020/21 | I6: Budget Year +1 2021/22 | J6: Budget Year +1 2022/23 | K6: Budget Year +1 2023/24 | L6: Budget Year +1 2024/25 | M6: Budget Year +1 2025/26 | N6: Budget Year +1 2026/27 | O6: Budget Year +1 2027/28 | R6: Water Services Operating Subsidy | T6: Rural Households Infrastructure | U6: Other Departments
A7: ='Template names'!C14 -> 3rd year of MTREF | B7: ="Budget Year +2 "&B1+2&"/"&RIGHT(B1,2)+3 -> Budget Year +2 2015/16 | C7: ="Budget Year +2 "&C1+2&"/"&RIGHT(C1,2)+3 -> Budget Year +2 2016/17 | D7: ="Budget Year +2 "&D1+2&"/"&RIGHT(D1,2)+3 -> Budget Year +2 2017/18 | E7: ="Budget Year +2 "&E1+2&"/"&RIGHT(E1,2)+3 -> Budget Year +2 2018/19 | F7: ="Budget Year +2 "&F1+2&"/"&RIGHT(F1,2)+3 -> Budget Year +2 2019/20 | G7: Budget Year +2 2020/21 | H7: Budget Year +2 2021/22 | I7: Budget Year +2 2022/23 | J7: Budget Year +2 2023/24 | K7: Budget Year +2 2024/25 | L7: Budget Year +2 2025/26 | M7: Budget Year +2 2026/27 | N7: Budget Year +2 2027/28 | O7: Budget Year +2 2028/29 | R7: Energy Efficiency and Demand Management | T7: Neighbourhood Development Partnership | U7: Public Works, Roads, Transport
A8: NOTE: This sheet should not be directly amended - select headings from sheet 'S' | R8: Integrated National Electrification Programme | T8: 2010 FIFA World Cup Stadiums Development | U8: Sport and Recreation
R9: Municipal Drought Relief
R10: 2010 FIFA World Cup Operating
R11: Electricity Demand Side Management
R12: EPWP Incentive
A26: Name link | B26: 141
A27: Name of Muni | B27: =INDEX(B28:B311,B26,1) -> LIM353 Molemole
B28: Choose name from list | C28: Set name on 'Instructions' sheet
B29: BUF Buffalo City | C29: EC EASTERN CAPE
B30: NMA Nelson Mandela Bay | C30: EC EASTERN CAPE
B31: EC101 Dr Beyers Naude | C31: EC EASTERN CAPE
B32: EC102 Blue Crane Route | C32: EC EASTERN CAPE
B33: EC104 Makana | C33: EC EASTERN CAPE
B34: EC105 Ndlambe | C34: EC EASTERN CAPE
B35: EC106 Sundays River Valley | C35: EC EASTERN CAPE
B36: EC108 Kouga | C36: EC EASTERN CAPE
B37: EC109 Kou-Kamma | C37: EC EASTERN CAPE
B38: DC10 Sarah Baartman | C38: EC EASTERN CAPE
B39: EC121 Mbhashe | C39: EC EASTERN CAPE
B40: EC122 Mnquma | C40: EC EASTERN CAPE
B41: EC123 Great Kei | C41: EC EASTERN CAPE
B42: EC124 Amahlathi | C42: EC EASTERN CAPE
B43: EC126 Ngqushwa | C43: EC EASTERN CAPE
B44: EC129 Raymond Mhlaba | C44: EC EASTERN CAPE
B45: DC12 Amathole | C45: EC EASTERN CAPE
B46: EC131 Inxuba Yethemba | C46: EC EASTERN CAPE
B47: EC135 Intsika Yethu | C47: EC EASTERN CAPE
B48: EC136 Emalahleni (Ec) | C48: EC EASTERN CAPE
B49: EC137 Engcobo | C49: EC EASTERN CAPE
B50: EC138 Sakhisizwe | C50: EC EASTERN CAPE
B51: EC139 Enoch Mgijima | C51: EC EASTERN CAPE
B52: DC13 Chris Hani | C52: EC EASTERN CAPE
B53: EC141 Elundini | C53: EC EASTERN CAPE
B54: EC142 Senqu | C54: EC EASTERN CAPE
B55: EC145 Walter Sisulu | C55: EC EASTERN CAPE
B56: DC14 Joe Gqabi | C56: EC EASTERN CAPE
B57: EC153 Ngquza Hills | C57: EC EASTERN CAPE
B58: EC154 Port St Johns | C58: EC EASTERN CAPE
B59: EC155 Nyandeni | C59: EC EASTERN CAPE
B60: EC156 Mhlontlo | C60: EC EASTERN CAPE
B61: EC157 King Sabata Dalindyebo | C61: EC EASTERN CAPE
B62: DC15 O .R. Tambo | C62: EC EASTERN CAPE
B63: EC441 Matatiele | C63: EC EASTERN CAPE
B64: EC442 Umzimvubu | C64: EC EASTERN CAPE
B65: EC443 Winnie Madikizela Mandela | C65: EC EASTERN CAPE
B66: EC444 Ntabankulu | C66: EC EASTERN CAPE
B67: DC44 Alfred Nzo | C67: EC EASTERN CAPE
B68: MAN Mangaung | C68: FS FREE STATE
B69: FS161 Letsemeng | C69: FS FREE STATE
B70: FS162 Kopanong | C70: FS FREE STATE
B71: FS163 Mohokare | C71: FS FREE STATE
B72: DC16 Xhariep | C72: FS FREE STATE
B73: FS181 Masilonyana | C73: FS FREE STATE
B74: FS182 Tokologo | C74: FS FREE STATE
B75: FS183 Tswelopele | C75: FS FREE STATE
B76: FS184 Matjhabeng | C76: FS FREE STATE
B77: FS185 Nala | C77: FS FREE STATE
B78: DC18 Lejweleputswa | C78: FS FREE STATE
B79: FS191 Setsoto | C79: FS FREE STATE
B80: FS192 Dihlabeng | C80: FS FREE STATE
B81: FS193 Nketoana | C81: FS FREE STATE
B82: FS194 Maluti-a-Phofung | C82: FS FREE STATE
B83: FS195 Phumelela | C83: FS FREE STATE
B84: FS196 Mantsopa | C84: FS FREE STATE
B85: DC19 Thabo Mofutsanyana | C85: FS FREE STATE
B86: FS201 Moqhaka | C86: FS FREE STATE
B87: FS203 Ngwathe | C87: FS FREE STATE
B88: FS204 Metsimaholo | C88: FS FREE STATE
B89: FS205 Mafube | C89: FS FREE STATE
B90: DC20 Fezile Dabi | C90: FS FREE STATE
B91: EKU City of Ekurhuleni | C91: GT GAUTENG
B92: JHB City Of Johannesburg | C92: GT GAUTENG
B93: TSH City Of Tshwane | C93: GT GAUTENG
B94: GT421 Emfuleni | C94: GT GAUTENG
B95: GT422 Midvaal | C95: GT GAUTENG
B96: GT423 Lesedi | C96: GT GAUTENG
B97: DC42 Sedibeng | C97: GT GAUTENG
B98: GT481 Mogale City | C98: GT GAUTENG
B99: GT484 Merafong City | C99: GT GAUTENG
B100: GT485 Rand West City | C100: GT GAUTENG
B101: DC48 West Rand | C101: GT GAUTENG
B102: ETH eThekwini | C102: KZN KWAZULU-NATAL
B103: KZN212 Umdoni | C103: KZN KWAZULU-NATAL
B104: KZN213 Umzumbe | C104: KZN KWAZULU-NATAL
B105: KZN214 uMuziwabantu | C105: KZN KWAZULU-NATAL
B106: KZN216 Ray Nkonyeni | C106: KZN KWAZULU-NATAL
B107: DC21 Ugu | C107: KZN KWAZULU-NATAL
B108: KZN221 uMshwathi | C108: KZN KWAZULU-NATAL
B109: KZN222 uMngeni | C109: KZN KWAZULU-NATAL
B110: KZN223 Mpofana | C110: KZN KWAZULU-NATAL
B111: KZN224 Impendle | C111: KZN KWAZULU-NATAL
B112: KZN225 Msunduzi | C112: KZN KWAZULU-NATAL
B113: KZN226 Mkhambathini | C113: KZN KWAZULU-NATAL
B114: KZN227 Richmond | C114: KZN KWAZULU-NATAL
B115: DC22 uMgungundlovu | C115: KZN KWAZULU-NATAL
B116: KZN235 Okhahlamba | C116: KZN KWAZULU-NATAL
B117: KZN237 Inkosi Langalibalele | C117: KZN KWAZULU-NATAL
B118: KZN238 Alfred Duma | C118: KZN KWAZULU-NATAL
B119: DC23 Uthukela | C119: KZN KWAZULU-NATAL
B120: KZN241 Endumeni | C120: KZN KWAZULU-NATAL
B121: KZN242 Nquthu | C121: KZN KWAZULU-NATAL
B122: KZN244 Msinga | C122: KZN KWAZULU-NATAL
B123: KZN245 Umvoti | C123: KZN KWAZULU-NATAL
B124: DC24 Umzinyathi | C124: KZN KWAZULU-NATAL
B125: KZN252 Newcastle | C125: KZN KWAZULU-NATAL
B126: KZN253 Emadlangeni | C126: KZN KWAZULU-NATAL
B127: KZN254 Dannhauser | C127: KZN KWAZULU-NATAL
B128: DC25 Amajuba | C128: KZN KWAZULU-NATAL
B129: KZN261 eDumbe | C129: KZN KWAZULU-NATAL
B130: KZN262 uPhongolo | C130: KZN KWAZULU-NATAL
B131: KZN263 Abaqulusi | C131: KZN KWAZULU-NATAL
B132: KZN265 Nongoma | C132: KZN KWAZULU-NATAL
B133: KZN266 Ulundi | C133: KZN KWAZULU-NATAL
B134: DC26 Zululand | C134: KZN KWAZULU-NATAL
B135: KZN271 Umhlabuyalingana | C135: KZN KWAZULU-NATAL
B136: KZN272 Jozini | C136: KZN KWAZULU-NATAL
B137: KZN275 Mtubatuba | C137: KZN KWAZULU-NATAL
B138: KZN276 Hlabisa Big Five | C138: KZN KWAZULU-NATAL
B139: DC27 Umkhanyakude | C139: KZN KWAZULU-NATAL
B140: KZN281 Mfolozi | C140: KZN KWAZULU-NATAL
B141: KZN282 uMhlathuze | C141: KZN KWAZULU-NATAL
B142: KZN284 uMlalazi | C142: KZN KWAZULU-NATAL
B143: KZN285 Mthonjaneni | C143: KZN KWAZULU-NATAL
B144: KZN286 Nkandla | C144: KZN KWAZULU-NATAL
B145: DC28 King Cetshwayo | C145: KZN KWAZULU-NATAL
B146: KZN291 Mandeni | C146: KZN KWAZULU-NATAL
B147: KZN292 KwaDukuza | C147: KZN KWAZULU-NATAL
B148: KZN293 Ndwedwe | C148: KZN KWAZULU-NATAL
B149: KZN294 Maphumulo | C149: KZN KWAZULU-NATAL
B150: DC29 iLembe | C150: KZN KWAZULU-NATAL
B151: KZN433 Greater Kokstad | C151: KZN KWAZULU-NATAL
B152: KZN434 Ubuhlebezwe | C152: KZN KWAZULU-NATAL
B153: KZN435 Umzimkhulu | C153: KZN KWAZULU-NATAL
B154: KZN436 Dr Nkosazana Dlamini Zuma | C154: KZN KWAZULU-NATAL
B155: DC43 Harry Gwala | C155: KZN KWAZULU-NATAL
B156: LIM331 Greater Giyani | C156: LIM LIMPOPO
B157: LIM332 Greater Letaba | C157: LIM LIMPOPO
B158: LIM333 Greater Tzaneen | C158: LIM LIMPOPO
B159: LIM334 Ba-Phalaborwa | C159: LIM LIMPOPO
B160: LIM335 Maruleng | C160: LIM LIMPOPO
B161: DC33 Mopani | C161: LIM LIMPOPO
B162: LIM341 Musina | C162: LIM LIMPOPO
B163: LIM343 Thulamela | C163: LIM LIMPOPO
B164: LIM344 Makhado | C164: LIM LIMPOPO
B165: LIM345 Collins Chabane | C165: LIM LIMPOPO
B166: DC34 Vhembe | C166: LIM LIMPOPO
B167: LIM351 Blouberg | C167: LIM LIMPOPO
B168: LIM353 Molemole | C168: LIM LIMPOPO
B169: LIM354 Polokwane | C169: LIM LIMPOPO
B170: LIM355 Lepelle-Nkumpi | C170: LIM LIMPOPO
B171: DC35 Capricorn | C171: LIM LIMPOPO
B172: LIM361 Thabazimbi | C172: LIM LIMPOPO
B173: LIM362 Lephalale | C173: LIM LIMPOPO
B174: LIM366 Bela Bela | C174: LIM LIMPOPO
B175: LIM367 Mogalakwena | C175: LIM LIMPOPO
B176: LIM368 Modimolle-Mookgopong | C176: LIM LIMPOPO
B177: DC36 Waterberg | C177: LIM LIMPOPO
B178: LIM471 Ephraim Mogale | C178: LIM LIMPOPO
B179: LIM472 Elias Motsoaledi | C179: LIM LIMPOPO
B180: LIM473 Makhuduthamaga | C180: LIM LIMPOPO
B181: LIM476 Tubatse Fetakgomo | C181: LIM LIMPOPO
B182: DC47 Sekhukhune | C182: LIM LIMPOPO
B183: MP301 Albert Luthuli | C183: MP MPUMALANGA
B184: MP302 Msukaligwa | C184: MP MPUMALANGA
B185: MP303 Mkhondo | C185: MP MPUMALANGA
B186: MP304 Pixley Ka Seme (MP) | C186: MP MPUMALANGA
B187: MP305 Lekwa | C187: MP MPUMALANGA
B188: MP306 Dipaleseng | C188: MP MPUMALANGA
B189: MP307 Govan Mbeki | C189: MP MPUMALANGA
B190: DC30 Gert Sibande | C190: MP MPUMALANGA
B191: MP311 Victor Khanye | C191: MP MPUMALANGA
B192: MP312 Emalahleni (Mp) | C192: MP MPUMALANGA
B193: MP313 Steve Tshwete | C193: MP MPUMALANGA
B194: MP314 Emakhazeni | C194: MP MPUMALANGA
B195: MP315 Thembisile Hani | C195: MP MPUMALANGA
B196: MP316 Dr J.S. Moroka | C196: MP MPUMALANGA
B197: DC31 Nkangala | C197: MP MPUMALANGA
B198: MP321 Thaba Chweu | C198: MP MPUMALANGA
B199: MP324 Nkomazi | C199: MP MPUMALANGA
B200: MP325 Bushbuckridge | C200: MP MPUMALANGA
B201: MP326 City of Mbombela | C201: MP MPUMALANGA
B202: DC32 Ehlanzeni | C202: MP MPUMALANGA
B203: NC451 Joe Morolong | C203: NC NORTHERN CAPE
B204: NC452 Ga-Segonyana | C204: NC NORTHERN CAPE
B205: NC453 Gamagara | C205: NC NORTHERN CAPE
B206: DC45 John Taolo Gaetsewe | C206: NC NORTHERN CAPE
B207: NC061 Richtersveld | C207: NC NORTHERN CAPE
B208: NC062 Nama Khoi | C208: NC NORTHERN CAPE
B209: NC064 Kamiesberg | C209: NC NORTHERN CAPE
B210: NC065 Hantam | C210: NC NORTHERN CAPE
B211: NC066 Karoo Hoogland | C211: NC NORTHERN CAPE
B212: NC067 Khai-Ma | C212: NC NORTHERN CAPE
B213: DC6 Namakwa | C213: NC NORTHERN CAPE
... 73 more rows

Sheet Org structure
A1: Organisational Structure Votes | C1: Organisational Structure Sub-Votes | E1: Display Sub-Votes
A2: =B2&" - "&C2 -> Vote 01 - Corporate Services | B2: Vote 01 | C2: Corporate Services
A3: =B11&" - "&C11 -> Vote 02 - Municipal Manager | B3: 01.1 | C3: Corporate Services Admin | D3: =CONCATENATE(B3, " - ", C3) -> 01.1 - Corporate Services Admin | E3: 01.1 - Corporate Services Admin
A4: =B17&" - "&C17 -> Vote 03 - Mayors Office | B4: 01.2 | C4: Human Resources | D4: 01.2 - Human Resources | E4: 01.2 - Human Resources
A5: =B23&" - "&C23 -> Vote 04 - Budget And Treasury | B5: 01.3 | C5: Information Technology Services | D5: 01.3 - Information Technology Services | E5: 01.3 - Information Technology Services
A6: =B31&" - "&C31 -> Vote 05 - Community Services | B6: 01.4 | C6: Council Support | D6: 01.4 - Council Support | E6: 01.4 - Council Support
A7: =B39&" - "&C39 -> Vote 06 - Technical Services | B7: 01.5 | C7: Local Economic Development | D7: 01.5 - Local Economic Development | E7: 01.5 - Local Economic Development
A8: =B48&" - "&C48 -> Vote 07 - | B8: 01.6 | C8: Municipal Planning Idp | D8: 01.6 - Municipal Planning Idp | E8: 01.6 - Municipal Planning Idp
A9: Vote 08 - | B9: 01.7 | C9: Town & Regional Planning | D9: 01.7 - Town & Regional Planning | E9: 01.7 - Town & Regional Planning
A10: Vote 09 - | B10: 01.8 | C10: Led Administration | D10: 01.8 - Led Administration | E10: 01.8 - Led Administration
A11: Vote 10 - | B11: Vote 02 | C11: Municipal Manager
A12: Vote 11 - | B12: 02.1 | C12: Municipal Manager Admin | D12: =CONCATENATE(B12, " - ", C12) -> 02.1 - Municipal Manager Admin | E12: 02.1 - Municipal Manager Admin
A13: Vote 12 - | B13: 02.2 | C13: Legal Services | D13: =CONCATENATE(B13, " - ", C13) -> 02.2 - Legal Services | E13: 02.2 - Legal Services
A14: Vote 13 - | B14: 02.3 | C14: Political Office Beares | D14: =CONCATENATE(B14, " - ", C14) -> 02.3 - Political Office Beares | E14: 02.3 - Political Office Beares
A15: Vote 14 - | B15: 02.4 | C15: Pms | D15: =CONCATENATE(B15, " - ", C15) -> 02.4 - Pms | E15: 02.4 - Pms
A16: Vote 15 - Other | B16: 02.5 | C16: Internal Audit | D16: =CONCATENATE(B16, " - ", C16) -> 02.5 - Internal Audit | E16: 02.5 - Internal Audit
B17: Vote 03 | C17: Mayors Office
B18: 03.1 | C18: Mayors Office Admin | D18: =CONCATENATE(B18, " - ", C18) -> 03.1 - Mayors Office Admin | E18: 03.1 - Mayors Office Admin
B19: 03.2 | C19: Office Of The Speaker | D19: =CONCATENATE(B19, " - ", C19) -> 03.2 - Office Of The Speaker | E19: 03.2 - Office Of The Speaker
B20: 03.3 | C20: Office Of The Chief Whip | D20: =CONCATENATE(B20, " - ", C20) -> 03.3 - Office Of The Chief Whip | E20: 03.3 - Office Of The Chief Whip
B21: 03.4 | C21: Exco Members | D21: =CONCATENATE(B21, " - ", C21) -> 03.4 - Exco Members | E21: 03.4 - Exco Members
B22: 03.5 | C22: Council General Administration | D22: =CONCATENATE(B22, " - ", C22) -> 03.5 - Council General Administration | E22: 03.5 - Council General Administration
B23: Vote 04 | C23: Budget And Treasury
B24: 04.1 | C24: Budget And Treasury Admin | D24: =CONCATENATE(B24, " - ", C24) -> 04.1 - Budget And Treasury Admin | E24: 04.1 - Budget And Treasury Admin
B25: 04.2 | C25: Chief Financial Officer Admin | D25: 04.2 - Chief Financial Officer Admin | E25: 04.2 - Chief Financial Officer Admin
B26: 04.3 | C26: Budget & Reporting | D26: 04.3 - Budget & Reporting | E26: 04.3 - Budget & Reporting
B27: 04.4 | C27: Budget & Reporting | D27: 04.4 - Budget & Reporting | E27: 04.4 - Budget & Reporting
B28: 04.5 | C28: Revenue Management | D28: 04.5 - Revenue Management | E28: 04.5 - Revenue Management
B29: 04.6 | C29: Supply Chain Management | D29: 04.6 - Supply Chain Management | E29: 04.6 - Supply Chain Management
B30: 04.7 | C30: Expenditure | D30: 04.7 - Expenditure | E30: 04.7 - Expenditure
B31: Vote 05 | C31: Community Services
B32: 05.1 | C32: Community Services Admin | D32: =CONCATENATE(B32, " - ", C32) -> 05.1 - Community Services Admin | E32: 05.1 - Community Services Admin
B33: 05.2 | C33: Libraries | D33: 05.2 - Libraries | E33: 05.2 - Libraries
B34: 05.3 | C34: Sports Recreation & Social Amenitie | D34: 05.3 - Sports Recreation & Social Amenitie | E34: 05.3 - Sports Recreation & Social Amenitie
B35: 05.4 | C35: Traffic Service | D35: 05.4 - Traffic Service | E35: 05.4 - Traffic Service
B36: 05.5 | C36: Traffic Service | D36: 05.5 - Traffic Service | E36: 05.5 - Traffic Service
B37: 05.6 | C37: Parks; Cemeteries | D37: 05.6 - Parks; Cemeteries | E37: 05.6 - Parks; Cemeteries
B38: 05.7 | C38: Refuse | D38: 05.7 - Refuse | E38: 05.7 - Refuse
B39: Vote 06 | C39: Technical Services
B40: 06.1 | C40: Mpac | D40: =CONCATENATE(B40, " - ", C40) -> 06.1 - Mpac | E40: 06.1 - Mpac
B41: 06.2 | C41: Technical Services Admin | D41: 06.2 - Technical Services Admin | E41: 06.2 - Technical Services Admin
B42: 06.3 | C42: Techn Serv-Roads: Admin | D42: 06.3 - Techn Serv-Roads: Admin | E42: 06.3 - Techn Serv-Roads: Admin
B43: 06.4 | C43: Techn Serv-Stormwater: Admin | D43: 06.4 - Techn Serv-Stormwater: Admin | E43: 06.4 - Techn Serv-Stormwater: Admin
B44: 06.5 | C44: Project Management Unit | D44: 06.5 - Project Management Unit | E44: 06.5 - Project Management Unit
B45: 06.6 | C45: Electrical & Machinery | D45: 06.6 - Electrical & Machinery | E45: 06.6 - Electrical & Machinery
B46: 06.7 | C46: Water | D46: 06.7 - Water | E46: 06.7 - Water
B47: 06.8 | C47: Sanitation | D47: 06.8 - Sanitation | E47: 06.8 - Sanitation
B48: Vote 07
B49: Vote 08
B50: Vote 09
B51: Vote 10
B52: Vote 11
B53: Vote 12
B54: Vote 13
B55: Vote 14
B56: Vote 15 | C56: Other

Sheet Contacts
A1: =muni&" - "&" Contact Information" -> LIM353 Molemole - Contact Information
A3: A. GENERAL INFORMATION
A4: Municipality | B4: =muni -> LIM353 Molemole | C4: Set name on 'Instructions' sheet
A6: Grade | C6: 1 Grade in terms of the Remuneration of Public Office Bearers Act.
A8: Province | B8: =IF(B4>" ",VLOOKUP(B4,'Lookup and lists'!B28:C311,2, FALSE)," ") -> LIM LIMPOPO
A10: Web Address
A12: e-mail Address
A14: B. CONTACT INFORMATION
A15: Postal address:
A16: P.O. Box
A17: City / Town
A18: Postal Code
A20: Street address
A21: Building
A22: Street No. & Name
A23: City / Town
A24: Postal Code
A26: General Contacts
A27: Telephone number
A28: Fax number
A30: C. POLITICAL LEADERSHIP
A31: Speaker: | C31: Secretary/PA to the Speaker:
A32: ID Number | B32: 810311 0466 087 | C32: ID Number | D32: 820119 0609 087
A33: Title | B33: Mrs | C33: Title | D33: Ms
A34: Name | B34: MATLOU DIKELEDI | C34: Name | D34: MACHAKA SEBOLLA
A35: Telephone number | B35: 015 501 0243 | C35: Telephone number | D35: 015 501 0243
A36: Cell number | B36: 060 876 1553 | C36: Cell number | D36: 079 728 8360
A37: Fax number | B37: 015 501 0419 | C37: Fax number | D37: 015 501 0419
A38: E-mail address | B38: dikeledipakgadi@gmail.com | C38: E-mail address | D38: machakas@molemole.gov.za
A40: Mayor/Executive Mayor: | C40: Secretary/PA to the Mayor/Executive Mayor:
A41: ID Number | B41: 660312 5428 081 | C41: ID Number | D41: 850930 1072 080
A42: Title | B42: Mr | C42: Title | D42: Ms
A43: Name | B43: PAYA E | C43: Name | D43: RATHETE MAKETA
A44: Telephone number | B44: 015 501 0243 | C44: Telephone number | D44: 015 501 0243
A45: Cell number | B45: 082 474 2858 | C45: Cell number | D45: 072 958 1970
A46: Fax number | B46: 086 515 8809 | C46: Fax number | D46: 015 501 0419
A47: E-mail address | B47: payae@molemole.gov.za | C47: E-mail address | D47: rathetem@molemole.go.za
A49: Deputy Mayor/Executive Mayor: | C49: Secretary/PA to the Deputy Mayor/Executive Mayor:
A50: ID Number | C50: ID Number
A51: Title | C51: Title
A52: Name | C52: Name
A53: Telephone number | C53: Telephone number
A54: Cell number | C54: Cell number
A55: Fax number | C55: Fax number
A56: E-mail address | C56: E-mail address
A58: D. MANAGEMENT LEADERSHIP
A59: Municipal Manager: | C59: Secretary/PA to the Municipal Manager:
A60: ID Number | B60: 741022 5373 087 | C60: ID Number | D60: 720712 0880 087
A61: Title | B61: Mr | C61: Title | D61: Mrs
A62: Name | B62: MAKGATO KGABO EMMANUEL | C62: Name | D62: SEABELA SUSAN
A63: Telephone number | B63: 015 501 0243 | C63: Telephone number | D63: 015 501 0243
A64: Cell number | B64: 082 619 5734 | C64: Cell number | D64: 079 217 3250
A65: Fax number | B65: 015 501 0419 | C65: Fax number | D65: 015 501 0419
A66: E-mail address | B66: MakgatoKE@molemole.gov.za | C66: E-mail address | D66: lebepes@molemole.gov.za
A68: Chief Financial Officer | C68: Secretary/PA to the Chief Financial Officer
A69: ID Number | B69: 840716 0427 083 | C69: ID Number | D69: 900906 1348 084
A70: Title | B70: Miss | C70: Title | D70: Miss
A71: Name | B71: ZULU KCW | C71: Name | D71: MAROPENG PHOSA
A72: Telephone number | B72: 015 501 0243 | C72: Telephone number | D72: 015 501 0243
A73: Cell number | B73: 063 878 8894 | C73: Cell number | D73: 073 916 3639
A74: Fax number | B74: 015 501 0419 | C74: Fax number | D74: 015 501 0419
A75: E-mail address | B75: zuluk@molemole.gov.za | C75: E-mail address | D75: phosam@molemole.gov.za
A77: Official responsible for submitting financial information | C77: Official responsible for submitting financial information
A78: ID Number | B78: 820214 0303 086 | C78: ID Number
A79: Title | B79: Mrs | C79: Title
A80: Name | B80: WISO PORTIA | C80: Name
A81: Telephone number | B81: 015 501 0243 | C81: Telephone number
A82: Cell number | B82: 082 488 3823 | C82: Cell number
A83: Fax number | B83: 015 501 0419 | C83: Fax number
A84: E-mail address | B84: mamabolomp@molemole.gov.za | C84: E-mail address
A85: Official responsible for submitting financial information | C85: Official responsible for submitting financial information
A86: ID Number | C86: ID Number
A87: Title | C87: Title
A88: Name | C88: Name
A89: Telephone number | C89: Telephone number
A90: Cell number | C90: Cell number
A91: Fax number | C91: Fax number
A92: E-mail address | C92: E-mail address
A93: Official responsible for submitting financial information | C93: Official responsible for submitting financial information
A94: ID Number | C94: ID Number
A95: Title | C95: Title
A96: Name | C96: Name
A97: Telephone number | C97: Telephone number
A98: Cell number | C98: Cell number
A99: Fax number | C99: Fax number
A100: E-mail address | C100: E-mail address
A101: Official responsible for submitting financial information | C101: Official responsible for submitting financial information
A102: ID Number | C102: ID Number
A103: Title | C103: Title
A104: Name | C104: Name
A105: Telephone number | C105: Telephone number
A106: Cell number | C106: Cell number
A107: Fax number | C107: Fax number
A108: E-mail address | C108: E-mail address
A109: Official responsible for submitting financial information | C109: Official responsible for submitting financial information
A110: ID Number | C110: ID Number
A111: Title | C111: Title
A112: Name | C112: Name
A113: Telephone number | C113: Telephone number
A114: Cell number | C114: Cell number
A115: Fax number | C115: Fax number
A116: E-mail address | C116: E-mail address
A117: Official responsible for submitting financial information | C117: Official responsible for submitting financial information
A118: ID Number | C118: ID Number
A119: Title | C119: Title
A120: Name | C120: Name
A121: Telephone number | C121: Telephone number
A122: Cell number | C122: Cell number
A123: Fax number | C123: Fax number
A124: E-mail address | C124: E-mail address
A125: Official responsible for submitting financial information | C125: Official responsible for submitting financial information
A126: ID Number | C126: ID Number
A127: Title | C127: Title
A128: Name | C128: Name
A129: Telephone number | C129: Telephone number
A130: Cell number | C130: Cell number
A131: Fax number | C131: Fax number
A132: E-mail address | C132: E-mail address
A133: Official responsible for submitting financial information
A134: ID Number
A135: Title
A136: Name
A137: Telephone number
A138: Cell number
A139: Fax number
A140: E-mail address

Sheet C1-Sum
A1: =muni& " - "&s71sum& " - "&date -> LIM353 Molemole - Table C1 Monthly Budget Statement Summary - Q4 Fourth Quarter
A2: =desc -> Description | B2: =Head1 -> 2020/21 | C2: =Head2 -> Budget Year 2021/22
B3: =Head5 -> Audited Outcome | C3: =Head6 -> Original Budget | D3: =Head7 -> Adjusted Budget | E3: =Head38 -> Monthly actual | F3: =Head39 -> YearTD actual | G3: =Head40 -> YearTD budget | H3: =Head41 -> YTD variance | I3: =Head41 -> YTD variance | J3: =Head8 -> Full Year Forecast
A4: R thousands | I4: %
A5: Financial Performance
A6: Property rates | B6: =SUM('C4-FinPerf RE'!C6:C6) -> 49558002.71 | C6: =SUM('C4-FinPerf RE'!D6:D6) -> 51482069 | D6: =SUM('C4-FinPerf RE'!E6:E6) -> 39609853 | E6: =SUM('C4-FinPerf RE'!F6:F6) -> 2548478.69 | F6: =SUM('C4-FinPerf RE'!G6:G6) -> 30599233.83 | G6: =SUM('C4-FinPerf RE'!H6:H6) -> 39609853 | H6: =F6-G6 -> -9010619.17 | I6: =IF(H6=0,"",H6/G6) -> -0.2274842871 | J6: =SUM('C4-FinPerf RE'!K6:K6) -> 39609853
A7: Service charges | B7: =SUM('C4-FinPerf RE'!C7:C10) -> 11061887.67 | C7: =SUM('C4-FinPerf RE'!D7:D10) -> 14195880 | D7: =SUM('C4-FinPerf RE'!E7:E10) -> 14195880 | E7: =SUM('C4-FinPerf RE'!F7:F10) -> 812473.36 | F7: =SUM('C4-FinPerf RE'!G7:G10) -> 10291798.55 | G7: =SUM('C4-FinPerf RE'!H7:H10) -> 14195880 | H7: =F7-G7 -> -3904081.45 | I7: =IF(H7=0,"",H7/G7) -> -0.2750151065 | J7: =SUM('C4-FinPerf RE'!K7:K10) -> 14195880
A8: Investment revenue | B8: ='C4-FinPerf RE'!C13 -> 2543772.73 | C8: ='C4-FinPerf RE'!D13 -> 2708206 | D8: ='C4-FinPerf RE'!E13 -> 2708206 | E8: ='C4-FinPerf RE'!F13 -> 541610.79 | F8: ='C4-FinPerf RE'!G13 -> 4693415.06 | G8: ='C4-FinPerf RE'!H13 -> 2708206 | H8: =F8-G8 -> 1985209.06 | I8: =IF(H8=0,"",H8/G8) -> 0.7330347322 | J8: ='C4-FinPerf RE'!K13 -> 2708206
A9: Transfers and subsidies | B9: ='C4-FinPerf RE'!C19 -> 185288433.8 | C9: ='C4-FinPerf RE'!D19 -> 161092000 | D9: ='C4-FinPerf RE'!E19 -> 162092000 | E9: ='C4-FinPerf RE'!F19 -> 1338000.01 | F9: ='C4-FinPerf RE'!G19 -> 160032628.6 | G9: ='C4-FinPerf RE'!H19 -> 162092000 | H9: =F9-G9 -> -2059371.45 | I9: =IF(H9=0,"",H9/G9) -> -0.01270495429 | J9: ='C4-FinPerf RE'!K19 -> 162092000
A10: Other own revenue | B10: ='C4-FinPerf RE'!C12+'C4-FinPerf RE'!C14+'C4-FinPerf RE'!C15+'C4-FinPerf RE'!C16+'C4-FinPerf RE'!C17+'C4-FinPerf RE'!C18+'C4-FinPerf RE'!C20+'C4-FinPerf RE'!C21 -> 7825791.04 | C10: ='C4-FinPerf RE'!D12+'C4-FinPerf RE'!D14+'C4-FinPerf RE'!D15+'C4-FinPerf RE'!D16+'C4-FinPerf RE'!D17+'C4-FinPerf RE'!D18+'C4-FinPerf RE'!D20+'C4-FinPerf RE'!D21 -> 38693903 | D10: ='C4-FinPerf RE'!E12+'C4-FinPerf RE'!E14+'C4-FinPerf RE'!E15+'C4-FinPerf RE'!E16+'C4-FinPerf RE'!E17+'C4-FinPerf RE'!E18+'C4-FinPerf RE'!E20+'C4-FinPerf RE'!E21 -> 28672542 | E10: ='C4-FinPerf RE'!F12+'C4-FinPerf RE'!F14+'C4-FinPerf RE'!F15+'C4-FinPerf RE'!F16+'C4-FinPerf RE'!F17+'C4-FinPerf RE'!F18+'C4-FinPerf RE'!F20+'C4-FinPerf RE'!F21 -> 1838605.07 | F10: ='C4-FinPerf RE'!G12+'C4-FinPerf RE'!G14+'C4-FinPerf RE'!G15+'C4-FinPerf RE'!G16+'C4-FinPerf RE'!G17+'C4-FinPerf RE'!G18+'C4-FinPerf RE'!G20+'C4-FinPerf RE'!G21 -> 15977216.56 | G10: ='C4-FinPerf RE'!H12+'C4-FinPerf RE'!H14+'C4-FinPerf RE'!H15+'C4-FinPerf RE'!H16+'C4-FinPerf RE'!H17+'C4-FinPerf RE'!H18+'C4-FinPerf RE'!H20+'C4-FinPerf RE'!H21 -> 28672542 | H10: =F10-G10 -> -12695325.44 | I10: =IF(H10=0,"",H10/G10) -> -0.4427694426 | J10: ='C4-FinPerf RE'!K12+'C4-FinPerf RE'!K14+'C4-FinPerf RE'!K15+'C4-FinPerf RE'!K16+'C4-FinPerf RE'!K17+'C4-FinPerf RE'!K18+'C4-FinPerf RE'!K20+'C4-FinPerf RE'!K21 -> 28672542
A11: Total Revenue (excluding capital transfers and contributions) | B11: =SUM(B6:B10) -> 256277888 | C11: 268172058 | D11: 247278481 | E11: 7079167.92 | F11: 221594292.6 | G11: 247278481 | H11: =F11-G11 -> -25684188.45 | I11: =IF(H11=0,"",H11/G11) -> -0.1038674629 | J11: 247278481
A12: Employee costs | B12: ='C4-FinPerf RE'!C25 -> 91655492.25 | C12: ='C4-FinPerf RE'!D25 -> 105732276 | D12: ='C4-FinPerf RE'!E25 -> 98229953 | E12: ='C4-FinPerf RE'!F25 -> 7838091.05 | F12: ='C4-FinPerf RE'!G25 -> 93183462.74 | G12: ='C4-FinPerf RE'!H25 -> 98229953 | H12: -5046490.26 | I12: -0.05137425099 | J12: ='C4-FinPerf RE'!K25 -> 98229953
A13: Remuneration of Councillors | B13: ='C4-FinPerf RE'!C26 -> 12930254.27 | C13: ='C4-FinPerf RE'!D26 -> 15010262 | D13: ='C4-FinPerf RE'!E26 -> 14347013 | E13: ='C4-FinPerf RE'!F26 -> 1047113.58 | F13: ='C4-FinPerf RE'!G26 -> 12668748.99 | G13: ='C4-FinPerf RE'!H26 -> 14347013 | H13: -1678264.01 | I13: -0.1169765449 | J13: ='C4-FinPerf RE'!K26 -> 14347013
A14: Depreciation & asset impairment | B14: ='C4-FinPerf RE'!C28 -> 12114558.47 | C14: ='C4-FinPerf RE'!D28 -> 18994790 | D14: ='C4-FinPerf RE'!E28 -> 18994790 | E14: ='C4-FinPerf RE'!F28 -> 1373290.95 | F14: ='C4-FinPerf RE'!G28 -> 20879201.26 | G14: ='C4-FinPerf RE'!H28 -> 18994790 | H14: 1884411.26 | I14: 0.09920674353 | J14: ='C4-FinPerf RE'!K28 -> 18994790
A15: Finance charges | B15: ='C4-FinPerf RE'!C29 -> 183629.4 | C15: ='C4-FinPerf RE'!D29 -> 1055833 | D15: ='C4-FinPerf RE'!E29 -> 111490 | E15: ='C4-FinPerf RE'!F29 -> 1426.59 | F15: ='C4-FinPerf RE'!G29 -> 4165.81 | G15: ='C4-FinPerf RE'!H29 -> 111490 | H15: -107324.19 | I15: -0.9626351242 | J15: ='C4-FinPerf RE'!K29 -> 111490
A16: Inventory consumed and bulk purchases | B16: =SUM('C4-FinPerf RE'!C30:C31) -> 14946824.34 | C16: =SUM('C4-FinPerf RE'!D30:D31) -> 18057652 | D16: =SUM('C4-FinPerf RE'!E30:E31) -> 19679652 | E16: =SUM('C4-FinPerf RE'!F30:F31) -> 1843638.93 | F16: =SUM('C4-FinPerf RE'!G30:G31) -> 19660401.72 | G16: =SUM('C4-FinPerf RE'!H30:H31) -> 19679652 | H16: -19250.28 | I16: -0.0009781819313 | J16: =SUM('C4-FinPerf RE'!K30:K31) -> 19679652
A17: Transfers and subsidies | B17: ='C4-FinPerf RE'!C33 -> 0 | C17: ='C4-FinPerf RE'!D33 -> 0 | D17: ='C4-FinPerf RE'!E33 -> 0 | E17: ='C4-FinPerf RE'!F33 -> 0 | F17: ='C4-FinPerf RE'!G33 -> 0 | G17: ='C4-FinPerf RE'!H33 -> 0 | H17: 0 | J17: ='C4-FinPerf RE'!K33 -> 0
A18: Other expenditure | B18: ='C4-FinPerf RE'!C36-SUM('C1-Sum'!B12:B17) -> 89243144.38 | C18: ='C4-FinPerf RE'!D36-SUM('C1-Sum'!C12:C17) -> 89077812 | D18: ='C4-FinPerf RE'!E36-SUM('C1-Sum'!D12:D17) -> 77376783 | E18: ='C4-FinPerf RE'!F36-SUM('C1-Sum'!E12:E17) -> 7557403.92 | F18: ='C4-FinPerf RE'!G36-SUM('C1-Sum'!F12:F17) -> 64597909.16 | G18: ='C4-FinPerf RE'!H36-SUM('C1-Sum'!G12:G17) -> 77376783 | H18: -12778873.84 | I18: -0.1651512682 | J18: ='C4-FinPerf RE'!K36-SUM('C1-Sum'!J12:J17) -> 77376783
A19: Total Expenditure | B19: =SUM(B12:B18) -> 221073903.1 | C19: 247928625 | D19: 228739681 | E19: 19660965.02 | F19: 210993889.7 | G19: 228739681 | H19: -17745791.32 | I19: -0.07758072951 | J19: =SUM(J12:J18) -> 228739681
A20: Surplus/(Deficit) | B20: =B11-B19 -> 35203984.89 | C20: 20243433 | D20: 18538800 | E20: -12581797.1 | F20: 10600402.87 | G20: 18538800 | H20: -7938397.13 | I20: -0.4282044755 | J20: =J11-J19 -> 18538800
A21: ='C4-FinPerf RE'!A39 -> Transfers and subsidies - capital (monetary allocations) (National / Provincial and District) | B21: ='C4-FinPerf RE'!C39 -> 45027638.97 | C21: ='C4-FinPerf RE'!D39 -> 45150000 | D21: ='C4-FinPerf RE'!E39 -> 46150000 | E21: ='C4-FinPerf RE'!F39 -> 16393183.22 | F21: ='C4-FinPerf RE'!G39 -> 42807420.7 | G21: ='C4-FinPerf RE'!H39 -> 46150000 | H21: -3342579.3 | I21: -0.07242858722 | J21: ='C4-FinPerf RE'!K39 -> 46150000
A22: ='C4-FinPerf RE'!A40&" & "&'C4-FinPerf RE'!A41 -> Transfers and subsidies - capital (monetary allocations) (National / Provincial Departmental Agencies, Households, Non-profit Institutions, Private Enterprises, Public Corporatons, Higher Educational Institutions) & Transfers and subsidies - capital (in-kind - all) | B22: =SUM('C4-FinPerf RE'!C40:C41) -> 1234955.28 | C22: =SUM('C4-FinPerf RE'!D40:D41) -> 0 | D22: =SUM('C4-FinPerf RE'!E40:E41) -> 0 | E22: =SUM('C4-FinPerf RE'!F40:F41) -> 0 | F22: =SUM('C4-FinPerf RE'!G40:G41) -> 0 | G22: =SUM('C4-FinPerf RE'!H40:H41) -> 0 | H22: 0 | J22: =SUM('C4-FinPerf RE'!K40:K41) -> 0
A23: Surplus/(Deficit) after capital transfers & contributions | B23: =B20+B21+B22 -> 81466579.14 | C23: 65393433 | D23: 64688800 | E23: 3811386.12 | F23: 53407823.57 | G23: 64688800 | H23: -11280976.43 | I23: -0.1743884015 | J23: =J20+J21+J22 -> 64688800
A24: Share of surplus/ (deficit) of associate | B24: ='C4-FinPerf RE'!C47 -> 0 | C24: ='C4-FinPerf RE'!D47 -> 0 | D24: ='C4-FinPerf RE'!E47 -> 0 | E24: ='C4-FinPerf RE'!F47 -> 0 | F24: ='C4-FinPerf RE'!G47 -> 0 | G24: ='C4-FinPerf RE'!H47 -> 0 | H24: 0 | J24: ='C4-FinPerf RE'!K47 -> 0
A25: Surplus/ (Deficit) for the year | B25: =B23+B24 -> 81466579.14 | C25: 65393433 | D25: 64688800 | E25: 3811386.12 | F25: 53407823.57 | G25: 64688800 | H25: -11280976.43 | I25: -0.1743884015 | J25: =J23+J24 -> 64688800
A27: Capital expenditure & funds sources
A28: Capital expenditure | B28: ='C5-Capex'!C40 -> 50056507.07 | C28: ='C5-Capex'!D40 -> 65393793 | D28: ='C5-Capex'!E40 -> 64688807 | E28: ='C5-Capex'!F40 -> 9730357.63 | F28: ='C5-Capex'!G40 -> 46727641.51 | G28: ='C5-Capex'!H40 -> 64688807 | H28: =F28-G28 -> -17961165.49 | I28: =IF(H28=0,"",H28/G28) -> -0.2776549193 | J28: ='C5-Capex'!K40 -> 64688807
A29: Capital transfers recognised | B29: ='C5-Capex'!C70 -> 40289895.24 | C29: ='C5-Capex'!D70 -> 45437793 | D29: ='C5-Capex'!E70 -> 46342500 | E29: ='C5-Capex'!F70 -> 8493774.39 | F29: ='C5-Capex'!G70 -> 37939545.53 | G29: ='C5-Capex'!H70 -> 46342500 | H29: -8402954.47 | I29: -0.1813228563 | J29: ='C5-Capex'!K70 -> 46342500
A31: Borrowing | B31: ='C5-Capex'!C72 -> 0 | C31: ='C5-Capex'!D72 -> 0 | D31: ='C5-Capex'!E72 -> 0 | E31: ='C5-Capex'!F72 -> 0 | F31: ='C5-Capex'!G72 -> 0 | G31: ='C5-Capex'!H72 -> 0 | H31: 0 | J31: ='C5-Capex'!K72 -> 0
A32: Internally generated funds | B32: ='C5-Capex'!C73 -> 9766611.83 | C32: ='C5-Capex'!D73 -> 19956000 | D32: ='C5-Capex'!E73 -> 18346307 | E32: ='C5-Capex'!F73 -> 1236583.24 | F32: ='C5-Capex'!G73 -> 8788095.98 | G32: ='C5-Capex'!H73 -> 18346307 | H32: -9558211.02 | I32: -0.520988285 | J32: ='C5-Capex'!K73 -> 18346307
A33: Total sources of capital funds | B33: =+B29+B31+B32 -> 50056507.07 | C33: 65393793 | D33: 64688807 | E33: 9730357.63 | F33: 46727641.51 | G33: 64688807 | H33: -17961165.49 | I33: -0.2776549193 | J33: =+J29+J31+J32 -> 64688807
A35: Financial position
A36: Total current assets | B36: ='C6-FinPos'!C13 -> 151490556.7 | C36: ='C6-FinPos'!D13 -> 161591098 | D36: ='C6-FinPos'!E13 -> 233881482 | F36: ='C6-FinPos'!F13 -> 178703703.7 | J36: ='C6-FinPos'!G13 -> 233881482
A37: Total non current assets | B37: ='C6-FinPos'!C25 -> 305416197.8 | C37: ='C6-FinPos'!D25 -> 375938641 | D37: ='C6-FinPos'!E25 -> 375233655 | F37: ='C6-FinPos'!F25 -> 338190297.1 | J37: ='C6-FinPos'!G25 -> 375233655
A38: Total current liabilities | B38: ='C6-FinPos'!C35 -> 167024235.8 | C38: ='C6-FinPos'!D35 -> 52250925 | D38: ='C6-FinPos'!E35 -> 42271762 | F38: ='C6-FinPos'!F35 -> 17701897.25 | J38: ='C6-FinPos'!G35 -> 42271762
A39: Total non current liabilities | B39: ='C6-FinPos'!C40 -> 26098177.59 | C39: ='C6-FinPos'!D40 -> 29939246 | D39: ='C6-FinPos'!E40 -> 29939246 | F39: ='C6-FinPos'!F40 -> 26050432.59 | J39: ='C6-FinPos'!G40 -> 29939246
A40: Community wealth/Equity | B40: ='C6-FinPos'!C48 -> 412820738.3 | C40: ='C6-FinPos'!D48 -> 455339568 | D40: ='C6-FinPos'!E48 -> 537608762 | F40: ='C6-FinPos'!F48 -> 469330284.9 | J40: ='C6-FinPos'!G48 -> 537608762
A42: Cash flows
A43: Net cash from (used) operating | B43: ='C7-CFlow'!C18 -> 61706403.42 | C43: ='C7-CFlow'!D18 -> 0 | D43: ='C7-CFlow'!E18 -> -4574248 | E43: ='C7-CFlow'!F18 -> -34163022.12 | F43: ='C7-CFlow'!G18 -> 442246733.7 | G43: ='C7-CFlow'!H18 -> -4574248 | H43: =G43-F43 -> -446820981.7 | I43: =IF(H43=0,"",H43/G43) -> 97.68184446 | J43: ='C7-CFlow'!K18 -> -4574248
A44: Net cash from (used) investing | B44: ='C7-CFlow'!C28 -> -26519736.97 | C44: ='C7-CFlow'!D28 -> 0 | D44: ='C7-CFlow'!E28 -> 704986 | E44: ='C7-CFlow'!F28 -> -9730357.63 | F44: ='C7-CFlow'!G28 -> -46727641.51 | G44: ='C7-CFlow'!H28 -> 704986 | H44: =G44-F44 -> 47432627.51 | I44: =IF(H44=0,"",H44/G44) -> 67.2816588 | J44: ='C7-CFlow'!K28 -> 704986
A45: Net cash from (used) financing | B45: ='C7-CFlow'!C37 -> 0 | C45: ='C7-CFlow'!D37 -> 0 | D45: ='C7-CFlow'!E37 -> 0 | E45: ='C7-CFlow'!F37 -> 0 | F45: ='C7-CFlow'!G37 -> 0 | G45: ='C7-CFlow'!H37 -> 0 | H45: =G45-F45 -> 0 | I45: =IF(H45=0,"",H45/G45) ->  | J45: ='C7-CFlow'!K37 -> 0
A46: Cash/cash equivalents at the month/year end | B46: ='C7-CFlow'!C41 -> 58197631.6 | C46: ='C7-CFlow'!D41 -> 0 | D46: ='C7-CFlow'!E41 -> 85679882 | E46: ='C7-CFlow'!F41 -> 0 | F46: ='C7-CFlow'!G41 -> 525658389.2 | G46: ='C7-CFlow'!H41 -> 85679882 | H46: =G46-F46 -> -439978507.2 | I46: =IF(H46=0,"",H46/G46) -> -5.135143711 | J46: ='C7-CFlow'!K41 -> 126270035
A48: Debtors & creditors analysis | B48: ='SC3'!C3 -> 0-30 Days | C48: ='SC3'!D3 -> 31-60 Days | D48: ='SC3'!E3 -> 61-90 Days | E48: ='SC3'!F3 -> 91-120 Days | F48: ='SC3'!G3 -> 121-150 Dys | G48: ='SC3'!H3 -> 151-180 Dys | H48: ='SC3'!I3 -> 181 Dys-1 Yr | I48: ='SC3'!J3 -> Over 1Yr | J48: Total
A49: =LEFT('SC3'!A4,20) -> Debtors Age Analysis
A50: ='SC3'!A14 -> Total By Income Source | B50: ='SC3'!C14 -> 2839509 | C50: ='SC3'!D14 -> 2802492 | D50: ='SC3'!E14 -> 2796267 | E50: ='SC3'!F14 -> 106465284 | F50: ='SC3'!G14 -> 0 | G50: ='SC3'!H14 -> 0 | H50: ='SC3'!I14 -> 0 | I50: ='SC3'!J14 -> 0 | J50: ='SC3'!K14 -> 114903552
A51: =LEFT('SC4'!A5,22) -> Creditors Age Analysis
A52: Total Creditors | B52: ='SC4'!C15 -> 2256261.27 | C52: ='SC4'!D15 -> 44000 | D52: ='SC4'!E15 -> 83028 | E52: ='SC4'!F15 -> 1264689.38 | F52: ='SC4'!G15 -> 0 | G52: ='SC4'!H15 -> 0 | H52: ='SC4'!I15 -> 0 | I52: ='SC4'!J15 -> 0 | J52: ='SC4'!K15 -> 3647978.65

Sheet C2-FinPerf SC
A1: =muni& " - "&S71A& " - "&date -> LIM353 Molemole - Table C2 Monthly Budget Statement - Financial Performance (functional classification) - Q4 Fourth Quarter
A2: =desc -> Description | B2: =head27 -> Ref | C2: =Head1 -> 2020/21 | D2: =Head2 -> Budget Year 2021/22
C3: =Head5 -> Audited Outcome | D3: =Head6 -> Original Budget | E3: =Head7 -> Adjusted Budget | F3: =Head38 -> Monthly actual | G3: =Head39 -> YearTD actual | H3: =Head40 -> YearTD budget | I3: =Head41 -> YTD variance | J3: =Head41 -> YTD variance | K3: =Head8 -> Full Year Forecast
A4: R thousands | B4: 1 | J4: %
A5: Revenue - Functional
A6: Governance and administration | C6: =SUM(C7:C9) -> 235257470.5 | D6: 233378292 | E6: 209845155 | F6: 3829854.18 | G6: 193249999.3 | H6: 209845155 | I6: =G6-H6 -> -16595155.69 | J6: =IF(I6=0,"",I6/H6) -> -0.07908286322 | K6: =SUM(K7:K9) -> 209845155
A7: Executive and council | C7: ='C2C'!C7 -> 12150 | D7: ='C2C'!D7 -> 0 | E7: ='C2C'!E7 -> 0 | F7: ='C2C'!F7 -> 12550 | G7: ='C2C'!G7 -> 12550 | H7: ='C2C'!H7 -> 0 | I7: 12550 | J7: =IF(I7=0,"",I7/H7) ->  | K7: ='C2C'!K7 -> 0
A8: Finance and administration | C8: ='C2C'!C10 -> 235245320.5 | D8: ='C2C'!D10 -> 233378292 | E8: ='C2C'!E10 -> 209845155 | F8: ='C2C'!F10 -> 3817304.18 | G8: ='C2C'!G10 -> 193237449.3 | H8: ='C2C'!H10 -> 209845155 | I8: -16607705.69 | J8: -0.07914266922 | K8: ='C2C'!K10 -> 209845155
A9: Internal audit | C9: ='C2C'!C24 -> 0 | D9: ='C2C'!D24 -> 0 | E9: ='C2C'!E24 -> 0 | F9: ='C2C'!F24 -> 0 | G9: ='C2C'!G24 -> 0 | H9: ='C2C'!H24 -> 0 | I9: 0 | K9: ='C2C'!K24 -> 0
A10: Community and public safety | C10: =SUM(C11:C15) -> 8107750.62 | D10: 10691864 | E10: 10691864 | F10: 1821637.75 | G10: 13157358.64 | H10: 10691864 | I10: 2465494.64 | J10: 0.2305953985 | K10: =SUM(K11:K15) -> 10691864
A11: Community and social services | C11: ='C2C'!C27 -> 2515686.28 | D11: ='C2C'!D27 -> 1442644 | E11: ='C2C'!E27 -> 1442644 | F11: ='C2C'!F27 -> 316720 | G11: ='C2C'!G27 -> 1425769.56 | H11: ='C2C'!H27 -> 1442644 | I11: -16874.44 | J11: -0.01169688433 | K11: ='C2C'!K27 -> 1442644
A12: Sport and recreation | C12: ='C2C'!C49 -> 214680.5 | D12: ='C2C'!D49 -> 257623 | E12: ='C2C'!E49 -> 257623 | F12: ='C2C'!F49 -> 18226.62 | G12: ='C2C'!G49 -> 218160.14 | H12: ='C2C'!H49 -> 257623 | I12: -39462.86 | J12: -0.1531806555 | K12: ='C2C'!K49 -> 257623
A13: Public safety | C13: ='C2C'!C55 -> 5377383.84 | D13: ='C2C'!D55 -> 8991597 | E13: ='C2C'!E55 -> 8991597 | F13: ='C2C'!F55 -> 1486691.13 | G13: ='C2C'!G55 -> 11513428.94 | H13: ='C2C'!H55 -> 8991597 | I13: 2521831.94 | J13: 0.2804654101 | K13: ='C2C'!K55 -> 8991597
A14: Housing | C14: ='C2C'!C64 -> 0 | D14: ='C2C'!D64 -> 0 | E14: ='C2C'!E64 -> 0 | F14: ='C2C'!F64 -> 0 | G14: ='C2C'!G64 -> 0 | H14: ='C2C'!H64 -> 0 | I14: 0 | K14: ='C2C'!K64 -> 0
A15: Health | C15: ='C2C'!C67 -> 0 | D15: ='C2C'!D67 -> 0 | E15: ='C2C'!E67 -> 0 | F15: ='C2C'!F67 -> 0 | G15: ='C2C'!G67 -> 0 | H15: ='C2C'!H67 -> 0 | I15: 0 | K15: ='C2C'!K67 -> 0
A16: Economic and environmental services | C16: =SUM(C17:C19) -> 35537755.33 | D16: 43506508 | E16: 45146068 | F16: 13088756.99 | G16: 36836705.57 | H16: 45146068 | I16: -8309362.43 | J16: -0.1840550639 | K16: =SUM(K17:K19) -> 45146068
A17: Planning and development | C17: ='C2C'!C76 -> 35537755.33 | D17: ='C2C'!D76 -> 43506508 | E17: ='C2C'!E76 -> 45146068 | F17: ='C2C'!F76 -> 13088756.99 | G17: ='C2C'!G76 -> 36836705.57 | H17: ='C2C'!H76 -> 45146068 | I17: -8309362.43 | J17: -0.1840550639 | K17: ='C2C'!K76 -> 45146068
A18: Road transport | C18: ='C2C'!C87 -> 0 | D18: ='C2C'!D87 -> 0 | E18: ='C2C'!E87 -> 0 | F18: ='C2C'!F87 -> 0 | G18: ='C2C'!G87 -> 0 | H18: ='C2C'!H87 -> 0 | I18: 0 | K18: ='C2C'!K87 -> 0
A19: Environmental protection | C19: ='C2C'!C92 -> 0 | D19: ='C2C'!D92 -> 0 | E19: ='C2C'!E92 -> 0 | F19: ='C2C'!F92 -> 0 | G19: ='C2C'!G92 -> 0 | H19: ='C2C'!H92 -> 0 | I19: 0 | K19: ='C2C'!K92 -> 0
A20: Trading services | C20: =SUM(C21:C24) -> 23637505.82 | D20: =SUM(D21:D24) -> 25745394 | E20: 27745394 | F20: 4732102.22 | G20: 21157649.73 | H20: 27745394 | I20: -6587744.27 | J20: -0.2374355999 | K20: =SUM(K21:K24) -> 27745394
A21: Energy sources | C21: ='C2C'!C100 -> 19907231.84 | D21: ='C2C'!D100 -> 22300209 | E21: ='C2C'!E100 -> 22300209 | F21: ='C2C'!F100 -> 4280665.1 | G21: ='C2C'!G100 -> 15077489.88 | H21: ='C2C'!H100 -> 22300209 | I21: =G21-H21 -> -7222719.12 | J21: -0.3238857143 | K21: ='C2C'!K100 -> 22300209
A22: Water management | C22: ='C2C'!C104 -> 328420.18 | D22: ='C2C'!D104 -> 438143 | E22: ='C2C'!E104 -> 438143 | F22: ='C2C'!F104 -> 100166.57 | G22: ='C2C'!G104 -> 1342984.77 | H22: ='C2C'!H104 -> 438143 | I22: =G22-H22 -> 904841.77 | J22: 2.065174543 | K22: ='C2C'!K104 -> 438143
A23: Waste water management | C23: ='C2C'!C108 -> 519063.53 | D23: ='C2C'!D108 -> 283566 | E23: ='C2C'!E108 -> 2283566 | F23: ='C2C'!F108 -> 93130.65 | G23: ='C2C'!G108 -> 1655869.92 | H23: ='C2C'!H108 -> 2283566 | I23: =G23-H23 -> -627696.08 | J23: -0.2748753835 | K23: ='C2C'!K108 -> 2283566
A24: Waste management | C24: ='C2C'!C113 -> 2882790.27 | D24: ='C2C'!D113 -> 2723476 | E24: ='C2C'!E113 -> 2723476 | F24: ='C2C'!F113 -> 258139.9 | G24: ='C2C'!G113 -> 3081305.16 | H24: ='C2C'!H113 -> 2723476 | I24: =G24-H24 -> 357829.16 | J24: 0.1313869335 | K24: ='C2C'!K113 -> 2723476
A25: Other | B25: 4 | C25: ='C2C'!C118 -> 0 | D25: ='C2C'!D118 -> 0 | E25: ='C2C'!E118 -> 0 | F25: ='C2C'!F118 -> 0 | G25: ='C2C'!G118 -> 0 | H25: ='C2C'!H118 -> 0 | I25: =G25-H25 -> 0 | K25: ='C2C'!K118 -> 0
A26: Total Revenue - Functional | B26: 2 | C26: =C6+C10+C16+C20+C25 -> 302540482.2 | D26: =D6+D10+D16+D20+D25 -> 313322058 | E26: 293428481 | F26: 23472351.14 | G26: 264401713.2 | H26: 293428481 | I26: -29026767.75 | J26: -0.09892280276 | K26: =K6+K10+K16+K20+K25 -> 293428481
A28: Expenditure - Functional
A29: Governance and administration | C29: =SUM(C30:C32) -> 126699755 | D29: 137751459 | E29: 120350884 | F29: 9388369.97 | G29: 103487145.6 | H29: 120350884 | I29: =G29-H29 -> -16863738.38 | J29: =IF(I29=0,"",I29/H29) -> -0.1401214334 | K29: =SUM(K30:K32) -> 120350884
A30: Executive and council | C30: ='C2C'!C129 -> 36700574.25 | D30: ='C2C'!D129 -> 38116518 | E30: ='C2C'!E129 -> 33560986 | F30: ='C2C'!F129 -> 2804504.11 | G30: ='C2C'!G129 -> 29042557.74 | H30: ='C2C'!H129 -> 33560986 | I30: -4518428.26 | J30: =IF(I30=0,"",I30/H30) -> -0.1346333585 | K30: ='C2C'!K129 -> 33560986
A31: Finance and administration | C31: ='C2C'!C132 -> 82868539.14 | D31: ='C2C'!D132 -> 90852180 | E31: ='C2C'!E132 -> 78608513 | F31: ='C2C'!F132 -> 6347075.14 | G31: ='C2C'!G132 -> 67675127.34 | H31: ='C2C'!H132 -> 78608513 | I31: -10933385.66 | J31: -0.1390865346 | K31: ='C2C'!K132 -> 78608513
A32: Internal audit | C32: ='C2C'!C146 -> 7130641.56 | D32: ='C2C'!D146 -> 8782761 | E32: ='C2C'!E146 -> 8181385 | F32: ='C2C'!F146 -> 236790.72 | G32: ='C2C'!G146 -> 6769460.54 | H32: ='C2C'!H146 -> 8181385 | I32: -1411924.46 | J32: -0.1725776821 | K32: ='C2C'!K146 -> 8181385
A33: Community and public safety | C33: =SUM(C34:C38) -> 25382535.16 | D33: 26202515 | E33: 25493197 | F33: 2113399.92 | G33: 24977205.01 | H33: 25493197 | I33: -515991.99 | J33: -0.02024037982 | K33: =SUM(K34:K38) -> 25493197
A34: Community and social services | C34: ='C2C'!C149 -> 5328179.42 | D34: ='C2C'!D149 -> 7269984 | E34: ='C2C'!E149 -> 6795194 | F34: ='C2C'!F149 -> 463396.27 | G34: ='C2C'!G149 -> 5938316.39 | H34: ='C2C'!H149 -> 6795194 | I34: -856877.61 | J34: -0.1261005366 | K34: ='C2C'!K149 -> 6795194
A35: Sport and recreation | C35: ='C2C'!C171 -> 3853917.1 | D35: ='C2C'!D171 -> 3332043 | E35: ='C2C'!E171 -> 3097515 | F35: ='C2C'!F171 -> 434347.35 | G35: ='C2C'!G171 -> 3685459.82 | H35: ='C2C'!H171 -> 3097515 | I35: 587944.82 | J35: 0.1898117749 | K35: ='C2C'!K171 -> 3097515
A36: Public safety | C36: ='C2C'!C177 -> 16200438.64 | D36: ='C2C'!D177 -> 15600488 | E36: ='C2C'!E177 -> 15600488 | F36: ='C2C'!F177 -> 1215656.3 | G36: ='C2C'!G177 -> 15353428.8 | H36: ='C2C'!H177 -> 15600488 | I36: -247059.2 | J36: -0.0158366328 | K36: ='C2C'!K177 -> 15600488
A37: Housing | C37: ='C2C'!C186 -> 0 | D37: ='C2C'!D186 -> 0 | E37: ='C2C'!E186 -> 0 | F37: ='C2C'!F186 -> 0 | G37: ='C2C'!G186 -> 0 | H37: ='C2C'!H186 -> 0 | I37: 0 | K37: ='C2C'!K186 -> 0
A38: Health | C38: ='C2C'!C189 -> 0 | D38: ='C2C'!D189 -> 0 | E38: ='C2C'!E189 -> 0 | F38: ='C2C'!F189 -> 0 | G38: ='C2C'!G189 -> 0 | H38: ='C2C'!H189 -> 0 | I38: 0 | K38: ='C2C'!K189 -> 0
A39: Economic and environmental services | C39: =SUM(C40:C42) -> 11221967.77 | D39: 15439515 | E39: 13912725 | F39: 2234981.3 | G39: 14587882.21 | H39: 13912725 | I39: 675157.21 | J39: 0.04852803531 | K39: =SUM(K40:K42) -> 13912725
A40: Planning and development | C40: ='C2C'!C198 -> 9050448.45 | D40: ='C2C'!D198 -> 11831023 | E40: ='C2C'!E198 -> 10522872 | F40: ='C2C'!F198 -> 1885398.24 | G40: ='C2C'!G198 -> 10986098.51 | H40: ='C2C'!H198 -> 10522872 | I40: 463226.51 | J40: 0.04402092033 | K40: ='C2C'!K198 -> 10522872
A41: Road transport | C41: ='C2C'!C209 -> 2171519.32 | D41: ='C2C'!D209 -> 3608492 | E41: ='C2C'!E209 -> 3389853 | F41: ='C2C'!F209 -> 349583.06 | G41: ='C2C'!G209 -> 3601783.7 | H41: ='C2C'!H209 -> 3389853 | I41: 211930.7 | J41: 0.06251914169 | K41: ='C2C'!K209 -> 3389853
A42: Environmental protection | C42: ='C2C'!C214 -> 0 | D42: ='C2C'!D214 -> 0 | E42: ='C2C'!E214 -> 0 | F42: ='C2C'!F214 -> 0 | G42: ='C2C'!G214 -> 0 | H42: ='C2C'!H214 -> 0 | I42: 0 | K42: ='C2C'!K214 -> 0
A43: Trading services | C43: =SUM(C44:C47) -> 57964858.16 | D43: =SUM(D44:D47) -> 68535136 | E43: 68982875 | F43: 5930635.99 | G43: 68029436.34 | H43: 68982875 | I43: -953438.66 | J43: -0.0138213819 | K43: =SUM(K44:K47) -> 68982875
A44: Energy sources | C44: ='C2C'!C222 -> 21345355 | D44: ='C2C'!D222 -> 23932536 | E44: ='C2C'!E222 -> 26432536 | F44: ='C2C'!F222 -> 2273864.56 | G44: ='C2C'!G222 -> 24899336.58 | H44: ='C2C'!H222 -> 26432536 | I44: -1533199.42 | J44: -0.05800424976 | K44: ='C2C'!K222 -> 26432536
A45: Water management | C45: ='C2C'!C226 -> 6378865.08 | D45: ='C2C'!D226 -> 8083668 | E45: ='C2C'!E226 -> 7811892 | F45: ='C2C'!F226 -> 981794.22 | G45: ='C2C'!G226 -> 7439655.28 | H45: ='C2C'!H226 -> 7811892 | I45: -372236.72 | J45: -0.04765000847 | K45: ='C2C'!K226 -> 7811892
A46: Waste water management | C46: ='C2C'!C230 -> 23788074.01 | D46: ='C2C'!D230 -> 28806018 | E46: ='C2C'!E230 -> 27269409 | F46: ='C2C'!F230 -> 2203640.06 | G46: ='C2C'!G230 -> 29265715.37 | H46: ='C2C'!H230 -> 27269409 | I46: 1996306.37 | J46: 0.07320680731 | K46: ='C2C'!K230 -> 27269409
A47: Waste management | C47: ='C2C'!C235 -> 6452564.07 | D47: ='C2C'!D235 -> 7712914 | E47: ='C2C'!E235 -> 7469038 | F47: ='C2C'!F235 -> 471337.15 | G47: ='C2C'!G235 -> 6424729.11 | H47: ='C2C'!H235 -> 7469038 | I47: -1044308.89 | J47: -0.1398183929 | K47: ='C2C'!K235 -> 7469038
A48: Other | C48: ='C2C'!C240 -> 0 | D48: ='C2C'!D240 -> 0 | E48: ='C2C'!E240 -> 0 | F48: ='C2C'!F240 -> 0 | G48: ='C2C'!G240 -> 0 | H48: ='C2C'!H240 -> 0 | I48: 0 | K48: ='C2C'!K240 -> 0
A49: Total Expenditure - Functional | B49: 3 | C49: =C29+C33+C39+C43+C48 -> 221269116 | D49: =D29+D33+D39+D43+D48 -> 247928625 | E49: 228739681 | F49: 19667387.18 | G49: 211081669.2 | H49: 228739681 | I49: -17658011.82 | J49: -0.07719697668 | K49: =K29+K33+K39+K43+K48 -> 228739681
A50: Surplus/ (Deficit) for the year | C50: =C26-C49 -> 81271366.21 | D50: 65393433 | E50: 64688800 | F50: 3804963.96 | G50: 53320044.07 | H50: 64688800 | I50: =I26-I49 -> -11368755.93 | J50: =IF(I50=0,"",I50/H50) -> -0.1757453521 | K50: =K26-K49 -> 64688800
A51: =head27a -> References
A52: 1. Government Finance Statistics Functions and Sub-functions are standardised to assist the compilation of national and international accounts for comparison purposes
A53: 2. Total Revenue by functional classification must reconcile to Total Operating Revenue shown in the Financial Performance Statement
A54: 3. Total Expenditure by functional classification must reconcile to total operating expenditure shown in 'Financial Performance Statement'
A55: 4. All amounts must be classified under a functional classification (modified GFS). The GFS function 'Other' is only for Abbatoirs, Air Transport, Licensing and Regulation, Markets and Tourism - and if used must be supported by footnotes. Nothing else may be placed under 'Other'. Assign associate share to relevant classification

Sheet C2C
A1: =muni& " - "&S71A& " - "&date -> LIM353 Molemole - Table C2 Monthly Budget Statement - Financial Performance (functional classification) - Q4 Fourth Quarter
A2: =desc -> Description | B2: =head27 -> Ref | C2: =Head1 -> 2020/21 | D2: =Head2 -> Budget Year 2021/22
C3: =Head5 -> Audited Outcome | D3: =Head6 -> Original Budget | E3: =Head7 -> Adjusted Budget | F3: =Head38 -> Monthly actual | G3: =Head39 -> YearTD actual | H3: =Head40 -> YearTD budget | I3: =Head41 -> YTD variance | J3: =Head41 -> YTD variance | K3: =Head8 -> Full Year Forecast
A4: R thousands | B4: 1 | J4: %
A5: Revenue - Functional
A6: Municipal governance and administration | C6: =C7+C10+C24 -> 235257470.5 | D6: 233378292 | E6: 209845155 | F6: 3829854.18 | G6: 193249999.3 | H6: 209845155 | I6: =G6-H6 -> -16595155.69 | J6: =IF(I6=0,"",I6/H6) -> -0.07908286322 | K6: =K7+K10+K24 -> 209845155
A7: Executive and council | C7: =SUM(C8:C9) -> 12150 | D7: =SUM(D8:D9) -> 0 | E7: 0 | F7: 12550 | G7: 12550 | H7: 0 | I7: =G7-H7 -> 12550 | J7: =IF(I7=0,"",I7/H7) ->  | K7: 0
A8: Mayor and Council | C8: 12150 | D8: 0 | E8: 0 | F8: 12550 | G8: 12550 | H8: 0 | I8: 12550 | K8: 0
A9: Municipal Manager, Town Secretary and Chief Executive | C9: 0 | D9: 0 | E9: 0 | F9: 0 | G9: 0 | H9: 0 | I9: 0 | K9: 0
A10: Finance and administration | C10: =SUM(C11:C23) -> 235245320.5 | D10: 233378292 | E10: 209845155 | F10: 3817304.18 | G10: 193237449.3 | H10: 209845155 | I10: -16607705.69 | J10: -0.07914266922 | K10: =SUM(K11:K23) -> 209845155
A11: Administrative and Corporate Support | C11: 232590492.6 | D11: 209983966 | E11: 198111750 | F11: 3272770.45 | G11: 188330464 | H11: 198111750 | I11: -9781286.03 | J11: -0.04937256892 | K11: 198111750
A12: Asset Management | I12: 0
A13: Finance | C13: 2574466.45 | D13: 23172487 | E13: 11511566 | F13: 544533.73 | G13: 4728354.09 | H13: 11511566 | I13: -6783211.91 | J13: -0.5892518802 | K13: 11511566
A14: Fleet Management | I14: 0
A15: Human Resources | C15: 80361.4 | D15: 221839 | E15: 221839 | F15: 0 | G15: 178631.25 | H15: 221839 | I15: -43207.75 | J15: -0.1947707572 | K15: 221839
A16: Information Technology | C16: 0 | D16: 0 | E16: 0 | F16: 0 | G16: 0 | H16: 0 | I16: 0 | K16: 0
A17: Legal Services | C17: 0 | D17: 0 | E17: 0 | F17: 0 | G17: 0 | H17: 0 | I17: 0 | K17: 0
A18: Marketing, Customer Relations, Publicity and Media Co-ordination | I18: 0
A19: Property Services | I19: 0
A20: Risk Management | C20: 0 | D20: 0 | E20: 0 | F20: 0 | G20: 0 | H20: 0 | I20: 0 | K20: 0
A21: Security Services | I21: 0
A22: Supply Chain Management | C22: 0 | D22: 0 | E22: 0 | F22: 0 | G22: 0 | H22: 0 | I22: 0 | K22: 0
A23: Valuation Service | I23: 0
A24: Internal audit | C24: =SUM(C25:C25) -> 0 | D24: 0 | E24: 0 | F24: 0 | G24: 0 | H24: 0 | I24: 0 | K24: =SUM(K25:K25) -> 0
A25: Governance Function | C25: 0 | D25: 0 | E25: 0 | F25: 0 | G25: 0 | H25: 0 | I25: 0 | K25: 0
A26: Community and public safety | C26: =C27+C49+C55+C64+C67 -> 8107750.62 | D26: =D27+D49+D55+D64+D67 -> 10691864 | E26: 10691864 | F26: 1821637.75 | G26: 13157358.64 | H26: 10691864 | I26: 2465494.64 | J26: 0.2305953985 | K26: 10691864
A27: Community and social services | C27: =SUM(C28:C48) -> 2515686.28 | D27: 1442644 | E27: 1442644 | F27: 316720 | G27: 1425769.56 | H27: 1442644 | I27: -16874.44 | J27: -0.01169688433 | K27: =SUM(K28:K48) -> 1442644
A28: Aged Care | I28: 0
A29: Agricultural | I29: 0
A30: Animal Care and Diseases | I30: 0
A31: Cemeteries, Funeral Parlours and Crematoriums | C31: 18283.95 | D31: 13644 | E31: 13644 | F31: 0 | G31: 5499.56 | H31: 13644 | I31: -8144.44 | J31: -0.5969246555 | K31: 13644
A32: Child Care Facilities | I32: 0
A33: Community Halls and Facilities | C33: 2497402.33 | D33: 1429000 | E33: 1429000 | F33: 316720 | G33: 1420270 | H33: 1429000 | I33: -8730 | J33: -0.00610916725 | K33: 1429000
A34: Consumer Protection | I34: 0
A35: Cultural Matters | I35: 0
A36: Disaster Management | I36: 0
A37: Education | I37: 0
A38: Indigenous and Customary Law | I38: 0
A39: Industrial Promotion | I39: 0
A40: Language Policy | I40: 0
A41: Libraries and Archives | C41: 0 | D41: 0 | E41: 0 | F41: 0 | G41: 0 | H41: 0 | I41: 0 | K41: 0
A42: Literacy Programmes | I42: 0
A43: Media Services | I43: 0
A44: Museums and Art Galleries | I44: 0
A45: Population Development | I45: 0
A46: Provincial Cultural Matters | I46: 0
A47: Theatres | I47: 0
A48: Zoo's | I48: 0
A49: Sport and recreation | C49: =SUM(C50:C54) -> 214680.5 | D49: =SUM(D50:D54) -> 257623 | E49: 257623 | F49: 18226.62 | G49: 218160.14 | H49: 257623 | I49: -39462.86 | J49: -0.1531806555 | K49: 257623
A50: Beaches and Jetties | I50: 0
A51: Casinos, Racing, Gambling, Wagering | I51: 0
A52: Community Parks (including Nurseries) | I52: 0
A53: Recreational Facilities | C53: 214680.5 | D53: 257623 | E53: 257623 | F53: 18226.62 | G53: 218160.14 | H53: 257623 | I53: -39462.86 | J53: -0.1531806555 | K53: 257623
A54: Sports Grounds and Stadiums | I54: 0
A55: Public safety | C55: =SUM(C56:C63) -> 5377383.84 | D55: =SUM(D56:D63) -> 8991597 | E55: 8991597 | F55: 1486691.13 | G55: 11513428.94 | H55: 8991597 | I55: 2521831.94 | J55: 0.2804654101 | K55: 8991597
A56: Civil Defence | I56: 0
A57: Cleansing | I57: 0
A58: Control of Public Nuisances | I58: =G58-H58 -> 0 | J58: =IF(I58=0,"",I58/H58) -> 
A59: Fencing and Fences | I59: 0
A60: Fire Fighting and Protection | I60: 0
A61: Licensing and Control of Animals | I61: =G61-H61 -> 0 | J61: =IF(I61=0,"",I61/H61) -> 
A62: Police Forces, Traffic and Street Parking Control | C62: 5377383.84 | D62: 8991597 | E62: 8991597 | F62: 1486691.13 | G62: 11513428.94 | H62: 8991597 | I62: =G62-H62 -> 2521831.94 | J62: =IF(I62=0,"",I62/H62) -> 0.2804654101 | K62: 8991597
A63: Pounds | I63: 0
A64: Housing | C64: =SUM(C65:C66) -> 0 | D64: 0 | E64: 0 | F64: 0 | G64: 0 | H64: 0 | I64: =G64-H64 -> 0 | J64: =IF(I64=0,"",I64/H64) ->  | K64: =SUM(K65:K66) -> 0
A65: Housing | I65: =G65-H65 -> 0 | J65: =IF(I65=0,"",I65/H65) -> 
A66: Informal Settlements | I66: =G66-H66 -> 0 | J66: =IF(I66=0,"",I66/H66) -> 
A67: Health | C67: =SUM(C68:C74) -> 0 | D67: 0 | E67: 0 | F67: 0 | G67: 0 | H67: 0 | I67: 0 | K67: =SUM(K68:K74) -> 0
A68: Ambulance | I68: 0
A69: Health Services | I69: 0
A70: Laboratory Services | I70: =G70-H70 -> 0 | J70: =IF(I70=0,"",I70/H70) -> 
A71: Food Control | I71: =G71-H71 -> 0 | J71: =IF(I71=0,"",I71/H71) -> 
A72: Health Surveillance and Prevention of Communicable Diseases including immunizations | I72: 0
A73: Vector Control | I73: 0
A74: Chemical Safety | I74: 0
A75: Economic and environmental services | C75: =C76+C87+C92 -> 35537755.33 | D75: 43506508 | E75: 45146068 | F75: 13088756.99 | G75: 36836705.57 | H75: 45146068 | I75: -8309362.43 | J75: -0.1840550639 | K75: =K76+K87+K92 -> 45146068
A76: Planning and development | C76: =SUM(C77:C86) -> 35537755.33 | D76: 43506508 | E76: 45146068 | F76: 13088756.99 | G76: 36836705.57 | H76: 45146068 | I76: -8309362.43 | J76: -0.1840550639 | K76: =SUM(K77:K86) -> 45146068
A77: Billboards | I77: =G77-H77 -> 0 | J77: =IF(I77=0,"",I77/H77) -> 
A78: Corporate Wide Strategic Planning (IDPs, LEDs) | C78: 40312.32 | D78: 36810 | E78: 36810 | F78: 3359.36 | G78: 40312.32 | H78: 36810 | I78: 3502.32 | J78: 0.09514588427 | K78: 36810
A79: Central City Improvement District | I79: 0
A80: Development Facilitation | I80: =G80-H80 -> 0 | J80: =IF(I80=0,"",I80/H80) -> 
A81: Economic Development/Planning | C81: 0 | D81: 0 | E81: 0 | F81: 0 | G81: 0 | H81: 0 | I81: =G81-H81 -> 0 | J81: =IF(I81=0,"",I81/H81) ->  | K81: 0
A82: Regional Planning and Development | I82: =G82-H82 -> 0 | J82: =IF(I82=0,"",I82/H82) -> 
A83: Town Planning, Building Regulations and Enforcement, and City Engineer | C83: 14725.45 | D83: 6469698 | E83: 8109258 | F83: 472.08 | G83: 42873.78 | H83: 8109258 | I83: =G83-H83 -> -8066384.22 | J83: =IF(I83=0,"",I83/H83) -> -0.9947129836 | K83: 8109258
A84: Project Management Unit | C84: 35482717.56 | D84: 37000000 | E84: 37000000 | F84: 13084925.55 | G84: 36753519.47 | H84: 37000000 | I84: -246480.53 | J84: -0.006661635946 | K84: 37000000
A85: Provincial Planning | I85: 0
A86: Support to Local Municipalities | I86: 0
A87: Road transport | C87: =SUM(C88:C91) -> 0 | D87: 0 | E87: 0 | F87: 0 | G87: 0 | H87: 0 | I87: 0 | K87: =SUM(K88:K91) -> 0
A88: Public Transport | I88: 0
A89: Road and Traffic Regulation | I89: 0
A90: Roads | C90: 0 | D90: 0 | E90: 0 | F90: 0 | G90: 0 | H90: 0 | I90: 0 | K90: 0
A91: Taxi Ranks | I91: 0
A92: Environmental protection | C92: =SUM(C93:C98) -> 0 | D92: =SUM(D93:D98) -> 0 | E92: 0 | F92: 0 | G92: 0 | H92: 0 | I92: 0 | K92: 0
A93: Biodiversity and Landscape | I93: 0
A94: Coastal Protection | I94: 0
A95: Indigenous Forests | I95: =G95-H95 -> 0 | J95: =IF(I95=0,"",I95/H95) -> 
A96: Nature Conservation | I96: =G96-H96 -> 0 | J96: =IF(I96=0,"",I96/H96) -> 
A97: Pollution Control | I97: 0
A98: Soil Conservation | I98: 0
A99: Trading services | C99: =C100+C104+C108+C113 -> 23637505.82 | D99: =D100+D104+D108+D113 -> 25745394 | E99: 27745394 | F99: 4732102.22 | G99: 21157649.73 | H99: 27745394 | I99: -6587744.27 | J99: -0.2374355999 | K99: =K100+K104+K108+K113 -> 27745394
A100: Energy sources | C100: =SUM(C101:C103) -> 19907231.84 | D100: =SUM(D101:D103) -> 22300209 | E100: 22300209 | F100: 4280665.1 | G100: 15077489.88 | H100: 22300209 | I100: -7222719.12 | J100: -0.3238857143 | K100: 22300209
A101: Electricity | C101: 19907231.84 | D101: 22300209 | E101: 22300209 | F101: 4280665.1 | G101: 15077489.88 | H101: 22300209 | I101: -7222719.12 | J101: -0.3238857143 | K101: 22300209
A102: Street Lighting and Signal Systems | I102: =G102-H102 -> 0 | J102: =IF(I102=0,"",I102/H102) -> 
A103: Nonelectric Energy | I103: 0
A104: Water management | C104: =SUM(C105:C107) -> 328420.18 | D104: =SUM(D105:D107) -> 438143 | E104: 438143 | F104: 100166.57 | G104: 1342984.77 | H104: 438143 | I104: 904841.77 | J104: 2.065174543 | K104: 438143
A105: Water Treatment | I105: 0
A106: Water Distribution | C106: 328420.18 | D106: 438143 | E106: 438143 | F106: 100166.57 | G106: 1342984.77 | H106: 438143 | I106: =G106-H106 -> 904841.77 | J106: =IF(I106=0,"",I106/H106) -> 2.065174543 | K106: 438143
A107: Water Storage | I107: 0
A108: Waste water management | C108: =SUM(C109:C112) -> 519063.53 | D108: =SUM(D109:D112) -> 283566 | E108: 2283566 | F108: 93130.65 | G108: 1655869.92 | H108: 2283566 | I108: -627696.08 | J108: -0.2748753835 | K108: 2283566
A109: Public Toilets | I109: 0
A110: Sewerage | C110: 519063.53 | D110: 283566 | E110: 283566 | F110: 93130.65 | G110: 1098579.92 | H110: 283566 | I110: 815013.92 | J110: 2.874159525 | K110: 283566
A111: Storm Water Management | C111: 0 | D111: 0 | E111: 2000000 | F111: 0 | G111: 557290 | H111: 2000000 | I111: =G111-H111 -> -1442710 | J111: =IF(I111=0,"",I111/H111) -> -0.721355 | K111: 2000000
A112: Waste Water Treatment | I112: 0
A113: Waste management | C113: =SUM(C114:C117) -> 2882790.27 | D113: 2723476 | E113: 2723476 | F113: 258139.9 | G113: 3081305.16 | H113: 2723476 | I113: 357829.16 | J113: 0.1313869335 | K113: =SUM(K114:K117) -> 2723476
A114: Recycling | I114: =G114-H114 -> 0 | J114: =IF(I114=0,"",I114/H114) -> 
A115: Solid Waste Disposal (Landfill Sites) | I115: =G115-H115 -> 0 | J115: =IF(I115=0,"",I115/H115) -> 
A116: Solid Waste Removal | C116: 2882790.27 | D116: 2723476 | E116: 2723476 | F116: 258139.9 | G116: 3081305.16 | H116: 2723476 | I116: 357829.16 | J116: 0.1313869335 | K116: 2723476
A117: Street Cleaning | I117: =G117-H117 -> 0 | J117: =IF(I117=0,"",I117/H117) -> 
A118: Other | C118: =SUM(C119:C124) -> 0 | D118: =SUM(D119:D124) -> 0 | E118: 0 | F118: 0 | G118: 0 | H118: 0 | I118: 0 | K118: 0
A119: Abattoirs | I119: 0
A120: Air Transport | I120: 0
A121: Forestry | I121: =G121-H121 -> 0 | J121: =IF(I121=0,"",I121/H121) -> 
A122: Licensing and Regulation | I122: 0
A123: Markets | I123: 0
A124: Tourism | I124: =G124-H124 -> 0 | J124: =IF(I124=0,"",I124/H124) -> 
A125: ="Total "&A5 -> Total Revenue - Functional | B125: 2 | C125: =C6+C26+C75+C99+C118 -> 302540482.2 | D125: 313322058 | E125: 293428481 | F125: 23472351.14 | G125: 264401713.2 | H125: 293428481 | I125: =G125-H125 -> -29026767.75 | J125: =IF(I125=0,"",I125/H125) -> -0.09892280276 | K125: =K6+K26+K75+K99+K118 -> 293428481
A127: Expenditure - Functional
A128: =A6 -> Municipal governance and administration | C128: =C129+C132+C146 -> 126699755 | D128: 137751459 | E128: 120350884 | F128: 9388369.97 | G128: 103487145.6 | H128: 120350884 | I128: =G128-H128 -> -16863738.38 | J128: =IF(I128=0,"",I128/H128) -> -0.1401214334 | K128: =K129+K132+K146 -> 120350884
A129: Executive and council | C129: =SUM(C130:C131) -> 36700574.25 | D129: 38116518 | E129: 33560986 | F129: 2804504.11 | G129: 29042557.74 | H129: 33560986 | I129: -4518428.26 | J129: -0.1346333585 | K129: 33560986
A130: Mayor and Council | C130: 23126708.41 | D130: 28198752 | E130: 25081151 | F130: 2160021.27 | G130: 21498656.51 | H130: 25081151 | I130: -3582494.49 | J130: -0.1428361278 | K130: 25081151
A131: Municipal Manager, Town Secretary and Chief Executive | C131: 13573865.84 | D131: 9917766 | E131: 8479835 | F131: 644482.84 | G131: 7543901.23 | H131: 8479835 | I131: -935933.77 | J131: -0.1103716959 | K131: 8479835
A132: Finance and administration | C132: =SUM(C133:C145) -> 82868539.14 | D132: 90852180 | E132: 78608513 | F132: 6347075.14 | G132: 67675127.34 | H132: 78608513 | I132: -10933385.66 | J132: -0.1390865346 | K132: =SUM(K133:K145) -> 78608513
A133: Administrative and Corporate Support | C133: 34845996.41 | D133: 40000635 | E133: 35015524 | F133: 3011337.06 | G133: 31483622.02 | H133: 35015524 | I133: -3531901.98 | J133: -0.1008667464 | K133: 35015524
A134: Asset Management | I134: 0
A135: Finance | C135: 27178349.86 | D135: 25282300 | E135: 19814438 | F135: 1620951.07 | G135: 15052834.5 | H135: 19814438 | I135: -4761603.5 | J135: -0.2403097933 | K135: 19814438
A136: Fleet Management | I136: 0
A137: Human Resources | C137: 6525399.55 | D137: 7258307 | E137: 7135957 | F137: 442080.91 | G137: 6463258.89 | H137: 7135957 | I137: -672698.11 | J137: -0.09426880095 | K137: 7135957
A138: Information Technology | C138: 6373679 | D138: 7873604 | E138: 7128547 | F138: 835990.05 | G138: 5689992.16 | H138: 7128547 | I138: -1438554.84 | J138: -0.2018019717 | K138: 7128547
A139: Legal Services | C139: 2156226.17 | D139: 3015679 | E139: 2995679 | F139: 53213.62 | G139: 2538539.15 | H139: 2995679 | I139: -457139.85 | J139: -0.1525997445 | K139: 2995679
A140: Marketing, Customer Relations, Publicity and Media Co-ordination | I140: 0
A141: Property Services | I141: 0
A142: Risk Management | C142: 1514114.78 | D142: 2347610 | E142: 2160109 | F142: 85906.34 | G142: 1780447.39 | H142: 2160109 | I142: -379661.61 | J142: -0.1757603945 | K142: 2160109
A143: Security Services | I143: 0
A144: Supply Chain Management | C144: 4274773.37 | D144: 5074045 | E144: 4358259 | F144: 297596.09 | G144: 4666433.23 | H144: 4358259 | I144: 308174.23 | J144: 0.07071039835 | K144: 4358259
A145: Valuation Service | I145: 0
A146: Internal audit | C146: =SUM(C147:C147) -> 7130641.56 | D146: 8782761 | E146: 8181385 | F146: 236790.72 | G146: 6769460.54 | H146: 8181385 | I146: -1411924.46 | J146: -0.1725776821 | K146: =SUM(K147:K147) -> 8181385
A147: Governance Function | C147: 7130641.56 | D147: 8782761 | E147: 8181385 | F147: 236790.72 | G147: 6769460.54 | H147: 8181385 | I147: -1411924.46 | J147: -0.1725776821 | K147: 8181385
A148: Community and public safety | C148: =C149+C171+C177+C186+C189 -> 25382535.16 | D148: 26202515 | E148: 25493197 | F148: 2113399.92 | G148: 24977205.01 | H148: 25493197 | I148: -515991.99 | J148: -0.02024037982 | K148: =K149+K171+K177+K186+K189 -> 25493197
A149: Community and social services | C149: =SUM(C150:C170) -> 5328179.42 | D149: 7269984 | E149: 6795194 | F149: 463396.27 | G149: 5938316.39 | H149: 6795194 | I149: -856877.61 | J149: -0.1261005366 | K149: =SUM(K150:K170) -> 6795194
A150: Aged Care | I150: 0
A151: Agricultural | I151: 0
A152: Animal Care and Diseases | I152: 0
A153: Cemeteries, Funeral Parlours and Crematoriums | C153: 1242347.81 | D153: 1471894 | E153: 1474594 | F153: 150605.33 | G153: 1329385.8 | H153: 1474594 | I153: -145208.2 | J153: -0.09847334249 | K153: 1474594
A154: Child Care Facilities | I154: 0
A155: Community Halls and Facilities | C155: 3561387.56 | D155: 4549410 | E155: 4380224 | F155: 242953.09 | G155: 4088818.23 | H155: 4380224 | I155: -291405.77 | J155: -0.06652759539 | K155: 4380224
A156: Consumer Protection | I156: 0
A157: Cultural Matters | I157: =G157-H157 -> 0 | J157: =IF(I157=0,"",I157/H157) -> 
A158: Disaster Management | I158: =G158-H158 -> 0 | J158: =IF(I158=0,"",I158/H158) -> 
A159: Education | I159: =G159-H159 -> 0 | J159: =IF(I159=0,"",I159/H159) -> 
A160: Indigenous and Customary Law | I160: 0
A161: Industrial Promotion | I161: 0
A162: Language Policy | I162: 0
A163: Libraries and Archives | C163: 524444.05 | D163: 1248680 | E163: 940376 | F163: 69837.85 | G163: 520112.36 | H163: 940376 | I163: -420263.64 | J163: -0.4469102146 | K163: 940376
A164: Literacy Programmes | I164: 0
A165: Media Services | I165: 0
A166: Museums and Art Galleries | I166: 0
A167: Population Development | I167: 0
A168: Provincial Cultural Matters | I168: 0
A169: Theatres | I169: 0
A170: Zoo's | I170: 0
A171: Sport and recreation | C171: =SUM(C172:C176) -> 3853917.1 | D171: 3332043 | E171: 3097515 | F171: 434347.35 | G171: 3685459.82 | H171: 3097515 | I171: 587944.82 | J171: 0.1898117749 | K171: 3097515
A172: Beaches and Jetties | I172: 0
A173: Casinos, Racing, Gambling, Wagering | I173: 0
A174: Community Parks (including Nurseries) | I174: 0
A175: Recreational Facilities | C175: 3853917.1 | D175: 3332043 | E175: 3097515 | F175: 434347.35 | G175: 3685459.82 | H175: 3097515 | I175: 587944.82 | J175: 0.1898117749 | K175: 3097515
A176: Sports Grounds and Stadiums | I176: 0
A177: Public safety | C177: =SUM(C178:C185) -> 16200438.64 | D177: 15600488 | E177: 15600488 | F177: 1215656.3 | G177: 15353428.8 | H177: 15600488 | I177: -247059.2 | J177: -0.0158366328 | K177: 15600488
A178: Civil Defence | I178: 0
A179: Cleansing | I179: 0
A180: Control of Public Nuisances | I180: =G180-H180 -> 0 | J180: =IF(I180=0,"",I180/H180) -> 
A181: Fencing and Fences | I181: 0
A182: Fire Fighting and Protection | I182: 0
A183: Licensing and Control of Animals | I183: =G183-H183 -> 0 | J183: =IF(I183=0,"",I183/H183) -> 
A184: Police Forces, Traffic and Street Parking Control | C184: 16200438.64 | D184: 15600488 | E184: 15600488 | F184: 1215656.3 | G184: 15353428.8 | H184: 15600488 | I184: =G184-H184 -> -247059.2 | J184: =IF(I184=0,"",I184/H184) -> -0.0158366328 | K184: 15600488
A185: Pounds | I185: 0
A186: Housing | C186: =SUM(C187:C188) -> 0 | D186: 0 | E186: 0 | F186: 0 | G186: 0 | H186: 0 | I186: =G186-H186 -> 0 | J186: =IF(I186=0,"",I186/H186) ->  | K186: =SUM(K187:K188) -> 0
A187: Housing | I187: =G187-H187 -> 0 | J187: =IF(I187=0,"",I187/H187) -> 
A188: Informal Settlements | I188: =G188-H188 -> 0 | J188: =IF(I188=0,"",I188/H188) -> 
A189: Health | C189: =SUM(C190:C196) -> 0 | D189: 0 | E189: 0 | F189: 0 | G189: 0 | H189: 0 | I189: 0 | K189: 0
A190: Ambulance | I190: 0
A191: Health Services | I191: 0
A192: =A70 -> Laboratory Services | I192: 0
A193: Food Control | I193: =G193-H193 -> 0 | J193: =IF(I193=0,"",I193/H193) -> 
A194: Health Surveillance and Prevention of Communicable Diseases including immunizations | I194: =G194-H194 -> 0 | J194: =IF(I194=0,"",I194/H194) -> 
A195: Vector Control | I195: 0
A196: Chemical Safety | I196: 0
A197: Economic and environmental services | C197: =C198+C209+C214 -> 11221967.77 | D197: 15439515 | E197: 13912725 | F197: 2234981.3 | G197: 14587882.21 | H197: 13912725 | I197: 675157.21 | J197: 0.04852803531 | K197: =K198+K209+K214 -> 13912725
A198: Planning and development | C198: =SUM(C199:C208) -> 9050448.45 | D198: 11831023 | E198: 10522872 | F198: 1885398.24 | G198: 10986098.51 | H198: 10522872 | I198: 463226.51 | J198: 0.04402092033 | K198: 10522872
A199: Billboards | I199: 0
A200: Corporate Wide Strategic Planning (IDPs, LEDs) | C200: 3205750.49 | D200: 4368503 | E200: 3047489 | F200: 1269375.8 | G200: 2688724.41 | H200: 3047489 | I200: -358764.59 | J200: -0.1177246546 | K200: 3047489
A201: Central City Improvement District | I201: 0
... 54 more rows

Sheet C3-FinPerf V
A1: =muni& " - "&S71C& " - "&date -> LIM353 Molemole - Table C3 Monthly Budget Statement - Financial Performance (revenue and expenditure by municipal vote) - Q4 Fourth Quarter
A2: =Vdesc -> Vote Description | B2: =head27 -> Ref | C2: =Head1 -> 2020/21 | D2: =Head2 -> Budget Year 2021/22
C3: =Head5 -> Audited Outcome | D3: =Head6 -> Original Budget | E3: =Head7 -> Adjusted Budget | F3: =Head38 -> Monthly actual | G3: =Head39 -> YearTD actual | H3: =Head40 -> YearTD budget | I3: =Head41 -> YTD variance | J3: =Head41 -> YTD variance | K3: =Head8 -> Full Year Forecast
A4: R thousands | J4: %
A5: Revenue by Vote | B5: 1
A6: ='Org structure'!A2 -> Vote 01 - Corporate Services | C6: ='C3C'!C6 -> 147701.19 | D6: ='C3C'!D6 -> 6728347 | E6: ='C3C'!E6 -> 8367907 | F6: ='C3C'!F6 -> 16381.44 | G6: ='C3C'!G6 -> 274367.35 | H6: ='C3C'!H6 -> 8367907 | I6: =G6-H6 -> -8093539.65 | J6: =IF(I6=0,"",I6/H6) -> -0.9672119504 | K6: ='C3C'!K6 -> 8367907
A7: ='Org structure'!A3 -> Vote 02 - Municipal Manager | C7: ='C3C'!C15 -> 0 | D7: ='C3C'!D15 -> 0 | E7: ='C3C'!E15 -> 0 | F7: ='C3C'!F15 -> 0 | G7: ='C3C'!G15 -> 0 | H7: ='C3C'!H15 -> 0 | I7: 0 | K7: ='C3C'!K15 -> 0
A8: ='Org structure'!A4 -> Vote 03 - Mayors Office | C8: ='C3C'!C21 -> 0 | D8: ='C3C'!D21 -> 0 | E8: ='C3C'!E21 -> 0 | F8: ='C3C'!F21 -> 0 | G8: ='C3C'!G21 -> 0 | H8: ='C3C'!H21 -> 0 | I8: 0 | K8: ='C3C'!K21 -> 0
A9: ='Org structure'!A5 -> Vote 04 - Budget And Treasury | C9: ='C3C'!C27 -> 235164807.1 | D9: ='C3C'!D27 -> 233156453 | E9: ='C3C'!E27 -> 209623316 | F9: ='C3C'!F27 -> 3817304.18 | G9: ='C3C'!G27 -> 193058818.1 | H9: ='C3C'!H27 -> 209623316 | I9: -16564497.94 | J9: -0.07902030297 | K9: ='C3C'!K27 -> 209623316
A10: ='Org structure'!A6 -> Vote 05 - Community Services | C10: ='C3C'!C35 -> 10990540.89 | D10: ='C3C'!D35 -> 13415340 | E10: ='C3C'!E35 -> 13415340 | F10: ='C3C'!F35 -> 2079777.65 | G10: ='C3C'!G35 -> 16238663.8 | H10: ='C3C'!H35 -> 13415340 | I10: 2823323.8 | J10: 0.2104548822 | K10: ='C3C'!K35 -> 13415340
A11: ='Org structure'!A7 -> Vote 06 - Technical Services | C11: ='C3C'!C43 -> 56237433.11 | D11: ='C3C'!D43 -> 60021918 | E11: ='C3C'!E43 -> 62021918 | F11: ='C3C'!F43 -> 17558887.87 | G11: ='C3C'!G43 -> 54829864.04 | H11: ='C3C'!H43 -> 62021918 | I11: -7192053.96 | J11: -0.1159598766 | K11: ='C3C'!K43 -> 62021918
A12: ='Org structure'!A8 -> Vote 07 - | C12: ='C3C'!C52 -> 0 | D12: ='C3C'!D52 -> 0 | E12: ='C3C'!E52 -> 0 | F12: ='C3C'!F52 -> 0 | G12: ='C3C'!G52 -> 0 | H12: ='C3C'!H52 -> 0 | I12: =G12-H12 -> 0 | J12: =IF(I12=0,"",I12/H12) ->  | K12: ='C3C'!K52 -> 0
A13: ='Org structure'!A9 -> Vote 08 - | C13: ='C3C'!C53 -> 0 | D13: ='C3C'!D53 -> 0 | E13: ='C3C'!E53 -> 0 | F13: ='C3C'!F53 -> 0 | G13: ='C3C'!G53 -> 0 | H13: ='C3C'!H53 -> 0 | I13: 0 | K13: ='C3C'!K53 -> 0
A14: ='Org structure'!A10 -> Vote 09 - | C14: ='C3C'!C54 -> 0 | D14: ='C3C'!D54 -> 0 | E14: ='C3C'!E54 -> 0 | F14: ='C3C'!F54 -> 0 | G14: ='C3C'!G54 -> 0 | H14: ='C3C'!H54 -> 0 | I14: 0 | K14: ='C3C'!K54 -> 0
A15: ='Org structure'!A11 -> Vote 10 - | C15: ='C3C'!C55 -> 0 | D15: ='C3C'!D55 -> 0 | E15: ='C3C'!E55 -> 0 | F15: ='C3C'!F55 -> 0 | G15: ='C3C'!G55 -> 0 | H15: ='C3C'!H55 -> 0 | I15: 0 | K15: ='C3C'!K55 -> 0
A16: ='Org structure'!A12 -> Vote 11 - | C16: ='C3C'!C56 -> 0 | D16: ='C3C'!D56 -> 0 | E16: ='C3C'!E56 -> 0 | F16: ='C3C'!F56 -> 0 | G16: ='C3C'!G56 -> 0 | H16: ='C3C'!H56 -> 0 | I16: 0 | K16: ='C3C'!K56 -> 0
A17: ='Org structure'!A13 -> Vote 12 - | C17: ='C3C'!C57 -> 0 | D17: ='C3C'!D57 -> 0 | E17: ='C3C'!E57 -> 0 | F17: ='C3C'!F57 -> 0 | G17: ='C3C'!G57 -> 0 | H17: ='C3C'!H57 -> 0 | I17: 0 | K17: ='C3C'!K57 -> 0
A18: ='Org structure'!A14 -> Vote 13 - | C18: ='C3C'!C58 -> 0 | D18: ='C3C'!D58 -> 0 | E18: ='C3C'!E58 -> 0 | F18: ='C3C'!F58 -> 0 | G18: ='C3C'!G58 -> 0 | H18: ='C3C'!H58 -> 0 | I18: 0 | K18: ='C3C'!K58 -> 0
A19: ='Org structure'!A15 -> Vote 14 - | C19: ='C3C'!C59 -> 0 | D19: ='C3C'!D59 -> 0 | E19: ='C3C'!E59 -> 0 | F19: ='C3C'!F59 -> 0 | G19: ='C3C'!G59 -> 0 | H19: ='C3C'!H59 -> 0 | I19: 0 | K19: ='C3C'!K59 -> 0
A20: ='Org structure'!A16 -> Vote 15 - Other | C20: ='C3C'!C60 -> 0 | D20: ='C3C'!D60 -> 0 | E20: ='C3C'!E60 -> 0 | F20: ='C3C'!F60 -> 0 | G20: ='C3C'!G60 -> 0 | H20: ='C3C'!H60 -> 0 | I20: 0 | K20: ='C3C'!K60 -> 0
A21: Total Revenue by Vote | B21: 2 | C21: =SUM(C6:C20) -> 302540482.2 | D21: =SUM(D6:D20) -> 313322058 | E21: 293428481 | F21: 23472351.14 | G21: 264401713.2 | H21: 293428481 | I21: -29026767.75 | J21: -0.09892280276 | K21: =SUM(K6:K20) -> 293428481
A23: Expenditure by Vote | B23: 1
A24: ='Org structure'!A2 -> Vote 01 - Corporate Services | C24: ='C3C'!C64 -> 53987525.21 | D24: ='C3C'!D64 -> 61955753 | E24: ='C3C'!E64 -> 54684980 | F24: ='C3C'!F64 -> 5925165.66 | G24: ='C3C'!G64 -> 50358671.79 | H24: ='C3C'!H64 -> 54684980 | I24: =G24-H24 -> -4326308.21 | J24: =IF(I24=0,"",I24/H24) -> -0.07911328138 | K24: ='C3C'!K64 -> 54684980
A25: ='Org structure'!A3 -> Vote 02 - Municipal Manager | C25: ='C3C'!C73 -> 24374848.35 | D25: ='C3C'!D73 -> 24063816 | E25: ='C3C'!E73 -> 21817008 | F25: ='C3C'!F73 -> 1020393.52 | G25: ='C3C'!G73 -> 18632348.31 | H25: ='C3C'!H73 -> 21817008 | I25: -3184659.69 | J25: -0.1459714224 | K25: ='C3C'!K73 -> 21817008
A26: ='Org structure'!A4 -> Vote 03 - Mayors Office | C26: ='C3C'!C79 -> 16496856.64 | D26: ='C3C'!D79 -> 19016432 | E26: ='C3C'!E79 -> 17296258 | F26: ='C3C'!F79 -> 1189315.27 | G26: ='C3C'!G79 -> 15947348.43 | H26: ='C3C'!H79 -> 17296258 | I26: -1348909.57 | J26: -0.07798852041 | K26: ='C3C'!K79 -> 17296258
A27: ='Org structure'!A5 -> Vote 04 - Budget And Treasury | C27: ='C3C'!C85 -> 38992258.39 | D27: ='C3C'!D85 -> 41597622 | E27: ='C3C'!E85 -> 34031358 | F27: ='C3C'!F85 -> 2982251.03 | G27: ='C3C'!G85 -> 27315071.54 | H27: ='C3C'!H85 -> 34031358 | I27: -6716286.46 | J27: -0.1973558169 | K27: ='C3C'!K85 -> 34031358
A28: ='Org structure'!A6 -> Vote 05 - Community Services | C28: ='C3C'!C93 -> 31835099.23 | D28: ='C3C'!D93 -> 33915429 | E28: ='C3C'!E93 -> 32962235 | F28: ='C3C'!F93 -> 2584737.07 | G28: ='C3C'!G93 -> 31401934.12 | H28: ='C3C'!H93 -> 32962235 | I28: -1560300.88 | J28: -0.0473360159 | K28: ='C3C'!K93 -> 32962235
A29: ='Org structure'!A7 -> Vote 06 - Technical Services | C29: ='C3C'!C101 -> 55387315.29 | D29: ='C3C'!D101 -> 67379573 | E29: ='C3C'!E101 -> 67947842 | F29: ='C3C'!F101 -> 5959102.47 | G29: ='C3C'!G101 -> 67338515.49 | H29: ='C3C'!H101 -> 67947842 | I29: -609326.51 | J29: -0.008967562355 | K29: ='C3C'!K101 -> 67947842
A30: ='Org structure'!A8 -> Vote 07 - | C30: ='C3C'!C110 -> 0 | D30: ='C3C'!D110 -> 0 | E30: ='C3C'!E110 -> 0 | F30: ='C3C'!F110 -> 0 | G30: ='C3C'!G110 -> 0 | H30: ='C3C'!H110 -> 0 | I30: =G30-H30 -> 0 | J30: =IF(I30=0,"",I30/H30) ->  | K30: ='C3C'!K110 -> 0
A31: ='Org structure'!A9 -> Vote 08 - | C31: ='C3C'!C111 -> 0 | D31: ='C3C'!D111 -> 0 | E31: ='C3C'!E111 -> 0 | F31: ='C3C'!F111 -> 0 | G31: ='C3C'!G111 -> 0 | H31: ='C3C'!H111 -> 0 | I31: 0 | K31: ='C3C'!K111 -> 0
A32: ='Org structure'!A10 -> Vote 09 - | C32: ='C3C'!C112 -> 0 | D32: ='C3C'!D112 -> 0 | E32: ='C3C'!E112 -> 0 | F32: ='C3C'!F112 -> 0 | G32: ='C3C'!G112 -> 0 | H32: ='C3C'!H112 -> 0 | I32: 0 | K32: ='C3C'!K112 -> 0
A33: ='Org structure'!A11 -> Vote 10 - | C33: ='C3C'!C113 -> 0 | D33: ='C3C'!D113 -> 0 | E33: ='C3C'!E113 -> 0 | F33: ='C3C'!F113 -> 0 | G33: ='C3C'!G113 -> 0 | H33: ='C3C'!H113 -> 0 | I33: 0 | J33: =IF(I33=0,"",I33/H33) ->  | K33: ='C3C'!K113 -> 0
A34: ='Org structure'!A12 -> Vote 11 - | C34: ='C3C'!C114 -> 0 | D34: ='C3C'!D114 -> 0 | E34: ='C3C'!E114 -> 0 | F34: ='C3C'!F114 -> 0 | G34: ='C3C'!G114 -> 0 | H34: ='C3C'!H114 -> 0 | I34: 0 | J34: =IF(I34=0,"",I34/H34) ->  | K34: ='C3C'!K114 -> 0
A35: ='Org structure'!A13 -> Vote 12 - | C35: ='C3C'!C115 -> 0 | D35: ='C3C'!D115 -> 0 | E35: ='C3C'!E115 -> 0 | F35: ='C3C'!F115 -> 0 | G35: ='C3C'!G115 -> 0 | H35: ='C3C'!H115 -> 0 | I35: 0 | J35: =IF(I35=0,"",I35/H35) ->  | K35: ='C3C'!K115 -> 0
A36: ='Org structure'!A14 -> Vote 13 - | C36: ='C3C'!C116 -> 0 | D36: ='C3C'!D116 -> 0 | E36: ='C3C'!E116 -> 0 | F36: ='C3C'!F116 -> 0 | G36: ='C3C'!G116 -> 0 | H36: ='C3C'!H116 -> 0 | I36: 0 | J36: =IF(I36=0,"",I36/H36) ->  | K36: ='C3C'!K116 -> 0
A37: ='Org structure'!A15 -> Vote 14 - | C37: ='C3C'!C117 -> 0 | D37: ='C3C'!D117 -> 0 | E37: ='C3C'!E117 -> 0 | F37: ='C3C'!F117 -> 0 | G37: ='C3C'!G117 -> 0 | H37: ='C3C'!H117 -> 0 | I37: 0 | J37: =IF(I37=0,"",I37/H37) ->  | K37: ='C3C'!K117 -> 0
A38: ='Org structure'!A16 -> Vote 15 - Other | C38: ='C3C'!C118 -> 0 | D38: ='C3C'!D118 -> 0 | E38: ='C3C'!E118 -> 0 | F38: ='C3C'!F118 -> 0 | G38: ='C3C'!G118 -> 0 | H38: ='C3C'!H118 -> 0 | I38: 0 | K38: ='C3C'!K118 -> 0
A39: Total Expenditure by Vote | B39: 2 | C39: =SUM(C24:C38) -> 221073903.1 | D39: =SUM(D24:D38) -> 247928625 | E39: 228739681 | F39: 19660965.02 | G39: 210993889.7 | H39: 228739681 | I39: -17745791.32 | J39: =IF(I39=0,"",I39/H39) -> -0.07758072951 | K39: =SUM(K24:K38) -> 228739681
A40: =result -> Surplus/ (Deficit) for the year | B40: 2 | C40: =C21-C39 -> 81466579.14 | D40: 65393433 | E40: 64688800 | F40: 3811386.12 | G40: 53407823.57 | H40: 64688800 | I40: =I21-I39 -> -11280976.43 | J40: =IF(I40=0,"",I40/H40) -> -0.1743884015 | K40: =K21-K39 -> 64688800
A41: =head27a -> References
A42: 1. Insert 'Vote'; e.g. Department, if different to standard classification structure
A43: 2. Must reconcile to Monthly Budget Statement - Financial Performance Statement (standard classification)

Sheet C3C
A1: =muni& " - "&S71C& " - "&"A"& " - "&date -> LIM353 Molemole - Table C3 Monthly Budget Statement - Financial Performance (revenue and expenditure by municipal vote) - A - Q4 Fourth Quarter
A2: =Vdesc -> Vote Description | B2: =head27 -> Ref | C2: =Head1 -> 2020/21 | D2: =Head2 -> Budget Year 2021/22 | L2: =Head4 -> 
A3: R thousand | C3: =Head5 -> Audited Outcome | D3: =Head6 -> Original Budget | E3: =Head7 -> Adjusted Budget | F3: =Head38 -> Monthly actual | G3: =Head39 -> YearTD actual | H3: =Head40 -> YearTD budget | I3: =Head41 -> YTD variance | J3: =Head41 -> YTD variance | K3: =Head8 -> Full Year Forecast | L3: =Head12 -> Forecast 2010/11 | M3: =Head13 -> Forecast 2011/12 | N3: =Head14 -> Forecast 2012/13 | O3: =Head15 -> Forecast 2013/14 | P3: =Head16 -> Forecast 2014/15 | Q3: =Head17 -> Forecast 2015/16 | R3: =Head18 -> Forecast 2016/17 | S3: =Head19 -> Forecast 2017/18 | T3: =Head20 -> Forecast 2018/19 | U3: =Head21 -> Forecast 2019/20 | V3: =Head22 -> Forecast 2020/21 | W3: =Head23 -> Forecast 2021/22
J4: %
A5: Revenue by Vote | B5: 1
A6: ='Org structure'!A2 -> Vote 01 - Corporate Services | C6: =SUM(C7:C14) -> 147701.19 | D6: 6728347 | E6: 8367907 | F6: 16381.44 | G6: 274367.35 | H6: 8367907 | I6: =G6-H6 -> -8093539.65 | J6: =IF(I6=0,"",I6/H6) -> -0.9672119504 | K6: =SUM(K7:K14) -> 8367907
A7: ='Org structure'!E3 -> 01.1 - Corporate Services Admin | C7: 152.02 | D7: 0 | E7: 0 | F7: 0 | G7: 0 | H7: 0 | I7: =G7-H7 -> 0 | J7: =IF(I7=0,"",I7/H7) ->  | K7: 0
A8: ='Org structure'!E4 -> 01.2 - Human Resources | C8: 80361.4 | D8: 221839 | E8: 221839 | F8: 0 | G8: 178631.25 | H8: 221839 | I8: -43207.75 | J8: -0.1947707572 | K8: 221839
A9: ='Org structure'!E5 -> 01.3 - Information Technology Services | C9: 0 | D9: 0 | E9: 0 | F9: 0 | G9: 0 | H9: 0 | I9: 0 | K9: 0
A10: ='Org structure'!E6 -> 01.4 - Council Support | C10: 12150 | D10: 0 | E10: 0 | F10: 12550 | G10: 12550 | H10: 0 | I10: 12550 | K10: 0
A11: ='Org structure'!E7 -> 01.5 - Local Economic Development | C11: 0 | D11: 0 | E11: 0 | F11: 0 | G11: 0 | H11: 0 | I11: 0 | K11: 0
A12: ='Org structure'!E8 -> 01.6 - Municipal Planning Idp | C12: 40312.32 | D12: 36810 | E12: 36810 | F12: 3359.36 | G12: 40312.32 | H12: 36810 | I12: 3502.32 | J12: 0.09514588427 | K12: 36810
A13: ='Org structure'!E9 -> 01.7 - Town & Regional Planning | C13: 14725.45 | D13: 6469698 | E13: 8109258 | F13: 472.08 | G13: 42873.78 | H13: 8109258 | I13: -8066384.22 | J13: -0.9947129836 | K13: 8109258
A14: ='Org structure'!E10 -> 01.8 - Led Administration | C14: 0 | D14: 0 | E14: 0 | F14: 0 | G14: 0 | H14: 0 | I14: 0 | K14: 0
A15: ='Org structure'!A3 -> Vote 02 - Municipal Manager | C15: =SUM(C16:C20) -> 0 | D15: 0 | E15: 0 | F15: 0 | G15: 0 | H15: 0 | I15: 0 | K15: =SUM(K16:K20) -> 0
A16: ='Org structure'!E12 -> 02.1 - Municipal Manager Admin | C16: 0 | D16: 0 | E16: 0 | F16: 0 | G16: 0 | H16: 0 | I16: =G16-H16 -> 0 | J16: =IF(I16=0,"",I16/H16) ->  | K16: 0
A17: ='Org structure'!E13 -> 02.2 - Legal Services | C17: 0 | D17: 0 | E17: 0 | F17: 0 | G17: 0 | H17: 0 | I17: =G17-H17 -> 0 | J17: =IF(I17=0,"",I17/H17) ->  | K17: 0
A18: ='Org structure'!E14 -> 02.3 - Political Office Beares | C18: 0 | D18: 0 | E18: 0 | F18: 0 | G18: 0 | H18: 0 | I18: =G18-H18 -> 0 | J18: =IF(I18=0,"",I18/H18) ->  | K18: 0
A19: ='Org structure'!E15 -> 02.4 - Pms | C19: 0 | D19: 0 | E19: 0 | F19: 0 | G19: 0 | H19: 0 | I19: =G19-H19 -> 0 | J19: =IF(I19=0,"",I19/H19) ->  | K19: 0
A20: ='Org structure'!E16 -> 02.5 - Internal Audit | C20: 0 | D20: 0 | E20: 0 | F20: 0 | G20: 0 | H20: 0 | I20: =G20-H20 -> 0 | J20: =IF(I20=0,"",I20/H20) ->  | K20: 0
A21: ='Org structure'!A4 -> Vote 03 - Mayors Office | C21: =SUM(C22:C26) -> 0 | D21: 0 | E21: 0 | F21: 0 | G21: 0 | H21: 0 | I21: 0 | K21: =SUM(K22:K26) -> 0
A22: ='Org structure'!E18 -> 03.1 - Mayors Office Admin | C22: 0 | D22: 0 | E22: 0 | F22: 0 | G22: 0 | H22: 0 | I22: =G22-H22 -> 0 | J22: =IF(I22=0,"",I22/H22) ->  | K22: 0
A23: ='Org structure'!E19 -> 03.2 - Office Of The Speaker | C23: 0 | D23: 0 | E23: 0 | F23: 0 | G23: 0 | H23: 0 | I23: =G23-H23 -> 0 | J23: =IF(I23=0,"",I23/H23) ->  | K23: 0
A24: ='Org structure'!E20 -> 03.3 - Office Of The Chief Whip | C24: 0 | D24: 0 | E24: 0 | F24: 0 | G24: 0 | H24: 0 | I24: =G24-H24 -> 0 | J24: =IF(I24=0,"",I24/H24) ->  | K24: 0
A25: ='Org structure'!E21 -> 03.4 - Exco Members | C25: 0 | D25: 0 | E25: 0 | F25: 0 | G25: 0 | H25: 0 | I25: =G25-H25 -> 0 | J25: =IF(I25=0,"",I25/H25) ->  | K25: 0
A26: ='Org structure'!E22 -> 03.5 - Council General Administration | C26: 0 | D26: 0 | E26: 0 | F26: 0 | G26: 0 | H26: 0 | I26: =G26-H26 -> 0 | J26: =IF(I26=0,"",I26/H26) ->  | K26: 0
A27: ='Org structure'!A5 -> Vote 04 - Budget And Treasury | C27: =SUM(C28:C34) -> 235164807.1 | D27: 233156453 | E27: 209623316 | F27: 3817304.18 | G27: 193058818.1 | H27: 209623316 | I27: -16564497.94 | J27: -0.07902030297 | K27: =SUM(K28:K34) -> 209623316
A28: ='Org structure'!E24 -> 04.1 - Budget And Treasury Admin | C28: 232590340.6 | D28: 209983966 | E28: 198111750 | F28: 3272770.45 | G28: 188330464 | H28: 198111750 | I28: =G28-H28 -> -9781286.03 | J28: =IF(I28=0,"",I28/H28) -> -0.04937256892 | K28: 198111750
A29: ='Org structure'!E25 -> 04.2 - Chief Financial Officer Admin | C29: 0 | D29: 0 | E29: 0 | F29: 0 | G29: 0 | H29: 0 | I29: 0 | K29: 0
A30: ='Org structure'!E26 -> 04.3 - Budget & Reporting | C30: 0 | D30: 0 | E30: 0 | F30: 0 | G30: 0 | H30: 0 | I30: 0 | K30: 0
A31: ='Org structure'!E27 -> 04.4 - Budget & Reporting | C31: 2543772.73 | D31: 2708206 | E31: 2708206 | F31: 541610.79 | G31: 4693415.06 | H31: 2708206 | I31: 1985209.06 | J31: 0.7330347322 | K31: 2708206
A32: ='Org structure'!E28 -> 04.5 - Revenue Management | C32: 30693.72 | D32: 20464281 | E32: 8803360 | F32: 2922.94 | G32: 34939.03 | H32: 8803360 | I32: -8768420.97 | J32: -0.9960311711 | K32: 8803360
A33: ='Org structure'!E29 -> 04.6 - Supply Chain Management | C33: 0 | D33: 0 | E33: 0 | F33: 0 | G33: 0 | H33: 0 | I33: 0 | K33: 0
A34: ='Org structure'!E30 -> 04.7 - Expenditure | C34: 0 | D34: 0 | E34: 0 | F34: 0 | G34: 0 | H34: 0 | I34: 0 | K34: 0
A35: ='Org structure'!A6 -> Vote 05 - Community Services | C35: =SUM(C36:C42) -> 10990540.89 | D35: 13415340 | E35: 13415340 | F35: 2079777.65 | G35: 16238663.8 | H35: 13415340 | I35: 2823323.8 | J35: 0.2104548822 | K35: =SUM(K36:K42) -> 13415340
A36: ='Org structure'!E32 -> 05.1 - Community Services Admin | C36: 2497402.33 | D36: 1429000 | E36: 1429000 | F36: 316720 | G36: 1420270 | H36: 1429000 | I36: =G36-H36 -> -8730 | J36: =IF(I36=0,"",I36/H36) -> -0.00610916725 | K36: 1429000
A37: ='Org structure'!E33 -> 05.2 - Libraries | C37: 0 | D37: 0 | E37: 0 | F37: 0 | G37: 0 | H37: 0 | I37: 0 | K37: 0
A38: ='Org structure'!E34 -> 05.3 - Sports Recreation & Social Amenitie | C38: 214680.5 | D38: 257623 | E38: 257623 | F38: 18226.62 | G38: 218160.14 | H38: 257623 | I38: -39462.86 | J38: -0.1531806555 | K38: 257623
A39: ='Org structure'!E35 -> 05.4 - Traffic Service | C39: 0 | D39: 0 | E39: 0 | F39: 0 | G39: 0 | H39: 0 | I39: 0 | K39: 0
A40: ='Org structure'!E36 -> 05.5 - Traffic Service | C40: 5377383.84 | D40: 8991597 | E40: 8991597 | F40: 1486691.13 | G40: 11513428.94 | H40: 8991597 | I40: 2521831.94 | J40: 0.2804654101 | K40: 8991597
A41: ='Org structure'!E37 -> 05.6 - Parks; Cemeteries | C41: 18283.95 | D41: 13644 | E41: 13644 | F41: 0 | G41: 5499.56 | H41: 13644 | I41: -8144.44 | J41: -0.5969246555 | K41: 13644
A42: ='Org structure'!E38 -> 05.7 - Refuse | C42: 2882790.27 | D42: 2723476 | E42: 2723476 | F42: 258139.9 | G42: 3081305.16 | H42: 2723476 | I42: 357829.16 | J42: 0.1313869335 | K42: 2723476
A43: ='Org structure'!A7 -> Vote 06 - Technical Services | C43: =SUM(C44:C51) -> 56237433.11 | D43: 60021918 | E43: 62021918 | F43: 17558887.87 | G43: 54829864.04 | H43: 62021918 | I43: -7192053.96 | J43: -0.1159598766 | K43: =SUM(K44:K51) -> 62021918
A44: ='Org structure'!E40 -> 06.1 - Mpac | C44: 0 | D44: 0 | E44: 0 | F44: 0 | G44: 0 | H44: 0 | I44: =G44-H44 -> 0 | J44: =IF(I44=0,"",I44/H44) ->  | K44: 0
A45: ='Org structure'!E41 -> 06.2 - Technical Services Admin | C45: 0 | D45: 0 | E45: 0 | F45: 0 | G45: 0 | H45: 0 | I45: 0 | K45: 0
A46: ='Org structure'!E42 -> 06.3 - Techn Serv-Roads: Admin | C46: 0 | D46: 0 | E46: 0 | F46: 0 | G46: 0 | H46: 0 | I46: 0 | K46: 0
A47: ='Org structure'!E43 -> 06.4 - Techn Serv-Stormwater: Admin | C47: 0 | D47: 0 | E47: 2000000 | F47: 0 | G47: 557290 | H47: 2000000 | I47: -1442710 | J47: -0.721355 | K47: 2000000
A48: ='Org structure'!E44 -> 06.5 - Project Management Unit | C48: 35482717.56 | D48: 37000000 | E48: 37000000 | F48: 13084925.55 | G48: 36753519.47 | H48: 37000000 | I48: -246480.53 | J48: -0.006661635946 | K48: 37000000
A49: ='Org structure'!E45 -> 06.6 - Electrical & Machinery | C49: 19907231.84 | D49: 22300209 | E49: 22300209 | F49: 4280665.1 | G49: 15077489.88 | H49: 22300209 | I49: -7222719.12 | J49: -0.3238857143 | K49: 22300209
A50: ='Org structure'!E46 -> 06.7 - Water | C50: 328420.18 | D50: 438143 | E50: 438143 | F50: 100166.57 | G50: 1342984.77 | H50: 438143 | I50: 904841.77 | J50: 2.065174543 | K50: 438143
A51: ='Org structure'!E47 -> 06.8 - Sanitation | C51: 519063.53 | D51: 283566 | E51: 283566 | F51: 93130.65 | G51: 1098579.92 | H51: 283566 | I51: 815013.92 | J51: 2.874159525 | K51: 283566
A52: ='Org structure'!A8 -> Vote 07 - | C52: 0 | D52: 0 | E52: 0 | F52: 0 | G52: 0 | H52: 0 | I52: =G52-H52 -> 0 | J52: =IF(I52=0,"",I52/H52) ->  | K52: 0
A53: ='Org structure'!A9 -> Vote 08 - | C53: 0 | D53: 0 | E53: 0 | F53: 0 | G53: 0 | H53: 0 | I53: 0 | K53: 0
A54: ='Org structure'!A10 -> Vote 09 - | C54: 0 | D54: 0 | E54: 0 | F54: 0 | G54: 0 | H54: 0 | I54: 0 | K54: 0
A55: ='Org structure'!A11 -> Vote 10 - | C55: 0 | D55: 0 | E55: 0 | F55: 0 | G55: 0 | H55: 0 | I55: 0 | K55: 0
A56: ='Org structure'!A12 -> Vote 11 - | C56: 0 | D56: 0 | E56: 0 | F56: 0 | G56: 0 | H56: 0 | I56: 0 | K56: 0
A57: ='Org structure'!A13 -> Vote 12 - | C57: 0 | D57: 0 | E57: 0 | F57: 0 | G57: 0 | H57: 0 | I57: 0 | K57: 0
A58: ='Org structure'!A14 -> Vote 13 - | C58: 0 | D58: 0 | E58: 0 | F58: 0 | G58: 0 | H58: 0 | I58: =G58-H58 -> 0 | J58: =IF(I58=0,"",I58/H58) ->  | K58: 0
A59: ='Org structure'!A15 -> Vote 14 - | C59: 0 | D59: 0 | E59: 0 | F59: 0 | G59: 0 | H59: 0 | I59: 0 | K59: 0
A60: ='Org structure'!A16 -> Vote 15 - Other | C60: 0 | D60: 0 | E60: 0 | F60: 0 | G60: 0 | H60: 0 | I60: 0 | K60: 0
A61: Total Revenue by Vote | B61: 2 | C61: =C6+C15+C21+C27+C35+C43+C52+C53+C54+C55+C56+C57+C58+C59+C60 -> 302540482.2 | D61: 313322058 | E61: 293428481 | F61: 23472351.14 | G61: 264401713.2 | H61: 293428481 | I61: -29026767.75 | J61: -0.09892280276 | K61: =K6+K15+K21+K27+K35+K43+K52+K53+K54+K55+K56+K57+K58+K59+K60 -> 293428481
I62: 0
A63: Expenditure by Vote | B63: 1 | I63: 0
A64: ='Org structure'!A2 -> Vote 01 - Corporate Services | C64: =SUM(C65:C72) -> 53987525.21 | D64: 61955753 | E64: 54684980 | F64: 5925165.66 | G64: 50358671.79 | H64: 54684980 | I64: -4326308.21 | J64: -0.07911328138 | K64: =SUM(K65:K72) -> 54684980
A65: ='Org structure'!E3 -> 01.1 - Corporate Services Admin | C65: 27111648.32 | D65: 28759358 | E65: 25156863 | F65: 1941211.03 | G65: 23800038.71 | H65: 25156863 | I65: =G65-H65 -> -1356824.29 | J65: =IF(I65=0,"",I65/H65) -> -0.05393455814 | K65: 25156863
A66: ='Org structure'!E4 -> 01.2 - Human Resources | C66: 6525399.55 | D66: 7258307 | E66: 7135957 | F66: 442080.91 | G66: 6463258.89 | H66: 7135957 | I66: -672698.11 | J66: -0.09426880095 | K66: 7135957
A67: ='Org structure'!E5 -> 01.3 - Information Technology Services | C67: 6373679 | D67: 7873604 | E67: 7128547 | F67: 835990.05 | G67: 5689992.16 | H67: 7128547 | I67: -1438554.84 | J67: -0.2018019717 | K67: 7128547
A68: ='Org structure'!E6 -> 01.4 - Council Support | C68: 6629851.77 | D68: 7871935 | E68: 6474508 | F68: 970706 | G68: 5551308.08 | H68: 6474508 | I68: -923199.92 | J68: -0.1425899729 | K68: 6474508
A69: ='Org structure'!E7 -> 01.5 - Local Economic Development | C69: 2212283.26 | D69: 3665439 | E69: 3585158 | F69: 255409.67 | G69: 4218620.26 | H69: 3585158 | I69: 633462.26 | J69: 0.1766901933 | K69: 3585158
A70: ='Org structure'!E8 -> 01.6 - Municipal Planning Idp | C70: 3205750.49 | D70: 3951503 | E70: 2804819 | F70: 1269375.8 | G70: 2688724.41 | H70: 2804819 | I70: -116094.59 | J70: -0.0413911165 | K70: 2804819
A71: ='Org structure'!E9 -> 01.7 - Town & Regional Planning | C71: 1928912.82 | D71: 2158607 | E71: 2156458 | F71: 210392.2 | G71: 1946729.28 | H71: 2156458 | I71: -209728.72 | J71: -0.09725611164 | K71: 2156458
A72: ='Org structure'!E10 -> 01.8 - Led Administration | C72: 0 | D72: 417000 | E72: 242670 | F72: 0 | G72: 0 | H72: 242670 | I72: -242670 | J72: -1 | K72: 242670
A73: ='Org structure'!A3 -> Vote 02 - Municipal Manager | C73: =SUM(C74:C78) -> 24374848.35 | D73: 24063816 | E73: 21817008 | F73: 1020393.52 | G73: 18632348.31 | H73: 21817008 | I73: -3184659.69 | J73: -0.1459714224 | K73: =SUM(K74:K78) -> 21817008
A74: ='Org structure'!E12 -> 02.1 - Municipal Manager Admin | C74: 11590845.54 | D74: 7315303 | E74: 6117923 | F74: 545705.49 | G74: 5646262.47 | H74: 6117923 | I74: =G74-H74 -> -471660.53 | J74: =IF(I74=0,"",I74/H74) -> -0.07709487844 | K74: 6117923
A75: ='Org structure'!E13 -> 02.2 - Legal Services | C75: 2156226.17 | D75: 3015679 | E75: 2995679 | F75: 53213.62 | G75: 2538539.15 | H75: 2995679 | I75: =G75-H75 -> -457139.85 | J75: =IF(I75=0,"",I75/H75) -> -0.1525997445 | K75: 2995679
A76: ='Org structure'!E14 -> 02.3 - Political Office Beares | C76: 1514114.78 | D76: 2347610 | E76: 2160109 | F76: 85906.34 | G76: 1780447.39 | H76: 2160109 | I76: =G76-H76 -> -379661.61 | J76: =IF(I76=0,"",I76/H76) -> -0.1757603945 | K76: 2160109
A77: ='Org structure'!E15 -> 02.4 - Pms | C77: 1983020.3 | D77: 2602463 | E77: 2361912 | F77: 98777.35 | G77: 1897638.76 | H77: 2361912 | I77: =G77-H77 -> -464273.24 | J77: =IF(I77=0,"",I77/H77) -> -0.1965666968 | K77: 2361912
A78: ='Org structure'!E16 -> 02.5 - Internal Audit | C78: 7130641.56 | D78: 8782761 | E78: 8181385 | F78: 236790.72 | G78: 6769460.54 | H78: 8181385 | I78: =G78-H78 -> -1411924.46 | J78: =IF(I78=0,"",I78/H78) -> -0.1725776821 | K78: 8181385
A79: ='Org structure'!A4 -> Vote 03 - Mayors Office | C79: =SUM(C80:C84) -> 16496856.64 | D79: 19016432 | E79: 17296258 | F79: 1189315.27 | G79: 15947348.43 | H79: 17296258 | I79: -1348909.57 | J79: -0.07798852041 | K79: =SUM(K80:K84) -> 17296258
A80: ='Org structure'!E18 -> 03.1 - Mayors Office Admin | C80: 2658816.82 | D80: 4620808 | E80: 3570314 | F80: 164195.03 | G80: 2742425.75 | H80: 3570314 | I80: =G80-H80 -> -827888.25 | J80: =IF(I80=0,"",I80/H80) -> -0.2318810754 | K80: 3570314
A81: ='Org structure'!E19 -> 03.2 - Office Of The Speaker | C81: 856695.29 | D81: 1248305 | E81: 1252854 | F81: 29496.16 | G81: 377889.11 | H81: 1252854 | I81: =G81-H81 -> -874964.89 | J81: =IF(I81=0,"",I81/H81) -> -0.6983773768 | K81: 1252854
A82: ='Org structure'!E20 -> 03.3 - Office Of The Chief Whip | C82: 996374.36 | D82: 855148 | E82: 855148 | F82: 101394.26 | G82: 1267740.65 | H82: 855148 | I82: =G82-H82 -> 412592.65 | J82: =IF(I82=0,"",I82/H82) -> 0.4824809857 | K82: 855148
A83: ='Org structure'!E21 -> 03.4 - Exco Members | C83: 3167080.79 | D83: 3484399 | E83: 2892351 | F83: 279276.13 | G83: 3031088 | H83: 2892351 | I83: =G83-H83 -> 138737 | J83: =IF(I83=0,"",I83/H83) -> 0.04796686156 | K83: 2892351
A84: ='Org structure'!E22 -> 03.5 - Council General Administration | C84: 8817889.38 | D84: 8807772 | E84: 8725591 | F84: 614953.69 | G84: 8528204.92 | H84: 8725591 | I84: =G84-H84 -> -197386.08 | J84: =IF(I84=0,"",I84/H84) -> -0.02262151412 | K84: 8725591
A85: ='Org structure'!A5 -> Vote 04 - Budget And Treasury | C85: =SUM(C86:C92) -> 38992258.39 | D85: 41597622 | E85: 34031358 | F85: 2982251.03 | G85: 27315071.54 | H85: 34031358 | I85: =G85-H85 -> -6716286.46 | J85: =IF(I85=0,"",I85/H85) -> -0.1973558169 | K85: =SUM(K86:K92) -> 34031358
A86: ='Org structure'!E24 -> 04.1 - Budget And Treasury Admin | C86: 7539135.16 | D86: 11241277 | E86: 9858661 | F86: 1063703.87 | G86: 7595803.81 | H86: 9858661 | I86: =G86-H86 -> -2262857.19 | J86: =IF(I86=0,"",I86/H86) -> -0.2295298712 | K86: 9858661
A87: ='Org structure'!E25 -> 04.2 - Chief Financial Officer Admin | C87: 101700.14 | D87: 13713 | E87: 13713 | F87: 239.82 | G87: 3424.15 | H87: 13713 | I87: -10288.85 | J87: -0.7502989864 | K87: 13713
A88: ='Org structure'!E26 -> 04.3 - Budget & Reporting | C88: 0 | D88: 0 | E88: 0 | F88: 0 | G88: 0 | H88: 0 | I88: 0 | K88: 0
A89: ='Org structure'!E27 -> 04.4 - Budget & Reporting | C89: 1916674.29 | D89: 3129713 | E89: 3189149 | F89: 142663.33 | G89: 2351239.21 | H89: 3189149 | I89: -837909.79 | J89: -0.2627377366 | K89: 3189149
A90: ='Org structure'!E28 -> 04.5 - Revenue Management | C90: 21376770.7 | D90: 17867511 | E90: 12455362 | F90: 1539342.35 | G90: 8891124.3 | H90: 12455362 | I90: -3564237.7 | J90: -0.286160908 | K90: 12455362
A91: ='Org structure'!E29 -> 04.6 - Supply Chain Management | C91: 4274773.37 | D91: 5074045 | E91: 4358259 | F91: 297596.09 | G91: 4666433.23 | H91: 4358259 | I91: 308174.23 | J91: 0.07071039835 | K91: 4358259
A92: ='Org structure'!E30 -> 04.7 - Expenditure | C92: 3783204.73 | D92: 4271363 | E92: 4156214 | F92: -61294.43 | G92: 3807046.84 | H92: 4156214 | I92: -349167.16 | J92: -0.08401087143 | K92: 4156214
A93: ='Org structure'!A6 -> Vote 05 - Community Services | C93: =SUM(C94:C100) -> 31835099.23 | D93: 33915429 | E93: 32962235 | F93: 2584737.07 | G93: 31401934.12 | H93: 32962235 | I93: -1560300.88 | J93: -0.0473360159 | K93: =SUM(K94:K100) -> 32962235
A94: ='Org structure'!E32 -> 05.1 - Community Services Admin | C94: 3561387.56 | D94: 4549410 | E94: 4380224 | F94: 242953.09 | G94: 4088818.23 | H94: 4380224 | I94: =G94-H94 -> -291405.77 | J94: =IF(I94=0,"",I94/H94) -> -0.06652759539 | K94: 4380224
A95: ='Org structure'!E33 -> 05.2 - Libraries | C95: 524444.05 | D95: 1248680 | E95: 940376 | F95: 69837.85 | G95: 520112.36 | H95: 940376 | I95: -420263.64 | J95: -0.4469102146 | K95: 940376
A96: ='Org structure'!E34 -> 05.3 - Sports Recreation & Social Amenitie | C96: 3853917.1 | D96: 3332043 | E96: 3097515 | F96: 434347.35 | G96: 3685459.82 | H96: 3097515 | I96: 587944.82 | J96: 0.1898117749 | K96: 3097515
A97: ='Org structure'!E35 -> 05.4 - Traffic Service | C97: 0 | D97: 0 | E97: 0 | F97: 0 | G97: 0 | H97: 0 | I97: 0 | K97: 0
A98: ='Org structure'!E36 -> 05.5 - Traffic Service | C98: 16200438.64 | D98: 15600488 | E98: 15600488 | F98: 1215656.3 | G98: 15353428.8 | H98: 15600488 | I98: -247059.2 | J98: -0.0158366328 | K98: 15600488
A99: ='Org structure'!E37 -> 05.6 - Parks; Cemeteries | C99: 1242347.81 | D99: 1471894 | E99: 1474594 | F99: 150605.33 | G99: 1329385.8 | H99: 1474594 | I99: -145208.2 | J99: -0.09847334249 | K99: 1474594
A100: ='Org structure'!E38 -> 05.7 - Refuse | C100: 6452564.07 | D100: 7712914 | E100: 7469038 | F100: 471337.15 | G100: 6424729.11 | H100: 7469038 | I100: -1044308.89 | J100: -0.1398183929 | K100: 7469038
A101: ='Org structure'!A7 -> Vote 06 - Technical Services | C101: =SUM(C102:C109) -> 55387315.29 | D101: 67379573 | E101: 67947842 | F101: 5959102.47 | G101: 67338515.49 | H101: 67947842 | I101: -609326.51 | J101: -0.008967562355 | K101: =SUM(K102:K109) -> 67947842
A102: ='Org structure'!E40 -> 06.1 - Mpac | C102: 0 | D102: 1310385 | E102: 1310385 | F102: 0 | G102: 0 | H102: 1310385 | I102: =G102-H102 -> -1310385 | J102: =IF(I102=0,"",I102/H102) -> -1 | K102: 1310385
A103: ='Org structure'!E41 -> 06.2 - Technical Services Admin | C103: 155566.97 | D103: 144869 | E103: 144869 | F103: 865.62 | G103: 104111.5 | H103: 144869 | I103: -40757.5 | J103: -0.2813403834 | K103: 144869
A104: ='Org structure'!E42 -> 06.3 - Techn Serv-Roads: Admin | C104: 2171519.32 | D104: 3608492 | E104: 3389853 | F104: 349583.06 | G104: 3601783.7 | H104: 3389853 | I104: 211930.7 | J104: 0.06251914169 | K104: 3389853
A105: ='Org structure'!E43 -> 06.4 - Techn Serv-Stormwater: Admin | C105: 20886516.6 | D105: 25850796 | E105: 24624188 | F105: 2015238.16 | G105: 26349402.87 | H105: 24624188 | I105: 1725214.87 | J105: 0.07006179737 | K105: 24624188
A106: ='Org structure'!E44 -> 06.5 - Project Management Unit | C106: 1703501.88 | D106: 1638474 | E106: 1733767 | F106: 150220.57 | G106: 2132024.56 | H106: 1733767 | I106: 398257.56 | J106: 0.2297065061 | K106: 1733767
A107: ='Org structure'!E45 -> 06.6 - Electrical & Machinery | C107: 21189788.03 | D107: 23787667 | E107: 26287667 | F107: 2272998.94 | G107: 24795225.08 | H107: 26287667 | I107: -1492441.92 | J107: -0.05677346415 | K107: 26287667
A108: ='Org structure'!E46 -> 06.7 - Water | C108: 6378865.08 | D108: 8083668 | E108: 7811892 | F108: 981794.22 | G108: 7439655.28 | H108: 7811892 | I108: -372236.72 | J108: -0.04765000847 | K108: 7811892
A109: ='Org structure'!E47 -> 06.8 - Sanitation | C109: 2901557.41 | D109: 2955222 | E109: 2645221 | F109: 188401.9 | G109: 2916312.5 | H109: 2645221 | I109: 271091.5 | J109: 0.1024834976 | K109: 2645221
A110: ='Org structure'!A8 -> Vote 07 - | C110: 0 | D110: 0 | E110: 0 | F110: 0 | G110: 0 | H110: 0 | I110: 0 | K110: 0
A111: ='Org structure'!A9 -> Vote 08 - | C111: 0 | D111: 0 | E111: 0 | F111: 0 | G111: 0 | H111: 0 | I111: 0 | K111: 0
A112: ='Org structure'!A10 -> Vote 09 - | C112: 0 | D112: 0 | E112: 0 | F112: 0 | G112: 0 | H112: 0 | I112: =G112-H112 -> 0 | J112: =IF(I112=0,"",I112/H112) ->  | K112: 0
A113: ='Org structure'!A11 -> Vote 10 - | C113: 0 | D113: 0 | E113: 0 | F113: 0 | G113: 0 | H113: 0 | I113: 0 | K113: 0
A114: ='Org structure'!A12 -> Vote 11 - | C114: 0 | D114: 0 | E114: 0 | F114: 0 | G114: 0 | H114: 0 | I114: 0 | K114: 0
A115: ='Org structure'!A13 -> Vote 12 - | C115: 0 | D115: 0 | E115: 0 | F115: 0 | G115: 0 | H115: 0 | I115: 0 | K115: 0
A116: ='Org structure'!A14 -> Vote 13 - | C116: 0 | D116: 0 | E116: 0 | F116: 0 | G116: 0 | H116: 0 | I116: 0 | K116: 0
A117: ='Org structure'!A15 -> Vote 14 - | C117: 0 | D117: 0 | E117: 0 | F117: 0 | G117: 0 | H117: 0 | I117: 0 | K117: 0
A118: ='Org structure'!A16 -> Vote 15 - Other | C118: 0 | D118: 0 | E118: 0 | F118: 0 | G118: 0 | H118: 0 | I118: =G118-H118 -> 0 | J118: =IF(I118=0,"",I118/H118) ->  | K118: 0
A119: Total Expenditure by Vote | B119: 2 | C119: =C64+C73+C79+C85+C93+C101+C110+C111+C112+C113+C114+C115+C116+C117+C118 -> 221073903.1 | D119: 247928625 | E119: 228739681 | F119: 19660965.02 | G119: 210993889.7 | H119: 228739681 | I119: -17745791.32 | J119: -0.07758072951 | K119: =K64+K73+K79+K85+K93+K101+K110+K111+K112+K113+K114+K115+K116+K117+K118 -> 228739681
I120: 0 | L120: =#REF!-#REF! ->  | M120: =#REF!-#REF! ->  | N120: =#REF!-#REF! ->  | O120: =#REF!-#REF! ->  | P120: =#REF!-#REF! ->  | Q120: =#REF!-#REF! ->  | R120: =#REF!-#REF! ->  | S120: =#REF!-#REF! ->  | T120: =#REF!-#REF! ->  | U120: =#REF!-#REF! ->  | V120: =#REF!-#REF! ->  | W120: =#REF!-#REF! -> 
A121: =result -> Surplus/ (Deficit) for the year | B121: 2 | C121: =C61-C119 -> 81466579.14 | D121: 65393433 | E121: 64688800 | F121: 3811386.12 | G121: 53407823.57 | H121: 64688800 | I121: -11280976.43 | J121: -0.1743884015 | K121: =K61-K119 -> 64688800
A122: =head27a -> References
A123: 1. Insert 'Vote'; e.g. Department, if different to standard structure
A124: 2. Must reconcile to Financial Performance ('Revenue and Expenditure by Standard Classification' and 'Revenue and Expenditure')
A125: 3. Assign share in 'associate' to relevant Vote
A127: check revenue
A128: check expenditure

Sheet C4-FinPerf RE
A1: =muni& " - "&S71B& " - "&date -> LIM353 Molemole - Table C4 Monthly Budget Statement - Financial Performance (revenue and expenditure) - Q4 Fourth Quarter
A2: =desc -> Description | B2: =head27 -> Ref | C2: =Head1 -> 2020/21 | D2: =Head2 -> Budget Year 2021/22
C3: =Head5 -> Audited Outcome | D3: =Head6 -> Original Budget | E3: =Head7 -> Adjusted Budget | F3: =Head38 -> Monthly actual | G3: =Head39 -> YearTD actual | H3: =Head40 -> YearTD budget | I3: =Head41 -> YTD variance | J3: =Head41 -> YTD variance | K3: =Head8 -> Full Year Forecast
A4: R thousands | J4: %
A5: Revenue By Source
A6: Property rates | C6: 49558002.71 | D6: 51482069 | E6: 39609853 | F6: 2548478.69 | G6: 30599233.83 | H6: 39609853 | I6: =G6-H6 -> -9010619.17 | J6: =IF(I6=0,"",I6/H6) -> -0.2274842871 | K6: 39609853
A7: Service charges - electricity revenue | C7: 8433035.23 | D7: 11711304 | E7: 11711304 | F7: 586072.85 | G7: 7580863.91 | H7: 11711304 | I7: -4130440.09 | J7: -0.3526883163 | K7: 11711304
A8: Service charges - water revenue | C8: 0 | D8: 0 | E8: 0 | F8: -1493.8 | G8: -29415.5 | H8: 0 | I8: -29415.5 | K8: 0
A9: Service charges - sanitation revenue | C9: 0 | D9: 0 | E9: 0 | F9: -332.4 | G9: -1994.4 | H9: 0 | I9: -1994.4 | K9: 0
A10: Service charges - refuse revenue | C10: 2628852.44 | D10: 2484576 | E10: 2484576 | F10: 228226.71 | G10: 2742344.54 | H10: 2484576 | I10: 257768.54 | J10: 0.1037474966 | K10: 2484576
A12: Rental of facilities and equipment | C12: 214680.5 | D12: 253998 | E12: 253998 | F12: 18226.62 | G12: 218130.57 | H12: 253998 | I12: -35867.43 | J12: -0.1412114662 | K12: 253998
A13: Interest earned - external investments | C13: 2543772.73 | D13: 2708206 | E13: 2708206 | F13: 541610.79 | G13: 4693415.06 | H13: 2708206 | I13: 1985209.06 | J13: 0.7330347322 | K13: 2708206
A14: Interest earned - outstanding debtors | C14: 1342317.05 | D14: 1515294 | E14: 1515294 | F14: 122182.46 | G14: 1492844.68 | H14: 1515294 | I14: -22449.32 | J14: -0.01481515798 | K14: 1515294
A15: Dividends received | C15: 0 | D15: 0 | E15: 0 | F15: 0 | G15: 0 | H15: 0 | I15: 0 | K15: 0
A16: Fines, penalties and forfeits | C16: 493491.44 | D16: 1338690 | E16: 1338690 | F16: 10950 | G16: 62020.87 | H16: 1338690 | I16: -1276669.13 | J16: -0.9536704764 | K16: 1338690
A17: Licences and permits | C17: 4890683.84 | D17: 7686174 | E17: 7686174 | F17: 1475741.13 | G17: 11451378.94 | H17: 7686174 | I17: 3765204.94 | J17: 0.4898672525 | K17: 7686174
A18: Agency services | C18: 919463.97 | D18: 721709 | E18: 721709 | F18: 195123.42 | G18: 2472974.59 | H18: 721709 | I18: 1751265.59 | J18: 2.426553625 | K18: 721709
A19: Transfers and subsidies | C19: 185288433.8 | D19: 161092000 | E19: 162092000 | F19: 1338000.01 | G19: 160032628.6 | H19: 162092000 | I19: -2059371.45 | J19: -0.01270495429 | K19: 162092000
A20: Other revenue | C20: -46995.76 | D20: 27178038 | E20: 17156677 | F20: 3831.44 | G20: 267316.91 | H20: 17156677 | I20: -16889360.09 | J20: -0.9844190743 | K20: 17156677
A21: Gains | C21: 12150 | D21: 0 | E21: 0 | F21: 12550 | G21: 12550 | H21: 0 | I21: 12550 | K21: 0
A22: Total Revenue (excluding capital transfers and contributions) | C22: =SUM(C6:C10)+SUM(C12:C21) -> 256277888 | D22: 268172058 | E22: 247278481 | F22: 7079167.92 | G22: 221594292.6 | H22: 247278481 | I22: -25684188.45 | J22: -0.1038674629 | K22: =SUM(K6:K10)+SUM(K12:K21) -> 247278481
A24: Expenditure By Type
A25: Employee related costs | C25: 91655492.25 | D25: 105732276 | E25: 98229953 | F25: 7838091.05 | G25: 93183462.74 | H25: 98229953 | I25: =G25-H25 -> -5046490.26 | J25: =IF(I25=0,"",I25/H25) -> -0.05137425099 | K25: 98229953
A26: Remuneration of councillors | C26: 12930254.27 | D26: 15010262 | E26: 14347013 | F26: 1047113.58 | G26: 12668748.99 | H26: 14347013 | I26: -1678264.01 | J26: -0.1169765449 | K26: 14347013
A27: Debt impairment | C27: 8871388.24 | D27: 6337664 | E27: 2337664 | F27: 274547.82 | G27: 578663.55 | H27: 2337664 | I27: -1759000.45 | J27: -0.7524607685 | K27: 2337664
A28: Depreciation & asset impairment | C28: 12114558.47 | D28: 18994790 | E28: 18994790 | F28: 1373290.95 | G28: 20879201.26 | H28: 18994790 | I28: 1884411.26 | J28: 0.09920674353 | K28: 18994790
A29: Finance charges | C29: 183629.4 | D29: 1055833 | E29: 111490 | F29: 1426.59 | G29: 4165.81 | H29: 111490 | I29: -107324.19 | J29: -0.9626351242 | K29: 111490
A30: Bulk purchases - electricity | C30: 11026472.76 | D30: 11468179 | E30: 13468179 | F30: 1231080.88 | G30: 13194394.87 | H30: 13468179 | I30: -273784.13 | J30: -0.0203282218 | K30: 13468179
A31: Inventory consumed | C31: 3920351.58 | D31: 6589473 | E31: 6211473 | F31: 612558.05 | G31: 6466006.85 | H31: 6211473 | I31: 254533.85 | J31: 0.04097801761 | K31: 6211473
A32: Contracted services | C32: 39119436.44 | D32: 43843741 | E32: 40381213 | F32: 4541377.19 | G32: 34672796.25 | H32: 40381213 | I32: -5708416.75 | J32: -0.1413631817 | K32: 40381213
A33: Transfers and subsidies | C33: 0 | D33: 0 | E33: 0 | F33: 0 | G33: 0 | H33: 0 | I33: 0 | K33: 0
A34: Other expenditure | C34: 34166105.41 | D34: 38896407 | E34: 34657906 | F34: 2741478.91 | G34: 29346449.36 | H34: 34657906 | I34: -5311456.64 | J34: -0.1532538244 | K34: 34657906
A35: Losses | C35: 7086214.29 | D35: 0 | E35: 0 | F35: 0 | G35: 0 | H35: 0 | I35: 0 | K35: 0
A36: Total Expenditure | C36: =SUM(C25:C35) -> 221073903.1 | D36: =SUM(D25:D35) -> 247928625 | E36: =SUM(E25:E35) -> 228739681 | F36: 19660965.02 | G36: 210993889.7 | H36: 228739681 | I36: -17745791.32 | J36: -0.07758072951 | K36: 228739681
A38: Surplus/(Deficit) | C38: =C22-C36 -> 35203984.89 | D38: 20243433 | E38: 18538800 | F38: -12581797.1 | G38: 10600402.87 | H38: 18538800 | I38: =I22-I36 -> -7938397.13 | J38: -0.4282044755 | K38: =K22-K36 -> 18538800
A39: Transfers and subsidies - capital (monetary allocations) (National / Provincial and District) | C39: 45027638.97 | D39: 45150000 | E39: 46150000 | F39: 16393183.22 | G39: 42807420.7 | H39: 46150000 | I39: =G39-H39 -> -3342579.3 | J39: -0.07242858722 | K39: 46150000
A40: Transfers and subsidies - capital (monetary allocations) (National / Provincial Departmental Agencies, Households, Non-profit Institutions, Private Enterprises, Public Corporatons, Higher Educational Institutions) | I40: =G40-H40 -> 0
A41: Transfers and subsidies - capital (in-kind - all) | C41: 1234955.28 | D41: 0 | E41: 0 | F41: 0 | G41: 0 | H41: 0 | I41: =G41-H41 -> 0 | K41: 0
A42: Surplus/(Deficit) after capital transfers & contributions | C42: =C38+SUM(C39:C41) -> 81466579.14 | D42: 65393433 | E42: 64688800 | F42: 3811386.12 | G42: 53407823.57 | H42: 64688800 | K42: =K38+SUM(K39:K41) -> 64688800
A43: Taxation | I43: =G43-H43 -> 0 | J43: =IF(I43=0,"",I43/H43) -> 
A44: Surplus/(Deficit) after taxation | C44: =C42-C43 -> 81466579.14 | D44: 65393433 | E44: 64688800 | F44: 3811386.12 | G44: 53407823.57 | H44: 64688800 | K44: =K42-K43 -> 64688800
A45: Attributable to minorities
A46: Surplus/(Deficit) attributable to municipality | C46: =SUM(C44:C45) -> 81466579.14 | D46: 65393433 | E46: 64688800 | F46: 3811386.12 | G46: 53407823.57 | H46: 64688800 | K46: =SUM(K44:K45) -> 64688800
A47: Share of surplus/ (deficit) of associate
A48: Surplus/ (Deficit) for the year | C48: =C46+C47 -> 81466579.14 | D48: 65393433 | E48: 64688800 | F48: 3811386.12 | G48: 53407823.57 | H48: 64688800 | K48: =K46+K47 -> 64688800
A49: =head27a -> References
A50: 1. Material variances to be explained on Table SC1
A53: =A22&" including capital transfers/contributions etc" -> Total Revenue (excluding capital transfers and contributions) including capital transfers/contributions etc | C53: =C22+SUM(C39:C41) -> 302540482.2 | D53: 313322058 | E53: 293428481 | F53: 23472351.14 | G53: 264401713.2 | H53: 293428481 | K53: =K22+SUM(K39:K41) -> 293428481

Sheet C5-Capex
A1: =muni& " - "&S71D& " - "&date -> LIM353 Molemole - Table C5 Monthly Budget Statement - Capital Expenditure (municipal vote, functional classification and funding) - Q4 Fourth Quarter
A2: =Vdesc -> Vote Description | B2: =head27 -> Ref | C2: =Head1 -> 2020/21 | D2: =Head2 -> Budget Year 2021/22
C3: =Head5 -> Audited Outcome | D3: =Head6 -> Original Budget | E3: =Head7 -> Adjusted Budget | F3: =Head38 -> Monthly actual | G3: =Head39 -> YearTD actual | H3: =Head40 -> YearTD budget | I3: =Head41 -> YTD variance | J3: =Head41 -> YTD variance | K3: =Head8 -> Full Year Forecast
A4: R thousands | B4: 1 | J4: %
A5: Multi-Year expenditure appropriation | B5: 2
A6: ='Org structure'!A2 -> Vote 01 - Corporate Services | C6: ='C5C'!C7 -> 4660939.51 | D6: ='C5C'!D7 -> 4286000 | E6: ='C5C'!E7 -> 4241456 | F6: ='C5C'!F7 -> 880.47 | G6: ='C5C'!G7 -> 1804264.61 | H6: ='C5C'!H7 -> 4241456 | I6: =G6-H6 -> -2437191.39 | J6: =IF(I6=0,"",I6/H6) -> -0.5746119705 | K6: ='C5C'!K7 -> 4241456
A7: ='Org structure'!A3 -> Vote 02 - Municipal Manager | C7: ='C5C'!C16 -> 136993.77 | D7: ='C5C'!D16 -> 100000 | E7: ='C5C'!E16 -> 90000 | F7: ='C5C'!F16 -> 0 | G7: ='C5C'!G16 -> 65640 | H7: ='C5C'!H16 -> 90000 | I7: -24360 | J7: -0.2706666667 | K7: ='C5C'!K16 -> 90000
A8: ='Org structure'!A4 -> Vote 03 - Mayors Office | C8: ='C5C'!C22 -> 0 | D8: ='C5C'!D22 -> 0 | E8: ='C5C'!E22 -> 0 | F8: ='C5C'!F22 -> 0 | G8: ='C5C'!G22 -> 0 | H8: ='C5C'!H22 -> 0 | I8: 0 | K8: ='C5C'!K22 -> 0
A9: ='Org structure'!A5 -> Vote 04 - Budget And Treasury | C9: ='C5C'!C28 -> 0 | D9: ='C5C'!D28 -> 300000 | E9: ='C5C'!E28 -> 300000 | F9: ='C5C'!F28 -> 0 | G9: ='C5C'!G28 -> 0 | H9: ='C5C'!H28 -> 300000 | I9: -300000 | J9: -1 | K9: ='C5C'!K28 -> 300000
A10: ='Org structure'!A6 -> Vote 05 - Community Services | C10: ='C5C'!C36 -> 1156205.28 | D10: ='C5C'!D36 -> 1010000 | E10: ='C5C'!E36 -> 1010000 | F10: ='C5C'!F36 -> 0 | G10: ='C5C'!G36 -> 763043.48 | H10: ='C5C'!H36 -> 1010000 | I10: -246956.52 | J10: -0.2445114059 | K10: ='C5C'!K36 -> 1010000
A11: ='Org structure'!A7 -> Vote 06 - Technical Services | C11: ='C5C'!C44 -> 44102368.51 | D11: ='C5C'!D44 -> 59697793 | E11: ='C5C'!E44 -> 59047351 | F11: ='C5C'!F44 -> 9729477.16 | G11: ='C5C'!G44 -> 44094693.42 | H11: ='C5C'!H44 -> 59047351 | I11: -14952657.58 | J11: -0.2532316408 | K11: ='C5C'!K44 -> 59047351
A12: ='Org structure'!A8 -> Vote 07 - | C12: ='C5C'!C53 -> 0 | D12: ='C5C'!D53 -> 0 | E12: ='C5C'!E53 -> 0 | F12: ='C5C'!F53 -> 0 | G12: ='C5C'!G53 -> 0 | H12: ='C5C'!H53 -> 0 | I12: =G12-H12 -> 0 | J12: =IF(I12=0,"",I12/H12) ->  | K12: ='C5C'!K53 -> 0
A13: ='Org structure'!A9 -> Vote 08 - | C13: ='C5C'!C54 -> 0 | D13: ='C5C'!D54 -> 0 | E13: ='C5C'!E54 -> 0 | F13: ='C5C'!F54 -> 0 | G13: ='C5C'!G54 -> 0 | H13: ='C5C'!H54 -> 0 | I13: 0 | K13: ='C5C'!K54 -> 0
A14: ='Org structure'!A10 -> Vote 09 - | C14: ='C5C'!C55 -> 0 | D14: ='C5C'!D55 -> 0 | E14: ='C5C'!E55 -> 0 | F14: ='C5C'!F55 -> 0 | G14: ='C5C'!G55 -> 0 | H14: ='C5C'!H55 -> 0 | I14: 0 | K14: ='C5C'!K55 -> 0
A15: ='Org structure'!A11 -> Vote 10 - | C15: ='C5C'!C56 -> 0 | D15: ='C5C'!D56 -> 0 | E15: ='C5C'!E56 -> 0 | F15: ='C5C'!F56 -> 0 | G15: ='C5C'!G56 -> 0 | H15: ='C5C'!H56 -> 0 | I15: 0 | K15: ='C5C'!K56 -> 0
A16: ='Org structure'!A12 -> Vote 11 - | C16: ='C5C'!C57 -> 0 | D16: ='C5C'!D57 -> 0 | E16: ='C5C'!E57 -> 0 | F16: ='C5C'!F57 -> 0 | G16: ='C5C'!G57 -> 0 | H16: ='C5C'!H57 -> 0 | I16: 0 | K16: ='C5C'!K57 -> 0
A17: ='Org structure'!A13 -> Vote 12 - | C17: ='C5C'!C58 -> 0 | D17: ='C5C'!D58 -> 0 | E17: ='C5C'!E58 -> 0 | F17: ='C5C'!F58 -> 0 | G17: ='C5C'!G58 -> 0 | H17: ='C5C'!H58 -> 0 | I17: 0 | K17: ='C5C'!K58 -> 0
A18: ='Org structure'!A14 -> Vote 13 - | C18: ='C5C'!C59 -> 0 | D18: ='C5C'!D59 -> 0 | E18: ='C5C'!E59 -> 0 | F18: ='C5C'!F59 -> 0 | G18: ='C5C'!G59 -> 0 | H18: ='C5C'!H59 -> 0 | I18: =G18-H18 -> 0 | J18: =IF(I18=0,"",I18/H18) ->  | K18: ='C5C'!K59 -> 0
A19: ='Org structure'!A15 -> Vote 14 - | C19: ='C5C'!C60 -> 0 | D19: ='C5C'!D60 -> 0 | E19: ='C5C'!E60 -> 0 | F19: ='C5C'!F60 -> 0 | G19: ='C5C'!G60 -> 0 | H19: ='C5C'!H60 -> 0 | I19: =G19-H19 -> 0 | J19: =IF(I19=0,"",I19/H19) ->  | K19: ='C5C'!K60 -> 0
A20: ='Org structure'!A16 -> Vote 15 - Other | C20: ='C5C'!C61 -> 0 | D20: ='C5C'!D61 -> 0 | E20: ='C5C'!E61 -> 0 | F20: ='C5C'!F61 -> 0 | G20: ='C5C'!G61 -> 0 | H20: ='C5C'!H61 -> 0 | I20: =G20-H20 -> 0 | J20: =IF(I20=0,"",I20/H20) ->  | K20: ='C5C'!K61 -> 0
A21: Total Capital Multi-year expenditure | B21: 4,7 | C21: =SUM(C6:C20) -> 50056507.07 | D21: =SUM(D6:D20) -> 65393793 | E21: 64688807 | F21: 9730357.63 | G21: 46727641.51 | H21: 64688807 | I21: -17961165.49 | J21: =IF(I21=0,"",I21/H21) -> -0.2776549193 | K21: =SUM(K6:K20) -> 64688807
A23: Single Year expenditure appropriation | B23: 2
A24: ='C5C'!A66 -> Vote 01 - Corporate Services | C24: ='C5C'!C66 -> 0 | D24: ='C5C'!D66 -> 0 | E24: ='C5C'!E66 -> 0 | F24: ='C5C'!F66 -> 0 | G24: ='C5C'!G66 -> 0 | H24: ='C5C'!H66 -> 0 | I24: =G24-H24 -> 0 | J24: =IF(I24=0,"",I24/H24) ->  | K24: ='C5C'!K66 -> 0
A25: ='C5C'!A75 -> Vote 02 - Municipal Manager | C25: ='C5C'!C75 -> 0 | D25: ='C5C'!D75 -> 0 | E25: ='C5C'!E75 -> 0 | F25: ='C5C'!F75 -> 0 | G25: ='C5C'!G75 -> 0 | H25: ='C5C'!H75 -> 0 | I25: 0 | K25: ='C5C'!K75 -> 0
A26: ='C5C'!A81 -> Vote 03 - Mayors Office | C26: ='C5C'!C81 -> 0 | D26: ='C5C'!D81 -> 0 | E26: ='C5C'!E81 -> 0 | F26: ='C5C'!F81 -> 0 | G26: ='C5C'!G81 -> 0 | H26: ='C5C'!H81 -> 0 | I26: 0 | K26: ='C5C'!K81 -> 0
A27: ='C5C'!A87 -> Vote 04 - Budget And Treasury | C27: ='C5C'!C87 -> 0 | D27: ='C5C'!D87 -> 0 | E27: ='C5C'!E87 -> 0 | F27: ='C5C'!F87 -> 0 | G27: ='C5C'!G87 -> 0 | H27: ='C5C'!H87 -> 0 | I27: 0 | K27: ='C5C'!K87 -> 0
A28: ='C5C'!A95 -> Vote 05 - Community Services | C28: ='C5C'!C95 -> 0 | D28: ='C5C'!D95 -> 0 | E28: ='C5C'!E95 -> 0 | F28: ='C5C'!F95 -> 0 | G28: ='C5C'!G95 -> 0 | H28: ='C5C'!H95 -> 0 | I28: 0 | K28: ='C5C'!K95 -> 0
A29: ='C5C'!A103 -> Vote 06 - Technical Services | C29: ='C5C'!C103 -> 0 | D29: ='C5C'!D103 -> 0 | E29: ='C5C'!E103 -> 0 | F29: ='C5C'!F103 -> 0 | G29: ='C5C'!G103 -> 0 | H29: ='C5C'!H103 -> 0 | I29: 0 | K29: ='C5C'!K103 -> 0
A30: ='Org structure'!A8 -> Vote 07 - | C30: ='C5C'!C112 -> 0 | D30: ='C5C'!D112 -> 0 | E30: ='C5C'!E112 -> 0 | F30: ='C5C'!F112 -> 0 | G30: ='C5C'!G112 -> 0 | H30: ='C5C'!H112 -> 0 | I30: ='C5C'!I112 -> 0 | J30: =IF(I30=0,"",I30/H30) ->  | K30: ='C5C'!K112 -> 0
A31: ='Org structure'!A9 -> Vote 08 - | C31: ='C5C'!C113 -> 0 | D31: ='C5C'!D113 -> 0 | E31: ='C5C'!E113 -> 0 | F31: ='C5C'!F113 -> 0 | G31: ='C5C'!G113 -> 0 | H31: ='C5C'!H113 -> 0 | I31: ='C5C'!I113 -> 0 | K31: ='C5C'!K113 -> 0
A32: ='Org structure'!A10 -> Vote 09 - | C32: ='C5C'!C114 -> 0 | D32: ='C5C'!D114 -> 0 | E32: ='C5C'!E114 -> 0 | F32: ='C5C'!F114 -> 0 | G32: ='C5C'!G114 -> 0 | H32: ='C5C'!H114 -> 0 | I32: ='C5C'!I114 -> 0 | K32: ='C5C'!K114 -> 0
A33: ='Org structure'!A11 -> Vote 10 - | C33: ='C5C'!C115 -> 0 | D33: ='C5C'!D115 -> 0 | E33: ='C5C'!E115 -> 0 | F33: ='C5C'!F115 -> 0 | G33: ='C5C'!G115 -> 0 | H33: ='C5C'!H115 -> 0 | I33: ='C5C'!I115 -> 0 | K33: ='C5C'!K115 -> 0
A34: ='Org structure'!A12 -> Vote 11 - | C34: ='C5C'!C116 -> 0 | D34: ='C5C'!D116 -> 0 | E34: ='C5C'!E116 -> 0 | F34: ='C5C'!F116 -> 0 | G34: ='C5C'!G116 -> 0 | H34: ='C5C'!H116 -> 0 | I34: ='C5C'!I116 -> 0 | K34: ='C5C'!K116 -> 0
A35: ='Org structure'!A13 -> Vote 12 - | C35: ='C5C'!C117 -> 0 | D35: ='C5C'!D117 -> 0 | E35: ='C5C'!E117 -> 0 | F35: ='C5C'!F117 -> 0 | G35: ='C5C'!G117 -> 0 | H35: ='C5C'!H117 -> 0 | I35: ='C5C'!I117 -> 0 | K35: ='C5C'!K117 -> 0
A36: ='Org structure'!A14 -> Vote 13 - | C36: ='C5C'!C118 -> 0 | D36: ='C5C'!D118 -> 0 | E36: ='C5C'!E118 -> 0 | F36: ='C5C'!F118 -> 0 | G36: ='C5C'!G118 -> 0 | H36: ='C5C'!H118 -> 0 | I36: ='C5C'!I118 -> 0 | K36: ='C5C'!K118 -> 0
A37: ='Org structure'!A15 -> Vote 14 - | C37: ='C5C'!C119 -> 0 | D37: ='C5C'!D119 -> 0 | E37: ='C5C'!E119 -> 0 | F37: ='C5C'!F119 -> 0 | G37: ='C5C'!G119 -> 0 | H37: ='C5C'!H119 -> 0 | I37: ='C5C'!I119 -> 0 | K37: ='C5C'!K119 -> 0
A38: ='Org structure'!A16 -> Vote 15 - Other | C38: ='C5C'!C120 -> 0 | D38: ='C5C'!D120 -> 0 | E38: ='C5C'!E120 -> 0 | F38: ='C5C'!F120 -> 0 | G38: ='C5C'!G120 -> 0 | H38: ='C5C'!H120 -> 0 | I38: ='C5C'!I120 -> 0 | K38: ='C5C'!K120 -> 0
A39: Total Capital single-year expenditure | B39: 4 | C39: =SUM(C24:C38) -> 0 | D39: 0 | E39: 0 | F39: 0 | G39: 0 | H39: 0 | I39: 0 | K39: =SUM(K24:K38) -> 0
A40: Total Capital Expenditure | C40: =C39+C21 -> 50056507.07 | D40: 65393793 | E40: 64688807 | F40: 9730357.63 | G40: 46727641.51 | H40: 64688807 | I40: -17961165.49 | J40: =IF(I40=0,"",I40/H40) -> -0.2776549193 | K40: =K39+K21 -> 64688807
A42: Capital Expenditure - Functional Classification
A43: Governance and administration | C43: =SUM(C44:C46) -> 4797933.28 | D43: 4686000 | E43: 4631456 | F43: 880.47 | G43: 1869904.61 | H43: 4631456 | I43: =G43-H43 -> -2761551.39 | J43: =IF(I43=0,"",I43/H43) -> -0.5962598781 | K43: =SUM(K44:K46) -> 4631456
A44: Executive and council | C44: 0 | D44: 0 | E44: 0 | F44: 0 | G44: 0 | H44: 0 | I44: 0 | J44: =IF(I44=0,"",I44/H44) ->  | K44: 0
A45: Finance and administration | C45: 4797933.28 | D45: 4686000 | E45: 4631456 | F45: 880.47 | G45: 1869904.61 | H45: 4631456 | I45: -2761551.39 | J45: -0.5962598781 | K45: 4631456
A46: Internal audit | C46: 0 | D46: 0 | E46: 0 | F46: 0 | G46: 0 | H46: 0 | I46: 0 | K46: 0
A47: Community and public safety | C47: =SUM(C48:C52) -> 1156205.28 | D47: 1010000 | E47: 1010000 | F47: 0 | G47: 763043.48 | H47: 1010000 | I47: -246956.52 | J47: -0.2445114059 | K47: =SUM(K48:K52) -> 1010000
A48: Community and social services | C48: 1156205.28 | D48: 0 | E48: 0 | F48: 0 | G48: 0 | H48: 0 | I48: 0 | K48: 0
A49: Sport and recreation | C49: 0 | D49: 700000 | E49: 700000 | F49: 0 | G49: 600000 | H49: 700000 | I49: -100000 | J49: -0.1428571429 | K49: 700000
A50: Public safety | C50: 0 | D50: 310000 | E50: 310000 | F50: 0 | G50: 163043.48 | H50: 310000 | I50: -146956.52 | J50: -0.4740532903 | K50: 310000
A51: Housing | I51: 0
A52: Health | I52: 0
A53: Economic and environmental services | C53: =SUM(C54:C56) -> 0 | D53: 287793 | E53: 192500 | F53: 0 | G53: 192500 | H53: 192500 | I53: 0 | K53: =SUM(K54:K56) -> 192500
A54: Planning and development | C54: 0 | D54: 287793 | E54: 192500 | F54: 0 | G54: 192500 | H54: 192500 | I54: 0 | K54: 192500
A55: Road transport | C55: 0 | D55: 0 | E55: 0 | F55: 0 | G55: 0 | H55: 0 | I55: 0 | K55: 0
A56: Environmental protection | I56: 0
A57: Trading services | C57: =SUM(C58:C61) -> 44102368.51 | D57: 59410000 | E57: 58854851 | F57: 9729477.16 | G57: 43902193.42 | H57: 58854851 | I57: -14952657.58 | J57: -0.2540599003 | K57: =SUM(K58:K61) -> 58854851
A58: Energy sources | C58: 11793428.42 | D58: 15500000 | E58: 14682147 | F58: 4477945.41 | G58: 9535955.05 | H58: 14682147 | I58: -5146191.95 | J58: -0.3505067719 | K58: 14682147
A59: Water management | I59: 0
A60: Waste water management | C60: 32308940.09 | D60: 43910000 | E60: 44172704 | F60: 5251531.75 | G60: 34366238.37 | H60: 44172704 | I60: -9806465.63 | J60: -0.2220028375 | K60: 44172704
A61: Waste management | I61: 0
A62: Other | I62: 0
A63: Total Capital Expenditure - Functional Classification | B63: 3 | C63: =C43+C47+C53+C57+C62 -> 50056507.07 | D63: =D43+D47+D53+D57+D62 -> 65393793 | E63: 64688807 | F63: 9730357.63 | G63: 46727641.51 | H63: 64688807 | I63: -17961165.49 | J63: -0.2776549193 | K63: =K43+K47+K53+K57+K62 -> 64688807
A65: Funded by:
A66: National Government | C66: 39133689.96 | D66: 45437793 | E66: 46342500 | F66: 8493774.39 | G66: 37939545.53 | H66: 46342500 | I66: =G66-H66 -> -8402954.47 | J66: =IF(I66=0,"",I66/H66) -> -0.1813228563 | K66: 46342500
A67: Provincial Government | C67: 0 | D67: 0 | E67: 0 | F67: 0 | G67: 0 | H67: 0 | I67: 0 | K67: 0
A68: District Municipality | C68: 1156205.28 | D68: 0 | E68: 0 | F68: 0 | G68: 0 | H68: 0 | I68: 0 | K68: 0
A69: ='C4-FinPerf RE'!A40 -> Transfers and subsidies - capital (monetary allocations) (National / Provincial Departmental Agencies, Households, Non-profit Institutions, Private Enterprises, Public Corporatons, Higher Educational Institutions) | C69: 0 | D69: 0 | E69: 0 | F69: 0 | G69: 0 | H69: 0 | I69: 0 | K69: 0
A70: Transfers recognised - capital | C70: =SUM(C66:C69) -> 40289895.24 | D70: 45437793 | E70: 46342500 | F70: 8493774.39 | G70: 37939545.53 | H70: 46342500 | I70: -8402954.47 | J70: -0.1813228563 | K70: =SUM(K66:K69) -> 46342500
A72: Borrowing | B72: 6 | I72: 0
A73: Internally generated funds | C73: 9766611.83 | D73: 19956000 | E73: 18346307 | F73: 1236583.24 | G73: 8788095.98 | H73: 18346307 | I73: -9558211.02 | J73: -0.520988285 | K73: 18346307
A74: Total Capital Funding | C74: =+C70+C72+C73 -> 50056507.07 | D74: 65393793 | E74: 64688807 | F74: 9730357.63 | G74: 46727641.51 | H74: 64688807 | I74: -17961165.49 | J74: -0.2776549193 | K74: =+K70+K72+K73 -> 64688807
A75: =head27a -> References
A76: 1. Municipalities may choose to appropriate for capital expenditure for three years or for one year (if one year appropriation projected expenditure required for yr2 and yr3).
A77: 2. Include capital component of PPP unitary payment
A78: 3. Capital expenditure by functional classification must reconcile to the total of multi-year and single year appropriations
A79: 4. Include expenditure on investment property, intangible and biological assets
A81: 6. Include finance leases and PPP capital funding component of unitary payment - total borrowing/repayments to reconcile to changes in Table SA17
A86: check balance | C86: =C40-C74 -> 0 | D86: =D40-D74 -> 0 | E86: 0 | F86: 0 | G86: 0 | H86: 0 | K86: 0

Sheet C5C
A1: =muni& " - "&S71D& " - "&"A"& " - "&date -> LIM353 Molemole - Table C5 Monthly Budget Statement - Capital Expenditure (municipal vote, functional classification and funding) - A - Q4 Fourth Quarter
A2: =Vdesc -> Vote Description | B2: =head27 -> Ref | C2: =Head1 -> 2020/21 | D2: =Head2 -> Budget Year 2021/22 | L2: =Head4 -> 
A3: R thousand | C3: =Head5 -> Audited Outcome | D3: =Head6 -> Original Budget | E3: =Head7 -> Adjusted Budget | F3: =Head38 -> Monthly actual | G3: =Head39 -> YearTD actual | H3: =Head40 -> YearTD budget | I3: =Head41 -> YTD variance | J3: =Head41 -> YTD variance | K3: =Head8 -> Full Year Forecast | L3: =Head12 -> Forecast 2010/11 | M3: =Head13 -> Forecast 2011/12 | N3: =Head14 -> Forecast 2012/13 | O3: =Head15 -> Forecast 2013/14 | P3: =Head16 -> Forecast 2014/15 | Q3: =Head17 -> Forecast 2015/16 | R3: =Head18 -> Forecast 2016/17 | S3: =Head19 -> Forecast 2017/18 | T3: =Head20 -> Forecast 2018/19 | U3: =Head21 -> Forecast 2019/20 | V3: =Head22 -> Forecast 2020/21 | W3: =Head23 -> Forecast 2021/22
J4: %
A5: Capital expenditure - Municipal Vote
A6: Expenditure of multi-year capital appropriation | B6: 1
A7: ='Org structure'!A2 -> Vote 01 - Corporate Services | C7: =SUM(C8:C15) -> 4660939.51 | D7: 4286000 | E7: 4241456 | F7: 880.47 | G7: 1804264.61 | H7: 4241456 | I7: =G7-H7 -> -2437191.39 | J7: =IF(I7=0,"",I7/H7) -> -0.5746119705 | K7: =SUM(K8:K15) -> 4241456
A8: ='Org structure'!E3 -> 01.1 - Corporate Services Admin | C8: 299643.69 | D8: 3800000 | E8: 3605456 | F8: 0 | G8: 1605295.18 | H8: 3605456 | I8: =G8-H8 -> -2000160.82 | J8: =IF(I8=0,"",I8/H8) -> -0.554759459 | K8: 3605456
A9: ='Org structure'!E4 -> 01.2 - Human Resources | C9: 0 | D9: 50000 | E9: 0 | F9: 0 | G9: 0 | H9: 0 | I9: 0 | K9: 0
A10: ='Org structure'!E5 -> 01.3 - Information Technology Services | C10: 4361295.82 | D10: 436000 | E10: 636000 | F10: 880.47 | G10: 198969.43 | H10: 636000 | I10: -437030.57 | J10: -0.6871549843 | K10: 636000
A11: ='Org structure'!E6 -> 01.4 - Council Support | I11: 0 | K11: 0
A12: ='Org structure'!E7 -> 01.5 - Local Economic Development | I12: 0 | K12: 0
A13: ='Org structure'!E8 -> 01.6 - Municipal Planning Idp | I13: 0 | K13: 0
A14: ='Org structure'!E9 -> 01.7 - Town & Regional Planning | I14: 0 | K14: 0
A15: ='Org structure'!E10 -> 01.8 - Led Administration | I15: 0 | K15: 0
A16: ='Org structure'!A3 -> Vote 02 - Municipal Manager | C16: =SUM(C17:C21) -> 136993.77 | D16: 100000 | E16: 90000 | F16: 0 | G16: 65640 | H16: 90000 | I16: -24360 | J16: -0.2706666667 | K16: =SUM(K17:K21) -> 90000
A17: ='Org structure'!E12 -> 02.1 - Municipal Manager Admin | I17: =G17-H17 -> 0 | J17: =IF(I17=0,"",I17/H17) ->  | K17: 0
A18: ='Org structure'!E13 -> 02.2 - Legal Services | I18: =G18-H18 -> 0 | J18: =IF(I18=0,"",I18/H18) ->  | K18: 0
A19: ='Org structure'!E14 -> 02.3 - Political Office Beares | C19: 136993.77 | D19: 100000 | E19: 90000 | F19: 0 | G19: 65640 | H19: 90000 | I19: =G19-H19 -> -24360 | J19: =IF(I19=0,"",I19/H19) -> -0.2706666667 | K19: 90000
A20: ='Org structure'!E15 -> 02.4 - Pms | C20: 0 | D20: 0 | E20: 0 | F20: 0 | G20: 0 | H20: 0 | I20: =G20-H20 -> 0 | J20: =IF(I20=0,"",I20/H20) ->  | K20: 0
A21: ='Org structure'!E16 -> 02.5 - Internal Audit | C21: 0 | D21: 0 | E21: 0 | F21: 0 | G21: 0 | H21: 0 | I21: =G21-H21 -> 0 | J21: =IF(I21=0,"",I21/H21) ->  | K21: 0
A22: ='Org structure'!A4 -> Vote 03 - Mayors Office | C22: =SUM(C23:C27) -> 0 | D22: 0 | E22: 0 | F22: 0 | G22: 0 | H22: 0 | I22: 0 | K22: =SUM(K23:K27) -> 0
A23: ='Org structure'!E18 -> 03.1 - Mayors Office Admin | I23: =G23-H23 -> 0 | J23: =IF(I23=0,"",I23/H23) ->  | K23: 0
A24: ='Org structure'!E19 -> 03.2 - Office Of The Speaker | I24: =G24-H24 -> 0 | J24: =IF(I24=0,"",I24/H24) ->  | K24: 0
A25: ='Org structure'!E20 -> 03.3 - Office Of The Chief Whip | I25: =G25-H25 -> 0 | J25: =IF(I25=0,"",I25/H25) ->  | K25: 0
A26: ='Org structure'!E21 -> 03.4 - Exco Members | I26: =G26-H26 -> 0 | J26: =IF(I26=0,"",I26/H26) ->  | K26: 0
A27: ='Org structure'!E22 -> 03.5 - Council General Administration | I27: =G27-H27 -> 0 | J27: =IF(I27=0,"",I27/H27) ->  | K27: 0
A28: ='Org structure'!A5 -> Vote 04 - Budget And Treasury | C28: =SUM(C29:C35) -> 0 | D28: 300000 | E28: 300000 | F28: 0 | G28: 0 | H28: 300000 | I28: -300000 | J28: -1 | K28: =SUM(K29:K35) -> 300000
A29: ='Org structure'!E24 -> 04.1 - Budget And Treasury Admin | I29: =G29-H29 -> 0 | J29: =IF(I29=0,"",I29/H29) ->  | K29: 0
A30: ='Org structure'!E25 -> 04.2 - Chief Financial Officer Admin | I30: 0 | K30: 0
A31: ='Org structure'!E26 -> 04.3 - Budget & Reporting | C31: 0 | D31: 0 | E31: 0 | F31: 0 | G31: 0 | H31: 0 | I31: 0 | K31: 0
A32: ='Org structure'!E27 -> 04.4 - Budget & Reporting | C32: 0 | D32: 0 | E32: 0 | F32: 0 | G32: 0 | H32: 0 | I32: 0 | K32: 0
A33: ='Org structure'!E28 -> 04.5 - Revenue Management | C33: 0 | D33: 300000 | E33: 300000 | F33: 0 | G33: 0 | H33: 300000 | I33: -300000 | J33: -1 | K33: 300000
A34: ='Org structure'!E29 -> 04.6 - Supply Chain Management | C34: 0 | D34: 0 | E34: 0 | F34: 0 | G34: 0 | H34: 0 | I34: 0 | K34: 0
A35: ='Org structure'!E30 -> 04.7 - Expenditure | I35: 0 | K35: 0
A36: ='Org structure'!A6 -> Vote 05 - Community Services | C36: =SUM(C37:C43) -> 1156205.28 | D36: 1010000 | E36: 1010000 | F36: 0 | G36: 763043.48 | H36: 1010000 | I36: -246956.52 | J36: -0.2445114059 | K36: =SUM(K37:K43) -> 1010000
A37: ='Org structure'!E32 -> 05.1 - Community Services Admin | C37: 1156205.28 | D37: 0 | E37: 0 | F37: 0 | G37: 0 | H37: 0 | I37: =G37-H37 -> 0 | J37: =IF(I37=0,"",I37/H37) ->  | K37: 0
A38: ='Org structure'!E33 -> 05.2 - Libraries | I38: 0 | K38: 0
A39: ='Org structure'!E34 -> 05.3 - Sports Recreation & Social Amenitie | C39: 0 | D39: 700000 | E39: 700000 | F39: 0 | G39: 600000 | H39: 700000 | I39: -100000 | J39: -0.1428571429 | K39: 700000
A40: ='Org structure'!E35 -> 05.4 - Traffic Service | C40: 0 | D40: 0 | E40: 0 | F40: 0 | G40: 0 | H40: 0 | I40: 0 | K40: 0
A41: ='Org structure'!E36 -> 05.5 - Traffic Service | C41: 0 | D41: 310000 | E41: 310000 | F41: 0 | G41: 163043.48 | H41: 310000 | I41: -146956.52 | J41: -0.4740532903 | K41: 310000
A42: ='Org structure'!E37 -> 05.6 - Parks; Cemeteries | C42: 0 | D42: 0 | E42: 0 | F42: 0 | G42: 0 | H42: 0 | I42: 0 | K42: 0
A43: ='Org structure'!E38 -> 05.7 - Refuse | I43: 0 | K43: 0
A44: ='Org structure'!A7 -> Vote 06 - Technical Services | C44: =SUM(C45:C52) -> 44102368.51 | D44: 59697793 | E44: 59047351 | F44: 9729477.16 | G44: 44094693.42 | H44: 59047351 | I44: -14952657.58 | J44: -0.2532316408 | K44: =SUM(K45:K52) -> 59047351
A45: ='Org structure'!E40 -> 06.1 - Mpac | I45: =G45-H45 -> 0 | J45: =IF(I45=0,"",I45/H45) ->  | K45: 0
A46: ='Org structure'!E41 -> 06.2 - Technical Services Admin | I46: 0 | K46: 0
A47: ='Org structure'!E42 -> 06.3 - Techn Serv-Roads: Admin | C47: 0 | D47: 0 | E47: 0 | F47: 0 | G47: 0 | H47: 0 | I47: 0 | K47: 0
A48: ='Org structure'!E43 -> 06.4 - Techn Serv-Stormwater: Admin | C48: 32308940.09 | D48: 43910000 | E48: 44172704 | F48: 5251531.75 | G48: 34366238.37 | H48: 44172704 | I48: -9806465.63 | J48: -0.2220028375 | K48: 44172704
A49: ='Org structure'!E44 -> 06.5 - Project Management Unit | C49: 0 | D49: 287793 | E49: 192500 | F49: 0 | G49: 192500 | H49: 192500 | I49: 0 | K49: 192500
A50: ='Org structure'!E45 -> 06.6 - Electrical & Machinery | C50: 11793428.42 | D50: 15500000 | E50: 14682147 | F50: 4477945.41 | G50: 9535955.05 | H50: 14682147 | I50: -5146191.95 | J50: -0.3505067719 | K50: 14682147
A51: ='Org structure'!E46 -> 06.7 - Water | I51: 0 | K51: 0
A52: ='Org structure'!E47 -> 06.8 - Sanitation | I52: 0 | K52: 0
A53: ='Org structure'!A8 -> Vote 07 - | C53: 0 | D53: 0 | E53: 0 | F53: 0 | G53: 0 | H53: 0 | I53: =G53-H53 -> 0 | J53: =IF(I53=0,"",I53/H53) ->  | K53: 0
A54: ='Org structure'!A9 -> Vote 08 - | C54: 0 | D54: 0 | E54: 0 | F54: 0 | G54: 0 | H54: 0 | I54: 0 | K54: 0
A55: ='Org structure'!A10 -> Vote 09 - | C55: 0 | D55: 0 | E55: 0 | F55: 0 | G55: 0 | H55: 0 | I55: 0 | K55: 0
A56: ='Org structure'!A11 -> Vote 10 - | C56: 0 | D56: 0 | E56: 0 | F56: 0 | G56: 0 | H56: 0 | I56: 0 | K56: 0
A57: ='Org structure'!A12 -> Vote 11 - | C57: 0 | D57: 0 | E57: 0 | F57: 0 | G57: 0 | H57: 0 | I57: 0 | K57: 0
A58: ='Org structure'!A13 -> Vote 12 - | C58: 0 | D58: 0 | E58: 0 | F58: 0 | G58: 0 | H58: 0 | I58: 0 | K58: 0
A59: ='Org structure'!A14 -> Vote 13 - | C59: 0 | D59: 0 | E59: 0 | F59: 0 | G59: 0 | H59: 0 | I59: =G59-H59 -> 0 | J59: =IF(I59=0,"",I59/H59) ->  | K59: 0
A60: ='Org structure'!A15 -> Vote 14 - | C60: 0 | D60: 0 | E60: 0 | F60: 0 | G60: 0 | H60: 0 | I60: 0 | K60: 0
A61: ='Org structure'!A16 -> Vote 15 - Other | C61: 0 | D61: 0 | E61: 0 | F61: 0 | G61: 0 | H61: 0 | I61: 0 | K61: 0
A62: Total multi-year capital expenditure | C62: =C7+C16+C22+C28+C36+C44+C53+C54+C55+C56+C57+C58+C59+C60+C61 -> 50056507.07 | D62: 65393793 | E62: 64688807 | F62: 9730357.63 | G62: 46727641.51 | H62: 64688807 | I62: -17961165.49 | J62: -0.2776549193 | K62: =K7+K16+K22+K28+K36+K44+K53+K54+K55+K56+K57+K58+K59+K60+K61 -> 64688807
I63: 0
A64: Capital expenditure - Municipal Vote
A65: Expenditue of single-year capital appropriation | B65: 1 | I65: 0
A66: ='Org structure'!A2 -> Vote 01 - Corporate Services | C66: =SUM(C67:C74) -> 0 | D66: 0 | E66: 0 | F66: 0 | G66: 0 | H66: 0 | I66: 0 | K66: =SUM(K67:K74) -> 0
A67: ='Org structure'!E3 -> 01.1 - Corporate Services Admin | C67: 0 | D67: 0 | E67: 0 | F67: 0 | G67: 0 | H67: 0 | I67: 0 | K67: 0
A68: ='Org structure'!E4 -> 01.2 - Human Resources | C68: 0 | D68: 0 | E68: 0 | F68: 0 | G68: 0 | H68: 0 | I68: 0 | K68: 0
A69: ='Org structure'!E5 -> 01.3 - Information Technology Services | C69: 0 | D69: 0 | E69: 0 | F69: 0 | G69: 0 | H69: 0 | I69: 0 | K69: 0
A70: ='Org structure'!E6 -> 01.4 - Council Support | C70: 0 | D70: 0 | E70: 0 | F70: 0 | G70: 0 | H70: 0 | I70: 0 | K70: 0
A71: ='Org structure'!E7 -> 01.5 - Local Economic Development | C71: 0 | D71: 0 | E71: 0 | F71: 0 | G71: 0 | H71: 0 | I71: 0 | K71: 0
A72: ='Org structure'!E8 -> 01.6 - Municipal Planning Idp | C72: 0 | D72: 0 | E72: 0 | F72: 0 | G72: 0 | H72: 0 | I72: 0 | K72: 0
A73: ='Org structure'!E9 -> 01.7 - Town & Regional Planning | C73: 0 | D73: 0 | E73: 0 | F73: 0 | G73: 0 | H73: 0 | I73: 0 | K73: 0
A74: ='Org structure'!E10 -> 01.8 - Led Administration | C74: 0 | D74: 0 | E74: 0 | F74: 0 | G74: 0 | H74: 0 | I74: 0 | K74: 0
A75: ='Org structure'!A3 -> Vote 02 - Municipal Manager | C75: =SUM(C76:C80) -> 0 | D75: 0 | E75: 0 | F75: 0 | G75: 0 | H75: 0 | I75: 0 | K75: =SUM(K76:K80) -> 0
A76: ='Org structure'!E12 -> 02.1 - Municipal Manager Admin | C76: 0 | D76: 0 | E76: 0 | F76: 0 | G76: 0 | H76: 0 | I76: 0 | K76: 0
A77: ='Org structure'!E13 -> 02.2 - Legal Services | C77: 0 | D77: 0 | E77: 0 | F77: 0 | G77: 0 | H77: 0 | I77: 0 | K77: 0
A78: ='Org structure'!E14 -> 02.3 - Political Office Beares | C78: 0 | D78: 0 | E78: 0 | F78: 0 | G78: 0 | H78: 0 | I78: 0 | K78: 0
A79: ='Org structure'!E15 -> 02.4 - Pms | C79: 0 | D79: 0 | E79: 0 | F79: 0 | G79: 0 | H79: 0 | I79: 0 | K79: 0
A80: ='Org structure'!E16 -> 02.5 - Internal Audit | C80: 0 | D80: 0 | E80: 0 | F80: 0 | G80: 0 | H80: 0 | I80: 0 | K80: 0
A81: ='Org structure'!A4 -> Vote 03 - Mayors Office | C81: =SUM(C82:C86) -> 0 | D81: 0 | E81: 0 | F81: 0 | G81: 0 | H81: 0 | I81: 0 | K81: =SUM(K82:K86) -> 0
A82: ='Org structure'!E18 -> 03.1 - Mayors Office Admin | C82: 0 | D82: 0 | E82: 0 | F82: 0 | G82: 0 | H82: 0 | I82: 0 | K82: 0
A83: ='Org structure'!E19 -> 03.2 - Office Of The Speaker | C83: 0 | D83: 0 | E83: 0 | F83: 0 | G83: 0 | H83: 0 | I83: =G83-H83 -> 0 | J83: =IF(I83=0,"",I83/H83) ->  | K83: 0
A84: ='Org structure'!E20 -> 03.3 - Office Of The Chief Whip | C84: 0 | D84: 0 | E84: 0 | F84: 0 | G84: 0 | H84: 0 | I84: 0 | K84: 0
A85: ='Org structure'!E21 -> 03.4 - Exco Members | C85: 0 | D85: 0 | E85: 0 | F85: 0 | G85: 0 | H85: 0 | I85: 0 | K85: 0
A86: ='Org structure'!E22 -> 03.5 - Council General Administration | C86: 0 | D86: 0 | E86: 0 | F86: 0 | G86: 0 | H86: 0 | I86: 0 | K86: 0
A87: ='Org structure'!A5 -> Vote 04 - Budget And Treasury | C87: =SUM(C88:C94) -> 0 | D87: 0 | E87: 0 | F87: 0 | G87: 0 | H87: 0 | I87: 0 | K87: =SUM(K88:K94) -> 0
A88: ='Org structure'!E24 -> 04.1 - Budget And Treasury Admin | C88: 0 | D88: 0 | E88: 0 | F88: 0 | G88: 0 | H88: 0 | I88: 0 | K88: 0
A89: ='Org structure'!E25 -> 04.2 - Chief Financial Officer Admin | C89: 0 | D89: 0 | E89: 0 | F89: 0 | G89: 0 | H89: 0 | I89: 0 | K89: 0
A90: ='Org structure'!E26 -> 04.3 - Budget & Reporting | C90: 0 | D90: 0 | E90: 0 | F90: 0 | G90: 0 | H90: 0 | I90: 0 | K90: 0
A91: ='Org structure'!E27 -> 04.4 - Budget & Reporting | C91: 0 | D91: 0 | E91: 0 | F91: 0 | G91: 0 | H91: 0 | I91: 0 | K91: 0
A92: ='Org structure'!E28 -> 04.5 - Revenue Management | C92: 0 | D92: 0 | E92: 0 | F92: 0 | G92: 0 | H92: 0 | I92: 0 | K92: 0
A93: ='Org structure'!E29 -> 04.6 - Supply Chain Management | C93: 0 | D93: 0 | E93: 0 | F93: 0 | G93: 0 | H93: 0 | I93: 0 | K93: 0
A94: ='Org structure'!E30 -> 04.7 - Expenditure | C94: 0 | D94: 0 | E94: 0 | F94: 0 | G94: 0 | H94: 0 | I94: 0 | K94: 0
A95: ='Org structure'!A6 -> Vote 05 - Community Services | C95: =SUM(C96:C102) -> 0 | D95: 0 | E95: 0 | F95: 0 | G95: 0 | H95: 0 | I95: 0 | K95: =SUM(K96:K102) -> 0
A96: ='Org structure'!E32 -> 05.1 - Community Services Admin | C96: 0 | D96: 0 | E96: 0 | F96: 0 | G96: 0 | H96: 0 | I96: 0 | K96: 0
A97: ='Org structure'!E33 -> 05.2 - Libraries | C97: 0 | D97: 0 | E97: 0 | F97: 0 | G97: 0 | H97: 0 | I97: 0 | K97: 0
A98: ='Org structure'!E34 -> 05.3 - Sports Recreation & Social Amenitie | C98: 0 | D98: 0 | E98: 0 | F98: 0 | G98: 0 | H98: 0 | I98: 0 | K98: 0
A99: ='Org structure'!E35 -> 05.4 - Traffic Service | C99: 0 | D99: 0 | E99: 0 | F99: 0 | G99: 0 | H99: 0 | I99: 0 | K99: 0
A100: ='Org structure'!E36 -> 05.5 - Traffic Service | C100: 0 | D100: 0 | E100: 0 | F100: 0 | G100: 0 | H100: 0 | I100: 0 | K100: 0
A101: ='Org structure'!E37 -> 05.6 - Parks; Cemeteries | C101: 0 | D101: 0 | E101: 0 | F101: 0 | G101: 0 | H101: 0 | I101: 0 | K101: 0
A102: ='Org structure'!E38 -> 05.7 - Refuse | C102: 0 | D102: 0 | E102: 0 | F102: 0 | G102: 0 | H102: 0 | I102: 0 | K102: 0
A103: ='Org structure'!A7 -> Vote 06 - Technical Services | C103: =SUM(C104:C111) -> 0 | D103: 0 | E103: 0 | F103: 0 | G103: 0 | H103: 0 | I103: 0 | K103: =SUM(K104:K111) -> 0
A104: ='Org structure'!E40 -> 06.1 - Mpac | C104: 0 | D104: 0 | E104: 0 | F104: 0 | G104: 0 | H104: 0 | I104: 0 | K104: 0
A105: ='Org structure'!E41 -> 06.2 - Technical Services Admin | C105: 0 | D105: 0 | E105: 0 | F105: 0 | G105: 0 | H105: 0 | I105: 0 | K105: 0
A106: ='Org structure'!E42 -> 06.3 - Techn Serv-Roads: Admin | C106: 0 | D106: 0 | E106: 0 | F106: 0 | G106: 0 | H106: 0 | I106: 0 | K106: 0
A107: ='Org structure'!E43 -> 06.4 - Techn Serv-Stormwater: Admin | C107: 0 | D107: 0 | E107: 0 | F107: 0 | G107: 0 | H107: 0 | I107: 0 | K107: 0
A108: ='Org structure'!E44 -> 06.5 - Project Management Unit | C108: 0 | D108: 0 | E108: 0 | F108: 0 | G108: 0 | H108: 0 | I108: 0 | K108: 0
A109: ='Org structure'!E45 -> 06.6 - Electrical & Machinery | C109: 0 | D109: 0 | E109: 0 | F109: 0 | G109: 0 | H109: 0 | I109: 0 | K109: 0
A110: ='Org structure'!E46 -> 06.7 - Water | C110: 0 | D110: 0 | E110: 0 | F110: 0 | G110: 0 | H110: 0 | I110: 0 | K110: 0
A111: ='Org structure'!E47 -> 06.8 - Sanitation | C111: 0 | D111: 0 | E111: 0 | F111: 0 | G111: 0 | H111: 0 | I111: 0 | K111: 0
A112: ='Org structure'!A8 -> Vote 07 - | C112: 0 | D112: 0 | E112: 0 | F112: 0 | G112: 0 | H112: 0 | I112: 0 | K112: 0
A113: ='Org structure'!A9 -> Vote 08 - | C113: 0 | D113: 0 | E113: 0 | F113: 0 | G113: 0 | H113: 0 | I113: 0 | K113: 0
A114: ='Org structure'!A10 -> Vote 09 - | C114: 0 | D114: 0 | E114: 0 | F114: 0 | G114: 0 | H114: 0 | I114: =G114-H114 -> 0 | J114: =IF(I114=0,"",I114/H114) ->  | K114: 0
A115: ='Org structure'!A11 -> Vote 10 - | C115: 0 | D115: 0 | E115: 0 | F115: 0 | G115: 0 | H115: 0 | I115: 0 | K115: 0
A116: ='Org structure'!A12 -> Vote 11 - | C116: 0 | D116: 0 | E116: 0 | F116: 0 | G116: 0 | H116: 0 | I116: 0 | K116: 0
A117: ='Org structure'!A13 -> Vote 12 - | C117: 0 | D117: 0 | E117: 0 | F117: 0 | G117: 0 | H117: 0 | I117: 0 | K117: 0
A118: ='Org structure'!A14 -> Vote 13 - | C118: 0 | D118: 0 | E118: 0 | F118: 0 | G118: 0 | H118: 0 | I118: 0 | K118: 0
A119: ='Org structure'!A15 -> Vote 14 - | C119: 0 | D119: 0 | E119: 0 | F119: 0 | G119: 0 | H119: 0 | I119: 0 | K119: 0
A120: ='Org structure'!A16 -> Vote 15 - Other | C120: 0 | D120: 0 | E120: 0 | F120: 0 | G120: 0 | H120: 0 | I120: =G120-H120 -> 0 | J120: =IF(I120=0,"",I120/H120) ->  | K120: 0
A121: Total single-year capital expenditure | C121: =C66+C75+C81+C87+C95+C103+C112+C113+C114+C115+C116+C117+C118+C119+C120 -> 0 | D121: 0 | E121: 0 | F121: 0 | G121: 0 | H121: 0 | I121: 0 | K121: =K66+K75+K81+K87+K95+K103+K112+K113+K114+K115+K116+K117+K118+K119+K120 -> 0
A122: Total Capital Expenditure | C122: =C62+C121 -> 50056507.07 | D122: 65393793 | E122: 64688807 | F122: 9730357.63 | G122: 46727641.51 | H122: 64688807 | I122: -17961165.49 | J122: -0.2776549193 | K122: =K62+K121 -> 64688807
A123: =head27a -> References
A124: 1. Insert 'Vote'; e.g. Department, if different to standard structure

Sheet C6-FinPos
A1: =muni& " - "&S71E& " - "&date -> LIM353 Molemole - Table C6 Monthly Budget Statement - Financial Position - Q4 Fourth Quarter
A2: =desc -> Description | B2: =head27 -> Ref | C2: =Head1 -> 2020/21 | D2: =Head2 -> Budget Year 2021/22
C3: =Head5 -> Audited Outcome | D3: =Head6 -> Original Budget | E3: =Head7 -> Adjusted Budget | F3: =Head39 -> YearTD actual | G3: =Head8 -> Full Year Forecast
A4: R thousands | B4: 1
A5: ASSETS
A6: Current assets
A7: Cash | C7: 11455516.09 | D7: 23345252 | E7: 109264492 | F7: 105277080.1 | G7: 109264492
A8: Call investment deposits | C8: 60000000 | D8: 0 | E8: 0 | F8: 0 | G8: 0
A9: Consumer debtors | C9: 56895052.43 | D9: 117349897 | E9: 103034677 | F9: 64155062.72 | G9: 103034677
A10: Other debtors | C10: 22087697.1 | D10: 20556399 | E10: 20556398 | F10: 8219269.83 | G10: 20556398
A11: Current portion of long-term receivables | C11: 0 | D11: 36611 | E11: 0 | F11: 0 | G11: 0
A12: Inventory | C12: 1052291.03 | D12: 302939 | E12: 1025915 | F12: 1052291.03 | G12: 1025915
A13: Total current assets | C13: =SUM(C7:C12) -> 151490556.7 | D13: =SUM(D7:D12) -> 161591098 | E13: =SUM(E7:E12) -> 233881482 | F13: =SUM(F7:F12) -> 178703703.7 | G13: =SUM(G7:G12) -> 233881482
A15: Non current assets
A16: Long-term receivables
A17: Investments | C17: 0 | D17: 0 | E17: 0 | F17: 0 | G17: 0
A18: Investment property | C18: 1614334.23 | D18: 1755951 | E18: 1755951 | F18: 1581691.03 | G18: 1755951
A19: Investments in Associate
A20: Property, plant and equipment | C20: 303421567.5 | D20: 372179452 | E20: 371474466 | F20: 336450105.3 | G20: 371474466
A22: Biological
A23: Intangible | C23: -3.9 | D23: 1635088 | E23: 1635088 | F23: -234349.28 | G23: 1635088
A24: Other non-current assets | C24: 380300 | D24: 368150 | E24: 368150 | F24: 392850 | G24: 368150
A25: Total non current assets | C25: =SUM(C16:C20)+SUM(C22:C24) -> 305416197.8 | D25: =SUM(D16:D20)+SUM(D22:D24) -> 375938641 | E25: =SUM(E16:E20)+SUM(E22:E24) -> 375233655 | F25: =SUM(F16:F20)+SUM(F22:F24) -> 338190297.1 | G25: =SUM(G16:G20)+SUM(G22:G24) -> 375233655
A26: TOTAL ASSETS | C26: =C13+C25 -> 456906754.4 | D26: =D13+D25 -> 537529739 | E26: =E13+E25 -> 609115137 | F26: =F13+F25 -> 516894000.8 | G26: =G13+G25 -> 609115137
A28: LIABILITIES
A29: Current liabilities
A30: Bank overdraft | C30: 0 | D30: 0 | E30: 0 | F30: 0 | G30: 0
A31: Borrowing | C31: 0 | D31: 75915 | E31: 75915 | F31: 0 | G31: 75915
A32: Consumer deposits | C32: 505376.48 | D32: 686366 | E32: 596366 | F32: 509126.48 | G32: 596366
A33: Trade and other payables | C33: 166190859.4 | D33: 50913046 | E33: 41023883 | F33: 16924467.59 | G33: 41023883
A34: Provisions | C34: 327999.9 | D34: 575598 | E34: 575598 | F34: 268303.18 | G34: 575598
A35: Total current liabilities | C35: =SUM(C30:C34) -> 167024235.8 | D35: =SUM(D30:D34) -> 52250925 | E35: =SUM(E30:E34) -> 42271762 | F35: =SUM(F30:F34) -> 17701897.25 | G35: =SUM(G30:G34) -> 42271762
A37: Non current liabilities
A38: Borrowing | C38: 0 | D38: 0 | E38: 0 | F38: 0 | G38: 0
A39: Provisions | C39: 26098177.59 | D39: 29939246 | E39: 29939246 | F39: 26050432.59 | G39: 29939246
A40: Total non current liabilities | C40: =SUM(C38:C39) -> 26098177.59 | D40: =SUM(D38:D39) -> 29939246 | E40: =SUM(E38:E39) -> 29939246 | F40: =SUM(F38:F39) -> 26050432.59 | G40: =SUM(G38:G39) -> 29939246
A41: TOTAL LIABILITIES | C41: =C35+C40 -> 193122413.4 | D41: =D35+D40 -> 82190171 | E41: =E35+E40 -> 72211008 | F41: =F35+F40 -> 43752329.84 | G41: =G35+G40 -> 72211008
A43: NET ASSETS | B43: 2 | C43: =C26-C41 -> 263784341.1 | D43: =D26-D41 -> 455339568 | E43: =E26-E41 -> 536904129 | F43: =F26-F41 -> 473141671 | G43: =G26-G41 -> 536904129
A45: COMMUNITY WEALTH/EQUITY
A46: Accumulated Surplus/(Deficit) | C46: 365125718.5 | D46: 399821514 | E46: 485090708 | F46: 421635265 | G46: 485090708
A47: Reserves | C47: 47695019.87 | D47: 55518054 | E47: 52518054 | F47: 47695019.87 | G47: 52518054
A48: TOTAL COMMUNITY WEALTH/EQUITY | B48: 2 | C48: =SUM(C46:C47) -> 412820738.3 | D48: =SUM(D46:D47) -> 455339568 | E48: =SUM(E46:E47) -> 537608762 | F48: =SUM(F46:F47) -> 469330284.9 | G48: =SUM(G46:G47) -> 537608762
A49: =head27a -> References
A50: 1. Material variances to be explained in Table SC1
A51: 2. Net assets must balance with Total Community Wealth/Equity
A54: check balance | C54: =C43-C48 -> -149036397.3 | D54: =D43-D48 -> 0 | E54: =E43-E48 -> -704633 | F54: =F43-F48 -> 3811386.12 | G54: =G43-G48 -> -704633

Sheet C7-CFlow
A1: =muni& " - "&S71F& " - "&date -> LIM353 Molemole - Table C7 Monthly Budget Statement - Cash Flow - Q4 Fourth Quarter
A2: =desc -> Description | B2: =head27 -> Ref | C2: =Head1 -> 2020/21 | D2: =Head2 -> Budget Year 2021/22
C3: =Head5 -> Audited Outcome | D3: =Head6 -> Original Budget | E3: =Head7 -> Adjusted Budget | F3: =Head38 -> Monthly actual | G3: =Head39 -> YearTD actual | H3: =Head40 -> YearTD budget | I3: =Head41 -> YTD variance | J3: =Head41 -> YTD variance | K3: =Head8 -> Full Year Forecast
A4: R thousands | B4: 1 | J4: %
A5: CASH FLOW FROM OPERATING ACTIVITIES
A6: Receipts
A7: Property rates | C7: 24783315.79 | D7: 0 | E7: -11278606 | F7: 317559.52 | G7: 27308054.71 | H7: -11278606 | I7: =G7-H7 -> 38586660.71 | J7: =IF(I7=0,"",I7/H7) -> -3.421226055 | K7: -11278606
A8: Service charges | C8: 913810.93 | D8: 0 | E8: -63225 | F8: 228577.5 | G8: 2789364.86 | H8: -63225 | I8: 2852589.86 | J8: =IF(I8=0,"",I8/H8) -> -45.11806817 | K8: -63225
A9: Other revenue | C9: 136781059.7 | D9: 0 | E9: -11021361 | F9: 48036431.89 | G9: 496697750 | H9: -11021361 | I9: 507719111 | J9: =IF(I9=0,"",I9/H9) -> -46.06682523 | K9: -11021361
A10: Transfers and Subsidies - Operational | C10: 429679.59 | D10: 0 | E10: 0 | F10: 0 | G10: 4729000 | H10: 0 | I10: 4729000 | J10: =IF(I10=0,"",I10/H10) ->  | K10: 0
A11: Transfers and Subsidies - Capital | C11: 11396850 | D11: 0 | E11: 0 | F11: 0 | G11: 47000000 | H11: 0 | I11: 47000000 | J11: =IF(I11=0,"",I11/H11) ->  | K11: 0
A12: Interest | C12: 765244.94 | D12: 0 | E12: 0 | F12: 0 | G12: 0 | H12: 0 | I12: 0 | K12: 0
A13: Dividends | I13: 0
A14: Payments
A15: Suppliers and employees | C15: -113363557.6 | D15: 0 | E15: 17788944 | F15: -82745591.03 | G15: -136277435.9 | H15: 17788944 | I15: =H15-G15 -> 154066379.9 | J15: 8.660794026 | K15: 17788944
A16: Finance charges | I16: =H16-G16 -> 0
A17: Transfers and Grants | I17: =H17-G17 -> 0
A18: NET CASH FROM/(USED) OPERATING ACTIVITIES | C18: =SUM(C7:C13)+SUM(C15:C17) -> 61706403.42 | D18: 0 | E18: -4574248 | F18: -34163022.12 | G18: 442246733.7 | H18: -4574248 | I18: =H18-G18 -> -446820981.7 | J18: 97.68184446 | K18: =SUM(K7:K13)+SUM(K15:K17) -> -4574248
A20: CASH FLOWS FROM INVESTING ACTIVITIES
A21: Receipts
A22: Proceeds on disposal of PPE | I22: =G22-H22 -> 0 | J22: =IF(I22=0,"",I22/H22) -> 
A24: Decrease (increase) in non-current receivables | I24: =G24-H24 -> 0
A25: Decrease (increase) in non-current investments | C25: 0 | D25: 0 | E25: 0 | F25: 0 | G25: 0 | H25: 0 | I25: =G25-H25 -> 0 | K25: 0
A26: Payments
A27: Capital assets | C27: -26519736.97 | D27: 0 | E27: 704986 | F27: -9730357.63 | G27: -46727641.51 | H27: 704986 | I27: =H27-G27 -> 47432627.51 | J27: 67.2816588 | K27: 704986
A28: NET CASH FROM/(USED) INVESTING ACTIVITIES | C28: =SUM(C22:C25)+C27 -> -26519736.97 | D28: =SUM(D22:D25)+D27 -> 0 | E28: 704986 | F28: -9730357.63 | G28: -46727641.51 | H28: 704986 | I28: =H28-G28 -> 47432627.51 | J28: 67.2816588 | K28: =SUM(K22:K25)+K27 -> 704986
A30: CASH FLOWS FROM FINANCING ACTIVITIES
A31: Receipts
A32: Short term loans | I32: =G32-H32 -> 0 | J32: =IF(I32=0,"",I32/H32) -> 
A33: Borrowing long term/refinancing | I33: =G33-H33 -> 0
A34: Increase (decrease) in consumer deposits | I34: =G34-H34 -> 0
A35: Payments
A36: Repayment of borrowing | C36: 0 | D36: 0 | E36: 0 | F36: 0 | G36: 0 | H36: 0 | I36: =H36-G36 -> 0 | K36: 0
A37: NET CASH FROM/(USED) FINANCING ACTIVITIES | C37: =SUM(C32:C34)+C36 -> 0 | D37: 0 | E37: 0 | F37: 0 | G37: 0 | H37: 0 | I37: =H37-G37 -> 0 | K37: =SUM(K32:K34)+K36 -> 0
A39: NET INCREASE/ (DECREASE) IN CASH HELD | C39: =C18+C28+C37 -> 35186666.45 | D39: 0 | E39: -3869262 | F39: -43893379.75 | G39: 395519092.2 | H39: -3869262 | K39: =K18+K28+K37 -> -3869262
A40: Cash/cash equivalents at beginning: | C40: 23010965.15 | D40: 0 | E40: 89549144 | F40: -24862216.89 | G40: 130139297 | H40: =IF(E40=0, D40, E40) -> 89549144 | K40: =G40 -> 130139297
A41: Cash/cash equivalents at month/year end: | C41: =C39+C40 -> 58197631.6 | D41: =D39+D40 -> 0 | E41: =E39+E40 -> 85679882 | G41: =G39+G40 -> 525658389.2 | H41: =H39+H40 -> 85679882 | K41: =K39+K40 -> 126270035
A42: References
A43: 1. Material variances to be explained in Table SC1

Sheet SC1
A1: =muni& " - "&S71G& " - "&date -> LIM353 Molemole - Supporting Table SC1 Material variance explanations - Q4 Fourth Quarter
A2: =head27 -> Ref | B2: =desc -> Description
C3: Variance | D3: Reasons for material deviations | E3: Remedial or corrective steps/remarks
B4: R thousands
A5: 1 | B5: ='C4-FinPerf RE'!A5 -> Revenue By Source
B7: SOURCE
B8: Property Rates | C8: 22748.428
B9: Fines, Penalties And Forfeits | C9: 95367.047
B10: Licences And Permits | C10: -48986.725
B11: Other Revenue | C11: 98441.907
B12: Service Charges - Electricity Revenue | C12: 35268.831
B13: Service Charges - Water Revenue | C13: -100000
B14: Service Charges - Sanitation Revenue | C14: -100000
B15: Rental Of Facilities And Equipment | C15: 14121.146
B16: VOTE
B17: Corporate Services | C17: 96721.195
B18: Community Services | C18: -21045.488
B19: Technical Services | C19: 11595.987
B20: STANDARD CLASSIFICATION
B21: Sport And Recreation | C21: 15318.065
B22: Public Safety | C22: -28046.541
B23: Planning And Development | C23: 18405.506
B24: Energy Sources | C24: 32388.571
B25: Waste Water Management | C25: 27487.538
A29: 2 | B29: ='C4-FinPerf RE'!A24 -> Expenditure By Type
B31: SOURCE
B32: Other Expenditure | C32: 15325.382
B33: Depreciation & Asset Impairment | C33: -9920.674
B34: Inventory Consumed | C34: -4097.801
B35: Contracted Services | C35: 14136.318
B36: VOTE
B37: Municipal Manager | C37: 14597.142
B38: Budget And Treasury | C38: 19735.581
B39: STANDARD CLASSIFICATION
B40: Sport And Recreation | C40: -18981.177
B41: Executive And Council | C41: 13463.335
B42: Finance And Administration | C42: 14020.32
B43: Planning And Development | C43: -4402.092
B44: Road Transport | C44: -6251.914
B45: Waste Water Management | C45: -7320.68
A49: 3 | B49: =RIGHT('C5-Capex'!A40,19) -> Capital Expenditure
B51: VOTE
B52: Technical Services | C52: 25323.164
B53: STANDARD CLASSIFICATION
B54: Finance And Administration | C54: 59625.987
B55: Energy Sources | C55: 35050.677
B56: Waste Water Management | C56: 22200.283
A60: 4 | B60: Financial Position
B62: Issues - Materials And Supplies | C62: 100000
B63: Issues - Consumables Zero Rated | C63: 100000
B64: Acquisitions - Consumables Zero Rated | C64: 100000
B65: Issues - Consumables Standard Rated | C65: 100000
B66: Surplus/(Deficit) | C66: 24156.853
B67: Other | C67: 100000
B68: Retirement Benefits | C68: 100000
B69: Refuse Landfill Site Rehabilitation | C69: 100000
B70: Provisions | C70: 109849.999
B71: Vat | C71: -100000
B72: Unspent Conditional Transfers | C72: 477295.075
B73: Trade Payables | C73: 103827.947
B74: Consumer Deposits | C74: 99371.191
B75: Current Portion Of Long-Term Liabilities | C75: 100000
B76: Revaluation | C76: 100000
B77: Other Adjustments | C77: -100000
B78: Accumulated Surplus/(Deficit) - Opening Balance | C78: 100000
B79: Ppe At Cost/Valuation (Excl. Finance Leases) | C79: 91788.363
B80: Less: Accumulated Depreciation | C80: 74533.979
B81: Leases Recognised As Ppe | C81: 43376.276
B82: Other Debtors | C82: 167465.259
B83: Contributions To The Provision | C83: 100000
B84: Consumer Debtors | C84: 95276.709
B85: Balance At The Beginning Of The Year | C85: 100000
B86: Cash | C86: 110209.572
A90: 5 | B90: Cash Flow
B92: CASH PAYMENTS
B93: Employee Related Costs | C93: 1451860
B94: Other Cash Flows/Payments | C94: 100000
B95: Other Expenditure | C95: 3108309
B96: CASH RECEIPTS
B97: Transfers Recognised - Operational | C97: 100000
B98: Agency Services | C98: 100000
B99: Fines, Penalties And Forfeits | C99: 100000
B100: Licences And Permits | C100: 100000
B101: Other Revenue | C101: 4477801
B102: Rental Of Facilities And Equipment | C102: 100000
B103: Property Rates | C103: 342123
B104: Service Charges - Electricity Revenue | C104: 1602512
B105: Service Charges - Refuse Revenue | C105: 100000
B106: Service Charges - Sanitation Revenue | C106: 100000
B107: Service Charges - Water Revenue | C107: 100000
B108: CASH PAYMENTS
B109: Capital Assets | C109: 6728166
B110: CASH RECEIPTS
B111: Transfer Receipts - Capital | C111: 100000
B112: CASH NET INCREASE/ (DECREASE) IN CASH HELD
B113: Cash/Cash Equivalents At The Month/Year Begin | C113: 100000
A117: 6 | B117: Measureable performance
A122: 7 | B122: Municipal Entities
A128: =head27a -> References
A129: 1. Revenue for each source, vote and standard classification
A130: 2. Expenditure for each type, vote and standard classification
A131: 3. Capital expenditure for each vote and standard classification
A132: 4. Explain any material variances between the annual budget and the expected financial position based on current trends
A133: 5. Cash receipts by source and cash payments by type where not explained under revenue and expenditure
A134: 6. For Sept, Dec, Mar and Jun statements explain any material variances in achievement of measurable performance objectives

Sheet SC2
A1: =muni& " - "&S71H& " - "&Head57 -> LIM353 Molemole - Supporting Table SC2 Monthly Budget Statement - performance indicators - Q4 Fourth Quarter
A2: Description of financial indicator | B2: Basis of calculation | C2: =head27 -> Ref | D2: =Head1 -> 2020/21 | E2: =Head2 -> Budget Year 2021/22
D3: =Head5 -> Audited Outcome | E3: =Head6 -> Original Budget | F3: =Head7 -> Adjusted Budget | G3: =Head39 -> YearTD actual | H3: =Head8 -> Full Year Forecast
A5: Borrowing Management
A7: Capital Charges to Operating Expenditure | B7: Interest & principal paid/Operating Expenditure | D7: =IF(ISERROR((D42-D43)/D45),0,((D42-D43)/D45)) -> 0.0008306244989 | E7: =IF(ISERROR((E42+E44)/E45),0,((E42+E44)/E45)) -> 0.08087256161 | F7: =IF(ISERROR((F42+F44)/F45),0,((F42+F44)/F45)) -> 0.08352848931 | G7: =IF(ISERROR((G42+G44)/G45),0,((G42+G44)/G45)) -> 1.974374711e-05 | H7: =IF(ISERROR((H42+H44)/H45),0,((H42+H44)/H45)) -> 0.06320942189
A8: Borrowed funding of 'own' capital expenditure | B8: Borrowings/Capital expenditure excl. transfers and grants | D8: =IF(ISERROR(D47/D46),0,(D47/D46)) -> 0 | E8: =IF(ISERROR(E47/E46),0,(E47/E46)) -> 0 | F8: =IF(ISERROR(F47/F46),0,(F47/F46)) -> 0 | G8: =IF(ISERROR(G47/G46),0,(G47/G46)) -> 0 | H8: =IF(ISERROR(H47/H46),0,(H47/H46)) -> 0
A9: Safety of Capital
A10: Debt to Equity | B10: Loans, Accounts Payable, Overdraft & Tax Provision/ Funds & Reserves | D10: =IF(ISERROR(D48/D49),0,(D48/D49)) -> 0.4025739115 | E10: =IF(ISERROR(E48/E49),0,(E48/E49)) -> 0.1119800794 | F10: =IF(ISERROR(F48/F49),0,(F48/F49)) -> 0.07644927112 | G10: =IF(ISERROR(G48/G49),0,(G48/G49)) -> 0.0360608896 | H10: =IF(ISERROR(H48/H49),0,(H48/H49)) -> 0.07644927112
A11: Gearing | B11: Long Term Borrowing/ Funds & Reserves | D11: =IF(ISERROR(D51/D50),0,(D51/D50)) -> 0 | E11: =IF(ISERROR(E51/E50),0,(E51/E50)) -> 0 | F11: =IF(ISERROR(F51/F50),0,(F51/F50)) -> 0 | G11: =IF(ISERROR(G51/G50),0,(G51/G50)) -> 0 | H11: =IF(ISERROR(H51/H50),0,(H51/H50)) -> 0
A12: Liquidity
A13: Current Ratio | B13: Current assets/current liabilities | C13: 1 | D13: =IF(ISERROR(D52/D53),0,(D52/D53)) -> 0.9069974543 | E13: =IF(ISERROR(E52/E53),0,(E52/E53)) -> 3.092597844 | F13: =IF(ISERROR(F52/F53),0,(F52/F53)) -> 5.532806558 | G13: =IF(ISERROR(G52/G53),0,(G52/G53)) -> 10.09517235 | H13: =IF(ISERROR(H52/H53),0,(H52/H53)) -> 5.532806558
A14: Liquidity Ratio | B14: Monetary Assets/Current Liabilities | D14: =IF(ISERROR(D54/D53),0,(D54/D53)) -> 0.4278152554 | E14: =IF(ISERROR(E54/E53),0,(E54/E53)) -> 0.4467911716 | F14: =IF(ISERROR(F54/F53),0,(F54/F53)) -> 2.584810446 | G14: =IF(ISERROR(G54/G53),0,(G54/G53)) -> 5.947220157 | H14: =IF(ISERROR(H54/H53),0,(H54/H53)) -> 2.584810446
A15: Revenue Management
A16: Annual Debtors Collection Rate (Payment Level %) | B16: Last 12 Mths Receipts/ Last 12 Mths Billing
A17: Outstanding Debtors to Revenue | B17: Total Outstanding Debtors to Annual Revenue | D17: =IF(ISERROR(D59/D55),0,(D59/D55)) -> 0.3081918231 | E17: =IF(ISERROR(E59/E55),0,(E59/E55)) -> 0.5143821024 | F17: =IF(ISERROR(F59/F55),0,(F59/F55)) -> 0.4998052176 | G17: =IF(ISERROR(G59/G55),0,(G59/G55)) -> 0.3266073856 | H17: =IF(ISERROR(H59/H55),0,(H59/H55)) -> 0.4998052176
A18: Longstanding Debtors Recovered | B18: Debtors > 12 Mths Recovered/Total Debtors > 12 Months Old | D18: =IF(ISERROR(D64/D63),0,(D64/D63)) -> 0 | E18: =IF(ISERROR(E64/E63),0,(E64/E63)) -> 0 | F18: =IF(ISERROR(F64/F63),0,(F64/F63)) -> 0 | G18: =IF(ISERROR(G64/G63),0,(G64/G63)) -> 0 | H18: =IF(ISERROR(H64/H63),0,(H64/H63)) -> 0
A19: Creditors Management
A20: Creditors System Efficiency | B20: % of Creditors Paid Within Terms (within MFMA s 65(e))
A21: Funding of Provisions
A22: Percentage Of Provisions Not Funded | B22: Unfunded Provisions/Total Provisions
A23: Other Indicators
A24: Electricity Distribution Losses | B24: % Volume (units purchased and generated less units sold)/units purchased and generated | C24: 2 | D24: 0.1 | E24: 0 | F24: 0 | G24: 0 | H24: 0
A25: Water Distribution Losses | B25: % Volume (units purchased and own source less units sold)/Total units purchased and own source | C25: 2
A26: Employee costs | B26: Employee costs/Total Revenue - capital revenue | D26: =IF(ISERROR(D40/D55),0,(D40/D55)) -> 0.3576410472 | E26: =IF(ISERROR(E40/E55),0,(E40/E55)) -> 0.3942702934 | F26: =IF(ISERROR(F40/F55),0,(F40/F55)) -> 0.397244243 | G26: =IF(ISERROR(G40/G55),0,(G40/G55)) -> 0.4205138213 | H26: =IF(ISERROR(H40/H55),0,(H40/H55)) -> 0.397244243
A27: Repairs & Maintenance | B27: R&M/Total Revenue - capital revenue | D27: =IF(ISERROR(D41/D55),0,(D41/D55)) -> 0.07101393277 | E27: =IF(ISERROR(E41/E55),0,(E41/E55)) -> 0.06740912582 | F27: =IF(ISERROR(F41/F55),0,(F41/F55)) -> 0.06985340548 | G27: =IF(ISERROR(G41/G55),0,(G41/G55)) -> 0.07112310614 | H27: =IF(ISERROR(H41/H55),0,(H41/H55)) -> 0.06985340548
A28: Interest & Depreciation | B28: I&D/Total Revenue - capital revenue | D28: =IF(ISERROR((D42+D44)/D55),0,((D42+D44)/D55)) -> 0.04798770571 | E28: =IF(ISERROR((E42+E44)/E55),0,((E42+E44)/E55)) -> 0.07476775601 | F28: =IF(ISERROR((F42+F44)/F55),0,((F42+F44)/F55)) -> 0.07726624623 | G28: =IF(ISERROR((G42+G44)/G55),0,((G42+G44)/G55)) -> 1.879926578e-05 | H28: =IF(ISERROR((H42+H44)/H55),0,((H42+H44)/H55)) -> 0.0584705266
A29: IDP regulation financial viability indicators
A30: i. Debt coverage | B30: (Total Operating Revenue - Operating Grants)/Debt service payments due within financial year)
A31: ii. O/S Service Debtors to Revenue | B31: Total outstanding service debtors/annual revenue received for services
A32: iii. Cost coverage | B32: (Available cash + Investments)/monthly fixed operational expenditure
A33: References
A34: 1. Consumer debtors > 12 months old are excluded from current assets.
A35: 2. Material variances to be explained.
A37: Calculations
A38: ='C6-FinPos'!A38 -> Borrowing | D38: ='C6-FinPos'!C38 -> 0 | E38: ='C6-FinPos'!D38 -> 0 | F38: ='C6-FinPos'!E38 -> 0 | G38: ='C6-FinPos'!F38 -> 0 | H38: 0
A39: Total Assets | D39: ='C6-FinPos'!C26 -> 456906754.4 | E39: ='C6-FinPos'!D26 -> 537529739 | F39: ='C6-FinPos'!E26 -> 609115137 | G39: ='C6-FinPos'!F26 -> 516894000.8 | H39: ='C6-FinPos'!G26 -> 609115137
A40: ='C4-FinPerf RE'!A25 -> Employee related costs | D40: ='C4-FinPerf RE'!C25 -> 91655492.25 | E40: ='C4-FinPerf RE'!D25 -> 105732276 | F40: ='C4-FinPerf RE'!E25 -> 98229953 | G40: ='C4-FinPerf RE'!G25 -> 93183462.74 | H40: ='C4-FinPerf RE'!K25 -> 98229953
A41: =A27 -> Repairs & Maintenance | D41: 18199300.71 | E41: 18077244 | F41: 17273244 | G41: 15760474.39 | H41: 17273244
A42: Interest (finance charges) | D42: ='C4-FinPerf RE'!C29 -> 183629.4 | E42: ='C4-FinPerf RE'!D29 -> 1055833 | F42: ='C4-FinPerf RE'!E29 -> 111490 | G42: ='C4-FinPerf RE'!G29 -> 4165.81 | H42: ='C4-FinPerf RE'!K29 -> 111490
A43: Principal paid | D43: =-'C7-CFlow'!C36 -> 0 | E43: =-'C7-CFlow'!D36 -> 0 | F43: =-'C7-CFlow'!E36 -> 0 | G43: =-'C7-CFlow'!G36 -> 0 | H43: =-'C7-CFlow'!K36 -> 0
A44: Depreciation | D44: ='C4-FinPerf RE'!C28 -> 12114558.47 | E44: ='C4-FinPerf RE'!D28 -> 18994790 | F44: ='C4-FinPerf RE'!E28 -> 18994790 | H44: ='C4-FinPerf RE'!K26 -> 14347013
A45: Operating expenditure | D45: ='C4-FinPerf RE'!C36 -> 221073903.1 | E45: ='C4-FinPerf RE'!D36 -> 247928625 | F45: ='C4-FinPerf RE'!E36 -> 228739681 | G45: ='C4-FinPerf RE'!G36 -> 210993889.7 | H45: ='C4-FinPerf RE'!K36 -> 228739681
A46: ='C5-Capex'!A40 -> Total Capital Expenditure | D46: ='C5-Capex'!C40 -> 50056507.07 | E46: ='C5-Capex'!D40 -> 65393793 | F46: ='C5-Capex'!E40 -> 64688807 | G46: ='C5-Capex'!G40 -> 46727641.51 | H46: ='C5-Capex'!K40 -> 64688807
A47: Borrowed funding for capital | D47: ='C5-Capex'!C72 -> 0 | E47: ='C5-Capex'!D72 -> 0 | F47: ='C5-Capex'!E72 -> 0 | G47: ='C5-Capex'!G72 -> 0 | H47: ='C5-Capex'!K72 -> 0
A48: Debt | D48: ='C6-FinPos'!C30+'C6-FinPos'!C31+'C6-FinPos'!C33+'C6-FinPos'!C38 -> 166190859.4 | E48: ='C6-FinPos'!D30+'C6-FinPos'!D31+'C6-FinPos'!D33+'C6-FinPos'!D38 -> 50988961 | F48: ='C6-FinPos'!E30+'C6-FinPos'!E31+'C6-FinPos'!E33+'C6-FinPos'!E38 -> 41099798 | G48: ='C6-FinPos'!F30+'C6-FinPos'!F31+'C6-FinPos'!F33+'C6-FinPos'!F38 -> 16924467.59 | H48: ='C6-FinPos'!G30+'C6-FinPos'!G31+'C6-FinPos'!G33+'C6-FinPos'!G38 -> 41099798
A49: Equity | D49: ='C6-FinPos'!C48 -> 412820738.3 | E49: ='C6-FinPos'!D48 -> 455339568 | F49: ='C6-FinPos'!E48 -> 537608762 | G49: ='C6-FinPos'!F48 -> 469330284.9 | H49: ='C6-FinPos'!G48 -> 537608762
A50: ='C6-FinPos'!A47 -> Reserves | D50: ='C6-FinPos'!C47 -> 47695019.87 | E50: ='C6-FinPos'!D47 -> 55518054 | F50: ='C6-FinPos'!E47 -> 52518054 | G50: ='C6-FinPos'!F47 -> 47695019.87 | H50: ='C6-FinPos'!G47 -> 52518054
A51: ='C6-FinPos'!A38 -> Borrowing | D51: ='C6-FinPos'!C38 -> 0 | E51: ='C6-FinPos'!D38 -> 0 | F51: ='C6-FinPos'!E38 -> 0 | G51: ='C6-FinPos'!F38 -> 0 | H51: ='C6-FinPos'!G38 -> 0
A52: ='C6-FinPos'!A6 -> Current assets | D52: ='C6-FinPos'!C13 -> 151490556.7 | E52: ='C6-FinPos'!D13 -> 161591098 | F52: ='C6-FinPos'!E13 -> 233881482 | G52: ='C6-FinPos'!F13 -> 178703703.7 | H52: ='C6-FinPos'!G13 -> 233881482
A53: ='C6-FinPos'!A29 -> Current liabilities | D53: ='C6-FinPos'!C35 -> 167024235.8 | E53: ='C6-FinPos'!D35 -> 52250925 | F53: ='C6-FinPos'!E35 -> 42271762 | G53: ='C6-FinPos'!F35 -> 17701897.25 | H53: ='C6-FinPos'!G35 -> 42271762
A54: Monetary assets | D54: ='C6-FinPos'!C7+'C6-FinPos'!C8 -> 71455516.09 | E54: ='C6-FinPos'!D7+'C6-FinPos'!D8 -> 23345252 | F54: ='C6-FinPos'!E7+'C6-FinPos'!E8 -> 109264492 | G54: ='C6-FinPos'!F7+'C6-FinPos'!F8 -> 105277080.1 | H54: ='C6-FinPos'!G7+'C6-FinPos'!G8 -> 109264492
A55: ='C4-FinPerf RE'!A22 -> Total Revenue (excluding capital transfers and contributions) | D55: ='C4-FinPerf RE'!C22 -> 256277888 | E55: ='C4-FinPerf RE'!D22 -> 268172058 | F55: ='C4-FinPerf RE'!E22 -> 247278481 | G55: ='C4-FinPerf RE'!G22 -> 221594292.6 | H55: ='C4-FinPerf RE'!K22 -> 247278481
A56: ='C4-FinPerf RE'!A19 -> Transfers and subsidies | D56: ='C4-FinPerf RE'!C19 -> 185288433.8 | E56: ='C4-FinPerf RE'!D19 -> 161092000 | F56: ='C4-FinPerf RE'!E19 -> 162092000 | G56: ='C4-FinPerf RE'!G19 -> 160032628.6 | H56: ='C4-FinPerf RE'!K19 -> 162092000
A57: ='C4-FinPerf RE'!A39 -> Transfers and subsidies - capital (monetary allocations) (National / Provincial and District) | D57: ='C4-FinPerf RE'!C39 -> 45027638.97 | E57: ='C4-FinPerf RE'!D39 -> 45150000 | F57: ='C4-FinPerf RE'!E39 -> 46150000 | G57: ='C4-FinPerf RE'!G39 -> 42807420.7 | H57: ='C4-FinPerf RE'!K39 -> 46150000
A58: Debt service payments | D58: ='C7-CFlow'!C12+'C7-CFlow'!C36 -> 765244.94 | E58: ='C7-CFlow'!D12+'C7-CFlow'!D36 -> 0 | F58: ='C7-CFlow'!E12+'C7-CFlow'!E36 -> 0 | G58: ='C7-CFlow'!G16+'C7-CFlow'!G36 -> 0 | H58: ='C7-CFlow'!K16+'C7-CFlow'!K36 -> 0
A59: Outstanding debtors (receivables) | D59: ='C6-FinPos'!C9+'C6-FinPos'!C10+'C6-FinPos'!C11+'C6-FinPos'!C16 -> 78982749.53 | E59: ='C6-FinPos'!D9+'C6-FinPos'!D10+'C6-FinPos'!D11+'C6-FinPos'!D16 -> 137942907 | F59: ='C6-FinPos'!E9+'C6-FinPos'!E10+'C6-FinPos'!E11+'C6-FinPos'!E16 -> 123591075 | G59: ='C6-FinPos'!F9+'C6-FinPos'!F10+'C6-FinPos'!F11+'C6-FinPos'!F16 -> 72374332.55 | H59: ='C6-FinPos'!G9+'C6-FinPos'!G10+'C6-FinPos'!G11+'C6-FinPos'!G16 -> 123591075
A60: Annual services revenue | D60: =SUM('C4-FinPerf RE'!C7:C11) -> 11061887.67 | E60: =SUM('C4-FinPerf RE'!D7:D11) -> 14195880 | F60: =SUM('C4-FinPerf RE'!E7:E11) -> 14195880 | G60: =SUM('C4-FinPerf RE'!G7:G11) -> 10291798.55
A61: Cash + investments | B61: Including LT investments | D61: ='C6-FinPos'!C7+'C6-FinPos'!C8+'C6-FinPos'!C17-'C6-FinPos'!C30 -> 71455516.09 | E61: ='C6-FinPos'!D7+'C6-FinPos'!D8+'C6-FinPos'!D17-'C6-FinPos'!D30 -> 23345252 | F61: ='C6-FinPos'!E7+'C6-FinPos'!E8+'C6-FinPos'!E17-'C6-FinPos'!E30 -> 109264492 | G61: ='C6-FinPos'!F7+'C6-FinPos'!F8+'C6-FinPos'!F17-'C6-FinPos'!F30 -> 105277080.1 | H61: ='C6-FinPos'!G7+'C6-FinPos'!G8+'C6-FinPos'!G17-'C6-FinPos'!G30 -> 109264492
A62: Fixed operational expend. (monthly)
A63: Longstanding debtors outstanding | D63: ='C6-FinPos'!C16 -> 0 | E63: ='C6-FinPos'!D16 -> 0 | F63: ='C6-FinPos'!E16 -> 0 | G63: ='C6-FinPos'!F16 -> 0 | H63: ='C6-FinPos'!G16 -> 0
A64: Longstanding debtors recovered
A65: Attorney collections

Sheet SC3
A1: =muni& " - "&S71I& " - "&Head57 -> LIM353 Molemole - Supporting Table SC3 Monthly Budget Statement - aged debtors - Q4 Fourth Quarter
A2: =desc -> Description | C2: =Head2 -> Budget Year 2021/22
A3: R thousands | B3: NT Code | C3: 0-30 Days | D3: 31-60 Days | E3: 61-90 Days | F3: 91-120 Days | G3: 121-150 Dys | H3: 151-180 Dys | I3: 181 Dys-1 Yr | J3: Over 1Yr | K3: Total | L3: Total over 90 days | M3: Actual Bad Debts Written Off against Debtors | N3: Impairment - Bad Debts i.t.o Council Policy
A4: Debtors Age Analysis By Income Source
A5: Trade and Other Receivables from Exchange Transactions - Water | B5: 1200 | C5: 94087 | D5: 86652 | E5: 114415 | F5: 4476932 | G5: 0 | H5: 0 | I5: 0 | J5: 0 | K5: =SUM(C5:J5) -> 4772086 | L5: =SUM(F5:J5) -> 4476932 | M5: 0 | N5: 0
A6: Trade and Other Receivables from Exchange Transactions - Electricity | B6: 1300 | C6: 0 | D6: 0 | E6: 0 | F6: 1619471 | G6: 0 | H6: 0 | I6: 0 | J6: 0 | K6: =SUM(C6:J6) -> 1619471 | L6: =SUM(F6:J6) -> 1619471 | M6: 0 | N6: 0
A7: Receivables from Non-exchange Transactions - Property Rates | B7: 1400 | C7: 112748 | D7: 112730 | E7: 111471 | F7: 12055538 | G7: 0 | H7: 0 | I7: 0 | J7: 0 | K7: =SUM(C7:J7) -> 12392487 | L7: 12055538 | M7: 0 | N7: 0
A8: Receivables from Exchange Transactions - Waste Water Management | B8: 1500 | C8: 69462 | D8: 70482 | E8: 65022 | F8: 2553808 | G8: 0 | H8: 0 | I8: 0 | J8: 0 | K8: 2758774 | L8: 2553808 | M8: 0 | N8: 0
A9: Receivables from Exchange Transactions - Waste Management | B9: 1600 | C9: 223688 | D9: 224530 | E9: 215511 | F9: 12943022 | G9: 0 | H9: 0 | I9: 0 | J9: 0 | K9: 13606751 | L9: =SUM(F9:J9) -> 12943022 | M9: 0 | N9: 0
A10: Receivables from Exchange Transactions - Property Rental Debtors | B10: 1700 | K10: 0 | L10: =SUM(F10:J10) -> 0
A11: Interest on Arrear Debtor Accounts | B11: 1810 | K11: 0 | L11: 0
A12: Recoverable unauthorised, irregular, fruitless and wasteful expenditure | B12: 1820 | K12: 0 | L12: 0
A13: Other | B13: 1900 | C13: 2339524 | D13: 2308098 | E13: 2289848 | F13: 72816513 | G13: 0 | H13: 0 | I13: 0 | J13: 0 | K13: 79753983 | L13: =SUM(F13:J13) -> 72816513 | M13: 0 | N13: 0
A14: Total By Income Source | B14: 2000 | C14: =SUM(C5:C13) -> 2839509 | D14: 2802492 | E14: 2796267 | F14: 106465284 | G14: 0 | H14: 0 | I14: 0 | J14: 0 | K14: 114903552 | L14: =SUM(L5:L13) -> 106465284 | M14: 0 | N14: 0
A15: =Head1&" - totals only" -> 2020/21 - totals only | K15: =SUM(C15:J15) -> 0 | L15: =SUM(F15:J15) -> 0
A16: Debtors Age Analysis By Customer Group
A17: Organs of State | B17: 2200 | K17: =SUM(C17:J17) -> 0 | L17: =SUM(F17:J17) -> 0
A18: Commercial | B18: 2300 | K18: =SUM(C18:J18) -> 0 | L18: =SUM(F18:J18) -> 0
A19: Households | B19: 2400 | K19: =SUM(C19:J19) -> 0 | L19: =SUM(F19:J19) -> 0
A20: Other | B20: 2500 | K20: =SUM(C20:J20) -> 0 | L20: =SUM(F20:J20) -> 0
A21: Total By Customer Group | B21: 2600 | C21: =SUM(C17:C20) -> 0 | D21: 0 | E21: 0 | F21: 0 | G21: 0 | H21: 0 | I21: 0 | J21: =SUM(J17:J20) -> 0 | K21: =SUM(K17:K20) -> 0 | L21: =SUM(L17:L20) -> 0 | M21: =SUM(M17:M20) -> 0 | N21: =SUM(N17:N20) -> 0
A22: Notes
A23: Material increases in value of debtors' categories compared to previous month to be explained
A24: Bad debts = amounts actually written off in the month
A25: Total by Income Source must reconcile with Total by Customer Group
C26: =C14-C21 -> 2839509 | D26: =D14-D21 -> 2802492 | E26: =E14-E21 -> 2796267 | F26: 106465284 | G26: 0 | H26: 0 | I26: 0 | J26: =J14-J21 -> 0 | K26: 114903552
C27: =IF(C26=0,"","MUST AGREE") -> MUST AGREE | D27: =IF(D26=0,"","MUST AGREE") -> MUST AGREE | E27: MUST AGREE | F27: MUST AGREE | K27: MUST AGREE

Sheet SC4
A1: =muni& " - "&S71J& " - "&Head57 -> LIM353 Molemole - Supporting Table SC4 Monthly Budget Statement - aged creditors - Q4 Fourth Quarter
A2: =desc -> Description | B2: NT Code | C2: =Head2 -> Budget Year 2021/22 | L2: Prior year totals for chart (same period)
C3: 0 - 30 Days | D3: 31 - 60 Days | E3: 61 - 90 Days | F3: 91 - 120 Days | G3: 121 - 150 Days | H3: 151 - 180 Days | I3: 181 Days - 1 Year | J3: Over 1 Year | K3: Total
A4: R thousands
A5: Creditors Age Analysis By Customer Type
A6: Bulk Electricity | B6: 0100 | K6: =SUM(C6:J6) -> 0
A7: Bulk Water | B7: 0200 | K7: =SUM(C7:J7) -> 0
A8: PAYE deductions | B8: 0300 | K8: 0
A9: VAT (output less input) | B9: 0400 | K9: 0
A10: Pensions / Retirement deductions | B10: 0500 | K10: 0
A11: Loan repayments | B11: 0600 | K11: 0
A12: Trade Creditors | B12: 0700 | K12: 0
A13: Auditor General | B13: 0800 | K13: 0
A14: Other | B14: 0900 | C14: 2256261.27 | D14: 44000 | E14: 83028 | F14: 1264689.38 | G14: 0 | H14: 0 | I14: 0 | J14: 0 | K14: =SUM(C14:J14) -> 3647978.65 | L14: 451691.09
A15: Total By Customer Type | B15: 1000 | C15: =SUM(C6:C14) -> 2256261.27 | D15: =SUM(D6:D14) -> 44000 | E15: 83028 | F15: 1264689.38 | G15: 0 | H15: 0 | I15: 0 | J15: 0 | K15: =SUM(K6:K14) -> 3647978.65 | L15: =SUM(L6:L14) -> 451691.09
A16: Notes
A17: Material increases in value of creditors' categories compared to previous month to be explained

Sheet SC5
A1: =muni& " - "&S71K& " - "&Head57 -> LIM353 Molemole - Supporting Table SC5 Monthly Budget Statement - investment portfolio - Q4 Fourth Quarter
A2: Investments by maturity Name of institution & investment ID | B2: Ref | C2: Period of Investment | D2: Type of Investment | E2: Capital Guarantee (Yes/ No) | F2: Variable or Fixed interest rate | G2: Interest Rate ᶟ | H2: Commission Paid (Rands) | I2: Commission Recipient | J2: Expiry date of investment | K2: Opening balance | L2: Interest to be realised | M2: Partial / Premature Withdrawal (4) | N2: Investment Top Up | O2: Closing Balance
A3: R thousands | C3: Yrs/Months
A4: Municipality
O5: =SUM(K5:N5) -> 0
A6: Municipality sub-total | K6: =SUM(K5:K5) -> 0 | M6: =SUM(M5:M5) -> 0 | N6: =SUM(N5:N5) -> 0 | O6: =SUM(O5:O5) -> 0
A8: Entities
O9: =SUM(K9:N9) -> 0
O10: 0
O11: 0
O12: 0
O13: 0
O14: 0
O15: 0
A16: Entities sub-total | K16: =SUM(K9:K15) -> 0 | M16: =SUM(M9:M15) -> 0 | N16: =SUM(N9:N15) -> 0 | O16: =SUM(O9:O15) -> 0
A18: TOTAL INVESTMENTS AND INTEREST | B18: 2 | K18: =K6+K16 -> 0 | M18: =M6+M16 -> 0 | N18: =N6+N16 -> 0 | O18: =O6+O16 -> 0
A19: =head27a -> References
A20: 2. List investments in expiry date order
A21: 3. If 'variable' is selected in column F, input interest rate range
A22: 4. Withdrawals to be entered as negative

Sheet SC6
A1: =muni& " - "&S71L& " - "&Head57 -> LIM353 Molemole - Supporting Table SC6 Monthly Budget Statement - transfers and grant receipts - Q4 Fourth Quarter
A2: =desc -> Description | B2: =head27 -> Ref | C2: =Head1 -> 2020/21 | D2: =Head2 -> Budget Year 2021/22
C3: =Head5 -> Audited Outcome | D3: =Head6 -> Original Budget | E3: =Head7 -> Adjusted Budget | F3: =Head38 -> Monthly actual | G3: =Head39 -> YearTD actual | H3: =Head40 -> YearTD budget | I3: =Head41 -> YTD variance | J3: =Head41 -> YTD variance | K3: =Head8 -> Full Year Forecast
A4: R thousands | J4: %
A5: RECEIPTS: | B5: 1,2
A7: Operating Transfers and Grants
A8: National Government: | C8: =SUM(C9:C14) -> 185288433.9 | D8: 161092000 | E8: 162092000 | F8: 1338000.01 | G8: 160032628.5 | H8: 162092000 | I8: =G8-H8 -> -2059371.45 | J8: =IF(H8=0,"",I8/H8) -> -0.01270495429 | K8: =SUM(K9:K14) -> 162092000
A9: Equitable Share | C9: 179962121.7 | D9: 155513000 | E9: 155513000 | F9: 0 | G9: 154884000 | H9: 155513000 | I9: -629000 | J9: -0.004044677937 | K9: 155513000
A10: Expanded Public Works Programme Integrated Grant | C10: 1262447.05 | D10: 1429000 | E10: 1429000 | F10: 316720 | G10: 1420270 | H10: 1429000 | I10: -8730 | J10: -0.00610916725 | K10: 1429000
A11: Local Government Financial Management Grant | C11: 2356147.33 | D11: 2300000 | E11: 2300000 | F11: 649592.28 | G11: 1937719.54 | H11: 2300000 | I11: -362280.46 | J11: -0.1575132435 | K11: 2300000
A12: Municipal Demarcation Transition Grant | C12: 0 | D12: 0 | E12: 0 | F12: 0 | G12: 0 | H12: 0 | I12: 0 | K12: 0
A13: Municipal Disaster Relief Grant | C13: 0 | D13: 0 | E13: 1000000 | F13: 0 | G13: 0 | H13: 1000000 | I13: -1000000 | J13: -1 | K13: 1000000
A14: Municipal Infrastructure Grant | C14: 1707717.78 | D14: 1850000 | E14: 1850000 | F14: 371687.73 | G14: 1790639.01 | H14: 1850000 | I14: -59360.99 | J14: -0.03208702162 | K14: 1850000
A15: Other transfers and grants [insert description] | I15: =G15-H15 -> 0 | J15: =IF(I15=0,"",I15/H15) -> 
A16: Provincial Government: | C16: =SUM(C17:C17) -> 0 | D16: 0 | E16: 0 | F16: 0 | G16: 0 | H16: 0 | I16: =G16-H16 -> 0 | J16: =IF(H16=0,"",I16/H16) ->  | K16: =SUM(K17:K17) -> 0
A17: Other | C17: 0 | D17: 0 | E17: 0 | F17: 0 | G17: 0 | H17: 0 | I17: =G17-H17 -> 0 | J17: =IF(H17=0,"",I17/H17) ->  | K17: 0
A18: Other transfers and grants [insert description] | I18: =G18-H18 -> 0
A19: District Municipality: | C19: =SUM(C20:C21) -> 0 | D19: 0 | E19: 0 | F19: 0 | G19: 0 | H19: 0 | I19: =G19-H19 -> 0 | J19: =IF(H19=0,"",I19/H19) ->  | K19: =SUM(K20:K21) -> 0
A20: Community and Social Services | C20: 0 | D20: 0 | E20: 0 | F20: 0 | G20: 0 | H20: 0 | I20: =G20-H20 -> 0 | J20: =IF(H20=0,"",I20/H20) ->  | K20: 0
A21: Planning and Development | C21: 0 | D21: 0 | E21: 0 | F21: 0 | G21: 0 | H21: 0 | I21: =G21-H21 -> 0 | J21: =IF(H21=0,"",I21/H21) ->  | K21: 0
A22: Other grant providers: | C22: =SUM(C23:C23) -> 0 | D22: 0 | E22: 0 | F22: 0 | G22: 0 | H22: 0 | I22: =G22-H22 -> 0 | J22: =IF(H22=0,"",I22/H22) ->  | K22: =SUM(K23:K23) -> 0
A23: Non-statutory Forces | C23: 0 | D23: 0 | E23: 0 | F23: 0 | G23: 0 | H23: 0 | I23: =G23-H23 -> 0 | J23: =IF(H23=0,"",I23/H23) ->  | K23: 0
A24: Total Operating Transfers and Grants | B24: 5 | C24: =C8+C16+C19+C22 -> 185288433.9 | D24: 161092000 | E24: 162092000 | F24: 1338000.01 | G24: 160032628.5 | H24: 162092000 | I24: -2059371.45 | J24: -0.01270495429 | K24: =K8+K16+K19+K22 -> 162092000
A26: Capital Transfers and Grants
A27: =A8 -> National Government: | C27: =SUM(C28:C31) -> 45027638.97 | D27: 45150000 | E27: 46150000 | F27: 16393183.22 | G27: 42807420.7 | H27: 46150000 | I27: =G27-H27 -> -3342579.3 | J27: =IF(H27=0,"",I27/H27) -> -0.07242858722 | K27: =SUM(K28:K31) -> 46150000
A28: Energy Efficiency and Demand Side Management Grant | C28: 2538226.95 | D28: 0 | E28: 0 | F28: 0 | G28: 0 | H28: 0 | I28: =G28-H28 -> 0 | J28: =IF(H28=0,"",I28/H28) ->  | K28: 0
A29: Integrated National Electrification Programme Grant | C29: 8714412.24 | D29: 10000000 | E29: 10000000 | F29: 3679945.4 | G29: 7287250.24 | H29: 10000000 | I29: =G29-H29 -> -2712749.76 | J29: =IF(H29=0,"",I29/H29) -> -0.271274976 | K29: 10000000
A30: Municipal Disaster Relief Grant | C30: 0 | D30: 0 | E30: 1000000 | F30: 0 | G30: 557290 | H30: 1000000 | I30: =G30-H30 -> -442710 | J30: =IF(H30=0,"",I30/H30) -> -0.44271 | K30: 1000000
A31: Municipal Infrastructure Grant | C31: 33774999.78 | D31: 35150000 | E31: 35150000 | F31: 12713237.82 | G31: 34962880.46 | H31: 35150000 | I31: =G31-H31 -> -187119.54 | J31: =IF(H31=0,"",I31/H31) -> -0.005323457752 | K31: 35150000
A32: =A16 -> Provincial Government: | C32: =SUM(C33:C33) -> 0 | D32: 0 | E32: 0 | F32: 0 | G32: 0 | H32: 0 | I32: =G32-H32 -> 0 | J32: =IF(I32=0,"",I32/H32) ->  | K32: =SUM(K33:K33) -> 0
A33: [insert description] | I33: 0 | J33: =IF(I33=0,"",I33/H33) -> 
A34: =A19 -> District Municipality: | C34: =SUM(C35:C35) -> 1234955.28 | D34: 0 | E34: 0 | F34: 0 | G34: 0 | H34: 0 | I34: =G34-H34 -> 0 | J34: =IF(H34=0,"",I34/H34) ->  | K34: =SUM(K35:K35) -> 0
A35: Specify (Add grant description) | C35: 1234955.28 | D35: 0 | E35: 0 | F35: 0 | G35: 0 | H35: 0 | I35: =G35-H35 -> 0 | J35: =IF(H35=0,"",I35/H35) ->  | K35: 0
A36: =A22 -> Other grant providers: | C36: =SUM(C37:C37) -> 0 | D36: 0 | E36: 0 | F36: 0 | G36: 0 | H36: 0 | I36: 0 | J36: =IF(I36=0,"",I36/H36) ->  | K36: =SUM(K37:K37) -> 0
A37: [insert description] | I37: 0 | J37: =IF(I37=0,"",I37/H37) -> 
A38: Total Capital Transfers and Grants | B38: 5 | C38: =C27+C32+C34+C36 -> 46262594.25 | D38: 45150000 | E38: 46150000 | F38: 16393183.22 | G38: 42807420.7 | H38: 46150000 | I38: -3342579.3 | J38: -0.07242858722 | K38: =K27+K32+K34+K36 -> 46150000
A40: TOTAL RECEIPTS OF TRANSFERS & GRANTS | B40: 5 | C40: =C24+C38 -> 231551028.1 | D40: 206242000 | E40: 208242000 | F40: 17731183.23 | G40: 202840049.2 | H40: 208242000 | I40: -5401950.75 | J40: -0.02594073602 | K40: =K24+K38 -> 208242000
A41: =head27a -> References
A42: 1. Each grant is listed by name as gazetted together with the name of the transferring department or municipality, donor or other organisation
A43: 2. Grant expenditure must be separately listed for each grant received
A44: 3. Replacement of RSC levies
A45: 4. Housing subsidies for housing where ownership transferred
A46: 5. Total recurrent/capital grants and subsidies must reconcile to the 'Financial Performance' Statement

Sheet SC7(1)
A1: =muni& " - "&S71M& " - "&Head57 -> LIM353 Molemole - Supporting Table SC7(1) Monthly Budget Statement - transfers and grant expenditure - Q4 Fourth Quarter
A2: =desc -> Description | B2: =head27 -> Ref | C2: =Head1 -> 2020/21 | D2: =Head2 -> Budget Year 2021/22
C3: =Head5 -> Audited Outcome | D3: =Head6 -> Original Budget | E3: =Head7 -> Adjusted Budget | F3: =Head38 -> Monthly actual | G3: =Head39 -> YearTD actual | H3: =Head40 -> YearTD budget | I3: =Head41 -> YTD variance | J3: =Head41 -> YTD variance | K3: =Head8 -> Full Year Forecast
A4: R thousands | J4: %
A5: EXPENDITURE
A7: Operating expenditure of Transfers and Grants
A8: ='SC6'!A8 -> National Government: | C8: =SUM(C9:C15) -> 118242144.9 | D8: 140008274 | E8: 130217761 | F8: 11239874.57 | G8: 121056633.7 | H8: 130217761 | I8: -9161127.29 | J8: =IF(I8=0,"",I8/H8) -> -0.07035236376 | K8: =SUM(K9:K15) -> 130217761
I9: =G9-H9 -> 0
A10: Equitable Share | C10: 114016096 | D10: 134215328 | E10: 124495652 | F10: 10374108.48 | G10: 115589120.6 | H10: 124495652 | I10: =G10-H10 -> -8906531.38 | J10: =IF(H10=0,"",I10/H10) -> -0.07154090313 | K10: 124495652
A11: Expanded Public Works Programme Integrated Grant | C11: 1262447.05 | D11: 1429000 | E11: 1429000 | F11: 123355 | G11: 1420699.12 | H11: 1429000 | I11: -8300.88 | J11: -0.005808873338 | K11: 1429000
A12: Local Government Financial Management Grant | C12: 2963601.89 | D12: 2801738 | E12: 2901738 | F12: 595355.18 | G12: 2304983.02 | H12: 2901738 | I12: -596754.98 | J12: -0.2056543285 | K12: 2901738
A13: Municipal Demarcation Transition Grant | C13: 0 | D13: 0 | E13: 0 | F13: 0 | G13: 0 | H13: 0 | I13: 0 | K13: 0
A14: Municipal Disaster Relief Grant | C14: 0 | D14: 0 | E14: 0 | F14: 0 | G14: 0 | H14: 0 | I14: 0 | K14: 0
A15: Municipal Infrastructure Grant | C15: 0 | D15: 1562208 | E15: 1391371 | F15: 147055.91 | G15: 1741830.95 | H15: 1391371 | I15: 350459.95 | J15: 0.2518810224 | K15: 1391371
A16: ='SC6'!A16 -> Provincial Government: | C16: =SUM(C17:C18) -> 0 | D16: 0 | E16: 0 | F16: 0 | G16: 0 | H16: 0 | I16: 0 | K16: =SUM(K17:K18) -> 0
I17: =G17-H17 -> 0
A18: Other | C18: 0 | D18: 0 | E18: 0 | F18: 0 | G18: 0 | H18: 0 | I18: =G18-H18 -> 0 | J18: =IF(H18=0,"",I18/H18) ->  | K18: 0
A19: ='SC6'!A19 -> District Municipality: | C19: =SUM(C20:C20) -> 0 | D19: 0 | E19: 0 | F19: 0 | G19: 0 | H19: 0 | I19: 0 | K19: =SUM(K20:K20) -> 0
I20: 0
A21: Community and Social Services | C21: 0 | D21: 0 | E21: 0 | F21: 0 | G21: 0 | H21: 0 | I21: =G21-H21 -> 0 | J21: =IF(H21=0,"",I21/H21) ->  | K21: 0
A22: ='SC6'!A22 -> Other grant providers: | C22: =SUM(C23:C24) -> 0 | D22: 200000 | E22: 200000 | F22: 0 | G22: 0 | H22: 200000 | I22: -200000 | J22: -1 | K22: =SUM(K23:K24) -> 200000
I23: 0
A24: Municipal Demarcation Board | C24: 0 | D24: 200000 | E24: 200000 | F24: 0 | G24: 0 | H24: 200000 | I24: =G24-H24 -> -200000 | J24: =IF(H24=0,"",I24/H24) -> -1 | K24: 200000
A25: Total operating expenditure of Transfers and Grants: | C25: =C8+C16+C19+C22 -> 118242144.9 | D25: 140208274 | E25: 130417761 | F25: 11239874.57 | G25: 121056633.7 | H25: 130417761 | I25: -9361127.29 | J25: -0.07177800952 | K25: =K8+K16+K19+K22 -> 130417761
A27: Capital expenditure of Transfers and Grants
A28: ='SC6'!A27 -> National Government: | C28: =SUM(C29:C32) -> 39133689.96 | D28: 45437793 | E28: 46342500 | F28: 8493774.39 | G28: 37939545.53 | H28: 46342500 | I28: -8402954.47 | J28: =IF(I28=0,"",I28/H28) -> -0.1813228563 | K28: =SUM(K29:K32) -> 46342500
A29: Energy Efficiency and Demand Side Management Grant | C29: 2207153.87 | D29: 0 | E29: 0 | F29: 0 | G29: 0 | H29: 0 | I29: =G29-H29 -> 0 | J29: =IF(H29=0,"",I29/H29) ->  | K29: 0
A30: Integrated National Electrification Programme Grant | C30: 7577749.78 | D30: 10000000 | E30: 10000000 | F30: 3242242.64 | G30: 6420484.79 | H30: 10000000 | I30: =G30-H30 -> -3579515.21 | J30: =IF(H30=0,"",I30/H30) -> -0.357951521 | K30: 10000000
A31: Municipal Disaster Relief Grant | C31: 0 | D31: 0 | E31: 1000000 | F31: 193350 | G31: 808450 | H31: 1000000 | I31: =G31-H31 -> -191550 | J31: =IF(H31=0,"",I31/H31) -> -0.19155 | K31: 1000000
A32: Municipal Infrastructure Grant | C32: 29348786.31 | D32: 35437793 | E32: 35342500 | F32: 5058181.75 | G32: 30710610.74 | H32: 35342500 | I32: =G32-H32 -> -4631889.26 | J32: =IF(H32=0,"",I32/H32) -> -0.1310572048 | K32: 35342500
A33: ='SC6'!A32 -> Provincial Government: | C33: =SUM(C34:C34) -> 0 | D33: 0 | E33: 0 | F33: 0 | G33: 0 | H33: 0 | I33: =G33-H33 -> 0 | K33: =SUM(K34:K34) -> 0
A34: Other | C34: 0 | D34: 0 | E34: 0 | F34: 0 | G34: 0 | H34: 0 | I34: =G34-H34 -> 0 | J34: =IF(H34=0,"",I34/H34) ->  | K34: 0
A35: ='SC6'!A34 -> District Municipality: | C35: =SUM(C36:C37) -> 1156205.28 | D35: 0 | E35: 0 | F35: 0 | G35: 0 | H35: 0 | I35: 0 | K35: =SUM(K36:K37) -> 0
A36: Community and Social Services | C36: 0 | D36: 0 | E36: 0 | F36: 0 | G36: 0 | H36: 0 | I36: =G36-H36 -> 0 | J36: =IF(H36=0,"",I36/H36) ->  | K36: 0
A37: Specify (Add grant description) | C37: 1156205.28 | D37: 0 | E37: 0 | F37: 0 | G37: 0 | H37: 0 | I37: =G37-H37 -> 0 | J37: =IF(H37=0,"",I37/H37) ->  | K37: 0
A38: ='SC6'!A36 -> Other grant providers: | C38: =SUM(C39:C40) -> 0 | D38: 0 | E38: 0 | F38: 0 | G38: 0 | H38: 0 | I38: 0 | K38: =SUM(K39:K40) -> 0
A39: Municipal Demarcation Board | C39: 0 | D39: 0 | E39: 0 | F39: 0 | G39: 0 | H39: 0 | I39: =G39-H39 -> 0 | J39: =IF(H39=0,"",I39/H39) ->  | K39: 0
A40: Municipal Infrastructure Investment Unit | C40: 0 | D40: 0 | E40: 0 | F40: 0 | G40: 0 | H40: 0 | I40: =G40-H40 -> 0 | J40: =IF(H40=0,"",I40/H40) ->  | K40: 0
A41: Total capital expenditure of Transfers and Grants | C41: =C28+C33+C35+C38 -> 40289895.24 | D41: 45437793 | E41: 46342500 | F41: 8493774.39 | G41: 37939545.53 | H41: 46342500 | I41: -8402954.47 | J41: =IF(I41=0,"",I41/H41) -> -0.1813228563 | K41: =K28+K33+K35+K38 -> 46342500
A43: TOTAL EXPENDITURE OF TRANSFERS AND GRANTS | C43: =C25+C41 -> 158532040.1 | D43: 185646067 | E43: 176760261 | F43: 19733648.96 | G43: 158996179.2 | H43: 176760261 | I43: -17764081.76 | J43: =IF(I43=0,"",I43/H43) -> -0.1004981643 | K43: =K25+K41 -> 176760261
A44: =head27a -> References

Sheet SC7(2)
A1: =muni& " - "&S71T& " - "&Head57 -> LIM353 Molemole - Supporting Table SC7(2) Monthly Budget Statement - Expenditure against approved rollovers - Q4 Fourth Quarter
A2: =desc -> Description | B2: =head27 -> Ref | C2: =Head2 -> Budget Year 2021/22
C3: ="Approved Rollover " &Head1 -> Approved Rollover 2020/21 | D3: =Head38 -> Monthly actual | E3: =Head39 -> YearTD actual | F3: =Head41 -> YTD variance | G3: =Head41 -> YTD variance
A4: R thousands | G4: %
A5: EXPENDITURE
A7: Operating expenditure of Approved Roll-overs
A8: ='SC6'!A8 -> National Government: | C8: =SUM(C9:C9) -> 0 | D8: =SUM(D9:D9) -> 0 | E8: =SUM(E9:E9) -> 0 | F8: =SUM(F9:F9) -> 0 | G8: =IF(F8=0,"",F8/C8) -> 
A9: Local Government Equitable Share | C9: 0 | D9: 0 | E9: 0 | F9: =E9-C9 -> 0 | G9: =IF(C9=0,"",F9/C9) -> 
A10: ='SC6'!A16 -> Provincial Government: | C10: =SUM(C11:C11) -> 0 | D10: =SUM(D11:D11) -> 0 | E10: =SUM(E11:E11) -> 0 | F10: =SUM(F11:F11) -> 0 | G10: =IF(F10=0,"",F10/C10) -> 
F11: =C11-E11 -> 0
A12: ='SC6'!A19 -> District Municipality: | C12: =SUM(C13:C13) -> 0 | D12: =SUM(D13:D13) -> 0 | E12: =SUM(E13:E13) -> 0 | F12: =SUM(F13:F13) -> 0
F13: =C13-E13 -> 0
A14: ='SC6'!A22 -> Other grant providers: | C14: =SUM(C15:C15) -> 0 | D14: =SUM(D15:D15) -> 0 | E14: =SUM(E15:E15) -> 0 | F14: =SUM(F15:F15) -> 0
F15: =C15-E15 -> 0
A16: Total operating expenditure of Approved Roll-overs | C16: =C8+C10+C12+C14 -> 0 | D16: =D8+D10+D12+D14 -> 0 | E16: =E8+E10+E12+E14 -> 0 | F16: =F8+F10+F12+F14 -> 0
A18: Capital expenditure of Approved Roll-overs
A19: ='SC6'!A27 -> National Government: | C19: =SUM(C20:C20) -> 0 | D19: =SUM(D20:D20) -> 0 | E19: =SUM(E20:E20) -> 0 | F19: =SUM(F20:F20) -> 0
F20: =C20-E20 -> 0
A21: ='SC6'!A32 -> Provincial Government: | C21: =SUM(C22:C22) -> 0 | D21: =SUM(D22:D22) -> 0 | E21: =SUM(E22:E22) -> 0 | F21: =SUM(F22:F22) -> 0
F22: =C22-E22 -> 0
A23: ='SC6'!A34 -> District Municipality: | C23: =SUM(C24:C24) -> 0 | D23: =SUM(D24:D24) -> 0 | E23: =SUM(E24:E24) -> 0 | F23: =SUM(F24:F24) -> 0
F24: =C24-E24 -> 0
A25: ='SC6'!A36 -> Other grant providers: | C25: =SUM(C26:C26) -> 0 | D25: =SUM(D26:D26) -> 0 | E25: =SUM(E26:E26) -> 0 | F25: =SUM(F26:F26) -> 0
F26: =C26-E26 -> 0
A27: Total capital expenditure of Approved Roll-overs | C27: =C19+C21+C23+C25 -> 0 | D27: =D19+D21+D23+D25 -> 0 | E27: =E19+E21+E23+E25 -> 0 | F27: =F19+F21+F23+F25 -> 0
A29: TOTAL EXPENDITURE OF APPROVED ROLL-OVERS | C29: =C16+C27 -> 0 | D29: =D16+D27 -> 0 | E29: =E16+E27 -> 0 | F29: =F16+F27 -> 0
A30: =head27a -> References

Sheet SC8
A1: =muni& " - "&S71N& " - "&Head57 -> LIM353 Molemole - Supporting Table SC8 Monthly Budget Statement - councillor and staff benefits - Q4 Fourth Quarter
A2: Summary of Employee and Councillor remuneration | B2: =head27 -> Ref | C2: =Head1 -> 2020/21 | D2: =Head2 -> Budget Year 2021/22
C3: =Head5 -> Audited Outcome | D3: =Head6 -> Original Budget | E3: =Head7 -> Adjusted Budget | F3: =Head38 -> Monthly actual | G3: =Head39 -> YearTD actual | H3: =Head40 -> YearTD budget | I3: =Head41 -> YTD variance | J3: =Head41 -> YTD variance | K3: =Head8 -> Full Year Forecast
A4: R thousands | J4: %
B5: 1 | C5: A | D5: B | E5: C | K5: D
A6: Councillors (Political Office Bearers plus Other)
A7: Basic Salaries and Wages | C7: 8800187.16 | D7: 9975475 | E7: 9915334 | F7: 715086.39 | G7: 8631010.17 | H7: 9915334 | I7: =G7-H7 -> -1284323.83 | J7: =IF(I7=0,"",I7/H7) -> -0.1295290537 | K7: 9915334
A8: Pension and UIF Contributions | I8: 0
A9: Medical Aid Contributions | I9: 0
A10: Motor Vehicle Allowance | I10: =G10-H10 -> 0 | J10: =IF(I10=0,"",I10/H10) -> 
A11: Cellphone Allowance | C11: 1414633.33 | D11: 1709626 | E11: 1602640 | F11: 108800 | G11: 1391951.12 | H11: 1602640 | I11: =G11-H11 -> -210688.88 | J11: =IF(I11=0,"",I11/H11) -> -0.131463635 | K11: 1602640
A12: Housing Allowances | I12: =G12-H12 -> 0 | J12: =IF(I12=0,"",I12/H12) -> 
A13: Other benefits and allowances | C13: 2715433.78 | D13: 3325161 | E13: 2829039 | F13: 223227.19 | G13: 2645787.7 | H13: 2829039 | I13: -183251.3 | J13: -0.06477510561 | K13: 2829039
A14: Sub Total - Councillors | C14: =SUM(C7:C13) -> 12930254.27 | D14: 15010262 | E14: 14347013 | F14: 1047113.58 | G14: 12668748.99 | H14: 14347013 | I14: -1678264.01 | J14: -0.1169765449 | K14: 14347013
A15: % increase | B15: 4 | D15: =IF(D14=0,"",(D14/C14)-1) -> 0.1608636371 | E15: =IF(E14=0,"",(E14/C14)-1) -> 0.1095692861 | K15: =IF(K14=0,"",(K14/C14)-1) -> 0.1095692861
A17: Senior Managers of the Municipality | B17: 3
A18: Basic Salaries and Wages | C18: 4675436.37 | D18: 4659478 | E18: 4433835 | F18: 326820.98 | G18: 4388782.96 | H18: 4433835 | I18: =G18-H18 -> -45052.04 | J18: =IF(I18=0,"",I18/H18) -> -0.01016096449 | K18: 4433835
A19: Pension and UIF Contributions | C19: 0 | D19: 0 | E19: 0 | F19: 0 | G19: 0 | H19: 0 | I19: 0 | K19: 0
A20: Medical Aid Contributions | C20: 0 | D20: 0 | E20: 0 | F20: 0 | G20: 0 | H20: 0 | I20: 0 | K20: 0
A21: Overtime | C21: 0 | D21: 0 | E21: 0 | F21: 0 | G21: 0 | H21: 0 | I21: 0 | K21: 0
A22: Performance Bonus | C22: 0 | D22: 227659 | E22: 398091 | F22: 0 | G22: 60711.75 | H22: 398091 | I22: =G22-H22 -> -337379.25 | J22: =IF(I22=0,"",I22/H22) -> -0.8474927843 | K22: 398091
A23: Motor Vehicle Allowance | C23: 505599.8 | D23: 1160213 | E23: 1302815 | F23: 72902.86 | G23: 1065084.32 | H23: 1302815 | I23: =G23-H23 -> -237730.68 | J23: =IF(I23=0,"",I23/H23) -> -0.1824746261 | K23: 1302815
A24: Cellphone Allowance | C24: 196666.47 | D24: 240000 | E24: 226668 | F24: 16666.65 | G24: 226666.44 | H24: 226668 | I24: =G24-H24 -> -1.56 | J24: =IF(I24=0,"",I24/H24) -> -6.882312457e-06 | K24: 226668
A25: Housing Allowances | C25: 0 | D25: 0 | E25: 0 | F25: 0 | G25: 0 | H25: 0 | I25: =G25-H25 -> 0 | J25: =IF(I25=0,"",I25/H25) ->  | K25: 0
A26: Other benefits and allowances | C26: 108780.87 | D26: 1304262 | E26: 408077 | F26: 0 | G26: 160557.94 | H26: 408077 | I26: -247519.06 | J26: -0.6065498913 | K26: 408077
A27: Payments in lieu of leave | C27: 0 | D27: 0 | E27: 0 | F27: 0 | G27: 0 | H27: 0 | I27: 0 | K27: 0
A28: Long service awards | C28: 0 | D28: 0 | E28: 0 | F28: 0 | G28: 0 | H28: 0 | I28: 0 | K28: 0
A29: Post-retirement benefit obligations | B29: 2 | C29: 0 | D29: 0 | E29: 0 | F29: 0 | G29: 0 | H29: 0 | I29: 0 | K29: 0
A30: Sub Total - Senior Managers of Municipality | C30: =SUM(C18:C29) -> 5486483.51 | D30: 7591612 | E30: 6769486 | F30: =SUM(F18:F29) -> 416390.49 | G30: =SUM(G18:G29) -> 5901803.41 | H30: =SUM(H18:H29) -> 6769486 | I30: -867682.59 | J30: =IF(I30=0,"",I30/H30) -> -0.1281755498 | K30: 6769486
A31: % increase | B31: 4 | D31: =IF(D30=0,"",(D30/C30)-1) -> 0.3836935783 | E31: =IF(E30=0,"",(E30/C30)-1) -> 0.2338478713 | K31: =IF(K30=0,"",(K30/C30)-1) -> 0.2338478713
A33: Other Municipal Staff
A34: Basic Salaries and Wages | C34: 53515274.38 | D34: 57672878 | E34: 53884110 | F34: 4766068.06 | G34: 56738507.29 | H34: 53884110 | I34: =G34-H34 -> 2854397.29 | J34: =IF(I34=0,"",I34/H34) -> 0.05297289479 | K34: 53884110
A35: Pension and UIF Contributions | C35: 10517235.36 | D35: 12467014 | E35: 11859050 | F35: 946059.66 | G35: 11163979.83 | H35: 11859050 | I35: -695070.17 | J35: -0.0586109486 | K35: 11859050
A36: Medical Aid Contributions | C36: 4453753.66 | D36: 5459279 | E36: 5003367 | F36: 416446.29 | G36: 4819402.04 | H36: 5003367 | I36: -183964.96 | J36: -0.03676823227 | K36: 5003367
A37: Overtime | C37: 0 | D37: 0 | E37: 0 | F37: 0 | G37: 0 | H37: 0 | I37: 0 | K37: 0
A38: Performance Bonus | C38: 4455561.78 | D38: 6152620 | E38: 6071636 | F38: 649050.93 | G38: 5208978.98 | H38: 6071636 | I38: -862657.02 | J38: -0.1420798315 | K38: 6071636
A39: Motor Vehicle Allowance | C39: 5514921.17 | D39: 6432632 | E39: 6032249 | F39: 494707.32 | G39: 5866951.56 | H39: 6032249 | I39: =G39-H39 -> -165297.44 | J39: =IF(I39=0,"",I39/H39) -> -0.02740229059 | K39: 6032249
A40: Cellphone Allowance | C40: 956649.81 | D40: 1138828 | E40: 1084084 | F40: 82924.07 | G40: 990811.84 | H40: 1084084 | I40: =G40-H40 -> -93272.16 | J40: =IF(I40=0,"",I40/H40) -> -0.08603776091 | K40: 1084084
A41: Housing Allowances | C41: 177469.79 | D41: 397571 | E41: 260534 | F41: 15432.16 | G41: 185185.92 | H41: 260534 | I41: =G41-H41 -> -75348.08 | J41: =IF(I41=0,"",I41/H41) -> -0.2892063224 | K41: 260534
A42: Other benefits and allowances | C42: 1475438.9 | D42: 2969119 | E42: 1978254 | F42: 51012.07 | G42: 1572799.87 | H42: 1978254 | I42: -405454.13 | J42: -0.2049555467 | K42: 1978254
A43: Payments in lieu of leave | C43: 1835352.93 | D43: 1933468 | E43: 1791769 | F43: 0 | G43: 391955.17 | H43: 1791769 | I43: -1399813.83 | J43: -0.7812468181 | K43: 1791769
A44: Long service awards | C44: 721000 | D44: 1272097 | E44: 1250256 | F44: 0 | G44: 343086.83 | H44: 1250256 | I44: -907169.17 | J44: -0.7255867358 | K44: 1250256
A45: Post-retirement benefit obligations | B45: 2 | C45: 2546350.96 | D45: 2245158 | E45: 2245158 | F45: 0 | G45: 0 | H45: 2245158 | I45: -2245158 | J45: -1 | K45: 2245158
A46: Sub Total - Other Municipal Staff | C46: =SUM(C34:C45) -> 86169008.74 | D46: 98140664 | E46: 91460467 | F46: =SUM(F34:F45) -> 7421700.56 | G46: =SUM(G34:G45) -> 87281659.33 | H46: =SUM(H34:H45) -> 91460467 | I46: -4178807.67 | J46: =IF(I46=0,"",I46/H46) -> -0.04568976966 | K46: 91460467
A47: % increase | B47: 4 | D47: =IF(D46=0,"",(D46/C46)-1) -> 0.1389322616 | E47: =IF(E46=0,"",(E46/C46)-1) -> 0.06140790451 | K47: =IF(K46=0,"",(K46/C46)-1) -> 0.06140790451
A49: Total Parent Municipality | C49: =C14+C30+C46 -> 104585746.5 | D49: =D14+D30+D46 -> 120742538 | E49: 112576966 | F49: 8885204.63 | G49: 105852211.7 | H49: 112576966 | I49: =G49-H49 -> -6724754.27 | J49: =IF(I49=0,"",I49/H49) -> -0.05973472646 | K49: 112576966
D50: =IF(D49=0,"",(D49/C49)-1) -> 0.1544836846 | E50: =IF(E49=0,"",(E49/C49)-1) -> 0.07640830367 | K50: =IF(K49=0,"",(K49/C49)-1) -> 0.07640830367
A51: Unpaid salary, allowances & benefits in arrears:
A53: Board Members of Entities
A54: Basic Salaries and Wages | I54: =G54-H54 -> 0 | J54: =IF(I54=0,"",I54/H54) -> 
A55: Pension and UIF Contributions | I55: 0
A56: Medical Aid Contributions | I56: 0
A57: Overtime | I57: =G57-H57 -> 0 | J57: =IF(I57=0,"",I57/H57) -> 
A58: Performance Bonus | I58: =G58-H58 -> 0 | J58: =IF(I58=0,"",I58/H58) -> 
A59: Motor Vehicle Allowance | I59: =G59-H59 -> 0 | J59: =IF(I59=0,"",I59/H59) -> 
A60: Cellphone Allowance | I60: =G60-H60 -> 0 | J60: =IF(I60=0,"",I60/H60) -> 
A61: Housing Allowances | I61: =G61-H61 -> 0 | J61: =IF(I61=0,"",I61/H61) -> 
A62: Other benefits and allowances | I62: 0
A63: Board Fees | I63: =G63-H63 -> 0 | J63: =IF(I63=0,"",I63/H63) -> 
A64: Payments in lieu of leave | I64: 0
A65: Long service awards | I65: 0
A66: Post-retirement benefit obligations | I66: 0
A67: Sub Total - Board Members of Entities | B67: 2 | C67: =SUM(C54:C66) -> 0 | D67: 0 | E67: 0 | F67: =SUM(F54:F66) -> 0 | G67: =SUM(G54:G66) -> 0 | H67: =SUM(H54:H66) -> 0 | I67: 0 | J67: =IF(I67=0,"",I67/H67) ->  | K67: 0
A68: % increase | B68: 4 | D68: =IF(D67=0,"",(D67/C67)-1) ->  | E68: =IF(E67=0,"",(E67/C67)-1) ->  | K68: =IF(K67=0,"",(K67/C67)-1) -> 
A70: Senior Managers of Entities
A71: Basic Salaries and Wages | I71: =G71-H71 -> 0 | J71: =IF(I71=0,"",I71/H71) -> 
A72: Pension and UIF Contributions | I72: 0
A73: Medical Aid Contributions | I73: 0
A74: Overtime | I74: 0
A75: Performance Bonus | I75: =G75-H75 -> 0 | J75: =IF(I75=0,"",I75/H75) -> 
A76: Motor Vehicle Allowance | I76: =G76-H76 -> 0 | J76: =IF(I76=0,"",I76/H76) -> 
A77: Cellphone Allowance | I77: =G77-H77 -> 0 | J77: =IF(I77=0,"",I77/H77) -> 
A78: Housing Allowances | I78: =G78-H78 -> 0 | J78: =IF(I78=0,"",I78/H78) -> 
A79: Other benefits and allowances | I79: 0
A80: Payments in lieu of leave | I80: 0
A81: Long service awards | I81: 0
A82: Post-retirement benefit obligations | B82: 2 | I82: 0
A83: Sub Total - Senior Managers of Entities | C83: =SUM(C71:C82) -> 0 | D83: 0 | E83: 0 | F83: =SUM(F71:F82) -> 0 | G83: =SUM(G71:G82) -> 0 | H83: =SUM(H71:H82) -> 0 | I83: 0 | J83: =IF(I83=0,"",I83/H83) ->  | K83: 0
A84: % increase | B84: 4 | D84: =IF(D83=0,"",(D83/C83)-1) ->  | E84: =IF(E83=0,"",(E83/C83)-1) ->  | K84: =IF(K83=0,"",(K83/C83)-1) -> 
A86: Other Staff of Entities
A87: Basic Salaries and Wages | I87: =G87-H87 -> 0 | J87: =IF(I87=0,"",I87/H87) -> 
A88: Pension and UIF Contributions | I88: 0
A89: Medical Aid Contributions | I89: =G89-H89 -> 0 | J89: =IF(I89=0,"",I89/H89) -> 
A90: Overtime | I90: =G90-H90 -> 0 | J90: =IF(I90=0,"",I90/H90) -> 
A91: Performance Bonus | I91: =G91-H91 -> 0 | J91: =IF(I91=0,"",I91/H91) -> 
A92: Motor Vehicle Allowance | I92: =G92-H92 -> 0 | J92: =IF(I92=0,"",I92/H92) -> 
A93: Cellphone Allowance | I93: 0
A94: Housing Allowances | I94: 0
A95: Other benefits and allowances | I95: 0
A96: Payments in lieu of leave | I96: 0
A97: Long service awards | I97: 0
A98: Post-retirement benefit obligations | I98: 0
A99: Sub Total - Other Staff of Entities | C99: =SUM(C87:C98) -> 0 | D99: 0 | E99: 0 | F99: 0 | G99: 0 | H99: 0 | I99: 0 | J99: =IF(I99=0,"",I99/H99) ->  | K99: =SUM(K87:K98) -> 0
A100: % increase | B100: 4 | D100: =IF(D99=0,"",(D99/C99)-1) ->  | E100: =IF(E99=0,"",(E99/C99)-1) ->  | K100: =IF(K99=0,"",(K99/C99)-1) -> 
A102: Total Municipal Entities | C102: =C67+C83+C99 -> 0 | D102: 0 | E102: 0 | F102: 0 | G102: 0 | H102: 0 | I102: =G102-H102 -> 0 | J102: =IF(I102=0,"",I102/H102) ->  | K102: =K67+K83+K99 -> 0
A104: TOTAL SALARY, ALLOWANCES & BENEFITS | C104: =C49+C102 -> 104585746.5 | D104: 120742538 | E104: 112576966 | F104: 8885204.63 | G104: 105852211.7 | H104: 112576966 | I104: =G104-H104 -> -6724754.27 | J104: =IF(I104=0,"",I104/H104) -> -0.05973472646 | K104: =K49+K102 -> 112576966
A105: % increase | B105: 4 | D105: =IF(D104=0,"",(D104/C104)-1) -> 0.1544836846 | E105: =IF(E104=0,"",(E104/C104)-1) -> 0.07640830367 | K105: =IF(K104=0,"",(K104/C104)-1) -> 0.07640830367
A106: TOTAL MANAGERS AND STAFF | C106: =C30+C46+C83+C99 -> 91655492.25 | D106: 105732276 | E106: 98229953 | F106: 7838091.05 | G106: 93183462.74 | H106: 98229953 | I106: -5046490.26 | J106: =IF(I106=0,"",I106/H106) -> -0.05137425099 | K106: =K30+K46+K83+K99 -> 98229953
A107: =head27a -> References
A108: 1. Include 'Loans and advances' where applicable if any reportable amounts until phased compliance with s164 of MFMA achieved
A109: 2. If benefits in kind are provided (e.g. provision of living quarters) the full market value must be shown as the cost to the municipality
A110: 3. s57 of the Systems Act
A111: 4. B/A, C/A, D/A
A112: Column Definitions:
A113: A. Audited actual 2005/06 (audited financial statements). If audited amounts unavailable, unaudited amounts must be provided with a note stating these are unaudited
A114: B. The original budget approved by council for the 2006/07 budget year.
A115: C. The budget for 2006/07 budget year as adjusted by council resolution in terms of section 28 of the MFMA.
A116: D. An estimate of final actual amounts (pre audit - 2006/07 budget year) at the time of preparing the budget for the 2007/08 budget year. This may differ from C.

Sheet SC9
A1: =muni& " - "&S71O& " - "&Head57 -> LIM353 Molemole - Supporting Table SC9 Monthly Budget Statement - actuals and revised targets for cash receipts - Q4 Fourth Quarter
A2: =desc -> Description | B2: =head27 -> Ref | C2: =Head2 -> Budget Year 2021/22 | O2: ='Template names'!B5 -> 2021/22 Medium Term Revenue & Expenditure Framework
C3: July | D3: August | E3: Sept | F3: October | G3: Nov | H3: Dec | I3: January | J3: Feb | K3: March | L3: April | M3: May | N3: June | O3: =Head9 -> Budget Year 2021/22 | P3: =Head10 -> Budget Year +1 2022/23 | Q3: =Head11 -> Budget Year +2 2023/24
A4: R thousands | B4: 1 | C4: Outcome | D4: Outcome | E4: Outcome | F4: Outcome | G4: Outcome | H4: Outcome | I4: Outcome | J4: Outcome | K4: Outcome | L4: Outcome | M4: Outcome | N4: Outcome
A5: Cash Receipts By Source
A6: Property rates | C6: 242272.81 | D6: 2165675.18 | E6: 615973.01 | F6: 513831.27 | G6: 471387.82 | H6: 437571.59 | I6: 542317.35 | J6: 5680380.5 | K6: 15077249.18 | L6: 618367.41 | M6: 625469.07 | N6: =O6-SUM(C6:M6) -> -38269101.19 | O6: -11278606 | P6: 46927001 | Q6: 42714984
A7: Service charges - electricity revenue | C7: 107005.26 | D7: 67330.43 | E7: 91103.93 | F7: 17076.21 | G7: 15270.62 | H7: 96908.7 | I7: 1351.62 | J7: 256053.47 | K7: 139611.64 | L7: 26305.07 | M7: 125484.81 | N7: -1006726.76 | O7: -63225 | P7: 19538389 | Q7: 14550695
A8: Service charges - water revenue | C8: 13378.15 | D8: 103675.19 | E8: 56144.91 | F8: 22178.52 | G8: 15150.26 | H8: 10348.87 | I8: 16262.55 | J8: 86671.2 | K8: 251343.99 | L8: 78696.02 | M8: 66822.48 | N8: -720672.14 | O8: 0 | P8: 0 | Q8: 0
A9: Service charges - sanitation revenue | C9: 18510.67 | D9: 20342.64 | E9: 22407.09 | F9: 14649.73 | G9: 18886.39 | H9: 15637.19 | I9: 19046.78 | J9: 49415.08 | K9: 84520.04 | L9: 37858.94 | M9: 42757.4 | N9: -344031.95 | O9: 0 | P9: 0 | Q9: 0
A10: Service charges - refuse | C10: 23286.44 | D10: 24480.14 | E10: 40307.55 | F10: 26142.27 | G10: 32743.65 | H10: 18606.42 | I10: 28900.42 | J10: 108138.59 | K10: 126522.87 | L10: 54556.25 | M10: 68896.91 | N10: -552581.51 | O10: 0 | P10: 2213260 | Q10: 2310644
A12: Rental of facilities and equipment | C12: 0 | D12: 36013.2 | E12: 18006.6 | F12: 2750.26 | G12: 34132.51 | H12: 18006.6 | I12: 2750.26 | J12: 18528.34 | K12: 33262.94 | L12: 18226.62 | M12: 18226.62 | N12: -199903.95 | O12: 0 | P12: 266190 | Q12: 277903
A13: Interest earned - external investments | C13: 0 | D13: 0 | E13: 0 | F13: 0 | G13: 0 | H13: 0 | I13: 0 | J13: 0 | K13: 0 | L13: 0 | M13: 0 | N13: 0 | O13: 0 | P13: 3000000 | Q13: 3132000
A14: Interest earned - outstanding debtors | N14: 0
A15: Dividends received | N15: 0
A16: Fines, penalties and forfeits | C16: 5450 | D16: 1850 | E16: 5400 | F16: 6100 | G16: 3100 | H16: 0 | I16: 2150 | J16: 0 | K16: 7700 | L16: 13691.3 | M16: 5629.57 | N16: -51070.87 | O16: 0 | P16: 1402949 | Q16: 1464678
A17: Licences and permits | C17: 80066.34 | D17: 1086199.5 | E17: 1055418.49 | F17: 998723.99 | G17: 1398762.83 | H17: 1027887.34 | I17: 829330.19 | J17: 1023337.58 | K17: 787352.09 | L17: 1096461.9 | M17: 592097.56 | N17: -9975637.81 | O17: 0 | P17: 8055111 | Q17: 8409536
A18: Agency services | C18: 179320.99 | D18: 173090.8 | E18: 141593.82 | F18: 257577.61 | G18: 218050.38 | H18: 210956.53 | I18: 255279.46 | J18: 220651.26 | K18: 178782.45 | L18: 254521.51 | M18: 188026.36 | N18: -2277851.17 | O18: 0 | P18: 756352 | Q18: 789631
A19: Transfers and Subsidies - Operational | C19: 0 | D19: 358000 | E19: 2300000 | F19: 1000000 | G19: 0 | H19: 643000 | I19: 0 | J19: 0 | K19: 428000 | L19: 0 | M19: 0 | N19: -4729000 | O19: 0 | P19: 5696600 | Q19: 4372900
A20: Other revenue | C20: 245063972.3 | D20: 7677200.2 | E20: 31323545.9 | F20: 1642362.83 | G20: 3264269.32 | H20: 53085713.75 | I20: 1134604.62 | J20: 572792.1 | K20: 90156252.72 | L20: 1287238.01 | M20: 948902.61 | N20: -447178215.3 | O20: -11021361 | P20: 170761635 | Q20: 179595438
A21: Cash Receipts by Source | C21: =SUM(C6:C10)+SUM(C12:C20) -> 245733262.9 | D21: =SUM(D6:D10)+SUM(D12:D20) -> 11713857.28 | E21: 35669901.3 | F21: 4501392.69 | G21: 5471753.78 | H21: 55564636.99 | I21: 2831993.25 | J21: 8015968.12 | K21: 107270597.9 | L21: 3485923.03 | M21: 2682313.39 | N21: -505304792.7 | O21: -22363192 | P21: 258617487 | Q21: 257618409
N22: =O22-SUM(C22:M22) -> 0
A23: Other Cash Flows by Source | N23: 0
A24: ='C4-FinPerf RE'!A39 -> Transfers and subsidies - capital (monetary allocations) (National / Provincial and District) | C24: 10566000 | D24: 0 | E24: 0 | F24: 10513000 | G24: 0 | H24: 2000000 | I24: 0 | J24: 11329000 | K24: 12592000 | L24: 0 | M24: 0 | N24: -47000000 | O24: 0 | P24: 37802400 | Q24: 49385100
A25: ='C4-FinPerf RE'!A40 -> Transfers and subsidies - capital (monetary allocations) (National / Provincial Departmental Agencies, Households, Non-profit Institutions, Private Enterprises, Public Corporatons, Higher Educational Institutions) | N25: 0
A26: Proceeds on Disposal of Fixed and Intangible Assets | N26: 0
A27: Short term loans | N27: 0
A28: Borrowing long term/refinancing | N28: 0
A29: Increase (decrease) in consumer deposits | N29: 0
A31: Decrease (increase) in non-current receivables | N31: 0
A32: Decrease (increase) in non-current investments | C32: 0 | D32: 0 | E32: 0 | F32: 0 | G32: 0 | H32: 0 | I32: 0 | J32: 0 | K32: 0 | L32: 0 | M32: 0 | N32: 0 | O32: 0 | P32: 0 | Q32: 0
A33: Total Cash Receipts by Source | C33: =SUM(C21:C29)+SUM(C31:C32) -> 256299262.9 | D33: =SUM(D21:D29)+SUM(D31:D32) -> 11713857.28 | E33: 35669901.3 | F33: 15014392.69 | G33: 5471753.78 | H33: 57564636.99 | I33: 2831993.25 | J33: 19344968.12 | K33: 119862597.9 | L33: 3485923.03 | M33: 2682313.39 | N33: -552304792.7 | O33: -22363192 | P33: 296419887 | Q33: 307003509
N34: =O34-SUM(C34:M34) -> 0
A35: Cash Payments by Type | N35: 0
A36: Employee related costs | C36: 4292.4 | D36: 17512307.2 | E36: 8746294.02 | F36: 10155675.08 | G36: 8717182.9 | H36: 9694161.94 | I36: 9195690.65 | J36: 9303237.52 | K36: 9163628.06 | L36: 9168899.67 | M36: 9664839.26 | N36: -109491780.7 | O36: -8165572 | P36: 118521334 | Q36: 123291031
A37: Remuneration of councillors | N37: 0
A38: Interest paid | N38: 0
A39: Bulk purchases - Electricity | C39: 0 | D39: 0 | E39: 0 | F39: 0 | G39: 0 | H39: 0 | I39: 0 | J39: 0 | K39: 0 | L39: 0 | M39: 0 | N39: 0 | O39: 0 | P39: 11926907 | Q39: 12451691
A40: Acquisitions - water & other inventory | N40: 0
A42: Contracted services | N42: 0
A43: Grants and subsidies paid - other municipalities | N43: 0
A44: Grants and subsidies paid - other | N44: 0
A45: General expenses | C45: 11589068.23 | D45: 4115894.58 | E45: 8441966.82 | F45: 9194658.24 | G45: 19286355.27 | H45: 18808347.87 | I45: 18942504.58 | J45: 22337276.37 | K45: 72783793.68 | L45: 1115785.81 | M45: 29239669.84 | N45: -225478693.3 | O45: -9623372 | P45: 90946736 | Q45: 90771616
A46: Cash Payments by Type | B46: =SUM(B36:B45) -> 0 | C46: =SUM(C36:C45) -> 11593360.63 | D46: =SUM(D36:D45) -> 21628201.78 | E46: 17188260.84 | F46: 19350333.32 | G46: 28003538.17 | H46: 28502509.81 | I46: 28138195.23 | J46: 31640513.89 | K46: 81947421.74 | L46: 10284685.48 | M46: 38904509.1 | N46: -334970474 | O46: -17788944 | P46: 221394977 | Q46: 226514338
N47: =O47-SUM(C47:M47) -> 0
A48: Other Cash Flows/Payments by Type
A49: Capital assets | C49: 0 | D49: 1021106.72 | E49: 5505209.65 | F49: 1396329.27 | G49: 2715337.03 | H49: 7550819.35 | I49: 2922194.24 | J49: 5460680.32 | K49: 2674025.72 | L49: 1278374.92 | M49: 6473206.66 | N49: =O49-SUM(C49:M49) -> -37702269.88 | O49: -704986 | P49: 58022400 | Q49: 61565100
A50: Repayment of borrowing | C50: 0 | D50: 0 | E50: 0 | F50: 0 | G50: 0 | H50: 0 | I50: 0 | J50: 0 | K50: 0 | L50: 0 | M50: 0 | N50: =O50-SUM(C50:M50) -> 0 | O50: 0 | P50: 0 | Q50: 0
A51: Other Cash Flows/Payments | C51: 0 | D51: 919818.6 | E51: 88665.93 | F51: 501797.08 | G51: 0 | H51: 0 | I51: 363233.26 | J51: 0 | K51: 655027.9 | L51: 0 | M51: 12050223.03 | N51: =O51-SUM(C51:M51) -> -14578765.8 | O51: 0 | P51: 0 | Q51: 0
A52: Total Cash Payments by Type | B52: =SUM(B46:B51) -> 0 | C52: 11593360.63 | D52: 23569127.1 | E52: 22782136.42 | F52: 21248459.67 | G52: 30718875.2 | H52: 36053329.16 | I52: 31423622.73 | J52: 37101194.21 | K52: 85276475.36 | L52: 11563060.4 | M52: 57427938.79 | N52: -387251509.7 | O52: -18493930 | P52: 279417377 | Q52: 288079438
N53: =O53-SUM(C53:M53) -> 0
A54: NET INCREASE/(DECREASE) IN CASH HELD | B54: =B33-B52 -> 0 | C54: 244705902.3 | D54: -11855269.82 | E54: 12887764.88 | F54: -6234066.98 | G54: -25247121.42 | H54: 21511307.83 | I54: -28591629.48 | J54: -17756226.09 | K54: 34586122.56 | L54: -8077137.37 | M54: -54745625.4 | N54: -165053283 | O54: -3869262 | P54: 17002510 | Q54: 18924071
A55: Cash/cash equivalents at the month/year beginning: | C55: 89543804.38 | D55: =C56 -> 334249706.7 | E55: =D56 -> 322394436.9 | F55: 335282201.7 | G55: 329048134.8 | H55: 303801013.3 | I55: 325312321.2 | J55: 296720691.7 | K55: 278964465.6 | L55: 313550588.2 | M55: 305473450.8 | N55: 250727825.4 | O55: =C55 -> 89543804.38 | P55: =O56 -> 85674542.38 | Q55: =P56 -> 102677052.4
A56: Cash/cash equivalents at the month/year end: | C56: =C54+C55 -> 334249706.7 | D56: =D54+D55 -> 322394436.9 | E56: =E54+E55 -> 335282201.7 | F56: 329048134.8 | G56: 303801013.3 | H56: 325312321.2 | I56: 296720691.7 | J56: 278964465.6 | K56: 313550588.2 | L56: 305473450.8 | M56: 250727825.4 | N56: 85674542.38 | O56: =O54+O55 -> 85674542.38 | P56: =P54+P55 -> 102677052.4 | Q56: =Q54+Q55 -> 121601123.4
A57: =head27a -> References
A58: 1. Replace 'budget' heading with adjusted budget, or 'outcome' only for month/s complete
A59: 2. Total of monthly amounts must always agree to the approved or adjusted budget
A60: 3. Amend 'cash-at-beginning' when prior year actual known (as part of the adjustments budget)
E65: =E46+E64 -> 17188260.84 | F65: 19350333.32 | G65: 28003538.17 | H65: 28502509.81 | I65: 28138195.23 | J65: 31640513.89 | K65: 81947421.74 | L65: 10284685.48 | N65: =N46+N64 -> -334970474 | O65: -17788944 | P65: 221394977
E66: =E54-E64 -> 12887764.88 | F66: -6234066.98 | G66: -25247121.42 | H66: 21511307.83 | I66: -28591629.48 | J66: -17756226.09 | K66: 34586122.56 | L66: -8077137.37 | M66: =M54-M64 -> -54745625.4 | N66: =N54-N64 -> -165053283 | O66: -3869262 | P66: 17002510

Sheet SC10
A1: =muni& " - "&S71P& " - "&Head57 -> LIM353 Molemole - NOT REQUIRED - municipality does not have entities or this is the parent municipality's budget - Q4 Fourth Quarter
A2: =desc -> Description | B2: =head27 -> Ref | C2: =Head1 -> 2020/21 | D2: =Head2 -> Budget Year 2021/22
C3: =Head5 -> Audited Outcome | D3: =Head6 -> Original Budget | E3: =Head7 -> Adjusted Budget | F3: =Head38 -> Monthly actual | G3: =Head39 -> YearTD actual | H3: =Head40 -> YearTD budget | I3: =Head41 -> YTD variance | J3: =Head41 -> YTD variance | K3: =Head8 -> Full Year Forecast
A4: R thousands | B4: 1 | J4: %
A5: ='C4-FinPerf RE'!A5 -> Revenue By Source
A6: ='C4-FinPerf RE'!A6 -> Property rates | I6: =G6-H6 -> 0 | J6: =IF(I6=0,"",I6/H6) -> 
A7: ='C4-FinPerf RE'!A7 -> Service charges - electricity revenue | I7: 0 | J7: =IF(I7=0,"",I7/H7) -> 
A8: ='C4-FinPerf RE'!A8 -> Service charges - water revenue | I8: 0
A9: ='C4-FinPerf RE'!A9 -> Service charges - sanitation revenue | I9: 0
A10: ='C4-FinPerf RE'!A10 -> Service charges - refuse revenue | I10: 0
A12: ='C4-FinPerf RE'!A12 -> Rental of facilities and equipment | I12: 0
A13: ='C4-FinPerf RE'!A13 -> Interest earned - external investments | I13: 0
A14: ='C4-FinPerf RE'!A14 -> Interest earned - outstanding debtors | I14: 0
A15: ='C4-FinPerf RE'!A15 -> Dividends received | I15: 0
A16: ='C4-FinPerf RE'!A16 -> Fines, penalties and forfeits | I16: 0
A17: ='C4-FinPerf RE'!A17 -> Licences and permits | I17: 0
A18: ='C4-FinPerf RE'!A18 -> Agency services | I18: 0
A19: ='C4-FinPerf RE'!A19 -> Transfers and subsidies | I19: 0
A20: ='C4-FinPerf RE'!A20 -> Other revenue | I20: 0
A21: ='C4-FinPerf RE'!A21 -> Gains | I21: 0
A22: Total Revenue (excluding capital transfers and contributions) | C22: =SUM(C6:C10)+SUM(C12:C21) -> 0 | D22: 0 | E22: 0 | F22: 0 | G22: 0 | H22: 0 | I22: =G22-H22 -> 0 | K22: =SUM(K6:K10)+SUM(K12:K21) -> 0
A24: Expenditure By Type
A25: ='C4-FinPerf RE'!A25 -> Employee related costs | I25: =G25-H25 -> 0 | J25: =IF(I25=0,"",I25/H25) -> 
A26: ='C4-FinPerf RE'!A26 -> Remuneration of councillors | I26: 0
A27: ='C4-FinPerf RE'!A27 -> Debt impairment | I27: 0
A28: ='C4-FinPerf RE'!A28 -> Depreciation & asset impairment | I28: 0
A29: ='C4-FinPerf RE'!A29 -> Finance charges | I29: 0
A30: ='C4-FinPerf RE'!A30 -> Bulk purchases - electricity | I30: 0
A31: ='C4-FinPerf RE'!A31 -> Inventory consumed | I31: 0
A32: ='C4-FinPerf RE'!A32 -> Contracted services | I32: 0
A33: ='C4-FinPerf RE'!A33 -> Transfers and subsidies | I33: 0
A34: ='C4-FinPerf RE'!A34 -> Other expenditure | I34: 0
A35: ='C4-FinPerf RE'!A35 -> Losses | I35: 0
A36: Total Expenditure | C36: =SUM(C25:C35) -> 0 | D36: 0 | E36: 0 | F36: 0 | G36: 0 | H36: 0 | I36: 0 | K36: =SUM(K25:K35) -> 0
I37: 0
A38: ='C4-FinPerf RE'!A38 -> Surplus/(Deficit) | C38: =C22-C36 -> 0 | D38: 0 | E38: 0 | F38: 0 | G38: 0 | H38: 0 | I38: 0 | K38: =K22-K36 -> 0
A39: ='C4-FinPerf RE'!A39 -> Transfers and subsidies - capital (monetary allocations) (National / Provincial and District) | I39: 0
A40: ='C4-FinPerf RE'!A40 -> Transfers and subsidies - capital (monetary allocations) (National / Provincial Departmental Agencies, Households, Non-profit Institutions, Private Enterprises, Public Corporatons, Higher Educational Institutions) | I40: 0
A41: ='C4-FinPerf RE'!A41 -> Transfers and subsidies - capital (in-kind - all) | I41: 0
A42: ='C4-FinPerf RE'!A42 -> Surplus/(Deficit) after capital transfers & contributions | C42: =C38+SUM(C39:C41) -> 0 | D42: =D38+SUM(D39:D41) -> 0 | E42: 0 | F42: 0 | G42: 0 | H42: 0 | I42: 0 | K42: 0
A43: ='C4-FinPerf RE'!A43 -> Taxation | I43: 0
A44: ='C4-FinPerf RE'!A44 -> Surplus/(Deficit) after taxation | C44: =C42-C43 -> 0 | D44: 0 | E44: 0 | F44: 0 | G44: 0 | H44: 0 | I44: 0 | K44: =K42-K43 -> 0
A45: =head27a -> References
A46: 1. Votes (consolidated) are revenue sources and expenditure type

Sheet SC11
A1: =muni& " - "&S71Q& " - "&Head57 -> LIM353 Molemole - NOT REQUIRED - municipality does not have entities or this is the parent municipality's budget - Q4 Fourth Quarter
A2: =desc -> Description | B2: =head27 -> Ref | C2: =Head1 -> 2020/21 | D2: =Head2 -> Budget Year 2021/22
C3: =Head5 -> Audited Outcome | D3: =Head6 -> Original Budget | E3: =Head7 -> Adjusted Budget | F3: =Head38 -> Monthly actual | G3: =Head39 -> YearTD actual | H3: =Head40 -> YearTD budget | I3: =Head41 -> YTD variance | J3: =Head41 -> YTD variance | K3: =Head8 -> Full Year Forecast
A4: R thousands | J4: %
A5: Revenue By Municipal Entity
A6: Insert name of municipal entity | I6: =G6-H6 -> 0 | J6: =IF(I6=0,"",I6/H6) -> 
I7: 0 | J7: =IF(I7=0,"",I7/H7) -> 
I8: 0
I9: 0
I10: 0
I11: 0
I12: 0
I13: 0
I14: 0
I15: 0
A16: Total Operating Revenue | B16: 1 | C16: =SUM(C6:C15) -> 0 | D16: 0 | E16: 0 | F16: 0 | G16: 0 | H16: 0 | I16: 0 | K16: =SUM(K6:K15) -> 0
A18: Expenditure By Municipal Entity
A19: =A6 -> Insert name of municipal entity | I19: 0 | J19: =IF(I19=0,"",I19/H19) -> 
A20: =IF(A7="","",A7) ->  | I20: 0
A21: =IF(A8="","",A8) ->  | I21: 0
I22: 0
I23: 0
I24: 0
I25: 0
I26: 0
I27: 0
I28: 0
A29: Total Operating Expenditure | B29: 2 | C29: =SUM(C19:C28) -> 0 | D29: 0 | E29: 0 | F29: 0 | G29: 0 | H29: 0 | I29: 0 | K29: =SUM(K19:K28) -> 0
A31: =Head42 -> Surplus/ (Deficit) for the yr/period | C31: =C16-C29 -> 0 | D31: =D16-D29 -> 0 | E31: 0 | F31: 0 | G31: 0 | H31: 0 | I31: =I16+I29 -> 0 | K31: 0
A32: Capital Expenditure By Municipal Entity
A33: =$A$6 -> Insert name of municipal entity | I33: 0
A34: =IF(A7="","",A7) ->  | I34: 0
A35: =IF(A8="","",A8) ->  | I35: 0
I36: 0
I37: 0
I38: 0
I39: 0
I40: 0
I41: 0
A43: Total Capital Expenditure | B43: 3 | C43: =SUM(C32:C42) -> 0 | D43: =SUM(D32:D42) -> 0 | E43: 0 | F43: 0 | G43: 0 | H43: =SUM(H32:H42) -> 0 | I43: =G43-H43 -> 0 | K43: 0
A44: =head27a -> References
A45: 1. Must reconcile to the sum of all municipal entity monthly revenue reports
A46: 2. Must reconcile to the sum of all municipal entity monthly expenditure reports
A47: 3. YTD = Year to date; FAV - favourable variance or unfavourable variance
A48: 4. Material variances to be explained
A49: 5. Insert additional 'Adjustment' Budget column for each Adjustment made by an entity

Sheet SC12
A1: =muni& " - "&S71R& " - "&Head57 -> LIM353 Molemole - Supporting Table SC12 Monthly Budget Statement - capital expenditure trend - Q4 Fourth Quarter
A2: Month | B2: =Head1 -> 2020/21 | C2: =Head2 -> Budget Year 2021/22
B3: =Head5 -> Audited Outcome | C3: =Head6 -> Original Budget | D3: =Head7 -> Adjusted Budget | E3: =Head38 -> Monthly actual | F3: =Head39 -> YearTD actual | G3: =Head40 -> YearTD budget | H3: =Head41 -> YTD variance | I3: =Head41 -> YTD variance | J3: % spend of Original Budget
A4: R thousands | I4: %
A5: Monthly expenditure performance trend
A6: July | B6: 4171375.61 | C6: 5449482.74 | D6: 5449490 | E6: 0 | F6: =IF(E6>0,E6,"") ->  | G6: =IF(D6>0,D6,C6) -> 5449490 | H6: =IF(F6="",0,G6-F6) -> 0 | I6: =IF(F6="","",IF(H6=0,"",H6/G6)) ->  | J6: =IF(F6="","",F6/$C$18) -> 
A7: August | B7: 4171375.61 | C7: 5449482.74 | D7: 5449490 | E7: 1021106.72 | F7: =IF(E7>0,E7+F6,"") ->  | G7: =IF(D7>0,D7+D6,C7+C6) -> 10898980
A8: September | B8: 4171375.61 | C8: 5449482.74 | D8: 5449490 | E8: 5505209.65 | F8: =IF(E8>0,E8+F7,"") ->  | G8: =IF(D8>0,D8+G7,C8+G7) -> 16348470
A9: October | B9: 4171375.61 | C9: 5449482.74 | D9: 5449490 | E9: 1396329.27 | G9: =IF(D9>0,D9+G8,C9+G8) -> 21797960
A10: November | B10: 4171375.61 | C10: 5449482.74 | D10: 5449490 | E10: 2715337.03 | G10: 27247450
A11: December | B11: 4171375.61 | C11: 5449482.74 | D11: 5449490 | E11: 7550819.35 | G11: 32696940
A12: January | B12: 4171375.61 | C12: 5449482.74 | D12: 5449490 | E12: 2922194.24 | G12: 38146430
A13: February | B13: 4171375.61 | C13: 5449482.74 | D13: 5308492.8 | E13: 5460680.32 | G13: 43454922.8
A14: March | B14: 4171375.61 | C14: 5449482.74 | D14: 5308492.8 | E14: 2674025.72 | G14: 48763415.6
A15: April | B15: 4171375.61 | C15: 5449482.74 | D15: 5308492.8 | E15: 1278374.92 | G15: 54071908.4
A16: May | B16: 4171375.61 | C16: 5449482.74 | D16: 5308492.8 | E16: 6473206.66 | G16: 59380401.2
A17: June | B17: 4171375.36 | C17: 5449482.86 | D17: 5308405.8 | E17: 9730357.63 | G17: 64688807 | H17: =IF(F17="",0,G17-F17) ->  | I17: =IF(F17="","",IF(H17=0,"",H17/G17)) ->  | J17: =IF(F17="","",F17/$C$18) -> 
A18: Total Capital expenditure | B18: =SUM(B6:B17) -> 50056507.07 | C18: =SUM(C6:C17) -> 65393793 | D18: =SUM(D6:D17) -> 64688807 | E18: =SUM(E6:E17) -> 46727641.51

Sheet SC13a
A1: =muni& " - "&S71Sa& " - "&Head57 -> LIM353 Molemole - Supporting Table SC13a Monthly Budget Statement - capital expenditure on new assets by asset class - Q4 Fourth Quarter
A2: =desc -> Description | B2: =head27 -> Ref | C2: =Head1 -> 2020/21 | D2: =Head2 -> Budget Year 2021/22
C3: =Head5 -> Audited Outcome | D3: =Head6 -> Original Budget | E3: =Head7 -> Adjusted Budget | F3: =Head38 -> Monthly actual | G3: =Head39 -> YearTD actual | H3: =Head40 -> YearTD budget | I3: =Head41 -> YTD variance | J3: =Head41 -> YTD variance | K3: =Head8 -> Full Year Forecast
A4: R thousands | B4: 1 | J4: %
A5: Capital expenditure on new assets by Asset Class/Sub-class
A7: Infrastructure | C7: =C8+C13+C17+C27+C38+C45+C53+C63+C69 -> 40076219.38 | D7: 58210000 | E7: 57844851 | F7: 9729477.16 | G7: 43096626.75 | H7: 57844851 | I7: =H7-G7 -> 14748224.25 | J7: =IF(I7=0,"",I7/H7) -> 0.2549617467 | K7: =K8+K13+K17+K27+K38+K45+K53+K63+K69 -> 57844851
A8: Roads Infrastructure | C8: =SUM(C9:C12) -> 28471825.76 | D8: 42110000 | E8: 41372704 | F8: 5058181.75 | G8: 33557788.37 | H8: 41372704 | I8: 7814915.63 | J8: 0.1888906181 | K8: =SUM(K9:K12) -> 41372704
A9: Roads | C9: 28471825.76 | D9: 42110000 | E9: 41372704 | F9: 5058181.75 | G9: 33557788.37 | H9: 41372704 | I9: 7814915.63 | J9: 0.1888906181 | K9: 41372704
A10: Road Structures | I10: 0
A11: Road Furniture | I11: 0
A12: Capital Spares | I12: 0
A13: Storm water Infrastructure | C13: =SUM(C14:C16) -> 0 | D13: 0 | E13: 1000000 | F13: 193350 | G13: 808450 | H13: 1000000 | I13: 191550 | J13: 0.19155 | K13: =SUM(K14:K16) -> 1000000
A14: Drainage Collection | I14: 0
A15: Storm water Conveyance | C15: 0 | D15: 0 | E15: 1000000 | F15: 193350 | G15: 808450 | H15: 1000000 | I15: 191550 | J15: 0.19155 | K15: 1000000
A16: Attenuation | I16: 0
A17: Electrical Infrastructure | C17: =SUM(C18:C26) -> 11604393.62 | D17: 14300000 | E17: 13672147 | F17: 4477945.41 | G17: 8730388.38 | H17: 13672147 | I17: 4941758.62 | J17: 0.3614471538 | K17: =SUM(K18:K26) -> 13672147
A18: Power Plants | I18: 0
A19: HV Substations | I19: 0
A20: HV Switching Station | I20: 0
A21: HV Transmission Conductors | I21: 0
A22: MV Substations | C22: 0 | D22: 0 | E22: 0 | F22: 0 | G22: 0 | H22: 0 | I22: 0 | K22: 0
A23: MV Switching Stations | I23: 0
A24: MV Networks | I24: 0
A25: LV Networks | C25: 11604393.62 | D25: 14300000 | E25: 13672147 | F25: 4477945.41 | G25: 8730388.38 | H25: 13672147 | I25: 4941758.62 | J25: 0.3614471538 | K25: 13672147
A26: Capital Spares | I26: 0
A27: Water Supply Infrastructure | C27: =SUM(C28:C37) -> 0 | D27: 0 | E27: 0 | F27: 0 | G27: 0 | H27: 0 | I27: 0 | K27: =SUM(K28:K37) -> 0
A28: Dams and Weirs | I28: 0
A29: Boreholes | I29: 0
A30: Reservoirs | I30: 0
A31: Pump Stations | I31: 0
A32: Water Treatment Works | I32: 0
A33: Bulk Mains | I33: 0
A34: Distribution | I34: 0
A35: Distribution Points | I35: 0
A36: PRV Stations | I36: 0
A37: Capital Spares | I37: 0
A38: Sanitation Infrastructure | C38: =SUM(C39:C44) -> 0 | D38: 0 | E38: 0 | F38: 0 | G38: 0 | H38: 0 | I38: 0 | K38: =SUM(K39:K44) -> 0
A39: Pump Station | I39: 0
A40: Reticulation | I40: =H40-G40 -> 0 | J40: =IF(I40=0,"",I40/H40) -> 
A41: Waste Water Treatment Works | I41: =H41-G41 -> 0 | J41: =IF(I41=0,"",I41/H41) -> 
A42: Outfall Sewers | I42: =H42-G42 -> 0 | J42: =IF(I42=0,"",I42/H42) -> 
A43: Toilet Facilities | I43: 0
A44: Capital Spares | I44: 0
A45: Solid Waste Infrastructure | C45: =SUM(C46:C52) -> 0 | D45: 1800000 | E45: 1800000 | F45: 0 | G45: 0 | H45: 1800000 | I45: 1800000 | J45: 1 | K45: =SUM(K46:K52) -> 1800000
A46: Landfill Sites | C46: 0 | D46: 1800000 | E46: 1800000 | F46: 0 | G46: 0 | H46: 1800000 | I46: 1800000 | J46: 1 | K46: 1800000
A47: Waste Transfer Stations | I47: 0
A48: Waste Processing Facilities | I48: =H48-G48 -> 0 | J48: =IF(I48=0,"",I48/H48) -> 
A49: Waste Drop-off Points | I49: 0
A50: Waste Separation Facilities | I50: 0
A51: Electricity Generation Facilities | I51: 0
A52: Capital Spares | I52: 0
A53: Rail Infrastructure | C53: =SUM(C54:C62) -> 0 | D53: 0 | E53: 0 | F53: 0 | G53: 0 | H53: 0 | I53: 0 | K53: =SUM(K54:K62) -> 0
A54: Rail Lines | I54: 0
A55: Rail Structures | I55: 0
A56: Rail Furniture | I56: 0
A57: Drainage Collection | I57: 0
A58: Storm water Conveyance | I58: 0
A59: Attenuation | I59: 0
A60: MV Substations | I60: 0
A61: LV Networks | I61: 0
A62: Capital Spares | I62: 0
A63: Coastal Infrastructure | C63: =SUM(C64:C68) -> 0 | D63: 0 | E63: 0 | F63: 0 | G63: 0 | H63: 0 | I63: 0 | K63: =SUM(K64:K68) -> 0
A64: Sand Pumps | I64: 0
A65: Piers | I65: 0
A66: Revetments | I66: 0
A67: Promenades | I67: 0
A68: Capital Spares | I68: 0
A69: Information and Communication Infrastructure | C69: =SUM(C70:C73) -> 0 | D69: 0 | E69: 0 | F69: 0 | G69: 0 | H69: 0 | I69: =H69-G69 -> 0 | K69: =SUM(K70:K73) -> 0
A70: Data Centres | I70: =H70-G70 -> 0
A71: Core Layers | I71: =H71-G71 -> 0 | J71: =IF(I71=0,"",I71/H71) -> 
A72: Distribution Layers | I72: =H72-G72 -> 0
A73: Capital Spares | I73: =H73-G73 -> 0
A75: Community Assets | C75: =+C76+C99 -> 0 | D75: 0 | E75: 0 | F75: 0 | G75: 0 | H75: 0 | I75: =H75-G75 -> 0 | K75: =+K76+K99 -> 0
A76: Community Facilities | C76: =SUM(C77:C98) -> 0 | D76: 0 | E76: 0 | F76: 0 | G76: 0 | H76: 0 | I76: =H76-G76 -> 0 | K76: =SUM(K77:K98) -> 0
A77: Halls | C77: 0 | D77: 0 | E77: 0 | F77: 0 | G77: 0 | H77: 0 | I77: 0 | K77: 0
A78: Centres | I78: 0
A79: Crèches | I79: 0
A80: Clinics/Care Centres | I80: 0
A81: Fire/Ambulance Stations | I81: 0
A82: Testing Stations | C82: 0 | D82: 0 | E82: 0 | F82: 0 | G82: 0 | H82: 0 | I82: 0 | K82: 0
A83: Museums | I83: 0
A84: Galleries | I84: 0
A85: Theatres | I85: 0
A86: Libraries | I86: 0
A87: Cemeteries/Crematoria | I87: 0
A88: Police | I88: 0
A89: Purls | I89: 0
A90: Public Open Space | C90: 0 | D90: 0 | E90: 0 | F90: 0 | G90: 0 | H90: 0 | I90: 0 | K90: 0
A91: Nature Reserves | I91: 0
A92: Public Ablution Facilities | I92: 0
A93: Markets | I93: 0
A94: Stalls | I94: 0
A95: Abattoirs | I95: 0
A96: Airports | I96: 0
A97: Taxi Ranks/Bus Terminals | I97: 0
A98: Capital Spares | I98: 0
A99: Sport and Recreation Facilities | C99: =SUM(C100:C102) -> 0 | D99: 0 | E99: 0 | F99: 0 | G99: 0 | H99: 0 | I99: 0 | K99: =SUM(K100:K102) -> 0
A100: Indoor Facilities | I100: 0
A101: Outdoor Facilities | C101: 0 | D101: 0 | E101: 0 | F101: 0 | G101: 0 | H101: 0 | I101: 0 | K101: 0
A102: Capital Spares | I102: 0
A103: Heritage assets | C103: =SUM(C104:C108) -> 0 | D103: 0 | E103: 0 | F103: 0 | G103: 0 | H103: 0 | I103: 0 | K103: =SUM(K104:K108) -> 0
A104: Monuments | I104: 0
A105: Historic Buildings | I105: 0
A106: Works of Art | I106: 0
A107: Conservation Areas | I107: 0
A108: Other Heritage | I108: 0
I109: 0
A110: Investment properties | C110: =+C111+C114 -> 0 | D110: 0 | E110: 0 | F110: 0 | G110: 0 | H110: 0 | I110: 0 | K110: =+K111+K114 -> 0
A111: Revenue Generating | C111: =SUM(C112:C113) -> 0 | D111: 0 | E111: 0 | F111: 0 | G111: 0 | H111: 0 | I111: 0 | K111: =SUM(K112:K113) -> 0
A112: Improved Property | I112: 0
A113: Unimproved Property | I113: 0
A114: Non-revenue Generating | C114: =SUM(C115:C116) -> 0 | D114: 0 | E114: 0 | F114: 0 | G114: 0 | H114: 0 | I114: 0 | K114: =SUM(K115:K116) -> 0
A115: Improved Property | I115: 0
A116: Unimproved Property | I116: 0
A117: Other assets | C117: =+C118+C130 -> 0 | D117: 2000000 | E117: 2000000 | F117: 0 | G117: 0 | H117: 2000000 | I117: 2000000 | J117: 1 | K117: =+K118+K130 -> 2000000
A118: Operational Buildings | C118: =SUM(C119:C129) -> 0 | D118: 2000000 | E118: 2000000 | F118: 0 | G118: 0 | H118: 2000000 | I118: 2000000 | J118: 1 | K118: =SUM(K119:K129) -> 2000000
A119: Municipal Offices | C119: 0 | D119: 2000000 | E119: 2000000 | F119: 0 | G119: 0 | H119: 2000000 | I119: 2000000 | J119: 1 | K119: 2000000
A120: Pay/Enquiry Points | I120: 0
A121: Building Plan Offices | I121: 0
A122: Workshops | C122: 0 | D122: 0 | E122: 0 | F122: 0 | G122: 0 | H122: 0 | I122: 0 | K122: 0
A123: Yards | I123: 0
A124: Stores | I124: 0
A125: Laboratories | I125: 0
A126: Training Centres | I126: 0
A127: Manufacturing Plant | I127: 0
A128: Depots | I128: 0
A129: Capital Spares | I129: 0
A130: Housing | C130: =SUM(C131:C133) -> 0 | D130: 0 | E130: 0 | F130: 0 | G130: 0 | H130: 0 | I130: 0 | K130: =SUM(K131:K133) -> 0
A131: Staff Housing | I131: 0
A132: Social Housing | I132: 0
A133: Capital Spares | I133: 0
A135: Biological or Cultivated Assets | C135: =SUM(C136:C136) -> 0 | D135: 0 | E135: 0 | F135: 0 | G135: 0 | H135: 0 | I135: =H135-G135 -> 0 | J135: =IF(I135=0,"",I135/H135) ->  | K135: =SUM(K136) -> 0
A136: Biological or Cultivated Assets | I136: =H136-G136 -> 0
A138: Intangible Assets | C138: =SUM(C139:C140) -> 0 | D138: 0 | E138: 0 | F138: 0 | G138: 0 | H138: 0 | I138: =H138-G138 -> 0 | K138: =SUM(K139:K140) -> 0
A139: Servitudes | I139: 0
A140: Licences and Rights | C140: =SUM(C141:C146) -> 0 | D140: 0 | E140: 0 | F140: 0 | G140: 0 | H140: 0 | I140: 0 | K140: =SUM(K141:K146) -> 0
A141: Water Rights | I141: 0
A142: Effluent Licenses | I142: 0
A143: Solid Waste Licenses | I143: 0
A144: Computer Software and Applications | C144: 0 | D144: 0 | E144: 0 | F144: 0 | G144: 0 | H144: 0 | I144: 0 | K144: 0
A145: Load Settlement Software Applications | I145: 0
A146: Unspecified | I146: 0
A148: Computer Equipment | C148: =SUM(C149:C149) -> 1518852.17 | D148: 723793 | E148: 828500 | F148: 880.47 | G148: 391469.43 | H148: 828500 | I148: =H148-G148 -> 437030.57 | J148: =IF(I148=0,"",I148/H148) -> 0.5274961617 | K148: =SUM(K149) -> 828500
A149: Computer Equipment | C149: 1518852.17 | D149: 723793 | E149: 828500 | F149: 880.47 | G149: 391469.43 | H149: 828500 | I149: =H149-G149 -> 437030.57 | J149: =IF(I149=0,"",I149/H149) -> 0.5274961617 | K149: 828500
A151: Furniture and Office Equipment | C151: =SUM(C152:C152) -> 299643.69 | D151: 350000 | E151: 300000 | F151: 0 | G151: 299839.13 | H151: 300000 | I151: =H151-G151 -> 160.87 | J151: =IF(I151=0,"",I151/H151) -> 0.0005362333333 | K151: =SUM(K152) -> 300000
A152: Furniture and Office Equipment | C152: 299643.69 | D152: 350000 | E152: 300000 | F152: 0 | G152: 299839.13 | H152: 300000 | I152: =H152-G152 -> 160.87 | J152: =IF(I152=0,"",I152/H152) -> 0.0005362333333 | K152: 300000
J153: =IF(I153=0,"",I153/H153) -> 
A154: Machinery and Equipment | C154: =SUM(C155:C155) -> 437646.27 | D154: 800000 | E154: 790000 | F154: 0 | G154: 665640 | H154: 790000 | I154: =H154-G154 -> 124360 | J154: =IF(I154=0,"",I154/H154) -> 0.1574177215 | K154: =SUM(K155) -> 790000
A155: Machinery and Equipment | C155: 437646.27 | D155: 800000 | E155: 790000 | F155: 0 | G155: 665640 | H155: 790000 | I155: =H155-G155 -> 124360 | J155: =IF(I155=0,"",I155/H155) -> 0.1574177215 | K155: 790000
A157: Transport Assets | C157: =SUM(C158:C158) -> 855552.78 | D157: 1500000 | E157: 1305456 | F157: 0 | G157: 1305456.05 | H157: 1305456 | I157: =H157-G157 -> -0.05000000005 | J157: =IF(I157=0,"",I157/H157) -> -3.830079302e-08 | K157: =SUM(K158) -> 1305456
A158: Transport Assets | C158: 855552.78 | D158: 1500000 | E158: 1305456 | F158: 0 | G158: 1305456.05 | H158: 1305456 | I158: =H158-G158 -> -0.05000000005 | J158: =IF(I158=0,"",I158/H158) -> -3.830079302e-08 | K158: 1305456
A160: Land | C160: =SUM(C161:C161) -> 0 | D160: 0 | E160: 0 | F160: 0 | G160: 0 | H160: 0 | I160: =H160-G160 -> 0 | J160: =IF(I160=0,"",I160/H160) ->  | K160: =SUM(K161) -> 0
A161: Land | I161: =H161-G161 -> 0 | J161: =IF(I161=0,"",I161/H161) -> 
A163: Zoo's, Marine and Non-biological Animals | C163: =SUM(C164:C164) -> 0 | D163: 0 | E163: 0 | F163: 0 | G163: 0 | H163: 0 | I163: =H163-G163 -> 0 | J163: =IF(I163=0,"",I163/H163) ->  | K163: =SUM(K164) -> 0
A164: Zoo's, Marine and Non-biological Animals | I164: =H164-G164 -> 0 | J164: =IF(I164=0,"",I164/H164) -> 
J165: =IF(I165=0,"",I165/H165) -> 
A166: Total Capital Expenditure on new assets | B166: 1 | C166: =C7+C75+C103+C110+C117+C135+C138+C148+C151+C154+C157+C160+C163 -> 43187914.29 | D166: 63583793 | E166: 63068807 | F166: 9730357.63 | G166: 45759031.36 | H166: 63068807 | I166: =H166-G166 -> 17309775.64 | J166: =IF(I166=0,"",I166/H166) -> 0.2744585868 | K166: =K7+K75+K103+K110+K117+K135+K138+K148+K151+K154+K157+K160+K163 -> 63068807
A168: =head27a -> References
A169: 1. Total Capital Expenditure on new assets (SC13a) plus Total Capital Expenditure on renewal of existing assets (SC13b) plus Total Capital Expenditure on upgrading of existing assets (SC13e) must reconcile to total capital expenditure in Table C5
A171: check balance | C171: =C166+SC13b!C166+SC13e!C166-'C5-Capex'!C40 -> 0 | D171: =D166+SC13b!D166+SC13e!D166-'C5-Capex'!D40 -> 0 | E171: =E166+SC13b!E166+SC13e!E166-'C5-Capex'!E40 -> 0 | F171: =F166+SC13b!F166+SC13e!F166-'C5-Capex'!F40 -> 0 | G171: =G166+SC13b!G166+SC13e!G166-'C5-Capex'!G40 -> 0 | H171: =H166+SC13b!H166+SC13e!H166-'C5-Capex'!H40 -> 0 | K171: =K166+SC13b!K166+SC13e!K166-'C5-Capex'!K40 -> 0

Sheet SC13b
A1: =muni& " - "&S71Sb& " - "&Head57 -> LIM353 Molemole - Supporting Table SC13b Monthly Budget Statement - capital expenditure on renewal of existing assets by asset class - Q4 Fourth Quarter
A2: =desc -> Description | B2: =head27 -> Ref | C2: =Head1 -> 2020/21 | D2: =Head2 -> Budget Year 2021/22
C3: =Head5 -> Audited Outcome | D3: =Head6 -> Original Budget | E3: =Head7 -> Adjusted Budget | F3: =Head38 -> Monthly actual | G3: =Head39 -> YearTD actual | H3: =Head40 -> YearTD budget | I3: =Head41 -> YTD variance | J3: =Head41 -> YTD variance | K3: =Head8 -> Full Year Forecast
A4: R thousands | B4: 1 | J4: %
A5: Capital expenditure on renewal of existing assets by Asset Class/Sub-class
A7: Infrastructure | C7: =C8+C13+C17+C27+C38+C45+C53+C63+C69 -> 348337.4 | D7: 1200000 | E7: 1010000 | F7: 0 | G7: 805566.67 | H7: 1010000 | I7: =H7-G7 -> 204433.33 | J7: =IF(I7=0,"",I7/H7) -> 0.2024092376 | K7: =K8+K13+K17+K27+K38+K45+K53+K63+K69 -> 1010000
A8: Roads Infrastructure | C8: =SUM(C9:C12) -> 159302.6 | D8: 0 | E8: 0 | F8: 0 | G8: 0 | H8: 0 | I8: 0 | K8: =SUM(K9:K12) -> 0
A9: Roads | C9: 159302.6 | D9: 0 | E9: 0 | F9: 0 | G9: 0 | H9: 0 | I9: 0 | K9: 0
A10: Road Structures | I10: 0
A11: Road Furniture | I11: 0
A12: Capital Spares | I12: 0
A13: Storm water Infrastructure | C13: =SUM(C14:C16) -> 0 | D13: 0 | E13: 0 | F13: 0 | G13: 0 | H13: 0 | I13: 0 | K13: =SUM(K14:K16) -> 0
A14: Drainage Collection | I14: 0
A15: Storm water Conveyance | I15: 0
A16: Attenuation | I16: 0
A17: Electrical Infrastructure | C17: =SUM(C18:C26) -> 189034.8 | D17: 1200000 | E17: 1010000 | F17: 0 | G17: 805566.67 | H17: 1010000 | I17: 204433.33 | J17: 0.2024092376 | K17: =SUM(K18:K26) -> 1010000
A18: Power Plants | I18: 0
A19: HV Substations | I19: 0
A20: HV Switching Station | I20: 0
A21: HV Transmission Conductors | I21: 0
A22: MV Substations | I22: 0
A23: MV Switching Stations | I23: 0
A24: MV Networks | I24: 0
A25: LV Networks | C25: 189034.8 | D25: 1200000 | E25: 1010000 | F25: 0 | G25: 805566.67 | H25: 1010000 | I25: 204433.33 | J25: 0.2024092376 | K25: 1010000
A26: Capital Spares | I26: 0
A27: Water Supply Infrastructure | C27: =SUM(C28:C37) -> 0 | D27: 0 | E27: 0 | F27: 0 | G27: 0 | H27: 0 | I27: 0 | K27: =SUM(K28:K37) -> 0
A28: Dams and Weirs | I28: 0
A29: Boreholes | I29: 0
A30: Reservoirs | I30: 0
A31: Pump Stations | I31: 0
A32: Water Treatment Works | I32: 0
A33: Bulk Mains | I33: 0
A34: Distribution | I34: 0
A35: Distribution Points | I35: 0
A36: PRV Stations | I36: 0
A37: Capital Spares | I37: 0
A38: Sanitation Infrastructure | C38: =SUM(C39:C44) -> 0 | D38: 0 | E38: 0 | F38: 0 | G38: 0 | H38: 0 | I38: 0 | K38: =SUM(K39:K44) -> 0
A39: Pump Station | I39: 0
A40: Reticulation | I40: 0
A41: Waste Water Treatment Works | I41: 0
A42: Outfall Sewers | I42: 0
A43: Toilet Facilities | I43: 0
A44: Capital Spares | I44: 0
A45: Solid Waste Infrastructure | C45: =SUM(C46:C52) -> 0 | D45: 0 | E45: 0 | F45: 0 | G45: 0 | H45: 0 | I45: 0 | K45: =SUM(K46:K52) -> 0
A46: Landfill Sites | I46: 0
A47: Waste Transfer Stations | I47: 0
A48: Waste Processing Facilities | I48: 0
A49: Waste Drop-off Points | I49: 0
A50: Waste Separation Facilities | I50: 0
A51: Electricity Generation Facilities | I51: 0
A52: Capital Spares | I52: 0
A53: Rail Infrastructure | C53: =SUM(C54:C62) -> 0 | D53: 0 | E53: 0 | F53: 0 | G53: 0 | H53: 0 | I53: 0 | K53: =SUM(K54:K62) -> 0
A54: Rail Lines | I54: 0
A55: Rail Structures | I55: 0
A56: Rail Furniture | I56: 0
A57: Drainage Collection | I57: 0
A58: Storm water Conveyance | I58: 0
A59: Attenuation | I59: 0
A60: MV Substations | I60: 0
A61: LV Networks | C61: 0 | D61: 0 | E61: 0 | F61: 0 | G61: 0 | H61: 0 | I61: 0 | K61: 0
A62: Capital Spares | I62: 0
A63: Coastal Infrastructure | C63: =SUM(C64:C68) -> 0 | D63: 0 | E63: 0 | F63: 0 | G63: 0 | H63: 0 | I63: 0 | K63: =SUM(K64:K68) -> 0
A64: Sand Pumps | I64: 0
A65: Piers | I65: 0
A66: Revetments | I66: 0
A67: Promenades | I67: 0
A68: Capital Spares | I68: 0
A69: Information and Communication Infrastructure | C69: =SUM(C70:C73) -> 0 | D69: 0 | E69: 0 | F69: 0 | G69: 0 | H69: 0 | I69: 0 | K69: =SUM(K70:K73) -> 0
A70: Data Centres | I70: 0
A71: Core Layers | I71: 0
A72: Distribution Layers | I72: 0
A73: Capital Spares | I73: 0
A75: Community Assets | C75: =+C76+C99 -> 3677811.73 | D75: 0 | E75: 0 | F75: 0 | G75: 0 | H75: 0 | I75: 0 | K75: =+K76+K99 -> 0
A76: Community Facilities | C76: =SUM(C77:C98) -> 0 | D76: 0 | E76: 0 | F76: 0 | G76: 0 | H76: 0 | I76: 0 | K76: =SUM(K77:K98) -> 0
A77: Halls | I77: 0
A78: Centres | I78: 0
A79: Crèches | I79: 0
A80: Clinics/Care Centres | I80: 0
A81: Fire/Ambulance Stations | I81: 0
A82: Testing Stations | I82: 0
A83: Museums | I83: 0
A84: Galleries | I84: 0
A85: Theatres | I85: 0
A86: Libraries | I86: 0
A87: Cemeteries/Crematoria | I87: 0
A88: Police | I88: 0
A89: Purls | I89: 0
A90: Public Open Space | I90: 0
A91: Nature Reserves | I91: 0
A92: Public Ablution Facilities | I92: 0
A93: Markets | I93: 0
A94: Stalls | I94: 0
A95: Abattoirs | I95: 0
A96: Airports | I96: 0
A97: Taxi Ranks/Bus Terminals | I97: 0
A98: Capital Spares | I98: 0
A99: Sport and Recreation Facilities | C99: =SUM(C100:C102) -> 3677811.73 | D99: 0 | E99: 0 | F99: 0 | G99: 0 | H99: 0 | I99: 0 | K99: =SUM(K100:K102) -> 0
A100: Indoor Facilities | C100: 0 | D100: 0 | E100: 0 | F100: 0 | G100: 0 | H100: 0 | I100: 0 | K100: 0
A101: Outdoor Facilities | C101: 3677811.73 | D101: 0 | E101: 0 | F101: 0 | G101: 0 | H101: 0 | I101: =H101-G101 -> 0 | J101: =IF(I101=0,"",I101/H101) ->  | K101: 0
A102: Capital Spares | I102: 0
A103: Heritage assets | C103: =SUM(C104:C108) -> 0 | D103: 0 | E103: 0 | F103: 0 | G103: 0 | H103: 0 | I103: 0 | K103: =SUM(K104:K108) -> 0
A104: Monuments | I104: 0
A105: Historic Buildings | I105: 0
A106: Works of Art | I106: 0
A107: Conservation Areas | I107: 0
A108: Other Heritage | I108: 0
I109: 0
A110: Investment properties | C110: =+C111+C114 -> 0 | D110: 0 | E110: 0 | F110: 0 | G110: 0 | H110: 0 | I110: 0 | K110: =+K111+K114 -> 0
A111: Revenue Generating | C111: =SUM(C112:C113) -> 0 | D111: 0 | E111: 0 | F111: 0 | G111: 0 | H111: 0 | I111: 0 | K111: =SUM(K112:K113) -> 0
A112: Improved Property | I112: 0
A113: Unimproved Property | I113: 0
A114: Non-revenue Generating | C114: =SUM(C115:C116) -> 0 | D114: 0 | E114: 0 | F114: 0 | G114: 0 | H114: 0 | I114: 0 | K114: =SUM(K115:K116) -> 0
A115: Improved Property | I115: 0
A116: Unimproved Property | I116: =H116-G116 -> 0 | J116: =IF(I116=0,"",I116/H116) -> 
A117: Other assets | C117: =+C118+C130 -> 0 | D117: 0 | E117: 0 | F117: 0 | G117: 0 | H117: 0 | I117: 0 | K117: =+K118+K130 -> 0
A118: Operational Buildings | C118: =SUM(C119:C129) -> 0 | D118: 0 | E118: 0 | F118: 0 | G118: 0 | H118: 0 | I118: 0 | K118: =SUM(K119:K129) -> 0
A119: Municipal Offices | C119: 0 | D119: 0 | E119: 0 | F119: 0 | G119: 0 | H119: 0 | I119: 0 | K119: 0
A120: Pay/Enquiry Points | I120: 0
A121: Building Plan Offices | I121: 0
A122: Workshops | I122: 0
A123: Yards | I123: 0
A124: Stores | I124: 0
A125: Laboratories | I125: 0
A126: Training Centres | I126: 0
A127: Manufacturing Plant | I127: 0
A128: Depots | I128: 0
A129: Capital Spares | I129: 0
A130: Housing | C130: =SUM(C131:C133) -> 0 | D130: 0 | E130: 0 | F130: 0 | G130: 0 | H130: 0 | I130: 0 | K130: =SUM(K131:K133) -> 0
A131: Staff Housing | I131: 0
A132: Social Housing | I132: 0
A133: Capital Spares | I133: 0
A135: Biological or Cultivated Assets | C135: =SUM(C136:C136) -> 0 | D135: 0 | E135: 0 | F135: 0 | G135: 0 | H135: 0 | I135: =H135-G135 -> 0 | K135: =SUM(K136) -> 0
A136: Biological or Cultivated Assets | I136: =H136-G136 -> 0
J137: =IF(I137=0,"",I137/H137) -> 
A138: Intangible Assets | C138: =SUM(C139:C140) -> 0 | D138: 0 | E138: 0 | F138: 0 | G138: 0 | H138: 0 | I138: =H138-G138 -> 0 | K138: =SUM(K139:K140) -> 0
A139: Servitudes | I139: 0
A140: Licences and Rights | C140: =SUM(C141:C146) -> 0 | D140: 0 | E140: 0 | F140: 0 | G140: 0 | H140: 0 | I140: 0 | K140: =SUM(K141:K146) -> 0
A141: Water Rights | I141: 0
A142: Effluent Licenses | I142: 0
A143: Solid Waste Licenses | I143: 0
A144: Computer Software and Applications | C144: 0 | D144: 0 | E144: 0 | F144: 0 | G144: 0 | H144: 0 | I144: 0 | K144: 0
A145: Load Settlement Software Applications | I145: 0
A146: Unspecified | I146: 0
A148: Computer Equipment | C148: =SUM(C149:C149) -> 2842443.65 | D148: 0 | E148: 0 | F148: 0 | G148: 0 | H148: 0 | I148: =H148-G148 -> 0 | J148: =IF(I148=0,"",I148/H148) ->  | K148: =SUM(K149) -> 0
A149: Computer Equipment | C149: 2842443.65 | D149: 0 | E149: 0 | F149: 0 | G149: 0 | H149: 0 | I149: =H149-G149 -> 0 | J149: =IF(I149=0,"",I149/H149) ->  | K149: 0
A151: Furniture and Office Equipment | C151: =SUM(C152:C152) -> 0 | D151: 300000 | E151: 300000 | F151: 0 | G151: 0 | H151: 300000 | I151: =H151-G151 -> 300000 | J151: =IF(I151=0,"",I151/H151) -> 1 | K151: =SUM(K152) -> 300000
A152: Furniture and Office Equipment | C152: 0 | D152: 300000 | E152: 300000 | F152: 0 | G152: 0 | H152: 300000 | I152: =H152-G152 -> 300000 | J152: =IF(I152=0,"",I152/H152) -> 1 | K152: 300000
J153: =IF(I153=0,"",I153/H153) -> 
A154: Machinery and Equipment | C154: =SUM(C155:C155) -> 0 | D154: 0 | E154: 0 | F154: 0 | G154: 0 | H154: 0 | I154: =H154-G154 -> 0 | J154: =IF(I154=0,"",I154/H154) ->  | K154: =SUM(K155) -> 0
A155: Machinery and Equipment | I155: =H155-G155 -> 0 | J155: =IF(I155=0,"",I155/H155) -> 
A157: Transport Assets | C157: =SUM(C158:C158) -> 0 | D157: 0 | E157: 0 | F157: 0 | G157: 0 | H157: 0 | I157: =H157-G157 -> 0 | J157: =IF(I157=0,"",I157/H157) ->  | K157: =SUM(K158) -> 0
A158: Transport Assets | I158: =H158-G158 -> 0 | J158: =IF(I158=0,"",I158/H158) -> 
A160: Land | C160: =SUM(C161:C161) -> 0 | D160: 0 | E160: 0 | F160: 0 | G160: 0 | H160: 0 | I160: =H160-G160 -> 0 | J160: =IF(I160=0,"",I160/H160) ->  | K160: =SUM(K161) -> 0
A161: Land | I161: =H161-G161 -> 0 | J161: =IF(I161=0,"",I161/H161) -> 
J162: .
A163: Zoo's, Marine and Non-biological Animals | C163: =SUM(C164:C164) -> 0 | D163: 0 | E163: 0 | F163: 0 | G163: 0 | H163: 0 | I163: =H163-G163 -> 0 | J163: =IF(I163=0,"",I163/H163) ->  | K163: =SUM(K164) -> 0
A164: Zoo's, Marine and Non-biological Animals | I164: =H164-G164 -> 0 | J164: =IF(I164=0,"",I164/H164) -> 
J165: =IF(I165=0,"",I165/H165) -> 
A166: Total Capital Expenditure on renewal of existing assets | B166: 1 | C166: =C7+C75+C103+C110+C117+C135+C138+C148+C151+C154+C157+C160+C163 -> 6868592.78 | D166: 1500000 | E166: 1310000 | F166: 0 | G166: 805566.67 | H166: 1310000 | I166: =H166-G166 -> 504433.33 | J166: =IF(I166=0,"",I166/H166) -> 0.3850636107 | K166: =K7+K75+K103+K110+K117+K135+K138+K148+K151+K154+K157+K160+K163 -> 1310000
A168: =head27a -> References
A169: 1. Total Capital Expenditure on new assets (SC13a) plus Total Capital Expenditure on renewal of existing assets (SC13b) plus Total Capital Expenditure on upgrading of existing assets (SC13e) must reconcile to total capital expenditure in Table C5
A171: check balance | C171: =C166+SC13a!C166+SC13e!C166-'C5-Capex'!C40 -> 0 | D171: =D166+SC13a!D166+SC13e!D166-'C5-Capex'!D40 -> 0 | E171: =E166+SC13a!E166+SC13e!E166-'C5-Capex'!E40 -> 0 | F171: =F166+SC13a!F166+SC13e!F166-'C5-Capex'!F40 -> 0 | G171: =G166+SC13a!G166+SC13e!G166-'C5-Capex'!G40 -> 0 | H171: =H166+SC13a!H166+SC13e!H166-'C5-Capex'!H40 -> 0 | K171: =K166+SC13a!K166+SC13e!K166-'C5-Capex'!K40 -> 0

Sheet SC13c
A1: =muni& " - "&S71Sc& " - "&Head57 -> LIM353 Molemole - Supporting Table SC13c Monthly Budget Statement - expenditure on repairs and maintenance by asset class - Q4 Fourth Quarter
A2: =desc -> Description | B2: =head27 -> Ref | C2: =Head1 -> 2020/21 | D2: =Head2 -> Budget Year 2021/22
C3: =Head5 -> Audited Outcome | D3: =Head6 -> Original Budget | E3: =Head7 -> Adjusted Budget | F3: =Head38 -> Monthly actual | G3: =Head39 -> YearTD actual | H3: =Head40 -> YearTD budget | I3: =Head41 -> YTD variance | J3: =Head41 -> YTD variance | K3: =Head8 -> Full Year Forecast
A4: R thousands | B4: 1 | J4: %
A5: Repairs and maintenance expenditure by Asset Class/Sub-class
A7: Infrastructure | C7: =C8+C13+C17+C27+C38+C45+C53+C63+C69 -> 7759768.58 | D7: 7864718 | E7: 5969718 | F7: 915308.86 | G7: 5461121.64 | H7: 5969718 | I7: =H7-G7 -> 508596.36 | J7: =IF(I7=0,"",I7/H7) -> 0.08519604444 | K7: =K8+K13+K17+K27+K38+K45+K53+K63+K69 -> 5969718
A8: Roads Infrastructure | C8: =SUM(C9:C12) -> 7759768.58 | D8: 7864718 | E8: 5969718 | F8: 915308.86 | G8: 5461121.64 | H8: 5969718 | I8: 508596.36 | J8: 0.08519604444 | K8: =SUM(K9:K12) -> 5969718
A9: Roads | C9: 7759768.58 | D9: 7864718 | E9: 5969718 | F9: 915308.86 | G9: 5461121.64 | H9: 5969718 | I9: 508596.36 | J9: 0.08519604444 | K9: 5969718
A10: Road Structures | C10: 0 | D10: 0 | E10: 0 | F10: 0 | G10: 0 | H10: 0 | I10: 0 | K10: 0
A11: Road Furniture | I11: 0
A12: Capital Spares | I12: 0
A13: Storm water Infrastructure | C13: =SUM(C14:C16) -> 0 | D13: 0 | E13: 0 | F13: 0 | G13: 0 | H13: 0 | I13: 0 | K13: =SUM(K14:K16) -> 0
A14: Drainage Collection | I14: 0
A15: Storm water Conveyance | I15: 0
A16: Attenuation | I16: 0
A17: Electrical Infrastructure | C17: =SUM(C18:C26) -> 0 | D17: 0 | E17: 0 | F17: 0 | G17: 0 | H17: 0 | I17: 0 | K17: =SUM(K18:K26) -> 0
A18: Power Plants | I18: 0
A19: HV Substations | I19: 0
A20: HV Switching Station | I20: 0
A21: HV Transmission Conductors | I21: 0
A22: MV Substations | I22: 0
A23: MV Switching Stations | I23: 0
A24: MV Networks | I24: 0
A25: LV Networks | I25: 0
A26: Capital Spares | I26: 0
A27: Water Supply Infrastructure | C27: =SUM(C28:C37) -> 0 | D27: 0 | E27: 0 | F27: 0 | G27: 0 | H27: 0 | I27: 0 | K27: =SUM(K28:K37) -> 0
A28: Dams and Weirs | I28: 0
A29: Boreholes | I29: 0
A30: Reservoirs | I30: 0
A31: Pump Stations | I31: 0
A32: Water Treatment Works | I32: 0
A33: Bulk Mains | I33: 0
A34: Distribution | I34: 0
A35: Distribution Points | I35: 0
A36: PRV Stations | I36: 0
A37: Capital Spares | I37: 0
A38: Sanitation Infrastructure | C38: =SUM(C39:C44) -> 0 | D38: 0 | E38: 0 | F38: 0 | G38: 0 | H38: 0 | I38: 0 | K38: =SUM(K39:K44) -> 0
A39: Pump Station | I39: 0
A40: Reticulation | I40: 0
A41: Waste Water Treatment Works | I41: 0
A42: Outfall Sewers | I42: 0
A43: Toilet Facilities | I43: 0
A44: Capital Spares | I44: 0
A45: Solid Waste Infrastructure | C45: =SUM(C46:C52) -> 0 | D45: 0 | E45: 0 | F45: 0 | G45: 0 | H45: 0 | I45: 0 | K45: =SUM(K46:K52) -> 0
A46: Landfill Sites | I46: 0
A47: Waste Transfer Stations | I47: 0
A48: Waste Processing Facilities | I48: 0
A49: Waste Drop-off Points | I49: 0
A50: Waste Separation Facilities | I50: 0
A51: Electricity Generation Facilities | I51: 0
A52: Capital Spares | I52: 0
A53: Rail Infrastructure | C53: =SUM(C54:C62) -> 0 | D53: 0 | E53: 0 | F53: 0 | G53: 0 | H53: 0 | I53: 0 | K53: =SUM(K54:K62) -> 0
A54: Rail Lines | I54: 0
A55: Rail Structures | I55: 0
A56: Rail Furniture | I56: 0
A57: Drainage Collection | I57: 0
A58: Storm water Conveyance | I58: 0
A59: Attenuation | I59: 0
A60: MV Substations | I60: 0
A61: LV Networks | I61: 0
A62: Capital Spares | I62: 0
A63: Coastal Infrastructure | C63: =SUM(C64:C68) -> 0 | D63: 0 | E63: 0 | F63: 0 | G63: 0 | H63: 0 | I63: 0 | K63: =SUM(K64:K68) -> 0
A64: Sand Pumps | I64: 0
A65: Piers | I65: 0
A66: Revetments | I66: 0
A67: Promenades | I67: 0
A68: Capital Spares | I68: 0
A69: Information and Communication Infrastructure | C69: =SUM(C70:C73) -> 0 | D69: 0 | E69: 0 | F69: 0 | G69: 0 | H69: 0 | I69: 0 | K69: =SUM(K70:K73) -> 0
A70: Data Centres | I70: 0
A71: Core Layers | I71: 0
A72: Distribution Layers | I72: 0
A73: Capital Spares | I73: 0
A75: Community Assets | C75: =+C76+C99 -> 88490 | D75: 107800 | E75: 107800 | F75: 29650.82 | G75: 88530.82 | H75: 107800 | I75: 19269.18 | J75: 0.1787493506 | K75: =+K76+K99 -> 107800
A76: Community Facilities | C76: =SUM(C77:C98) -> 88490 | D76: 107800 | E76: 107800 | F76: 29650.82 | G76: 88530.82 | H76: 107800 | I76: 19269.18 | J76: 0.1787493506 | K76: =SUM(K77:K98) -> 107800
A77: Halls | C77: 0 | D77: 0 | E77: 0 | F77: 0 | G77: 0 | H77: 0 | I77: 0 | K77: 0
A78: Centres | I78: 0
A79: Crèches | I79: 0
A80: Clinics/Care Centres | I80: 0
A81: Fire/Ambulance Stations | I81: 0
A82: Testing Stations | I82: 0
A83: Museums | I83: 0
A84: Galleries | I84: 0
A85: Theatres | I85: 0
A86: Libraries | I86: 0
A87: Cemeteries/Crematoria | C87: 88490 | D87: 107800 | E87: 107800 | F87: 29650.82 | G87: 88530.82 | H87: 107800 | I87: 19269.18 | J87: 0.1787493506 | K87: 107800
A88: Police | I88: 0
A89: Purls | I89: 0
A90: Public Open Space | I90: 0
A91: Nature Reserves | I91: 0
A92: Public Ablution Facilities | I92: 0
A93: Markets | I93: 0
A94: Stalls | I94: 0
A95: Abattoirs | I95: 0
A96: Airports | I96: 0
A97: Taxi Ranks/Bus Terminals | I97: 0
A98: Capital Spares | I98: 0
A99: Sport and Recreation Facilities | C99: =SUM(C100:C102) -> 0 | D99: 0 | E99: 0 | F99: 0 | G99: 0 | H99: 0 | I99: 0 | K99: =SUM(K100:K102) -> 0
A100: Indoor Facilities | I100: 0
A101: Outdoor Facilities | C101: 0 | D101: 0 | E101: 0 | F101: 0 | G101: 0 | H101: 0 | I101: =H101-G101 -> 0 | J101: =IF(I101=0,"",I101/H101) ->  | K101: 0
A102: Capital Spares | I102: 0
A103: Heritage assets | C103: =SUM(C104:C108) -> 0 | D103: 0 | E103: 0 | F103: 0 | G103: 0 | H103: 0 | I103: 0 | K103: =SUM(K104:K108) -> 0
A104: Monuments | I104: 0
A105: Historic Buildings | I105: 0
A106: Works of Art | I106: 0
A107: Conservation Areas | I107: 0
A108: Other Heritage | I108: 0
I109: 0
A110: Investment properties | C110: =+C111+C114 -> 0 | D110: 0 | E110: 0 | F110: 0 | G110: 0 | H110: 0 | I110: 0 | K110: =+K111+K114 -> 0
A111: Revenue Generating | C111: =SUM(C112:C113) -> 0 | D111: 0 | E111: 0 | F111: 0 | G111: 0 | H111: 0 | I111: 0 | K111: =SUM(K112:K113) -> 0
A112: Improved Property | I112: 0
A113: Unimproved Property | I113: 0
A114: Non-revenue Generating | C114: =SUM(C115:C116) -> 0 | D114: 0 | E114: 0 | F114: 0 | G114: 0 | H114: 0 | I114: 0 | K114: =SUM(K115:K116) -> 0
A115: Improved Property | I115: 0
A116: Unimproved Property | I116: =H116-G116 -> 0 | J116: =IF(I116=0,"",I116/H116) -> 
A117: Other assets | C117: =+C118+C130 -> 2242907.03 | D117: 1531200 | E117: 1531200 | F117: 286228.98 | G117: 1502880.82 | H117: 1531200 | I117: 28319.18 | J117: 0.01849476228 | K117: =+K118+K130 -> 1531200
A118: Operational Buildings | C118: =SUM(C119:C129) -> 2242907.03 | D118: 1531200 | E118: 1531200 | F118: 286228.98 | G118: 1502880.82 | H118: 1531200 | I118: 28319.18 | J118: 0.01849476228 | K118: =SUM(K119:K129) -> 1531200
A119: Municipal Offices | C119: 2242907.03 | D119: 1531200 | E119: 1531200 | F119: 286228.98 | G119: 1502880.82 | H119: 1531200 | I119: 28319.18 | J119: 0.01849476228 | K119: 1531200
A120: Pay/Enquiry Points | I120: 0
A121: Building Plan Offices | I121: 0
A122: Workshops | I122: 0
A123: Yards | I123: 0
A124: Stores | I124: 0
A125: Laboratories | I125: 0
A126: Training Centres | I126: 0
A127: Manufacturing Plant | I127: 0
A128: Depots | I128: 0
A129: Capital Spares | I129: 0
A130: Housing | C130: =SUM(C131:C133) -> 0 | D130: 0 | E130: 0 | F130: 0 | G130: 0 | H130: 0 | I130: 0 | K130: =SUM(K131:K133) -> 0
A131: Staff Housing | I131: 0
A132: Social Housing | I132: 0
A133: Capital Spares | I133: 0
A135: Biological or Cultivated Assets | C135: =SUM(C136:C136) -> 0 | D135: 0 | E135: 0 | F135: 0 | G135: 0 | H135: 0 | I135: =H135-G135 -> 0 | K135: =SUM(K136) -> 0
A136: Biological or Cultivated Assets | I136: =H136-G136 -> 0
A138: Intangible Assets | C138: =SUM(C139:C140) -> 0 | D138: 0 | E138: 0 | F138: 0 | G138: 0 | H138: 0 | I138: =H138-G138 -> 0 | K138: =SUM(K139:K140) -> 0
A139: Servitudes | I139: 0
A140: Licences and Rights | C140: =SUM(C141:C146) -> 0 | D140: 0 | E140: 0 | F140: 0 | G140: 0 | H140: 0 | I140: 0 | K140: =SUM(K141:K146) -> 0
A141: Water Rights | I141: 0
A142: Effluent Licenses | I142: 0
A143: Solid Waste Licenses | I143: 0
A144: Computer Software and Applications | I144: 0
A145: Load Settlement Software Applications | I145: 0
A146: Unspecified | I146: 0
A148: Computer Equipment | C148: =SUM(C149:C149) -> 2361672.96 | D148: 2631200 | E148: 2422200 | F148: 395886.7 | G148: 1538200.27 | H148: 2422200 | I148: =H148-G148 -> 883999.73 | J148: =IF(I148=0,"",I148/H148) -> 0.3649573652 | K148: =SUM(K149) -> 2422200
A149: Computer Equipment | C149: 2361672.96 | D149: 2631200 | E149: 2422200 | F149: 395886.7 | G149: 1538200.27 | H149: 2422200 | I149: =H149-G149 -> 883999.73 | J149: =IF(I149=0,"",I149/H149) -> 0.3649573652 | K149: 2422200
A151: Furniture and Office Equipment | C151: =SUM(C152:C152) -> 302729 | D151: 200000 | E151: 200000 | F151: 0 | G151: 160628.16 | H151: 200000 | I151: =H151-G151 -> 39371.84 | J151: =IF(I151=0,"",I151/H151) -> 0.1968592 | K151: =SUM(K152) -> 200000
A152: Furniture and Office Equipment | C152: 302729 | D152: 200000 | E152: 200000 | F152: 0 | G152: 160628.16 | H152: 200000 | I152: =H152-G152 -> 39371.84 | J152: =IF(I152=0,"",I152/H152) -> 0.1968592 | K152: 200000
J153: =IF(I153=0,"",I153/H153) -> 
A154: Machinery and Equipment | C154: =SUM(C155:C155) -> 3938580.38 | D154: 4029704 | E154: 5329704 | F154: 130470.85 | G154: 5299588.6 | H154: 5329704 | I154: =H154-G154 -> 30115.4 | J154: =IF(I154=0,"",I154/H154) -> 0.005650482653 | K154: =SUM(K155) -> 5329704
A155: Machinery and Equipment | C155: 3938580.38 | D155: 4029704 | E155: 5329704 | F155: 130470.85 | G155: 5299588.6 | H155: 5329704 | I155: =H155-G155 -> 30115.4 | J155: =IF(I155=0,"",I155/H155) -> 0.005650482653 | K155: 5329704
A157: Transport Assets | C157: =SUM(C158:C158) -> 1505152.76 | D157: 1712622 | E157: 1712622 | F157: 0 | G157: 1709524.08 | H157: 1712622 | I157: =H157-G157 -> 3097.92 | J157: =IF(I157=0,"",I157/H157) -> 0.001808875514 | K157: =SUM(K158) -> 1712622
A158: Transport Assets | C158: 1505152.76 | D158: 1712622 | E158: 1712622 | F158: 0 | G158: 1709524.08 | H158: 1712622 | I158: =H158-G158 -> 3097.92 | J158: =IF(I158=0,"",I158/H158) -> 0.001808875514 | K158: 1712622
A160: Land | C160: =SUM(C161:C161) -> 0 | D160: 0 | E160: 0 | F160: 0 | G160: 0 | H160: 0 | I160: =H160-G160 -> 0 | J160: =IF(I160=0,"",I160/H160) ->  | K160: =SUM(K161) -> 0
A161: Land | I161: =H161-G161 -> 0 | J161: =IF(I161=0,"",I161/H161) -> 
A163: Zoo's, Marine and Non-biological Animals | C163: =SUM(C164:C164) -> 0 | D163: 0 | E163: 0 | F163: 0 | G163: 0 | H163: 0 | I163: =H163-G163 -> 0 | J163: =IF(I163=0,"",I163/H163) ->  | K163: =SUM(K164) -> 0
A164: Zoo's, Marine and Non-biological Animals | I164: =H164-G164 -> 0 | J164: =IF(I164=0,"",I164/H164) -> 
J165: =IF(I165=0,"",I165/H165) -> 
A166: Total Repairs and Maintenance Expenditure | B166: 1 | C166: =C7+C75+C103+C110+C117+C135+C138+C148+C151+C154+C157+C160+C163 -> 18199300.71 | D166: 18077244 | E166: 17273244 | F166: 1757546.21 | G166: 15760474.39 | H166: 17273244 | I166: 1512769.61 | J166: 0.08757877849 | K166: =K7+K75+K103+K110+K117+K135+K138+K148+K151+K154+K157+K160+K163 -> 17273244

Sheet SC13d
A1: =muni& " - "&S71Sd& " - "&Head57 -> LIM353 Molemole - Supporting Table SC13d Monthly Budget Statement - depreciation by asset class - Q4 Fourth Quarter
A2: =desc -> Description | B2: =head27 -> Ref | C2: =Head1 -> 2020/21 | D2: =Head2 -> Budget Year 2021/22
C3: =Head5 -> Audited Outcome | D3: =Head6 -> Original Budget | E3: =Head7 -> Adjusted Budget | F3: =Head38 -> Monthly actual | G3: =Head39 -> YearTD actual | H3: =Head40 -> YearTD budget | I3: =Head41 -> YTD variance | J3: =Head41 -> YTD variance | K3: =Head8 -> Full Year Forecast
A4: R thousands | B4: 1 | J4: %
A5: Depreciation by Asset Class/Sub-class
A7: Infrastructure | C7: =C8+C13+C17+C27+C38+C45+C53+C63+C69 -> 6554491.79 | D7: 9634852 | E7: 9634852 | F7: 771532.53 | G7: 11593449.02 | H7: 9634852 | I7: =H7-G7 -> -1958597.02 | J7: =IF(I7=0,"",I7/H7) -> -0.2032825227 | K7: =K8+K13+K17+K27+K38+K45+K53+K63+K69 -> 9634852
A8: Roads Infrastructure | C8: =SUM(C9:C12) -> 5829614.79 | D8: 8798597 | E8: 8798597 | F8: 692524.14 | G8: 10659710.61 | H8: 8798597 | I8: -1861113.61 | J8: -0.2115239066 | K8: =SUM(K9:K12) -> 8798597
A9: Roads | C9: 5688174.27 | D9: 8637042 | E9: 8637042 | F9: 678413.03 | G9: 10455894.35 | H9: 8637042 | I9: -1818852.35 | J9: -0.2105874152 | K9: 8637042
A10: Road Structures | C10: 0 | D10: 0 | E10: 0 | F10: 0 | G10: 0 | H10: 0 | I10: 0 | K10: 0
A11: Road Furniture | C11: 141440.52 | D11: 161555 | E11: 161555 | F11: 14111.11 | G11: 203816.26 | H11: 161555 | I11: -42261.26 | J11: -0.2615905419 | K11: 161555
A12: Capital Spares | C12: 0 | D12: 0 | E12: 0 | F12: 0 | G12: 0 | H12: 0 | I12: 0 | K12: 0
A13: Storm water Infrastructure | C13: =SUM(C14:C16) -> 0 | D13: 0 | E13: 0 | F13: 0 | G13: 0 | H13: 0 | I13: 0 | K13: =SUM(K14:K16) -> 0
A14: Drainage Collection | C14: 0 | D14: 0 | E14: 0 | F14: 0 | G14: 0 | H14: 0 | I14: 0 | K14: 0
A15: Storm water Conveyance | C15: 0 | D15: 0 | E15: 0 | F15: 0 | G15: 0 | H15: 0 | I15: 0 | K15: 0
A16: Attenuation | C16: 0 | D16: 0 | E16: 0 | F16: 0 | G16: 0 | H16: 0 | I16: 0 | K16: 0
A17: Electrical Infrastructure | C17: =SUM(C18:C26) -> 724877 | D17: 836255 | E17: 836255 | F17: 79008.39 | G17: 933738.41 | H17: 836255 | I17: -97483.41 | J17: -0.1165713927 | K17: =SUM(K18:K26) -> 836255
A18: Power Plants | C18: 0 | D18: 0 | E18: 0 | F18: 0 | G18: 0 | H18: 0 | I18: 0 | K18: 0
A19: HV Substations | C19: 0 | D19: 0 | E19: 0 | F19: 0 | G19: 0 | H19: 0 | I19: 0 | K19: 0
A20: HV Switching Station | C20: 0 | D20: 0 | E20: 0 | F20: 0 | G20: 0 | H20: 0 | I20: 0 | K20: 0
A21: HV Transmission Conductors | C21: 0 | D21: 0 | E21: 0 | F21: 0 | G21: 0 | H21: 0 | I21: 0 | K21: 0
A22: MV Substations | C22: 0 | D22: 0 | E22: 0 | F22: 0 | G22: 0 | H22: 0 | I22: 0 | K22: 0
A23: MV Switching Stations | C23: 0 | D23: 0 | E23: 0 | F23: 0 | G23: 0 | H23: 0 | I23: 0 | K23: 0
A24: MV Networks | C24: 300251.37 | D24: 134479 | E24: 134479 | F24: 25051.47 | G24: 294948.87 | H24: 134479 | I24: -160469.87 | J24: -1.193270845 | K24: 134479
A25: LV Networks | C25: 424625.63 | D25: 701776 | E25: 701776 | F25: 53956.92 | G25: 638789.54 | H25: 701776 | I25: 62986.46 | J25: 0.08975294111 | K25: 701776
A26: Capital Spares | C26: 0 | D26: 0 | E26: 0 | F26: 0 | G26: 0 | H26: 0 | I26: 0 | K26: 0
A27: Water Supply Infrastructure | C27: =SUM(C28:C37) -> 0 | D27: 0 | E27: 0 | F27: 0 | G27: 0 | H27: 0 | I27: 0 | K27: =SUM(K28:K37) -> 0
A28: Dams and Weirs | C28: 0 | D28: 0 | E28: 0 | F28: 0 | G28: 0 | H28: 0 | I28: 0 | K28: 0
A29: Boreholes | C29: 0 | D29: 0 | E29: 0 | F29: 0 | G29: 0 | H29: 0 | I29: 0 | K29: 0
A30: Reservoirs | C30: 0 | D30: 0 | E30: 0 | F30: 0 | G30: 0 | H30: 0 | I30: 0 | K30: 0
A31: Pump Stations | C31: 0 | D31: 0 | E31: 0 | F31: 0 | G31: 0 | H31: 0 | I31: 0 | K31: 0
A32: Water Treatment Works | C32: 0 | D32: 0 | E32: 0 | F32: 0 | G32: 0 | H32: 0 | I32: 0 | K32: 0
A33: Bulk Mains | C33: 0 | D33: 0 | E33: 0 | F33: 0 | G33: 0 | H33: 0 | I33: 0 | K33: 0
A34: Distribution | C34: 0 | D34: 0 | E34: 0 | F34: 0 | G34: 0 | H34: 0 | I34: 0 | K34: 0
A35: Distribution Points | C35: 0 | D35: 0 | E35: 0 | F35: 0 | G35: 0 | H35: 0 | I35: 0 | K35: 0
A36: PRV Stations | C36: 0 | D36: 0 | E36: 0 | F36: 0 | G36: 0 | H36: 0 | I36: 0 | K36: 0
A37: Capital Spares | C37: 0 | D37: 0 | E37: 0 | F37: 0 | G37: 0 | H37: 0 | I37: 0 | K37: 0
A38: Sanitation Infrastructure | C38: =SUM(C39:C44) -> 0 | D38: 0 | E38: 0 | F38: 0 | G38: 0 | H38: 0 | I38: 0 | K38: =SUM(K39:K44) -> 0
A39: Pump Station | C39: 0 | D39: 0 | E39: 0 | F39: 0 | G39: 0 | H39: 0 | I39: 0 | K39: 0
A40: Reticulation | C40: 0 | D40: 0 | E40: 0 | F40: 0 | G40: 0 | H40: 0 | I40: 0 | K40: 0
A41: Waste Water Treatment Works | C41: 0 | D41: 0 | E41: 0 | F41: 0 | G41: 0 | H41: 0 | I41: 0 | K41: 0
A42: Outfall Sewers | C42: 0 | D42: 0 | E42: 0 | F42: 0 | G42: 0 | H42: 0 | I42: 0 | K42: 0
A43: Toilet Facilities | C43: 0 | D43: 0 | E43: 0 | F43: 0 | G43: 0 | H43: 0 | I43: 0 | K43: 0
A44: Capital Spares | C44: 0 | D44: 0 | E44: 0 | F44: 0 | G44: 0 | H44: 0 | I44: 0 | K44: 0
A45: Solid Waste Infrastructure | C45: =SUM(C46:C52) -> 0 | D45: 0 | E45: 0 | F45: 0 | G45: 0 | H45: 0 | I45: 0 | K45: =SUM(K46:K52) -> 0
A46: Landfill Sites | C46: 0 | D46: 0 | E46: 0 | F46: 0 | G46: 0 | H46: 0 | I46: 0 | K46: 0
A47: Waste Transfer Stations | C47: 0 | D47: 0 | E47: 0 | F47: 0 | G47: 0 | H47: 0 | I47: 0 | K47: 0
A48: Waste Processing Facilities | C48: 0 | D48: 0 | E48: 0 | F48: 0 | G48: 0 | H48: 0 | I48: 0 | K48: 0
A49: Waste Drop-off Points | C49: 0 | D49: 0 | E49: 0 | F49: 0 | G49: 0 | H49: 0 | I49: 0 | K49: 0
A50: Waste Separation Facilities | C50: 0 | D50: 0 | E50: 0 | F50: 0 | G50: 0 | H50: 0 | I50: 0 | K50: 0
A51: Electricity Generation Facilities | C51: 0 | D51: 0 | E51: 0 | F51: 0 | G51: 0 | H51: 0 | I51: 0 | K51: 0
A52: Capital Spares | C52: 0 | D52: 0 | E52: 0 | F52: 0 | G52: 0 | H52: 0 | I52: 0 | K52: 0
A53: Rail Infrastructure | C53: =SUM(C54:C62) -> 0 | D53: 0 | E53: 0 | F53: 0 | G53: 0 | H53: 0 | I53: 0 | K53: =SUM(K54:K62) -> 0
A54: Rail Lines | C54: 0 | D54: 0 | E54: 0 | F54: 0 | G54: 0 | H54: 0 | I54: 0 | K54: 0
A55: Rail Structures | C55: 0 | D55: 0 | E55: 0 | F55: 0 | G55: 0 | H55: 0 | I55: 0 | K55: 0
A56: Rail Furniture | C56: 0 | D56: 0 | E56: 0 | F56: 0 | G56: 0 | H56: 0 | I56: 0 | K56: 0
A57: Drainage Collection | C57: 0 | D57: 0 | E57: 0 | F57: 0 | G57: 0 | H57: 0 | I57: 0 | K57: 0
A58: Storm water Conveyance | C58: 0 | D58: 0 | E58: 0 | F58: 0 | G58: 0 | H58: 0 | I58: 0 | K58: 0
A59: Attenuation | C59: 0 | D59: 0 | E59: 0 | F59: 0 | G59: 0 | H59: 0 | I59: 0 | K59: 0
A60: MV Substations | C60: 0 | D60: 0 | E60: 0 | F60: 0 | G60: 0 | H60: 0 | I60: 0 | K60: 0
A61: LV Networks | C61: 0 | D61: 0 | E61: 0 | F61: 0 | G61: 0 | H61: 0 | I61: 0 | K61: 0
A62: Capital Spares | C62: 0 | D62: 0 | E62: 0 | F62: 0 | G62: 0 | H62: 0 | I62: 0 | K62: 0
A63: Coastal Infrastructure | C63: =SUM(C64:C68) -> 0 | D63: 0 | E63: 0 | F63: 0 | G63: 0 | H63: 0 | I63: 0 | K63: =SUM(K64:K68) -> 0
A64: Sand Pumps | C64: 0 | D64: 0 | E64: 0 | F64: 0 | G64: 0 | H64: 0 | I64: 0 | K64: 0
A65: Piers | C65: 0 | D65: 0 | E65: 0 | F65: 0 | G65: 0 | H65: 0 | I65: 0 | K65: 0
A66: Revetments | C66: 0 | D66: 0 | E66: 0 | F66: 0 | G66: 0 | H66: 0 | I66: 0 | K66: 0
A67: Promenades | C67: 0 | D67: 0 | E67: 0 | F67: 0 | G67: 0 | H67: 0 | I67: 0 | K67: 0
A68: Capital Spares | C68: 0 | D68: 0 | E68: 0 | F68: 0 | G68: 0 | H68: 0 | I68: 0 | K68: 0
A69: Information and Communication Infrastructure | C69: =SUM(C70:C73) -> 0 | D69: 0 | E69: 0 | F69: 0 | G69: 0 | H69: 0 | I69: 0 | K69: =SUM(K70:K73) -> 0
A70: Data Centres | I70: 0
A71: Core Layers | I71: 0
A72: Distribution Layers | I72: 0
A73: Capital Spares | I73: 0
A75: Community Assets | C75: =+C76+C99 -> 1123572.65 | D75: 1268026 | E75: 1268026 | F75: 229955.9 | G75: 2779567.78 | H75: 1268026 | I75: -1511541.78 | J75: -1.192043207 | K75: =+K76+K99 -> 1268026
A76: Community Facilities | C76: =SUM(C77:C98) -> 995265.94 | D76: 1121398 | E76: 1121398 | F76: 105167.14 | G76: 1244296.15 | H76: 1121398 | I76: -122898.15 | J76: -0.1095936947 | K76: =SUM(K77:K98) -> 1121398
A77: Halls | C77: 144656.57 | D77: 165329 | E77: 165329 | F77: 13838.37 | G77: 166060.37 | H77: 165329 | I77: -731.37 | J77: -0.004423724815 | K77: 165329
A78: Centres | C78: 546174.26 | D78: 608401 | E78: 608401 | F78: 60993.92 | G78: 716261.42 | H78: 608401 | I78: -107860.42 | J78: -0.1772850801 | K78: 608401
A79: Crèches | C79: 0 | D79: 0 | E79: 0 | F79: 0 | G79: 0 | H79: 0 | I79: 0 | K79: 0
A80: Clinics/Care Centres | C80: 0 | D80: 0 | E80: 0 | F80: 0 | G80: 0 | H80: 0 | I80: 0 | K80: 0
A81: Fire/Ambulance Stations | C81: 0 | D81: 0 | E81: 0 | F81: 0 | G81: 0 | H81: 0 | I81: 0 | K81: 0
A82: Testing Stations | C82: 0 | D82: 0 | E82: 0 | F82: 0 | G82: 0 | H82: 0 | I82: 0 | K82: 0
A83: Museums | C83: 0 | D83: 0 | E83: 0 | F83: 0 | G83: 0 | H83: 0 | I83: 0 | K83: 0
A84: Galleries | C84: 0 | D84: 0 | E84: 0 | F84: 0 | G84: 0 | H84: 0 | I84: 0 | K84: 0
A85: Theatres | C85: 0 | D85: 0 | E85: 0 | F85: 0 | G85: 0 | H85: 0 | I85: 0 | K85: 0
A86: Libraries | C86: 0 | D86: 0 | E86: 0 | F86: 0 | G86: 0 | H86: 0 | I86: 0 | K86: 0
A87: Cemeteries/Crematoria | C87: 0 | D87: 0 | E87: 0 | F87: 0 | G87: 0 | H87: 0 | I87: 0 | K87: 0
A88: Police | C88: 0 | D88: 0 | E88: 0 | F88: 0 | G88: 0 | H88: 0 | I88: 0 | K88: 0
A89: Purls | C89: 0 | D89: 0 | E89: 0 | F89: 0 | G89: 0 | H89: 0 | I89: 0 | K89: 0
A90: Public Open Space | C90: 0 | D90: 0 | E90: 0 | F90: 0 | G90: 0 | H90: 0 | I90: 0 | K90: 0
A91: Nature Reserves | C91: 0 | D91: 0 | E91: 0 | F91: 0 | G91: 0 | H91: 0 | I91: 0 | K91: 0
A92: Public Ablution Facilities | C92: 25450.86 | D92: 28963 | E92: 28963 | F92: 2665.58 | G92: 31203.22 | H92: 28963 | I92: -2240.22 | J92: -0.07734765045 | K92: 28963
A93: Markets | C93: 30783.33 | D93: 35183 | E93: 35183 | F93: 2990.85 | G93: 34630.23 | H93: 35183 | I93: 552.77 | J93: 0.01571128102 | K93: 35183
A94: Stalls | C94: 0 | D94: 0 | E94: 0 | F94: 0 | G94: 0 | H94: 0 | I94: 0 | K94: 0
A95: Abattoirs | C95: 0 | D95: 0 | E95: 0 | F95: 0 | G95: 0 | H95: 0 | I95: 0 | K95: 0
A96: Airports | C96: 0 | D96: 0 | E96: 0 | F96: 0 | G96: 0 | H96: 0 | I96: 0 | K96: 0
A97: Taxi Ranks/Bus Terminals | C97: 248200.92 | D97: 283522 | E97: 283522 | F97: 24678.42 | G97: 296140.91 | H97: 283522 | I97: -12618.91 | J97: -0.04450769252 | K97: 283522
A98: Capital Spares | C98: 0 | D98: 0 | E98: 0 | F98: 0 | G98: 0 | H98: 0 | I98: 0 | K98: 0
A99: Sport and Recreation Facilities | C99: =SUM(C100:C102) -> 128306.71 | D99: 146628 | E99: 146628 | F99: 124788.76 | G99: 1535271.63 | H99: 146628 | I99: -1388643.63 | J99: -9.470521524 | K99: =SUM(K100:K102) -> 146628
A100: Indoor Facilities | I100: 0
A101: Outdoor Facilities | C101: 128306.71 | D101: 146628 | E101: 146628 | F101: 124788.76 | G101: 1535271.63 | H101: 146628 | I101: =H101-G101 -> -1388643.63 | J101: =IF(I101=0,"",I101/H101) -> -9.470521524 | K101: 146628
A102: Capital Spares | I102: 0
A103: Heritage assets | C103: =SUM(C104:C108) -> 0 | D103: 0 | E103: 0 | F103: 0 | G103: 0 | H103: 0 | I103: 0 | K103: =SUM(K104:K108) -> 0
A104: Monuments | I104: 0
A105: Historic Buildings | I105: 0
A106: Works of Art | I106: 0
A107: Conservation Areas | I107: 0
A108: Other Heritage | C108: 0 | D108: 0 | E108: 0 | F108: 0 | G108: 0 | H108: 0 | I108: 0 | K108: 0
I109: 0
A110: Investment properties | C110: =+C111+C114 -> 43333.36 | D110: 49526 | E110: 49526 | F110: 0 | G110: 32643.2 | H110: 49526 | I110: 16882.8 | J110: 0.3408876146 | K110: =+K111+K114 -> 49526
A111: Revenue Generating | C111: =SUM(C112:C113) -> 43333.36 | D111: 49526 | E111: 49526 | F111: 0 | G111: 32643.2 | H111: 49526 | I111: 16882.8 | J111: 0.3408876146 | K111: =SUM(K112:K113) -> 49526
A112: Improved Property | C112: 43333.36 | D112: 49526 | E112: 49526 | F112: 0 | G112: 32643.2 | H112: 49526 | I112: 16882.8 | J112: 0.3408876146 | K112: 49526
A113: Unimproved Property | C113: 0 | D113: 0 | E113: 0 | F113: 0 | G113: 0 | H113: 0 | I113: 0 | K113: 0
A114: Non-revenue Generating | C114: =SUM(C115:C116) -> 0 | D114: 0 | E114: 0 | F114: 0 | G114: 0 | H114: 0 | I114: 0 | K114: =SUM(K115:K116) -> 0
A115: Improved Property | I115: 0
A116: Unimproved Property | C116: 0 | D116: 0 | E116: 0 | F116: 0 | G116: 0 | H116: 0 | I116: =H116-G116 -> 0 | J116: =IF(I116=0,"",I116/H116) ->  | K116: 0
A117: Other assets | C117: =+C118+C130 -> 1212081.83 | D117: 1352987 | E117: 1352987 | F117: 0 | G117: 1197736.52 | H117: 1352987 | I117: 155250.48 | J117: 0.1147464684 | K117: =+K118+K130 -> 1352987
A118: Operational Buildings | C118: =SUM(C119:C129) -> 1212081.83 | D118: 1352987 | E118: 1352987 | F118: 0 | G118: 1197736.52 | H118: 1352987 | I118: 155250.48 | J118: 0.1147464684 | K118: =SUM(K119:K129) -> 1352987
A119: Municipal Offices | C119: 1212081.83 | D119: 1352987 | E119: 1352987 | F119: 0 | G119: 1197736.52 | H119: 1352987 | I119: 155250.48 | J119: 0.1147464684 | K119: 1352987
A120: Pay/Enquiry Points | C120: 0 | D120: 0 | E120: 0 | F120: 0 | G120: 0 | H120: 0 | I120: 0 | K120: 0
A121: Building Plan Offices | C121: 0 | D121: 0 | E121: 0 | F121: 0 | G121: 0 | H121: 0 | I121: 0 | K121: 0
A122: Workshops | C122: 0 | D122: 0 | E122: 0 | F122: 0 | G122: 0 | H122: 0 | I122: 0 | K122: 0
A123: Yards | C123: 0 | D123: 0 | E123: 0 | F123: 0 | G123: 0 | H123: 0 | I123: 0 | K123: 0
A124: Stores | C124: 0 | D124: 0 | E124: 0 | F124: 0 | G124: 0 | H124: 0 | I124: 0 | K124: 0
A125: Laboratories | C125: 0 | D125: 0 | E125: 0 | F125: 0 | G125: 0 | H125: 0 | I125: 0 | K125: 0
A126: Training Centres | C126: 0 | D126: 0 | E126: 0 | F126: 0 | G126: 0 | H126: 0 | I126: 0 | K126: 0
A127: Manufacturing Plant | C127: 0 | D127: 0 | E127: 0 | F127: 0 | G127: 0 | H127: 0 | I127: 0 | K127: 0
A128: Depots | C128: 0 | D128: 0 | E128: 0 | F128: 0 | G128: 0 | H128: 0 | I128: 0 | K128: 0
A129: Capital Spares | C129: 0 | D129: 0 | E129: 0 | F129: 0 | G129: 0 | H129: 0 | I129: 0 | K129: 0
A130: Housing | C130: =SUM(C131:C133) -> 0 | D130: 0 | E130: 0 | F130: 0 | G130: 0 | H130: 0 | I130: 0 | K130: =SUM(K131:K133) -> 0
A131: Staff Housing | C131: 0 | D131: 0 | E131: 0 | F131: 0 | G131: 0 | H131: 0 | I131: 0 | K131: 0
A132: Social Housing | C132: 0 | D132: 0 | E132: 0 | F132: 0 | G132: 0 | H132: 0 | I132: 0 | K132: 0
A133: Capital Spares | C133: 0 | D133: 0 | E133: 0 | F133: 0 | G133: 0 | H133: 0 | I133: 0 | K133: 0
A135: Biological or Cultivated Assets | C135: =SUM(C136:C136) -> 0 | D135: 0 | E135: 0 | F135: 0 | G135: 0 | H135: 0 | I135: =H135-G135 -> 0 | K135: =SUM(K136) -> 0
A136: Biological or Cultivated Assets | I136: =H136-G136 -> 0
A138: Intangible Assets | C138: =SUM(C139:C140) -> 218216.9 | D138: 702655 | E138: 702655 | F138: 19528.78 | G138: 234345.38 | H138: 702655 | I138: =H138-G138 -> 468309.62 | J138: 0.6664858572 | K138: =SUM(K139:K140) -> 702655
A139: Servitudes | C139: 0 | D139: 0 | E139: 0 | F139: 0 | G139: 0 | H139: 0 | I139: 0 | K139: 0
A140: Licences and Rights | C140: =SUM(C141:C146) -> 218216.9 | D140: 702655 | E140: 702655 | F140: 19528.78 | G140: 234345.38 | H140: 702655 | I140: 468309.62 | J140: 0.6664858572 | K140: =SUM(K141:K146) -> 702655
A141: Water Rights | I141: 0
A142: Effluent Licenses | I142: 0
A143: Solid Waste Licenses | I143: 0
A144: Computer Software and Applications | C144: 218216.9 | D144: 702655 | E144: 702655 | F144: 19528.78 | G144: 234345.38 | H144: 702655 | I144: 468309.62 | J144: 0.6664858572 | K144: 702655
A145: Load Settlement Software Applications | I145: 0
A146: Unspecified | C146: 0 | D146: 0 | E146: 0 | F146: 0 | G146: 0 | H146: 0 | I146: 0 | K146: 0
A148: Computer Equipment | C148: =SUM(C149:C149) -> 163401.09 | D148: 815913 | E148: 815913 | F148: 68221.42 | G148: 847552.85 | H148: 815913 | I148: =H148-G148 -> -31639.85 | J148: =IF(I148=0,"",I148/H148) -> -0.03877846045 | K148: =SUM(K149) -> 815913
A149: Computer Equipment | C149: 163401.09 | D149: 815913 | E149: 815913 | F149: 68221.42 | G149: 847552.85 | H149: 815913 | I149: =H149-G149 -> -31639.85 | J149: =IF(I149=0,"",I149/H149) -> -0.03877846045 | K149: 815913
A151: Furniture and Office Equipment | C151: =SUM(C152:C152) -> 609938.81 | D151: 1888988 | E151: 1888988 | F151: 87665.21 | G151: 1350568.88 | H151: 1888988 | I151: =H151-G151 -> 538419.12 | J151: =IF(I151=0,"",I151/H151) -> 0.2850304608 | K151: =SUM(K152) -> 1888988
A152: Furniture and Office Equipment | C152: 609938.81 | D152: 1888988 | E152: 1888988 | F152: 87665.21 | G152: 1350568.88 | H152: 1888988 | I152: =H152-G152 -> 538419.12 | J152: =IF(I152=0,"",I152/H152) -> 0.2850304608 | K152: 1888988
J153: =IF(I153=0,"",I153/H153) -> 
A154: Machinery and Equipment | C154: =SUM(C155:C155) -> 790223.4 | D154: 1453304 | E154: 1453304 | F154: 82791.94 | G154: 976969.32 | H154: 1453304 | I154: =H154-G154 -> 476334.68 | J154: =IF(I154=0,"",I154/H154) -> 0.3277598355 | K154: =SUM(K155) -> 1453304
A155: Machinery and Equipment | C155: 790223.4 | D155: 1453304 | E155: 1453304 | F155: 82791.94 | G155: 976969.32 | H155: 1453304 | I155: =H155-G155 -> 476334.68 | J155: =IF(I155=0,"",I155/H155) -> 0.3277598355 | K155: 1453304
A157: Transport Assets | C157: =SUM(C158:C158) -> 1399298.64 | D157: 1828539 | E157: 1828539 | F157: 113595.17 | G157: 1866368.31 | H157: 1828539 | I157: =H157-G157 -> -37829.31 | J157: =IF(I157=0,"",I157/H157) -> -0.0206882708 | K157: =SUM(K158) -> 1828539
A158: Transport Assets | C158: 1399298.64 | D158: 1828539 | E158: 1828539 | F158: 113595.17 | G158: 1866368.31 | H158: 1828539 | I158: =H158-G158 -> -37829.31 | J158: =IF(I158=0,"",I158/H158) -> -0.0206882708 | K158: 1828539
A160: Land | C160: =SUM(C161:C161) -> 0 | D160: 0 | E160: 0 | F160: 0 | G160: 0 | H160: 0 | I160: =H160-G160 -> 0 | J160: =IF(I160=0,"",I160/H160) ->  | K160: =SUM(K161) -> 0
A161: Land | C161: 0 | D161: 0 | E161: 0 | F161: 0 | G161: 0 | H161: 0 | I161: =H161-G161 -> 0 | J161: =IF(I161=0,"",I161/H161) ->  | K161: 0
A163: Zoo's, Marine and Non-biological Animals | C163: =SUM(C164:C164) -> 0 | D163: 0 | E163: 0 | F163: 0 | G163: 0 | H163: 0 | I163: =H163-G163 -> 0 | J163: =IF(I163=0,"",I163/H163) ->  | K163: =SUM(K164) -> 0
A164: Zoo's, Marine and Non-biological Animals | C164: 0 | D164: 0 | E164: 0 | F164: 0 | G164: 0 | H164: 0 | I164: =H164-G164 -> 0 | J164: =IF(I164=0,"",I164/H164) ->  | K164: 0
J165: =IF(I165=0,"",I165/H165) -> 
A166: Total Depreciation | B166: 1 | C166: =C7+C75+C103+C110+C117+C135+C138+C148+C151+C154+C157+C160+C163 -> 12114558.47 | D166: 18994790 | E166: 18994790 | F166: 1373290.95 | G166: 20879201.26 | H166: 18994790 | I166: -1884411.26 | J166: -0.09920674353 | K166: =K7+K75+K103+K110+K117+K135+K138+K148+K151+K154+K157+K160+K163 -> 18994790

Sheet SC13e
A1: =muni& " - "&S71Se& " - "&Head57 -> LIM353 Molemole - Supporting Table SC13e Monthly Budget Statement - capital expenditure on upgrading of existing assets by asset class - Q4 Fourth Quarter
A2: =desc -> Description | B2: =head27 -> Ref | C2: =Head1 -> 2020/21 | D2: =Head2 -> Budget Year 2021/22
C3: =Head5 -> Audited Outcome | D3: =Head6 -> Original Budget | E3: =Head7 -> Adjusted Budget | F3: =Head38 -> Monthly actual | G3: =Head39 -> YearTD actual | H3: =Head40 -> YearTD budget | I3: =Head41 -> YTD variance | J3: =Head41 -> YTD variance | K3: =Head8 -> Full Year Forecast
A4: R thousands | B4: 1 | J4: %
A5: Capital expenditure on upgrading of existing assets by Asset Class/Sub-class
A7: Infrastructure | C7: =C8+C13+C17+C27+C38+C45+C53+C63+C69 -> 0 | D7: 0 | E7: 0 | F7: 0 | G7: 0 | H7: 0 | I7: =H7-G7 -> 0 | J7: =IF(I7=0,"",I7/H7) ->  | K7: =K8+K13+K17+K27+K38+K45+K53+K63+K69 -> 0
A8: Roads Infrastructure | C8: =SUM(C9:C12) -> 0 | D8: 0 | E8: 0 | F8: 0 | G8: 0 | H8: 0 | I8: 0 | K8: =SUM(K9:K12) -> 0
A9: Roads | I9: 0
A10: Road Structures | I10: 0
A11: Road Furniture | I11: 0
A12: Capital Spares | I12: 0
A13: Storm water Infrastructure | C13: =SUM(C14:C16) -> 0 | D13: 0 | E13: 0 | F13: 0 | G13: 0 | H13: 0 | I13: 0 | K13: =SUM(K14:K16) -> 0
A14: Drainage Collection | I14: 0
A15: Storm water Conveyance | I15: 0
A16: Attenuation | I16: 0
A17: Electrical Infrastructure | C17: =SUM(C18:C26) -> 0 | D17: 0 | E17: 0 | F17: 0 | G17: 0 | H17: 0 | I17: 0 | K17: =SUM(K18:K26) -> 0
A18: Power Plants | I18: 0
A19: HV Substations | I19: 0
A20: HV Switching Station | I20: 0
A21: HV Transmission Conductors | I21: 0
A22: MV Substations | I22: 0
A23: MV Switching Stations | I23: 0
A24: MV Networks | I24: 0
A25: LV Networks | I25: 0
A26: Capital Spares | I26: 0
A27: Water Supply Infrastructure | C27: =SUM(C28:C37) -> 0 | D27: 0 | E27: 0 | F27: 0 | G27: 0 | H27: 0 | I27: 0 | K27: =SUM(K28:K37) -> 0
A28: Dams and Weirs | I28: 0
A29: Boreholes | I29: 0
A30: Reservoirs | I30: 0
A31: Pump Stations | I31: 0
A32: Water Treatment Works | I32: 0
A33: Bulk Mains | I33: 0
A34: Distribution | I34: 0
A35: Distribution Points | I35: 0
A36: PRV Stations | I36: 0
A37: Capital Spares | I37: 0
A38: Sanitation Infrastructure | C38: =SUM(C39:C44) -> 0 | D38: 0 | E38: 0 | F38: 0 | G38: 0 | H38: 0 | I38: 0 | K38: =SUM(K39:K44) -> 0
A39: Pump Station | I39: 0
A40: Reticulation | I40: 0
A41: Waste Water Treatment Works | I41: 0
A42: Outfall Sewers | I42: 0
A43: Toilet Facilities | I43: 0
A44: Capital Spares | I44: 0
A45: Solid Waste Infrastructure | C45: =SUM(C46:C52) -> 0 | D45: 0 | E45: 0 | F45: 0 | G45: 0 | H45: 0 | I45: 0 | K45: =SUM(K46:K52) -> 0
A46: Landfill Sites | I46: 0
A47: Waste Transfer Stations | I47: 0
A48: Waste Processing Facilities | I48: 0
A49: Waste Drop-off Points | I49: 0
A50: Waste Separation Facilities | I50: 0
A51: Electricity Generation Facilities | I51: 0
A52: Capital Spares | I52: 0
A53: Rail Infrastructure | C53: =SUM(C54:C62) -> 0 | D53: 0 | E53: 0 | F53: 0 | G53: 0 | H53: 0 | I53: 0 | K53: =SUM(K54:K62) -> 0
A54: Rail Lines | I54: 0
A55: Rail Structures | I55: 0
A56: Rail Furniture | I56: 0
A57: Drainage Collection | I57: 0
A58: Storm water Conveyance | I58: 0
A59: Attenuation | I59: 0
A60: MV Substations | I60: 0
A61: LV Networks | I61: 0
A62: Capital Spares | I62: 0
A63: Coastal Infrastructure | C63: =SUM(C64:C68) -> 0 | D63: 0 | E63: 0 | F63: 0 | G63: 0 | H63: 0 | I63: 0 | K63: =SUM(K64:K68) -> 0
A64: Sand Pumps | I64: 0
A65: Piers | I65: 0
A66: Revetments | I66: 0
A67: Promenades | I67: 0
A68: Capital Spares | I68: 0
A69: Information and Communication Infrastructure | C69: =SUM(C70:C73) -> 0 | D69: 0 | E69: 0 | F69: 0 | G69: 0 | H69: 0 | I69: 0 | K69: =SUM(K70:K73) -> 0
A70: Data Centres | I70: 0
A71: Core Layers | I71: 0
A72: Distribution Layers | I72: 0
A73: Capital Spares | I73: 0
A75: Community Assets | C75: =+C76+C99 -> 0 | D75: 0 | E75: 0 | F75: 0 | G75: 0 | H75: 0 | I75: 0 | K75: =+K76+K99 -> 0
A76: Community Facilities | C76: =SUM(C77:C98) -> 0 | D76: 0 | E76: 0 | F76: 0 | G76: 0 | H76: 0 | I76: 0 | K76: =SUM(K77:K98) -> 0
A77: Halls | I77: 0
A78: Centres | I78: 0
A79: Crèches | I79: 0
A80: Clinics/Care Centres | I80: 0
A81: Fire/Ambulance Stations | I81: 0
A82: Testing Stations | I82: 0
A83: Museums | I83: 0
A84: Galleries | I84: 0
A85: Theatres | I85: 0
A86: Libraries | I86: 0
A87: Cemeteries/Crematoria | I87: 0
A88: Police | I88: 0
A89: Purls | I89: 0
A90: Public Open Space | I90: 0
A91: Nature Reserves | I91: 0
A92: Public Ablution Facilities | I92: 0
A93: Markets | I93: 0
A94: Stalls | I94: 0
A95: Abattoirs | I95: 0
A96: Airports | I96: 0
A97: Taxi Ranks/Bus Terminals | I97: 0
A98: Capital Spares | I98: 0
A99: Sport and Recreation Facilities | C99: =SUM(C100:C102) -> 0 | D99: 0 | E99: 0 | F99: 0 | G99: 0 | H99: 0 | I99: 0 | K99: =SUM(K100:K102) -> 0
A100: Indoor Facilities | I100: 0
A101: Outdoor Facilities | I101: =H101-G101 -> 0 | J101: =IF(I101=0,"",I101/H101) -> 
A102: Capital Spares | I102: 0
A103: Heritage assets | C103: =SUM(C104:C108) -> 0 | D103: 0 | E103: 0 | F103: 0 | G103: 0 | H103: 0 | I103: 0 | K103: =SUM(K104:K108) -> 0
A104: Monuments | I104: 0
A105: Historic Buildings | I105: 0
A106: Works of Art | I106: 0
A107: Conservation Areas | I107: 0
A108: Other Heritage | I108: 0
I109: 0
A110: Investment properties | C110: =+C111+C114 -> 0 | D110: 0 | E110: 0 | F110: 0 | G110: 0 | H110: 0 | I110: 0 | K110: =+K111+K114 -> 0
A111: Revenue Generating | C111: =SUM(C112:C113) -> 0 | D111: 0 | E111: 0 | F111: 0 | G111: 0 | H111: 0 | I111: 0 | K111: =SUM(K112:K113) -> 0
A112: Improved Property | I112: 0
A113: Unimproved Property | I113: 0
A114: Non-revenue Generating | C114: =SUM(C115:C116) -> 0 | D114: 0 | E114: 0 | F114: 0 | G114: 0 | H114: 0 | I114: 0 | K114: =SUM(K115:K116) -> 0
A115: Improved Property | I115: 0
A116: Unimproved Property | I116: =H116-G116 -> 0 | J116: =IF(I116=0,"",I116/H116) -> 
A117: Other assets | C117: =+C118+C130 -> 0 | D117: 0 | E117: 0 | F117: 0 | G117: 0 | H117: 0 | I117: 0 | K117: =+K118+K130 -> 0
A118: Operational Buildings | C118: =SUM(C119:C129) -> 0 | D118: 0 | E118: 0 | F118: 0 | G118: 0 | H118: 0 | I118: 0 | K118: =SUM(K119:K129) -> 0
A119: Municipal Offices | I119: 0
A120: Pay/Enquiry Points | I120: 0
A121: Building Plan Offices | I121: 0
A122: Workshops | I122: 0
A123: Yards | I123: 0
A124: Stores | I124: 0
A125: Laboratories | I125: 0
A126: Training Centres | I126: 0
A127: Manufacturing Plant | I127: 0
A128: Depots | I128: 0
A129: Capital Spares | I129: 0
A130: Housing | C130: =SUM(C131:C133) -> 0 | D130: 0 | E130: 0 | F130: 0 | G130: 0 | H130: 0 | I130: 0 | K130: =SUM(K131:K133) -> 0
A131: Staff Housing | I131: 0
A132: Social Housing | I132: 0
A133: Capital Spares | I133: 0
A135: Biological or Cultivated Assets | C135: =SUM(C136:C136) -> 0 | D135: 0 | E135: 0 | F135: 0 | G135: 0 | H135: 0 | I135: =H135-G135 -> 0 | K135: =SUM(K136) -> 0
A136: Biological or Cultivated Assets | I136: =H136-G136 -> 0
J137: =IF(I137=0,"",I137/H137) -> 
A138: Intangible Assets | C138: =SUM(C139:C140) -> 0 | D138: 0 | E138: 0 | F138: 0 | G138: 0 | H138: 0 | I138: =H138-G138 -> 0 | K138: =SUM(K139:K140) -> 0
A139: Servitudes | I139: 0
A140: Licences and Rights | C140: =SUM(C141:C146) -> 0 | D140: 0 | E140: 0 | F140: 0 | G140: 0 | H140: 0 | I140: 0 | K140: =SUM(K141:K146) -> 0
A141: Water Rights | I141: 0
A142: Effluent Licenses | I142: 0
A143: Solid Waste Licenses | I143: 0
A144: Computer Software and Applications | I144: 0
A145: Load Settlement Software Applications | I145: 0
A146: Unspecified | I146: 0
A148: Computer Equipment | C148: =SUM(C149:C149) -> 0 | D148: 0 | E148: 0 | F148: 0 | G148: 0 | H148: 0 | I148: =H148-G148 -> 0 | J148: =IF(I148=0,"",I148/H148) ->  | K148: =SUM(K149) -> 0
A149: Computer Equipment | I149: =H149-G149 -> 0 | J149: =IF(I149=0,"",I149/H149) -> 
A151: Furniture and Office Equipment | C151: =SUM(C152:C152) -> 0 | D151: 0 | E151: 0 | F151: 0 | G151: 0 | H151: 0 | I151: =H151-G151 -> 0 | J151: =IF(I151=0,"",I151/H151) ->  | K151: =SUM(K152) -> 0
A152: Furniture and Office Equipment | I152: =H152-G152 -> 0 | J152: =IF(I152=0,"",I152/H152) -> 
J153: =IF(I153=0,"",I153/H153) -> 
A154: Machinery and Equipment | C154: =SUM(C155:C155) -> 0 | D154: 310000 | E154: 310000 | F154: 0 | G154: 163043.48 | H154: 310000 | I154: =H154-G154 -> 146956.52 | J154: =IF(I154=0,"",I154/H154) -> 0.4740532903 | K154: =SUM(K155) -> 310000
A155: Machinery and Equipment | C155: 0 | D155: 310000 | E155: 310000 | F155: 0 | G155: 163043.48 | H155: 310000 | I155: =H155-G155 -> 146956.52 | J155: =IF(I155=0,"",I155/H155) -> 0.4740532903 | K155: 310000
A157: Transport Assets | C157: =SUM(C158:C158) -> 0 | D157: 0 | E157: 0 | F157: 0 | G157: 0 | H157: 0 | I157: =H157-G157 -> 0 | J157: =IF(I157=0,"",I157/H157) ->  | K157: =SUM(K158) -> 0
